Workbook

Sheet UI
B1: PC-series Motor ID Selection Tool To obtain Your specific Motor ID either use the pull-down menu for Manufacturer and Model respectively and hit the LOAD MOTOR button, or manually enter the dimensions of Your motor
B3: Quick select motor:
B4: Manufacturer | D4: Model
B7: Units
B8: Motor Body
D10: 63 | E10: =IF(UIoptions!$N$31=1,UIoptions!$M$29,UIoptions!$M$30) -> mm
B11: Pilot Diamter (PD) | D11: 40 | E11: =IF(UIoptions!$N$31=1,UIoptions!$M$29,UIoptions!$M$30) -> mm
B12: Shaft Diameter (SD) | D12: 15 | E12: =IF(UIoptions!$N$31=1,UIoptions!$M$29,UIoptions!$M$30) -> mm
B13: Shaft Length (SL) | D13: 20 | E13: =IF(UIoptions!$N$31=1,UIoptions!$M$29,UIoptions!$M$30) -> mm
B14: Pilot Length (PL) | D14: 2.5 | E14: =IF(UIoptions!$N$31=1,UIoptions!$M$29,UIoptions!$M$30) -> mm
B15: =IF(UIoptions!N35=1,"Square Side (SQ)","Outer Diameter (Motor)") -> Square Side (SQ) | D15: 58 | E15: =IF(UIoptions!$N$31=1,UIoptions!$M$29,UIoptions!$M$30) -> mm
B16: Thru Holes
B17: Hole Diameter (HD) | D17: 4.8 | E17: =IF(UIoptions!$N$31=1,UIoptions!$M$29,UIoptions!$M$30) -> mm
B18: Flange Thickness (FT) | D18: 7 | E18: =IF(UIoptions!$N$31=1,UIoptions!$M$29,UIoptions!$M$30) -> mm
B19: Tapped Holes
B20: Thread
B21: Thread Depth | E21: =IF(UIoptions!$N$31=1,UIoptions!$M$29,UIoptions!$M$30) -> mm
B23: Motor ID: | D23: =UIoptions!O24 -> No match found. Please contact customer service.
B25: PC25LX | D25: PC32LX | G25: PC40LX
B31: =IF(Criteria!B3=1,Criteria!D3,Criteria!C3) -> Values out of range: Shaft diameter Unsupported combination | D31: =IF(Criteria!B4=1,Criteria!D4,Criteria!C4) -> Your motor fits! PLATE B C = 59 mm | G31: =IF(Criteria!B5=1,Criteria!D5,Criteria!C5) -> Your motor fits! PLATE A C = 62 mm
B39: PC25PA | D39: PC32PA | G39: PC40PA
B45: =IF(Criteria!B6=1,Criteria!D6,Criteria!C6) -> Values out of range: Shaft diameter Unsupported combination | D45: =IF(Criteria!B7=1,Criteria!D7,Criteria!C7) -> Values out of range: Shaft diameter Unsupported combination | G45: =IF(Criteria!B8=1,Criteria!D8,Criteria!C8) -> Your motor fits! PLATE C
B54: DISCLAIMER
B55: The user is responsible to verify that all dimensions are according to drawing. Reservation for errors etc.
B57: © 2014 Thomson Linear, Magnus Jonason B

Sheet UIoptions (hidden)
M8: IF INCH | Q8: DATABASE SEARCH TOLERANCES
K9: BCD/Bolt dist. | M9: Metric | N9: Dec | O9: Rounded | P9: NOMINAL | Q9: Tol- | R9: Tol+ | S9: Min | T9: Max
K10: =IF(N22=1,UI!D10,UI!D10*SQRT(2)) -> 63 | L10: BD | M10: =IF($N$31=2,K10*25.4,K10) -> 63 | N10: 1 | O10: =ROUND(M10,N10) -> 63 | P10: =O10 -> 63 | Q10: =25.4*0.001 -> 0.0254 | R10: =25.4*0.001 -> 0.0254 | S10: =P10-Q10 -> 62.9746 | T10: =P10+R10 -> 63.0254
L11: PD | M11: =IF($N$31=2,UI!D11*25.4,UI!D11) -> 40 | N11: 2 | O11: =ROUNDUP(M11,N11) -> 40 | P11: =O11 -> 40 | Q11: =25.4*0.0005 -> 0.0127 | R11: =25.4*0.0005 -> 0.0127 | S11: =P11-Q11 -> 39.9873 | T11: =P11+R11 -> 40.0127
L12: SD | M12: =IF($N$31=2,UI!D12*25.4,UI!D12) -> 15 | N12: 2 | O12: =IF(M12=15.875,M12,ROUNDUP(M12,N12)) -> 15 | P12: 15 | Q12: =25.4*0.0005 -> 0.0127 | R12: =25.4*0.0005 -> 0.0127 | S12: =P12-Q12 -> 14.9873 | T12: =P12+R12 -> 15.0127
L13: SL | M13: =IF($N$31=2,UI!D13*25.4,UI!D13) -> 20 | N13: 1 | O13: 20 | P13: 20 | Q13: =25.4*0.003 -> 0.0762 | R13: =25.4*0.003 -> 0.0762 | S13: =P13-Q13 -> 19.9238 | T13: =P13+R13 -> 20.0762
L14: PL | M14: =IF($N$31=2,UI!D14*25.4,UI!D14) -> 2.5 | N14: 1 | O14: 2.5 | P14: 2.5 | S14: 0.2 | T14: 4
L15: SQ/ROUND | M15: =IF($N$31=2,UI!D15*25.4,UI!D15) -> 58 | N15: 1 | O15: 58 | P15: 58 | Q15: 0.101 | R15: 0.101 | S15: =P15-Q15 -> 57.899 | T15: =P15+R15 -> 58.101
L16: FL | M16: =IF($N$31=2,UI!D18*25.4,UI!D18) -> 7 | N16: 1 | O16: =ROUND(M16,N16) -> 7 | P16: =O16 -> 7 | Q16: 0.1 | R16: 0.1 | S16: =P16-Q16 -> 6.9 | T16: =P16+R16 -> 7.1
L17: THREAD_L | M17: =IF($N$31=2,UI!D21*25.4,UI!D21) -> 0 | N17: 1 | O17: =ROUND(M17,N17) -> 0 | P17: =O17 -> 0 | Q17: =25.4*0.001 -> 0.0254 | R17: =25.4*0.001 -> 0.0254 | S17: =P17-Q17 -> -0.0254 | T17: =P17+R17 -> 0.0254
L18: HOLE_D | M18: =IF($N$31=2,UI!D17*25.4,UI!D17) -> 4.8 | N18: 1 | O18: =ROUND(M18,N18) -> 4.8 | P18: =O18 -> 4.8 | Q18: =IF(N75=1,INDEX(Criteria!A111:G125,MATCH(1,Criteria!G111:G125,0),1),"NA") -> M4
L19: Thread SZ | P19: =IF(N75=1,"NA",INDEX(M37:M74,MATCH(N75,N37:N74,0),1)) -> NA
M20: Bolt Circle Diameter (BCD) | N20: 1 | T20: 4
M21: Bolt Distance (BD) | N21: 2 | S21: Combo1 | T21: 5 | U21: =INDEX(MotorManufacturersTxt,T21) -> Kollmorgen
M22: Selected | N22: 1 | S22: Combo2 | T22: 7 | U22: =INDEX(MotorModelsTxt,T22) -> AKM2xx-Dxxxx-00
M24: MOTOR ID FOUND | N24: =IFERROR(INDEX(PCdb[#Data],MATCH(1,PCdb[HIT?],0),1),M25) -> No match found. Please contact customer service. | O24: =IF(N24>99,N24,IF(N24>9,CONCATENATE("0",N24),CONCATENATE("00",N24))) -> No match found. Please contact customer service. | U24: =MATCH(CONCATENATE(U21,U22),TableMotorCrossRef[ComboTxt],0) -> 22
M25: No match found. Please contact customer service. | S25: NEED TO CHANGE MACRO IF THESE CELLS ARE MOVED! | T25: BD | U25: =INDEX(TableMotorCrossRef[],$U$24,4) -> 65
T26: PD | U26: =INDEX(TableMotorCrossRef[],$U$24,5) -> 40
T27: SD | U27: =INDEX(TableMotorCrossRef[],$U$24,7) -> 9
T28: SL | U28: =INDEX(TableMotorCrossRef[],$U$24,8) -> 20
M29: mm | N29: 1 | T29: PL | U29: =INDEX(TableMotorCrossRef[],$U$24,6) -> 2.5
M30: inch | N30: 2 | T30: SQ/ROUND | U30: =IF(INDEX(TableMotorCrossRef[],$U$24,9)="NA",INDEX(TableMotorCrossRef[],1,10),INDEX(TableMotorCrossRef[],$U$24,9)) -> 58
M31: Selected | N31: 1 | T31: SQ | U31: =INDEX(TableMotorCrossRef[],$U$24,9) -> 58
B32: PRODUCTION TAB | T32: ROUND | U32: =INDEX(TableMotorCrossRef[],$U$24,10) -> NA
M33: Square | N33: 1 | T33: FL | U33: =IF(INDEX(TableMotorCrossRef[],$U$24,11)="NA","",INDEX(TableMotorCrossRef[],$U$24,11)) -> 7
B34: Size | M34: Round | N34: 2 | T34: THREAD_L | U34: =IF(INDEX(TableMotorCrossRef[],$U$24,14)="NA","",INDEX(TableMotorCrossRef[],$U$24,14)) -> 
B35: Selected | C35: 3 | M35: Selected | N35: 1 | T35: Hole Dia | U35: =IF(INDEX(TableMotorCrossRef[],$U$24,12)="NA","",INDEX(TableMotorCrossRef[],$U$24,12)) -> 5.8
B36: PC25 | C36: 1 | T36: Thread SZ | U36: =IF(INDEX(TableMotorCrossRef[],$U$24,13)="NA","",INDEX(TableMotorCrossRef[],$U$24,13)) -> 
B37: PC32 | C37: 2 | M37: No Tapped Holes | N37: 1 | T37: Thread SZ | U37: =INDEX(TableMotorCrossRef[],$U$24,13) -> NA
B38: PC40 | C38: 3 | M38: M3 | N38: 2 | T38: Thread SZ lookup | U38: =IF(OR(U37="NA",T22=0),1,INDEX(M38:N74,MATCH(U37,M38:M74,0),2)) -> 1
M39: M4 | N39: 3
B40: Type | M40: M5 | N40: 4
B41: Selected | C41: 2 | M41: #4 - 40 UNC | N41: 5
B42: LX | C42: 1 | M42: #8 - 32 UNC | N42: 6
B43: PA | C43: 2 | M43: #12 - 24 UNC | N43: 7
M44: #4 - 48 UNF | N44: 8
B45: Chosen | C45: =INDEX(B36:C38,MATCH(C35,C36:C38,0),1) -> PC40 | D45: =INDEX(B42:C43,MATCH(C41,C42:C43,0),1) -> PA | M45: #8 - 36 UNF | N45: 9
M46: #12 - 28 UNF | N46: 10
D47: Plate | E47: Rin | F47: L | G47: Beta1 | H47: Beta2 | I47: LC | N47: 11
B48: Columns | D48: =INDEX($E$50:$H$55,MATCH(2,$E$50:$E$55,0),2) -> 51 | E48: =INDEX($E$50:$H$55,MATCH(2,$E$50:$E$55,0),3) -> 48 | F48: =INDEX($E$50:$H$55,MATCH(2,$E$50:$E$55,0),4) -> 49 | G48: =INDEX($E$50:$J$55,MATCH(2,$E$50:$E$55,0),5) -> 52 | H48: =INDEX($E$50:$J$55,MATCH(2,$E$50:$E$55,0),6) -> 53 | I48: =INDEX($E$50:$K$55,MATCH(2,$E$50:$E$55,0),7) -> 0 | N48: 12
C49: Sz hit? | D49: Type hit? | E49: Hit? | F49: Plate | G49: Rin | H49: L | I49: Beta1 | J49: Beta2 | K49: LC | N49: 13
B50: PC25LX | C50: =IF($C$35=1,1,0) -> 0 | D50: =IF($C$41=1,1,0) -> 0 | E50: =SUM(C50:D50) -> 0 | F50: =COLUMN(PCdb[PLATE (PC25LX)]) -> 19 | G50: =COLUMN(PCdb[Rin (PC25LX)]) -> 16 | H50: =COLUMN(PCdb[L (PC25LX)]) -> 17 | I50: =COLUMN(PCdb[Beta1 (PC25LX)]) -> 20 | J50: =COLUMN(PCdb[Beta2 (PC25LX)]) -> 21 | K50: =COLUMN(PCdb[LC (PC25LX)]) -> 15 | N50: 14
B51: PC25PA | C51: =IF($C$35=1,1,0) -> 0 | D51: =IF($C$41=2,1,0) -> 1 | E51: 1 | F51: =COLUMN(PCdb[PLATE (PC25PA)]) -> 39 | G51: =COLUMN(PCdb[Rin (PC25PA)]) -> 36 | H51: =COLUMN(PCdb[L (PC25PA)]) -> 37 | I51: =COLUMN(PCdb[Beta1 (PC25PA)]) -> 40 | J51: =COLUMN(PCdb[Beta2 (PC25PA)]) -> 41 | N51: 15
B52: PC32LX | C52: =IF($C$35=2,1,0) -> 0 | D52: =IF($C$41=1,1,0) -> 0 | E52: 0 | F52: =COLUMN(PCdb[PLATE (PC32LX)]) -> 26 | G52: =COLUMN(PCdb[Rin (PC32LX)]) -> 23 | H52: =COLUMN(PCdb[L (PC32LX)]) -> 24 | I52: =COLUMN(PCdb[Beta1 (PC32LX)]) -> 27 | J52: =COLUMN(PCdb[Beta2 (PC32LX)]) -> 28 | K52: =COLUMN(PCdb[LC (PC32LX)]) -> 22 | N52: 16
B53: PC32PA | C53: =IF($C$35=2,1,0) -> 0 | D53: =IF($C$41=2,1,0) -> 1 | E53: 1 | F53: =COLUMN(PCdb[PLATE (PC32PA)]) -> 45 | G53: =COLUMN(PCdb[Rin (PC32PA)]) -> 42 | H53: =COLUMN(PCdb[L (PC32PA)]) -> 43 | I53: =COLUMN(PCdb[Beta1 (PC32PA)]) -> 46 | J53: =COLUMN(PCdb[Beta2 (PC32PA)]) -> 47 | N53: 17
B54: PC40LX | C54: =IF($C$35=3,1,0) -> 1 | D54: =IF($C$41=1,1,0) -> 0 | E54: 1 | F54: =COLUMN(PCdb[PLATE (PC40LX)]) -> 33 | G54: =COLUMN(PCdb[Rin (PC40LX)]) -> 30 | H54: =COLUMN(PCdb[L (PC40LX)]) -> 31 | I54: =COLUMN(PCdb[Beta1 (PC40LX)]) -> 34 | J54: =COLUMN(PCdb[Beta2 (PC40LX)]) -> 35 | K54: =COLUMN(PCdb[LC (PC40LX)]) -> 29 | N54: 18
B55: PC40PA | C55: =IF($C$35=3,1,0) -> 1 | D55: =IF($C$41=2,1,0) -> 1 | E55: 2 | F55: =COLUMN(PCdb[PLATE (PC40PA)]) -> 51 | G55: =COLUMN(PCdb[Rin (PC40PA)]) -> 48 | H55: =COLUMN(PCdb[L (PC40PA)]) -> 49 | I55: =COLUMN(PCdb[Beta1 (PC40PA)]) -> 52 | J55: =COLUMN(PCdb[Beta2 (PC40PA)]) -> 53 | N55: 19
N56: 20
N57: 21
N58: 22
N59: 23
N60: 24
N61: 25
N62: 26
N63: 27
N64: 28
N65: 29
N66: 30
N67: 31
N68: 32
N69: 33
N70: 34
N71: 35
N72: 36
N73: 37
N74: 38
M75: Selected | N75: 1
M77: OLD LIST FOR REF. NOT USED!!!
M78: No Tapped Holes | N78: 1
M79: M2 | N79: 2
M80: M2,5 | N80: 3
M81: M3 | N81: 4
M82: M4 | N82: 5
M83: M5 | N83: 6
M84: M6 | N84: 7
M85: M8 | N85: 8
M86: M10 | N86: 9
M87: M12 | N87: 10
M88: #1 - 64 UNC | N88: 11
M89: #2 - 56 UNC | N89: 12
M90: #3 - 48 UNC | N90: 13
M91: #4 - 40 UNC | N91: 14
M92: #5 - 40 UNC | N92: 15
M93: #6 - 32 UNC | N93: 16
M94: #8 - 32 UNC | N94: 17
M95: #10 - 24 UNC | N95: 18
M96: #12 - 24 UNC | N96: 19
M97: 1/4" - 20 UNC | N97: 20
M98: 5/16" - 18 UNC | N98: 21
M99: 3/8" - 16 UNC | N99: 22
M100: 7/16" - 14 UNC | N100: 23
M101: 1/2" - 13 UNC | N101: 24
M102: #1 - 72 UNF | N102: 25
M103: #2 - 64 UNF | N103: 26
M104: #3 - 56 UNF | N104: 27
M105: #4 - 48 UNF | N105: 28
M106: #5 - 44 UNF | N106: 29
M107: #6 - 40 UNF | N107: 30
M108: #8 - 36 UNF | N108: 31
M109: #10 - 32 UNF | N109: 32
M110: #12 - 28 UNF | N110: 33
M111: 1/4" - 28 UNF | N111: 34
M112: 5/16" - 24 UNF | N112: 35
M113: 3/8" - 24 UNF | N113: 36
M114: 7/16" - 20 UNF | N114: 37
M115: 1/2" - 20 UNF | N115: 38
M116: Selected | N116: 1
R119: #0 - 80 UNF | S119: 0.06 | T119: 1.524 | U119: 1.25 | V119: 80 | W119: 0.317
R120: #1 - 72 UNF | S120: 0.073 | T120: 1.854 | U120: 1.55 | V120: 72 | W120: 0.353
R121: #2 - 64 UNF | S121: 0.086 | T121: 2.184 | U121: 1.9 | V121: 64 | W121: 0.397
R122: #3 - 56 UNF | S122: 0.099 | T122: 2.515 | U122: 2.15 | V122: 56 | W122: 0.453
R123: #4 - 48 UNF | S123: 0.112 | T123: 2.845 | U123: 2.4 | V123: 48 | W123: 0.529
R124: #5 - 44 UNF | S124: 0.125 | T124: 3.175 | U124: 2.7 | V124: 44 | W124: 0.577
R125: #6 - 40 UNF | S125: 0.138 | T125: 3.505 | U125: 2.95 | V125: 40 | W125: 0.635
R126: #8 - 36 UNF | S126: 0.164 | T126: 4.166 | U126: 3.5 | V126: 36 | W126: 0.705
R127: #10 - 32 UNF | S127: 0.19 | T127: 4.826 | U127: 4.1 | V127: 32 | W127: 0.794
R128: #12 - 28 UNF | S128: 0.216 | T128: 5.486 | U128: 4.7 | V128: 28 | W128: 0.907
R129: 1/4" - 28 UNF | S129: 0.25 | T129: 6.35 | U129: 5.5 | V129: 28 | W129: 0.907
R130: 5/16" - 24 UNF | S130: 0.313 | T130: 7.938 | U130: 6.9 | V130: 24 | W130: 1.058
R131: 3/8" - 24 UNF | S131: 0.375 | T131: 9.525 | U131: 8.5 | V131: 24 | W131: 1.058
R132: 7/16" - 20 UNF | S132: 0.438 | T132: 11.112 | U132: 9.9 | V132: 20 | W132: 1.27
R133: 1/2" - 20 UNF | S133: 0.5 | T133: 12.7 | U133: 11.5 | V133: 20 | W133: 1.27
R134: 9/16" - 18 UNF | S134: 0.563 | T134: 14.288 | U134: 12.9 | V134: 18 | W134: 1.411
R135: 5/8" - 18 UNF | S135: 0.625 | T135: 15.875 | U135: 14.5 | V135: 18 | W135: 1.411
R136: 3/4" - 16 UNF | S136: 0.75 | T136: 19.05 | U136: 17.5 | V136: 16 | W136: 1.587
R137: 7/8" - 14 UNF | S137: 0.875 | T137: 22.225 | U137: 20.4 | V137: 14 | W137: 1.814
R138: 1" - 12 UNF | S138: 1 | T138: 25.4 | U138: 23.25 | V138: 12 | W138: 2.117
R139: 1 1/8" - 12 UNF | S139: 1.125 | T139: 28.575 | U139: 26.5 | V139: 12 | W139: 2.117
R140: 1 1/4" - 12 UNF | S140: 1.25 | T140: 31.75 | U140: 29.5 | V140: 12 | W140: 2.117
R141: 1 3/8" - 12 UNF | S141: 1.375 | T141: 34.925 | U141: 32.75 | V141: 12 | W141: 2.117
R142: 1 1/2" - 12 UNF | S142: 1.5 | T142: 38.1 | U142: 36 | V142: 12 | W142: 2.117

Sheet DATABASE (hidden)
A1: M O T O R D A T A B A S A E | O1: PC25LX (INLINE) | V1: PC32LX (INLINE) | AC1: PC40LX (INLINE) | AJ1: PC25PA (BGM) | AP1: PC32PA (BGM) | AV1: PC40PA (BGM) | BB1: D A T A B A S E S E A R CH H I T S
A3: RMID | B3: BCD | C3: PD | D3: PL (MAX) | E3: SD | F3: SL | G3: SQ_SZ | H3: ROUND_D | I3: FL | J3: THRU_SCREW | K3: THREAD_SZ | L3: THREAD_L | M3: NBR_HOLES | N3: H | O3: LC (PC25LX) | P3: Rin (PC25LX) | Q3: L (PC25LX) | R3: IP65 (PC25LX) | S3: PLATE (PC25LX) | T3: Beta1 (PC25LX) | U3: Beta2 (PC25LX) | V3: LC (PC32LX) | W3: Rin (PC32LX) | X3: L (PC32LX) | Y3: IP65 (PC32LX) | Z3: PLATE (PC32LX) | AA3: Beta1 (PC32LX) | AB3: Beta2 (PC32LX) | AC3: LC (PC40LX) | AD3: Rin (PC40LX) | AE3: L (PC40LX) | AF3: IP65 (PC40LX) | AG3: PLATE (PC40LX) | AH3: Beta1 (PC40LX) | AI3: Beta2 (PC40LX) | AJ3: Rin (PC25PA) | AK3: L (PC25PA) | AL3: IP65 (PC25PA) | AM3: PLATE (PC25PA) | AN3: Beta1 (PC25PA) | AO3: Beta2 (PC25PA) | AP3: Rin (PC32PA) | AQ3: L (PC32PA) | AR3: IP65 (PC32PA) | AS3: PLATE (PC32PA) | AT3: Beta1 (PC32PA) | AU3: Beta2 (PC32PA) | AV3: Rin (PC40PA) | AW3: L (PC40PA) | AX3: IP65 (PC40PA) | AY3: PLATE (PC40PA) | AZ3: Beta1 (PC40PA) | BA3: Beta2 (PC40PA) | BB3: BDhit | BC3: PDhit | BD3: PLhit | BE3: SDhit | BF3: SLhit | BG3: SQhit | BH3: ROUNDhit | BI3: FLhit | BJ3: THRU-SCREWhit | BK3: THREAD_SZhit | BL3: THREAD_Lhit | BM3: HIT? | BN3: Validation test | BO3: Column1
A4: 1 | B4: 75 | C4: 60 | D4: 4 | E4: 14 | F4: 30 | G4: 70 | H4: NA | I4: 6.9 | J4: M5 | K4: NA | L4: NA | M4: 4 | N4: M5 | O4: NA | P4: NA | Q4: NA | R4: NA | S4: NA | T4: NA | U4: NA | V4: 45.2 | W4: 32.5 | X4: 0 | Y4: Y | Z4: B | AA4: 45 | AB4: 90 | AC4: 48.7 | AD4: 32.5 | AE4: 0 | AF4: Y | AG4: B | AH4: 45 | AI4: 90 | AJ4: NA | AK4: NA | AL4: NA | AM4: NA | AN4: NA | AO4: NA | AP4: 33 | AQ4: 0 | AR4: Y | AS4: D | AT4: 45 | AU4: 90 | AV4: 33 | AW4: 0 | AX4: Y | AY4: C | AZ4: 45 | BA4: 90 | BB4: =IF(AND(PCdb[[#This Row],[BCD]]>UIoptions!$S$10,PCdb[[#This Row],[BCD]]<UIoptions!$T$10),1,0) -> 0 | BC4: =IF(AND(PCdb[[#This Row],[PD]]>UIoptions!$S$11,PCdb[[#This Row],[PD]]<UIoptions!$T$11),1,0) -> 0 | BD4: =IF(AND(UIoptions!$P$14<=PCdb[[#This Row],[PL (MAX)]],UIoptions!$P$14>UIoptions!$S$14),1,0) -> 1 | BE4: =IF(AND(PCdb[[#This Row],[SD]]>UIoptions!$S$12,PCdb[[#This Row],[SD]]<UIoptions!$T$12),1,0) -> 0 | BF4: =IF(AND(PCdb[[#This Row],[SL]]>UIoptions!$S$13,PCdb[[#This Row],[SL]]<UIoptions!$T$13),1,0) -> 0 | BG4: =IF(UIoptions!$N$35=1,IF(AND(PCdb[[#This Row],[SQ_SZ]]>UIoptions!$S$15,PCdb[[#This Row],[SQ_SZ]]<UIoptions!$T$15),1,0),1) -> 0 | BH4: =IF(UIoptions!$N$35=2,IF(AND(PCdb[[#This Row],[ROUND_D]]>UIoptions!$S$15,PCdb[[#This Row],[ROUND_D]]<UIoptions!$T$15),1,0),1) -> 1 | BI4: =IF(UIoptions!$N$75<>1,1,IF(AND(PCdb[[#This Row],[FL]]>UIoptions!$S$16,PCdb[[#This Row],[FL]]<UIoptions!$T$16),1,0)) -> 0 | BJ4: =IF(OR(UIoptions!$Q$18=PCdb[[#This Row],[THRU_SCREW]],UIoptions!$Q$18="NA"),1,0) -> 0 | BK4: =IF(OR(UIoptions!$P$19=PCdb[[#This Row],[THREAD_SZ]],UIoptions!$P$19="NA"),1,0) -> 1 | BL4: =IF(UIoptions!$N$75=1,1,IF(AND(PCdb[[#This Row],[THREAD_L]]>UIoptions!$S$17,PCdb[[#This Row],[THREAD_L]]<UIoptions!$T$17),1,0)) -> 1 | BM4: =IF(SUM(PCdb[[#This Row],[BDhit]:[THREAD_Lhit]])=11,1,0) -> 0 | BN4: =CONCATENATE(PCdb[[#This Row],[BCD]],PCdb[[#This Row],[PD]],PCdb[[#This Row],[PL (MAX)]],PCdb[[#This Row],[SD]],PCdb[[#This Row],[SL]],PCdb[[#This Row],[SQ_SZ]],PCdb[[#This Row],[ROUND_D]],PCdb[[#This Row],[FL]],PCdb[[#This Row],[THRU_SCREW]],PCdb[[#This Row],[THREAD_SZ]],PCdb[[#This Row],[THREAD_L]],PCdb[[#This Row],[NBR_HOLES]]) -> 75604143070NA6,9M5NANA4 | BO4: =SUM(PCdb[[#This Row],[BDhit]:[THREAD_Lhit]]) -> 4
A5: 2 | B5: 100 | C5: 80 | D5: 4 | E5: 16 | F5: 40 | G5: 89.4 | H5: NA | I5: 9.9 | J5: M6 | K5: NA | L5: NA | M5: 4 | N5: M6 | O5: NA | P5: NA | Q5: NA | R5: NA | S5: NA | T5: NA | U5: NA | V5: NA | W5: NA | X5: NA | Y5: NA | Z5: NA | AA5: NA | AB5: NA | AC5: 45.2 | AD5: 42 | AE5: NA | AF5: Y | AG5: B | AH5: 45 | AI5: 90 | AJ5: NA | AK5: NA | AL5: NA | AM5: NA | AN5: NA | AO5: NA | AP5: NA | AQ5: NA | AR5: NA | AS5: NA | AT5: NA | AU5: NA | AV5: 41 | AW5: 0 | AX5: Y | AY5: D | AZ5: 45 | BA5: 90 | BB5: =IF(AND(PCdb[[#This Row],[BCD]]>UIoptions!$S$10,PCdb[[#This Row],[BCD]]<UIoptions!$T$10),1,0) -> 0 | BC5: =IF(AND(PCdb[[#This Row],[PD]]>UIoptions!$S$11,PCdb[[#This Row],[PD]]<UIoptions!$T$11),1,0) -> 0 | BD5: =IF(AND(UIoptions!$P$14<=PCdb[[#This Row],[PL (MAX)]],UIoptions!$P$14>UIoptions!$S$14),1,0) -> 1 | BE5: =IF(AND(PCdb[[#This Row],[SD]]>UIoptions!$S$12,PCdb[[#This Row],[SD]]<UIoptions!$T$12),1,0) -> 0 | BF5: =IF(AND(PCdb[[#This Row],[SL]]>UIoptions!$S$13,PCdb[[#This Row],[SL]]<UIoptions!$T$13),1,0) -> 0 | BG5: =IF(UIoptions!$N$35=1,IF(AND(PCdb[[#This Row],[SQ_SZ]]>UIoptions!$S$15,PCdb[[#This Row],[SQ_SZ]]<UIoptions!$T$15),1,0),1) -> 0 | BH5: =IF(UIoptions!$N$35=2,IF(AND(PCdb[[#This Row],[ROUND_D]]>UIoptions!$S$15,PCdb[[#This Row],[ROUND_D]]<UIoptions!$T$15),1,0),1) -> 1 | BI5: =IF(UIoptions!$N$75<>1,1,IF(AND(PCdb[[#This Row],[FL]]>UIoptions!$S$16,PCdb[[#This Row],[FL]]<UIoptions!$T$16),1,0)) -> 0 | BJ5: =IF(OR(UIoptions!$Q$18=PCdb[[#This Row],[THRU_SCREW]],UIoptions!$Q$18="NA"),1,0) -> 0 | BK5: =IF(OR(UIoptions!$P$19=PCdb[[#This Row],[THREAD_SZ]],UIoptions!$P$19="NA"),1,0) -> 1 | BL5: =IF(UIoptions!$N$75=1,1,IF(AND(PCdb[[#This Row],[THREAD_L]]>UIoptions!$S$17,PCdb[[#This Row],[THREAD_L]]<UIoptions!$T$17),1,0)) -> 1 | BM5: =IF(SUM(PCdb[[#This Row],[BDhit]:[THREAD_Lhit]])=11,1,0) -> 0 | BN5: =CONCATENATE(PCdb[[#This Row],[BCD]],PCdb[[#This Row],[PD]],PCdb[[#This Row],[PL (MAX)]],PCdb[[#This Row],[SD]],PCdb[[#This Row],[SL]],PCdb[[#This Row],[SQ_SZ]],PCdb[[#This Row],[ROUND_D]],PCdb[[#This Row],[FL]],PCdb[[#This Row],[THRU_SCREW]],PCdb[[#This Row],[THREAD_SZ]],PCdb[[#This Row],[THREAD_L]],PCdb[[#This Row],[NBR_HOLES]]) -> 100804164089,4NA9,9M6NANA4 | BO5: =SUM(PCdb[[#This Row],[BDhit]:[THREAD_Lhit]]) -> 4
A6: 3 | B6: 63 | C6: 40 | D6: 4 | E6: 9 | F6: 20 | G6: 55 | H6: NA | I6: 9 | J6: M5 | K6: NA | L6: NA | M6: 4 | N6: M5 | O6: 38.7 | P6: 22 | Q6: NA | R6: Y | S6: B | T6: 45 | U6: 90 | V6: 45.2 | W6: 25.5 | X6: 0 | Y6: Y | Z6: B | AA6: 25 | AB6: 90 | AC6: 48.7 | AD6: 0 | AE6: 45 | AF6: Y | AG6: A | AH6: 45 | AI6: 90 | AJ6: 22 | AK6: NA | AL6: Y | AM6: D | AN6: 45 | AO6: 90 | AP6: 25.5 | AQ6: 0 | AR6: Y | AS6: C | AT6: 45 | AU6: 90 | BB6: =IF(AND(PCdb[[#This Row],[BCD]]>UIoptions!$S$10,PCdb[[#This Row],[BCD]]<UIoptions!$T$10),1,0) -> 1 | BC6: =IF(AND(PCdb[[#This Row],[PD]]>UIoptions!$S$11,PCdb[[#This Row],[PD]]<UIoptions!$T$11),1,0) -> 1 | BD6: =IF(AND(UIoptions!$P$14<=PCdb[[#This Row],[PL (MAX)]],UIoptions!$P$14>UIoptions!$S$14),1,0) -> 1 | BE6: =IF(AND(PCdb[[#This Row],[SD]]>UIoptions!$S$12,PCdb[[#This Row],[SD]]<UIoptions!$T$12),1,0) -> 0 | BF6: =IF(AND(PCdb[[#This Row],[SL]]>UIoptions!$S$13,PCdb[[#This Row],[SL]]<UIoptions!$T$13),1,0) -> 1 | BG6: =IF(UIoptions!$N$35=1,IF(AND(PCdb[[#This Row],[SQ_SZ]]>UIoptions!$S$15,PCdb[[#This Row],[SQ_SZ]]<UIoptions!$T$15),1,0),1) -> 0 | BH6: =IF(UIoptions!$N$35=2,IF(AND(PCdb[[#This Row],[ROUND_D]]>UIoptions!$S$15,PCdb[[#This Row],[ROUND_D]]<UIoptions!$T$15),1,0),1) -> 1 | BI6: =IF(UIoptions!$N$75<>1,1,IF(AND(PCdb[[#This Row],[FL]]>UIoptions!$S$16,PCdb[[#This Row],[FL]]<UIoptions!$T$16),1,0)) -> 0 | BJ6: =IF(OR(UIoptions!$Q$18=PCdb[[#This Row],[THRU_SCREW]],UIoptions!$Q$18="NA"),1,0) -> 0 | BK6: =IF(OR(UIoptions!$P$19=PCdb[[#This Row],[THREAD_SZ]],UIoptions!$P$19="NA"),1,0) -> 1 | BL6: =IF(UIoptions!$N$75=1,1,IF(AND(PCdb[[#This Row],[THREAD_L]]>UIoptions!$S$17,PCdb[[#This Row],[THREAD_L]]<UIoptions!$T$17),1,0)) -> 1 | BM6: =IF(SUM(PCdb[[#This Row],[BDhit]:[THREAD_Lhit]])=11,1,0) -> 0 | BN6: =CONCATENATE(PCdb[[#This Row],[BCD]],PCdb[[#This Row],[PD]],PCdb[[#This Row],[PL (MAX)]],PCdb[[#This Row],[SD]],PCdb[[#This Row],[SL]],PCdb[[#This Row],[SQ_SZ]],PCdb[[#This Row],[ROUND_D]],PCdb[[#This Row],[FL]],PCdb[[#This Row],[THRU_SCREW]],PCdb[[#This Row],[THREAD_SZ]],PCdb[[#This Row],[THREAD_L]],PCdb[[#This Row],[NBR_HOLES]]) -> 6340492055NA9M5NANA4 | BO6: =SUM(PCdb[[#This Row],[BDhit]:[THREAD_Lhit]]) -> 7
A7: 4 | B7: 63 | C7: 40 | D7: 4 | E7: 9 | F7: 20 | G7: 58 | H7: NA | I7: 7 | J7: M4 | K7: NA | L7: NA | M7: 4 | N7: M4 | O7: 38.7 | P7: 25 | Q7: 0 | R7: Y | S7: B | T7: 45 | U7: 90 | V7: 45.2 | W7: 26 | X7: 0 | Y7: Y | Z7: B | AA7: 45 | AB7: 90 | AC7: 48.7 | AD7: 10 | AE7: 35 | AF7: Y* | AG7: A | AH7: 45 | AI7: 90 | AJ7: 24 | AK7: 0 | AL7: Y | AM7: D | AN7: 45 | AO7: 90 | AP7: 25 | AQ7: 0 | AR7: Y* | AS7: C | AT7: 45 | AU7: 90 | AV7: 25 | AW7: 0 | AX7: Y* | AY7: C | AZ7: 45 | BA7: 90 | BB7: =IF(AND(PCdb[[#This Row],[BCD]]>UIoptions!$S$10,PCdb[[#This Row],[BCD]]<UIoptions!$T$10),1,0) -> 1 | BC7: =IF(AND(PCdb[[#This Row],[PD]]>UIoptions!$S$11,PCdb[[#This Row],[PD]]<UIoptions!$T$11),1,0) -> 1 | BD7: =IF(AND(UIoptions!$P$14<=PCdb[[#This Row],[PL (MAX)]],UIoptions!$P$14>UIoptions!$S$14),1,0) -> 1 | BE7: =IF(AND(PCdb[[#This Row],[SD]]>UIoptions!$S$12,PCdb[[#This Row],[SD]]<UIoptions!$T$12),1,0) -> 0 | BF7: =IF(AND(PCdb[[#This Row],[SL]]>UIoptions!$S$13,PCdb[[#This Row],[SL]]<UIoptions!$T$13),1,0) -> 1 | BG7: =IF(UIoptions!$N$35=1,IF(AND(PCdb[[#This Row],[SQ_SZ]]>UIoptions!$S$15,PCdb[[#This Row],[SQ_SZ]]<UIoptions!$T$15),1,0),1) -> 1 | BH7: =IF(UIoptions!$N$35=2,IF(AND(PCdb[[#This Row],[ROUND_D]]>UIoptions!$S$15,PCdb[[#This Row],[ROUND_D]]<UIoptions!$T$15),1,0),1) -> 1 | BI7: =IF(UIoptions!$N$75<>1,1,IF(AND(PCdb[[#This Row],[FL]]>UIoptions!$S$16,PCdb[[#This Row],[FL]]<UIoptions!$T$16),1,0)) -> 1 | BJ7: =IF(OR(UIoptions!$Q$18=PCdb[[#This Row],[THRU_SCREW]],UIoptions!$Q$18="NA"),1,0) -> 1 | BK7: =IF(OR(UIoptions!$P$19=PCdb[[#This Row],[THREAD_SZ]],UIoptions!$P$19="NA"),1,0) -> 1 | BL7: =IF(UIoptions!$N$75=1,1,IF(AND(PCdb[[#This Row],[THREAD_L]]>UIoptions!$S$17,PCdb[[#This Row],[THREAD_L]]<UIoptions!$T$17),1,0)) -> 1 | BM7: =IF(SUM(PCdb[[#This Row],[BDhit]:[THREAD_Lhit]])=11,1,0) -> 0 | BN7: =CONCATENATE(PCdb[[#This Row],[BCD]],PCdb[[#This Row],[PD]],PCdb[[#This Row],[PL (MAX)]],PCdb[[#This Row],[SD]],PCdb[[#This Row],[SL]],PCdb[[#This Row],[SQ_SZ]],PCdb[[#This Row],[ROUND_D]],PCdb[[#This Row],[FL]],PCdb[[#This Row],[THRU_SCREW]],PCdb[[#This Row],[THREAD_SZ]],PCdb[[#This Row],[THREAD_L]],PCdb[[#This Row],[NBR_HOLES]]) -> 6340492058NA7M4NANA4 | BO7: =SUM(PCdb[[#This Row],[BDhit]:[THREAD_Lhit]]) -> 10
A8: 5 | B8: 66.7 | C8: 38.1 | D8: 4 | E8: 6.35 | F8: 20.6 | G8: 57.2 | H8: NA | I8: 11.7 | J8: M4 | K8: NA | L8: NA | M8: 4 | N8: M4 | AC8: 48.7 | AD8: 3.3 | AE8: 47.15 | AF8: Y | AJ8: 22 | AK8: NA | AL8: Y | AM8: D | AN8: 45 | AO8: 90 | BB8: =IF(AND(PCdb[[#This Row],[BCD]]>UIoptions!$S$10,PCdb[[#This Row],[BCD]]<UIoptions!$T$10),1,0) -> 0 | BC8: =IF(AND(PCdb[[#This Row],[PD]]>UIoptions!$S$11,PCdb[[#This Row],[PD]]<UIoptions!$T$11),1,0) -> 0 | BD8: =IF(AND(UIoptions!$P$14<=PCdb[[#This Row],[PL (MAX)]],UIoptions!$P$14>UIoptions!$S$14),1,0) -> 1 | BE8: =IF(AND(PCdb[[#This Row],[SD]]>UIoptions!$S$12,PCdb[[#This Row],[SD]]<UIoptions!$T$12),1,0) -> 0 | BF8: =IF(AND(PCdb[[#This Row],[SL]]>UIoptions!$S$13,PCdb[[#This Row],[SL]]<UIoptions!$T$13),1,0) -> 0 | BG8: =IF(UIoptions!$N$35=1,IF(AND(PCdb[[#This Row],[SQ_SZ]]>UIoptions!$S$15,PCdb[[#This Row],[SQ_SZ]]<UIoptions!$T$15),1,0),1) -> 0 | BH8: =IF(UIoptions!$N$35=2,IF(AND(PCdb[[#This Row],[ROUND_D]]>UIoptions!$S$15,PCdb[[#This Row],[ROUND_D]]<UIoptions!$T$15),1,0),1) -> 1 | BI8: =IF(UIoptions!$N$75<>1,1,IF(AND(PCdb[[#This Row],[FL]]>UIoptions!$S$16,PCdb[[#This Row],[FL]]<UIoptions!$T$16),1,0)) -> 0 | BJ8: =IF(OR(UIoptions!$Q$18=PCdb[[#This Row],[THRU_SCREW]],UIoptions!$Q$18="NA"),1,0) -> 1 | BK8: =IF(OR(UIoptions!$P$19=PCdb[[#This Row],[THREAD_SZ]],UIoptions!$P$19="NA"),1,0) -> 1 | BL8: =IF(UIoptions!$N$75=1,1,IF(AND(PCdb[[#This Row],[THREAD_L]]>UIoptions!$S$17,PCdb[[#This Row],[THREAD_L]]<UIoptions!$T$17),1,0)) -> 1 | BM8: =IF(SUM(PCdb[[#This Row],[BDhit]:[THREAD_Lhit]])=11,1,0) -> 0 | BN8: =CONCATENATE(PCdb[[#This Row],[BCD]],PCdb[[#This Row],[PD]],PCdb[[#This Row],[PL (MAX)]],PCdb[[#This Row],[SD]],PCdb[[#This Row],[SL]],PCdb[[#This Row],[SQ_SZ]],PCdb[[#This Row],[ROUND_D]],PCdb[[#This Row],[FL]],PCdb[[#This Row],[THRU_SCREW]],PCdb[[#This Row],[THREAD_SZ]],PCdb[[#This Row],[THREAD_L]],PCdb[[#This Row],[NBR_HOLES]]) -> 66,738,146,3520,657,2NA11,7M4NANA4 | BO8: =SUM(PCdb[[#This Row],[BDhit]:[THREAD_Lhit]]) -> 5
A9: 6 | B9: 70 | C9: 50 | D9: 4 | E9: 14 | F9: 30 | G9: 58 | H9: NA | I9: 7 | J9: M5 | K9: NA | L9: NA | M9: 4 | N9: M5 | O9: NA | P9: NA | Q9: NA | R9: NA | V9: 45.2 | W9: 27 | X9: 0 | Y9: Y | AC9: 48.7 | AD9: 3.15 | AE9: 49.5 | AJ9: NA | AK9: NA | AL9: NA | AP9: 27 | AQ9: 0 | AR9: Y | AV9: 27 | AW9: 0 | AX9: Y | AY9: C | AZ9: 45 | BA9: 90 | BB9: =IF(AND(PCdb[[#This Row],[BCD]]>UIoptions!$S$10,PCdb[[#This Row],[BCD]]<UIoptions!$T$10),1,0) -> 0 | BC9: =IF(AND(PCdb[[#This Row],[PD]]>UIoptions!$S$11,PCdb[[#This Row],[PD]]<UIoptions!$T$11),1,0) -> 0 | BD9: =IF(AND(UIoptions!$P$14<=PCdb[[#This Row],[PL (MAX)]],UIoptions!$P$14>UIoptions!$S$14),1,0) -> 1 | BE9: =IF(AND(PCdb[[#This Row],[SD]]>UIoptions!$S$12,PCdb[[#This Row],[SD]]<UIoptions!$T$12),1,0) -> 0 | BF9: =IF(AND(PCdb[[#This Row],[SL]]>UIoptions!$S$13,PCdb[[#This Row],[SL]]<UIoptions!$T$13),1,0) -> 0 | BG9: =IF(UIoptions!$N$35=1,IF(AND(PCdb[[#This Row],[SQ_SZ]]>UIoptions!$S$15,PCdb[[#This Row],[SQ_SZ]]<UIoptions!$T$15),1,0),1) -> 1 | BH9: =IF(UIoptions!$N$35=2,IF(AND(PCdb[[#This Row],[ROUND_D]]>UIoptions!$S$15,PCdb[[#This Row],[ROUND_D]]<UIoptions!$T$15),1,0),1) -> 1 | BI9: =IF(UIoptions!$N$75<>1,1,IF(AND(PCdb[[#This Row],[FL]]>UIoptions!$S$16,PCdb[[#This Row],[FL]]<UIoptions!$T$16),1,0)) -> 1 | BJ9: =IF(OR(UIoptions!$Q$18=PCdb[[#This Row],[THRU_SCREW]],UIoptions!$Q$18="NA"),1,0) -> 0 | BK9: =IF(OR(UIoptions!$P$19=PCdb[[#This Row],[THREAD_SZ]],UIoptions!$P$19="NA"),1,0) -> 1 | BL9: =IF(UIoptions!$N$75=1,1,IF(AND(PCdb[[#This Row],[THREAD_L]]>UIoptions!$S$17,PCdb[[#This Row],[THREAD_L]]<UIoptions!$T$17),1,0)) -> 1 | BM9: =IF(SUM(PCdb[[#This Row],[BDhit]:[THREAD_Lhit]])=11,1,0) -> 0 | BN9: =CONCATENATE(PCdb[[#This Row],[BCD]],PCdb[[#This Row],[PD]],PCdb[[#This Row],[PL (MAX)]],PCdb[[#This Row],[SD]],PCdb[[#This Row],[SL]],PCdb[[#This Row],[SQ_SZ]],PCdb[[#This Row],[ROUND_D]],PCdb[[#This Row],[FL]],PCdb[[#This Row],[THRU_SCREW]],PCdb[[#This Row],[THREAD_SZ]],PCdb[[#This Row],[THREAD_L]],PCdb[[#This Row],[NBR_HOLES]]) -> 70504143058NA7M5NANA4 | BO9: =SUM(PCdb[[#This Row],[BDhit]:[THREAD_Lhit]]) -> 6
A10: 7 | B10: 40 | C10: 32 | D10: 4 | E10: 12 | F10: 24.5 | G10: NA | H10: 55 | I10: NA | J10: NA | K10: M5 | L10: 10 | M10: 4 | N10: 6 | AP10: NA | AQ10: NA | AR10: Y | AS10: SPLC2-007 | AT10: 45 | AU10: 90 | BB10: =IF(AND(PCdb[[#This Row],[BCD]]>UIoptions!$S$10,PCdb[[#This Row],[BCD]]<UIoptions!$T$10),1,0) -> 0 | BC10: =IF(AND(PCdb[[#This Row],[PD]]>UIoptions!$S$11,PCdb[[#This Row],[PD]]<UIoptions!$T$11),1,0) -> 0 | BD10: =IF(AND(UIoptions!$P$14<=PCdb[[#This Row],[PL (MAX)]],UIoptions!$P$14>UIoptions!$S$14),1,0) -> 1 | BE10: =IF(AND(PCdb[[#This Row],[SD]]>UIoptions!$S$12,PCdb[[#This Row],[SD]]<UIoptions!$T$12),1,0) -> 0 | BF10: =IF(AND(PCdb[[#This Row],[SL]]>UIoptions!$S$13,PCdb[[#This Row],[SL]]<UIoptions!$T$13),1,0) -> 0 | BG10: =IF(UIoptions!$N$35=1,IF(AND(PCdb[[#This Row],[SQ_SZ]]>UIoptions!$S$15,PCdb[[#This Row],[SQ_SZ]]<UIoptions!$T$15),1,0),1) -> 0 | BH10: =IF(UIoptions!$N$35=2,IF(AND(PCdb[[#This Row],[ROUND_D]]>UIoptions!$S$15,PCdb[[#This Row],[ROUND_D]]<UIoptions!$T$15),1,0),1) -> 1 | BI10: =IF(UIoptions!$N$75<>1,1,IF(AND(PCdb[[#This Row],[FL]]>UIoptions!$S$16,PCdb[[#This Row],[FL]]<UIoptions!$T$16),1,0)) -> 0 | BJ10: =IF(OR(UIoptions!$Q$18=PCdb[[#This Row],[THRU_SCREW]],UIoptions!$Q$18="NA"),1,0) -> 0 | BK10: =IF(OR(UIoptions!$P$19=PCdb[[#This Row],[THREAD_SZ]],UIoptions!$P$19="NA"),1,0) -> 1 | BL10: =IF(UIoptions!$N$75=1,1,IF(AND(PCdb[[#This Row],[THREAD_L]]>UIoptions!$S$17,PCdb[[#This Row],[THREAD_L]]<UIoptions!$T$17),1,0)) -> 1 | BM10: =IF(SUM(PCdb[[#This Row],[BDhit]:[THREAD_Lhit]])=11,1,0) -> 0 | BN10: =CONCATENATE(PCdb[[#This Row],[BCD]],PCdb[[#This Row],[PD]],PCdb[[#This Row],[PL (MAX)]],PCdb[[#This Row],[SD]],PCdb[[#This Row],[SL]],PCdb[[#This Row],[SQ_SZ]],PCdb[[#This Row],[ROUND_D]],PCdb[[#This Row],[FL]],PCdb[[#This Row],[THRU_SCREW]],PCdb[[#This Row],[THREAD_SZ]],PCdb[[#This Row],[THREAD_L]],PCdb[[#This Row],[NBR_HOLES]]) -> 403241224,5NA55NANAM5104 | BO10: =SUM(PCdb[[#This Row],[BDhit]:[THREAD_Lhit]]) -> 4
A11: 8 | B11: 85 | C11: 70 | D11: 4 | E11: 14 | F11: 30 | G11: NA | H11: 140 | I11: NA | J11: NA | K11: M6 | L11: 7 | M11: 4 | N11: 7 | O11: NA | P11: NA | Q11: NA | R11: NA | V11: 45.2 | W11: 36.5 | X11: 0 | Y11: Y | AC11: 48.7 | AD11: NA | AE11: NA | AF11: Y | AG11: SPLB2-008 | AH11: 45 | AI11: 90 | AJ11: NA | AK11: NA | AP11: NA | AQ11: NA | AV11: NA | AW11: NA | BB11: =IF(AND(PCdb[[#This Row],[BCD]]>UIoptions!$S$10,PCdb[[#This Row],[BCD]]<UIoptions!$T$10),1,0) -> 0 | BC11: =IF(AND(PCdb[[#This Row],[PD]]>UIoptions!$S$11,PCdb[[#This Row],[PD]]<UIoptions!$T$11),1,0) -> 0 | BD11: =IF(AND(UIoptions!$P$14<=PCdb[[#This Row],[PL (MAX)]],UIoptions!$P$14>UIoptions!$S$14),1,0) -> 1 | BE11: =IF(AND(PCdb[[#This Row],[SD]]>UIoptions!$S$12,PCdb[[#This Row],[SD]]<UIoptions!$T$12),1,0) -> 0 | BF11: =IF(AND(PCdb[[#This Row],[SL]]>UIoptions!$S$13,PCdb[[#This Row],[SL]]<UIoptions!$T$13),1,0) -> 0 | BG11: =IF(UIoptions!$N$35=1,IF(AND(PCdb[[#This Row],[SQ_SZ]]>UIoptions!$S$15,PCdb[[#This Row],[SQ_SZ]]<UIoptions!$T$15),1,0),1) -> 0 | BH11: =IF(UIoptions!$N$35=2,IF(AND(PCdb[[#This Row],[ROUND_D]]>UIoptions!$S$15,PCdb[[#This Row],[ROUND_D]]<UIoptions!$T$15),1,0),1) -> 1 | BI11: =IF(UIoptions!$N$75<>1,1,IF(AND(PCdb[[#This Row],[FL]]>UIoptions!$S$16,PCdb[[#This Row],[FL]]<UIoptions!$T$16),1,0)) -> 0 | BJ11: =IF(OR(UIoptions!$Q$18=PCdb[[#This Row],[THRU_SCREW]],UIoptions!$Q$18="NA"),1,0) -> 0 | BK11: =IF(OR(UIoptions!$P$19=PCdb[[#This Row],[THREAD_SZ]],UIoptions!$P$19="NA"),1,0) -> 1 | BL11: =IF(UIoptions!$N$75=1,1,IF(AND(PCdb[[#This Row],[THREAD_L]]>UIoptions!$S$17,PCdb[[#This Row],[THREAD_L]]<UIoptions!$T$17),1,0)) -> 1 | BM11: =IF(SUM(PCdb[[#This Row],[BDhit]:[THREAD_Lhit]])=11,1,0) -> 0 | BN11: =CONCATENATE(PCdb[[#This Row],[BCD]],PCdb[[#This Row],[PD]],PCdb[[#This Row],[PL (MAX)]],PCdb[[#This Row],[SD]],PCdb[[#This Row],[SL]],PCdb[[#This Row],[SQ_SZ]],PCdb[[#This Row],[ROUND_D]],PCdb[[#This Row],[FL]],PCdb[[#This Row],[THRU_SCREW]],PCdb[[#This Row],[THREAD_SZ]],PCdb[[#This Row],[THREAD_L]],PCdb[[#This Row],[NBR_HOLES]]) -> 857041430NA140NANAM674 | BO11: =SUM(PCdb[[#This Row],[BDhit]:[THREAD_Lhit]]) -> 4
A12: 9 | B12: 43.8 | C12: 22 | D12: 4 | E12: 5 | F12: 24 | G12: 42.3 | H12: NA | I12: NA | J12: NA | K12: M3 | L12: 4.5 | M12: 4 | N12: 3.5 | O12: 36.2 | P12: NA | Q12: NA | R12: Y | S12: B2 | T12: 45 | U12: 90 | V12: 41.7 | W12: NA | X12: NA | Y12: Y* | AJ12: NA | AK12: NA | AL12: Y | AM12: D2 | AN12: 45 | AO12: 90 | BB12: =IF(AND(PCdb[[#This Row],[BCD]]>UIoptions!$S$10,PCdb[[#This Row],[BCD]]<UIoptions!$T$10),1,0) -> 0 | BC12: =IF(AND(PCdb[[#This Row],[PD]]>UIoptions!$S$11,PCdb[[#This Row],[PD]]<UIoptions!$T$11),1,0) -> 0 | BD12: =IF(AND(UIoptions!$P$14<=PCdb[[#This Row],[PL (MAX)]],UIoptions!$P$14>UIoptions!$S$14),1,0) -> 1 | BE12: =IF(AND(PCdb[[#This Row],[SD]]>UIoptions!$S$12,PCdb[[#This Row],[SD]]<UIoptions!$T$12),1,0) -> 0 | BF12: =IF(AND(PCdb[[#This Row],[SL]]>UIoptions!$S$13,PCdb[[#This Row],[SL]]<UIoptions!$T$13),1,0) -> 0 | BG12: =IF(UIoptions!$N$35=1,IF(AND(PCdb[[#This Row],[SQ_SZ]]>UIoptions!$S$15,PCdb[[#This Row],[SQ_SZ]]<UIoptions!$T$15),1,0),1) -> 0 | BH12: =IF(UIoptions!$N$35=2,IF(AND(PCdb[[#This Row],[ROUND_D]]>UIoptions!$S$15,PCdb[[#This Row],[ROUND_D]]<UIoptions!$T$15),1,0),1) -> 1 | BI12: =IF(UIoptions!$N$75<>1,1,IF(AND(PCdb[[#This Row],[FL]]>UIoptions!$S$16,PCdb[[#This Row],[FL]]<UIoptions!$T$16),1,0)) -> 0 | BJ12: =IF(OR(UIoptions!$Q$18=PCdb[[#This Row],[THRU_SCREW]],UIoptions!$Q$18="NA"),1,0) -> 0 | BK12: =IF(OR(UIoptions!$P$19=PCdb[[#This Row],[THREAD_SZ]],UIoptions!$P$19="NA"),1,0) -> 1 | BL12: =IF(UIoptions!$N$75=1,1,IF(AND(PCdb[[#This Row],[THREAD_L]]>UIoptions!$S$17,PCdb[[#This Row],[THREAD_L]]<UIoptions!$T$17),1,0)) -> 1 | BM12: =IF(SUM(PCdb[[#This Row],[BDhit]:[THREAD_Lhit]])=11,1,0) -> 0 | BN12: =CONCATENATE(PCdb[[#This Row],[BCD]],PCdb[[#This Row],[PD]],PCdb[[#This Row],[PL (MAX)]],PCdb[[#This Row],[SD]],PCdb[[#This Row],[SL]],PCdb[[#This Row],[SQ_SZ]],PCdb[[#This Row],[ROUND_D]],PCdb[[#This Row],[FL]],PCdb[[#This Row],[THRU_SCREW]],PCdb[[#This Row],[THREAD_SZ]],PCdb[[#This Row],[THREAD_L]],PCdb[[#This Row],[NBR_HOLES]]) -> 43,822452442,3NANANAM34,54 | BO12: =SUM(PCdb[[#This Row],[BDhit]:[THREAD_Lhit]]) -> 4
A13: 10 | B13: 70 | C13: 50 | D13: 4 | E13: 14 | F13: 30 | G13: 60 | H13: NA | I13: 7.5 | J13: M5 | K13: NA | L13: NA | M13: 4 | N13: M5 | O13: NA | P13: NA | Q13: NA | R13: NA | S13: NA | T13: NA | U13: NA | V13: 45.2 | W13: 27 | X13: 0 | Y13: Y | Z13: B | AA13: 45 | AB13: 90 | AC13: 48.7 | AD13: NA | AE13: 54.3 | AF13: Y | AG13: A | AH13: 45 | AI13: 90 | AJ13: NA | AK13: NA | AL13: NA | AP13: 27 | AQ13: 0 | AR13: Y | AS13: C | AT13: 45 | AU13: 90 | AV13: 27 | AW13: 0 | AX13: Y | AY13: C | AZ13: 45 | BA13: 90 | BB13: =IF(AND(PCdb[[#This Row],[BCD]]>UIoptions!$S$10,PCdb[[#This Row],[BCD]]<UIoptions!$T$10),1,0) -> 0 | BC13: =IF(AND(PCdb[[#This Row],[PD]]>UIoptions!$S$11,PCdb[[#This Row],[PD]]<UIoptions!$T$11),1,0) -> 0 | BD13: =IF(AND(UIoptions!$P$14<=PCdb[[#This Row],[PL (MAX)]],UIoptions!$P$14>UIoptions!$S$14),1,0) -> 1 | BE13: =IF(AND(PCdb[[#This Row],[SD]]>UIoptions!$S$12,PCdb[[#This Row],[SD]]<UIoptions!$T$12),1,0) -> 0 | BF13: =IF(AND(PCdb[[#This Row],[SL]]>UIoptions!$S$13,PCdb[[#This Row],[SL]]<UIoptions!$T$13),1,0) -> 0 | BG13: =IF(UIoptions!$N$35=1,IF(AND(PCdb[[#This Row],[SQ_SZ]]>UIoptions!$S$15,PCdb[[#This Row],[SQ_SZ]]<UIoptions!$T$15),1,0),1) -> 0 | BH13: =IF(UIoptions!$N$35=2,IF(AND(PCdb[[#This Row],[ROUND_D]]>UIoptions!$S$15,PCdb[[#This Row],[ROUND_D]]<UIoptions!$T$15),1,0),1) -> 1 | BI13: =IF(UIoptions!$N$75<>1,1,IF(AND(PCdb[[#This Row],[FL]]>UIoptions!$S$16,PCdb[[#This Row],[FL]]<UIoptions!$T$16),1,0)) -> 0 | BJ13: =IF(OR(UIoptions!$Q$18=PCdb[[#This Row],[THRU_SCREW]],UIoptions!$Q$18="NA"),1,0) -> 0 | BK13: =IF(OR(UIoptions!$P$19=PCdb[[#This Row],[THREAD_SZ]],UIoptions!$P$19="NA"),1,0) -> 1 | BL13: =IF(UIoptions!$N$75=1,1,IF(AND(PCdb[[#This Row],[THREAD_L]]>UIoptions!$S$17,PCdb[[#This Row],[THREAD_L]]<UIoptions!$T$17),1,0)) -> 1 | BM13: =IF(SUM(PCdb[[#This Row],[BDhit]:[THREAD_Lhit]])=11,1,0) -> 0 | BN13: =CONCATENATE(PCdb[[#This Row],[BCD]],PCdb[[#This Row],[PD]],PCdb[[#This Row],[PL (MAX)]],PCdb[[#This Row],[SD]],PCdb[[#This Row],[SL]],PCdb[[#This Row],[SQ_SZ]],PCdb[[#This Row],[ROUND_D]],PCdb[[#This Row],[FL]],PCdb[[#This Row],[THRU_SCREW]],PCdb[[#This Row],[THREAD_SZ]],PCdb[[#This Row],[THREAD_L]],PCdb[[#This Row],[NBR_HOLES]]) -> 70504143060NA7,5M5NANA4 | BO13: =SUM(PCdb[[#This Row],[BDhit]:[THREAD_Lhit]]) -> 4
A14: 11 | B14: 36.8 | C14: 22 | D14: 4 | E14: 5 | F14: 24 | G14: NA | H14: 35.6 | I14: NA | J14: NA | K14: M3 | L14: 3.5 | M14: 4 | N14: 4 | BB14: =IF(AND(PCdb[[#This Row],[BCD]]>UIoptions!$S$10,PCdb[[#This Row],[BCD]]<UIoptions!$T$10),1,0) -> 0 | BC14: =IF(AND(PCdb[[#This Row],[PD]]>UIoptions!$S$11,PCdb[[#This Row],[PD]]<UIoptions!$T$11),1,0) -> 0 | BD14: =IF(AND(UIoptions!$P$14<=PCdb[[#This Row],[PL (MAX)]],UIoptions!$P$14>UIoptions!$S$14),1,0) -> 1 | BE14: =IF(AND(PCdb[[#This Row],[SD]]>UIoptions!$S$12,PCdb[[#This Row],[SD]]<UIoptions!$T$12),1,0) -> 0 | BF14: =IF(AND(PCdb[[#This Row],[SL]]>UIoptions!$S$13,PCdb[[#This Row],[SL]]<UIoptions!$T$13),1,0) -> 0 | BG14: =IF(UIoptions!$N$35=1,IF(AND(PCdb[[#This Row],[SQ_SZ]]>UIoptions!$S$15,PCdb[[#This Row],[SQ_SZ]]<UIoptions!$T$15),1,0),1) -> 0 | BH14: =IF(UIoptions!$N$35=2,IF(AND(PCdb[[#This Row],[ROUND_D]]>UIoptions!$S$15,PCdb[[#This Row],[ROUND_D]]<UIoptions!$T$15),1,0),1) -> 1 | BI14: =IF(UIoptions!$N$75<>1,1,IF(AND(PCdb[[#This Row],[FL]]>UIoptions!$S$16,PCdb[[#This Row],[FL]]<UIoptions!$T$16),1,0)) -> 0 | BJ14: =IF(OR(UIoptions!$Q$18=PCdb[[#This Row],[THRU_SCREW]],UIoptions!$Q$18="NA"),1,0) -> 0 | BK14: =IF(OR(UIoptions!$P$19=PCdb[[#This Row],[THREAD_SZ]],UIoptions!$P$19="NA"),1,0) -> 1 | BL14: =IF(UIoptions!$N$75=1,1,IF(AND(PCdb[[#This Row],[THREAD_L]]>UIoptions!$S$17,PCdb[[#This Row],[THREAD_L]]<UIoptions!$T$17),1,0)) -> 1 | BM14: =IF(SUM(PCdb[[#This Row],[BDhit]:[THREAD_Lhit]])=11,1,0) -> 0 | BN14: =CONCATENATE(PCdb[[#This Row],[BCD]],PCdb[[#This Row],[PD]],PCdb[[#This Row],[PL (MAX)]],PCdb[[#This Row],[SD]],PCdb[[#This Row],[SL]],PCdb[[#This Row],[SQ_SZ]],PCdb[[#This Row],[ROUND_D]],PCdb[[#This Row],[FL]],PCdb[[#This Row],[THRU_SCREW]],PCdb[[#This Row],[THREAD_SZ]],PCdb[[#This Row],[THREAD_L]],PCdb[[#This Row],[NBR_HOLES]]) -> 36,8224524NA35,6NANAM33,54 | BO14: =SUM(PCdb[[#This Row],[BDhit]:[THREAD_Lhit]]) -> 4
A15: 12 | B15: 66.7 | C15: 38.1 | D15: 4 | E15: 6.35 | F15: 20.6 | G15: 57 | H15: NA | I15: 4.8 | J15: M4 | K15: NA | L15: NA | M15: 4 | N15: M4 | AJ15: 22 | AK15: 0 | AL15: Y | AM15: D | AN15: 45 | AO15: 90 | AP15: 22 | AQ15: 0 | AR15: Y | AV15: 22 | AW15: 0 | AX15: Y | BB15: =IF(AND(PCdb[[#This Row],[BCD]]>UIoptions!$S$10,PCdb[[#This Row],[BCD]]<UIoptions!$T$10),1,0) -> 0 | BC15: =IF(AND(PCdb[[#This Row],[PD]]>UIoptions!$S$11,PCdb[[#This Row],[PD]]<UIoptions!$T$11),1,0) -> 0 | BD15: =IF(AND(UIoptions!$P$14<=PCdb[[#This Row],[PL (MAX)]],UIoptions!$P$14>UIoptions!$S$14),1,0) -> 1 | BE15: =IF(AND(PCdb[[#This Row],[SD]]>UIoptions!$S$12,PCdb[[#This Row],[SD]]<UIoptions!$T$12),1,0) -> 0 | BF15: =IF(AND(PCdb[[#This Row],[SL]]>UIoptions!$S$13,PCdb[[#This Row],[SL]]<UIoptions!$T$13),1,0) -> 0 | BG15: =IF(UIoptions!$N$35=1,IF(AND(PCdb[[#This Row],[SQ_SZ]]>UIoptions!$S$15,PCdb[[#This Row],[SQ_SZ]]<UIoptions!$T$15),1,0),1) -> 0 | BH15: =IF(UIoptions!$N$35=2,IF(AND(PCdb[[#This Row],[ROUND_D]]>UIoptions!$S$15,PCdb[[#This Row],[ROUND_D]]<UIoptions!$T$15),1,0),1) -> 1 | BI15: =IF(UIoptions!$N$75<>1,1,IF(AND(PCdb[[#This Row],[FL]]>UIoptions!$S$16,PCdb[[#This Row],[FL]]<UIoptions!$T$16),1,0)) -> 0 | BJ15: =IF(OR(UIoptions!$Q$18=PCdb[[#This Row],[THRU_SCREW]],UIoptions!$Q$18="NA"),1,0) -> 1 | BK15: =IF(OR(UIoptions!$P$19=PCdb[[#This Row],[THREAD_SZ]],UIoptions!$P$19="NA"),1,0) -> 1 | BL15: =IF(UIoptions!$N$75=1,1,IF(AND(PCdb[[#This Row],[THREAD_L]]>UIoptions!$S$17,PCdb[[#This Row],[THREAD_L]]<UIoptions!$T$17),1,0)) -> 1 | BM15: =IF(SUM(PCdb[[#This Row],[BDhit]:[THREAD_Lhit]])=11,1,0) -> 0 | BN15: =CONCATENATE(PCdb[[#This Row],[BCD]],PCdb[[#This Row],[PD]],PCdb[[#This Row],[PL (MAX)]],PCdb[[#This Row],[SD]],PCdb[[#This Row],[SL]],PCdb[[#This Row],[SQ_SZ]],PCdb[[#This Row],[ROUND_D]],PCdb[[#This Row],[FL]],PCdb[[#This Row],[THRU_SCREW]],PCdb[[#This Row],[THREAD_SZ]],PCdb[[#This Row],[THREAD_L]],PCdb[[#This Row],[NBR_HOLES]]) -> 66,738,146,3520,657NA4,8M4NANA4 | BO15: =SUM(PCdb[[#This Row],[BDhit]:[THREAD_Lhit]]) -> 5
A16: 13 | B16: 36.8 | C16: 22 | D16: 4 | E16: 5 | F16: 24 | G16: 35.6 | H16: NA | I16: NA | J16: NA | K16: M3 | L16: 3.5 | M16: 4 | N16: 3.5 | O16: 36.2 | P16: NA | Q16: NA | R16: Y | S16: B2 | T16: 45 | U16: 90 | BB16: =IF(AND(PCdb[[#This Row],[BCD]]>UIoptions!$S$10,PCdb[[#This Row],[BCD]]<UIoptions!$T$10),1,0) -> 0 | BC16: =IF(AND(PCdb[[#This Row],[PD]]>UIoptions!$S$11,PCdb[[#This Row],[PD]]<UIoptions!$T$11),1,0) -> 0 | BD16: =IF(AND(UIoptions!$P$14<=PCdb[[#This Row],[PL (MAX)]],UIoptions!$P$14>UIoptions!$S$14),1,0) -> 1 | BE16: =IF(AND(PCdb[[#This Row],[SD]]>UIoptions!$S$12,PCdb[[#This Row],[SD]]<UIoptions!$T$12),1,0) -> 0 | BF16: =IF(AND(PCdb[[#This Row],[SL]]>UIoptions!$S$13,PCdb[[#This Row],[SL]]<UIoptions!$T$13),1,0) -> 0 | BG16: =IF(UIoptions!$N$35=1,IF(AND(PCdb[[#This Row],[SQ_SZ]]>UIoptions!$S$15,PCdb[[#This Row],[SQ_SZ]]<UIoptions!$T$15),1,0),1) -> 0 | BH16: =IF(UIoptions!$N$35=2,IF(AND(PCdb[[#This Row],[ROUND_D]]>UIoptions!$S$15,PCdb[[#This Row],[ROUND_D]]<UIoptions!$T$15),1,0),1) -> 1 | BI16: =IF(UIoptions!$N$75<>1,1,IF(AND(PCdb[[#This Row],[FL]]>UIoptions!$S$16,PCdb[[#This Row],[FL]]<UIoptions!$T$16),1,0)) -> 0 | BJ16: =IF(OR(UIoptions!$Q$18=PCdb[[#This Row],[THRU_SCREW]],UIoptions!$Q$18="NA"),1,0) -> 0 | BK16: =IF(OR(UIoptions!$P$19=PCdb[[#This Row],[THREAD_SZ]],UIoptions!$P$19="NA"),1,0) -> 1 | BL16: =IF(UIoptions!$N$75=1,1,IF(AND(PCdb[[#This Row],[THREAD_L]]>UIoptions!$S$17,PCdb[[#This Row],[THREAD_L]]<UIoptions!$T$17),1,0)) -> 1 | BM16: =IF(SUM(PCdb[[#This Row],[BDhit]:[THREAD_Lhit]])=11,1,0) -> 0 | BN16: =CONCATENATE(PCdb[[#This Row],[BCD]],PCdb[[#This Row],[PD]],PCdb[[#This Row],[PL (MAX)]],PCdb[[#This Row],[SD]],PCdb[[#This Row],[SL]],PCdb[[#This Row],[SQ_SZ]],PCdb[[#This Row],[ROUND_D]],PCdb[[#This Row],[FL]],PCdb[[#This Row],[THRU_SCREW]],PCdb[[#This Row],[THREAD_SZ]],PCdb[[#This Row],[THREAD_L]],PCdb[[#This Row],[NBR_HOLES]]) -> 36,822452435,6NANANAM33,54 | BO16: =SUM(PCdb[[#This Row],[BDhit]:[THREAD_Lhit]]) -> 4
A17: 14 | B17: 43.8 | C17: 22 | D17: 4 | E17: 6 | F17: 20 | G17: 42 | H17: NA | I17: NA | J17: NA | K17: M3 | L17: 4.5 | M17: 4 | N17: 3.5 | O17: 38.7 | P17: NA | Q17: NA | R17: Y | S17: B2 | T17: 45 | U17: 90 | AJ17: NA | AK17: NA | AL17: NA | AM17: NA | AN17: NA | AO17: NA | BB17: =IF(AND(PCdb[[#This Row],[BCD]]>UIoptions!$S$10,PCdb[[#This Row],[BCD]]<UIoptions!$T$10),1,0) -> 0 | BC17: =IF(AND(PCdb[[#This Row],[PD]]>UIoptions!$S$11,PCdb[[#This Row],[PD]]<UIoptions!$T$11),1,0) -> 0 | BD17: =IF(AND(UIoptions!$P$14<=PCdb[[#This Row],[PL (MAX)]],UIoptions!$P$14>UIoptions!$S$14),1,0) -> 1 | BE17: =IF(AND(PCdb[[#This Row],[SD]]>UIoptions!$S$12,PCdb[[#This Row],[SD]]<UIoptions!$T$12),1,0) -> 0 | BF17: =IF(AND(PCdb[[#This Row],[SL]]>UIoptions!$S$13,PCdb[[#This Row],[SL]]<UIoptions!$T$13),1,0) -> 1 | BG17: =IF(UIoptions!$N$35=1,IF(AND(PCdb[[#This Row],[SQ_SZ]]>UIoptions!$S$15,PCdb[[#This Row],[SQ_SZ]]<UIoptions!$T$15),1,0),1) -> 0 | BH17: =IF(UIoptions!$N$35=2,IF(AND(PCdb[[#This Row],[ROUND_D]]>UIoptions!$S$15,PCdb[[#This Row],[ROUND_D]]<UIoptions!$T$15),1,0),1) -> 1 | BI17: =IF(UIoptions!$N$75<>1,1,IF(AND(PCdb[[#This Row],[FL]]>UIoptions!$S$16,PCdb[[#This Row],[FL]]<UIoptions!$T$16),1,0)) -> 0 | BJ17: =IF(OR(UIoptions!$Q$18=PCdb[[#This Row],[THRU_SCREW]],UIoptions!$Q$18="NA"),1,0) -> 0 | BK17: =IF(OR(UIoptions!$P$19=PCdb[[#This Row],[THREAD_SZ]],UIoptions!$P$19="NA"),1,0) -> 1 | BL17: =IF(UIoptions!$N$75=1,1,IF(AND(PCdb[[#This Row],[THREAD_L]]>UIoptions!$S$17,PCdb[[#This Row],[THREAD_L]]<UIoptions!$T$17),1,0)) -> 1 | BM17: =IF(SUM(PCdb[[#This Row],[BDhit]:[THREAD_Lhit]])=11,1,0) -> 0 | BN17: =CONCATENATE(PCdb[[#This Row],[BCD]],PCdb[[#This Row],[PD]],PCdb[[#This Row],[PL (MAX)]],PCdb[[#This Row],[SD]],PCdb[[#This Row],[SL]],PCdb[[#This Row],[SQ_SZ]],PCdb[[#This Row],[ROUND_D]],PCdb[[#This Row],[FL]],PCdb[[#This Row],[THRU_SCREW]],PCdb[[#This Row],[THREAD_SZ]],PCdb[[#This Row],[THREAD_L]],PCdb[[#This Row],[NBR_HOLES]]) -> 43,822462042NANANAM34,54 | BO17: =SUM(PCdb[[#This Row],[BDhit]:[THREAD_Lhit]]) -> 5
A18: 15 | B18: 46.7 | C18: 20.02 | D18: 4 | E18: 6.35 | F18: 25 | G18: 40 | H18: NA | I18: 4 | J18: M3 | K18: NA | L18: NA | M18: 4 | N18: M3 | BB18: =IF(AND(PCdb[[#This Row],[BCD]]>UIoptions!$S$10,PCdb[[#This Row],[BCD]]<UIoptions!$T$10),1,0) -> 0 | BC18: =IF(AND(PCdb[[#This Row],[PD]]>UIoptions!$S$11,PCdb[[#This Row],[PD]]<UIoptions!$T$11),1,0) -> 0 | BD18: =IF(AND(UIoptions!$P$14<=PCdb[[#This Row],[PL (MAX)]],UIoptions!$P$14>UIoptions!$S$14),1,0) -> 1 | BE18: =IF(AND(PCdb[[#This Row],[SD]]>UIoptions!$S$12,PCdb[[#This Row],[SD]]<UIoptions!$T$12),1,0) -> 0 | BF18: =IF(AND(PCdb[[#This Row],[SL]]>UIoptions!$S$13,PCdb[[#This Row],[SL]]<UIoptions!$T$13),1,0) -> 0 | BG18: =IF(UIoptions!$N$35=1,IF(AND(PCdb[[#This Row],[SQ_SZ]]>UIoptions!$S$15,PCdb[[#This Row],[SQ_SZ]]<UIoptions!$T$15),1,0),1) -> 0 | BH18: =IF(UIoptions!$N$35=2,IF(AND(PCdb[[#This Row],[ROUND_D]]>UIoptions!$S$15,PCdb[[#This Row],[ROUND_D]]<UIoptions!$T$15),1,0),1) -> 1 | BI18: =IF(UIoptions!$N$75<>1,1,IF(AND(PCdb[[#This Row],[FL]]>UIoptions!$S$16,PCdb[[#This Row],[FL]]<UIoptions!$T$16),1,0)) -> 0 | BJ18: =IF(OR(UIoptions!$Q$18=PCdb[[#This Row],[THRU_SCREW]],UIoptions!$Q$18="NA"),1,0) -> 0 | BK18: =IF(OR(UIoptions!$P$19=PCdb[[#This Row],[THREAD_SZ]],UIoptions!$P$19="NA"),1,0) -> 1 | BL18: =IF(UIoptions!$N$75=1,1,IF(AND(PCdb[[#This Row],[THREAD_L]]>UIoptions!$S$17,PCdb[[#This Row],[THREAD_L]]<UIoptions!$T$17),1,0)) -> 1 | BM18: =IF(SUM(PCdb[[#This Row],[BDhit]:[THREAD_Lhit]])=11,1,0) -> 0 | BN18: =CONCATENATE(PCdb[[#This Row],[BCD]],PCdb[[#This Row],[PD]],PCdb[[#This Row],[PL (MAX)]],PCdb[[#This Row],[SD]],PCdb[[#This Row],[SL]],PCdb[[#This Row],[SQ_SZ]],PCdb[[#This Row],[ROUND_D]],PCdb[[#This Row],[FL]],PCdb[[#This Row],[THRU_SCREW]],PCdb[[#This Row],[THREAD_SZ]],PCdb[[#This Row],[THREAD_L]],PCdb[[#This Row],[NBR_HOLES]]) -> 46,720,0246,352540NA4M3NANA4 | BO18: =SUM(PCdb[[#This Row],[BDhit]:[THREAD_Lhit]]) -> 4
A19: 16 | B19: 45 | C19: 30 | D19: 4 | E19: 8 | F19: 25 | G19: 40 | H19: NA | I19: 4 | J19: M3 | K19: NA | L19: NA | M19: 4 | N19: M3 | BB19: =IF(AND(PCdb[[#This Row],[BCD]]>UIoptions!$S$10,PCdb[[#This Row],[BCD]]<UIoptions!$T$10),1,0) -> 0 | BC19: =IF(AND(PCdb[[#This Row],[PD]]>UIoptions!$S$11,PCdb[[#This Row],[PD]]<UIoptions!$T$11),1,0) -> 0 | BD19: =IF(AND(UIoptions!$P$14<=PCdb[[#This Row],[PL (MAX)]],UIoptions!$P$14>UIoptions!$S$14),1,0) -> 1 | BE19: =IF(AND(PCdb[[#This Row],[SD]]>UIoptions!$S$12,PCdb[[#This Row],[SD]]<UIoptions!$T$12),1,0) -> 0 | BF19: =IF(AND(PCdb[[#This Row],[SL]]>UIoptions!$S$13,PCdb[[#This Row],[SL]]<UIoptions!$T$13),1,0) -> 0 | BG19: =IF(UIoptions!$N$35=1,IF(AND(PCdb[[#This Row],[SQ_SZ]]>UIoptions!$S$15,PCdb[[#This Row],[SQ_SZ]]<UIoptions!$T$15),1,0),1) -> 0 | BH19: =IF(UIoptions!$N$35=2,IF(AND(PCdb[[#This Row],[ROUND_D]]>UIoptions!$S$15,PCdb[[#This Row],[ROUND_D]]<UIoptions!$T$15),1,0),1) -> 1 | BI19: =IF(UIoptions!$N$75<>1,1,IF(AND(PCdb[[#This Row],[FL]]>UIoptions!$S$16,PCdb[[#This Row],[FL]]<UIoptions!$T$16),1,0)) -> 0 | BJ19: =IF(OR(UIoptions!$Q$18=PCdb[[#This Row],[THRU_SCREW]],UIoptions!$Q$18="NA"),1,0) -> 0 | BK19: =IF(OR(UIoptions!$P$19=PCdb[[#This Row],[THREAD_SZ]],UIoptions!$P$19="NA"),1,0) -> 1 | BL19: =IF(UIoptions!$N$75=1,1,IF(AND(PCdb[[#This Row],[THREAD_L]]>UIoptions!$S$17,PCdb[[#This Row],[THREAD_L]]<UIoptions!$T$17),1,0)) -> 1 | BM19: =IF(SUM(PCdb[[#This Row],[BDhit]:[THREAD_Lhit]])=11,1,0) -> 0 | BN19: =CONCATENATE(PCdb[[#This Row],[BCD]],PCdb[[#This Row],[PD]],PCdb[[#This Row],[PL (MAX)]],PCdb[[#This Row],[SD]],PCdb[[#This Row],[SL]],PCdb[[#This Row],[SQ_SZ]],PCdb[[#This Row],[ROUND_D]],PCdb[[#This Row],[FL]],PCdb[[#This Row],[THRU_SCREW]],PCdb[[#This Row],[THREAD_SZ]],PCdb[[#This Row],[THREAD_L]],PCdb[[#This Row],[NBR_HOLES]]) -> 4530482540NA4M3NANA4 | BO19: =SUM(PCdb[[#This Row],[BDhit]:[THREAD_Lhit]]) -> 4
A20: 17 | B20: 66.7 | C20: 38.1 | D20: 4 | E20: 9.53 | F20: 31.8 | G20: 58 | H20: NA | I20: 7 | J20: M4 | K20: NA | L20: NA | M20: 4 | N20: M4 | O20: 36.2 | P20: 23 | Q20: 0 | R20: Y | S20: B | T20: 45 | U20: 90 | AJ20: 22 | AK20: NA | AL20: Y | AM20: D | AN20: 45 | AO20: 90 | AP20: 22 | AQ20: 0 | AR20: Y | AS20: C | AT20: 45 | AU20: 90 | AV20: 25 | AW20: 0 | AX20: Y | AY20: C | AZ20: 45 | BA20: 90 | BB20: =IF(AND(PCdb[[#This Row],[BCD]]>UIoptions!$S$10,PCdb[[#This Row],[BCD]]<UIoptions!$T$10),1,0) -> 0 | BC20: =IF(AND(PCdb[[#This Row],[PD]]>UIoptions!$S$11,PCdb[[#This Row],[PD]]<UIoptions!$T$11),1,0) -> 0 | BD20: =IF(AND(UIoptions!$P$14<=PCdb[[#This Row],[PL (MAX)]],UIoptions!$P$14>UIoptions!$S$14),1,0) -> 1 | BE20: =IF(AND(PCdb[[#This Row],[SD]]>UIoptions!$S$12,PCdb[[#This Row],[SD]]<UIoptions!$T$12),1,0) -> 0 | BF20: =IF(AND(PCdb[[#This Row],[SL]]>UIoptions!$S$13,PCdb[[#This Row],[SL]]<UIoptions!$T$13),1,0) -> 0 | BG20: =IF(UIoptions!$N$35=1,IF(AND(PCdb[[#This Row],[SQ_SZ]]>UIoptions!$S$15,PCdb[[#This Row],[SQ_SZ]]<UIoptions!$T$15),1,0),1) -> 1 | BH20: =IF(UIoptions!$N$35=2,IF(AND(PCdb[[#This Row],[ROUND_D]]>UIoptions!$S$15,PCdb[[#This Row],[ROUND_D]]<UIoptions!$T$15),1,0),1) -> 1 | BI20: =IF(UIoptions!$N$75<>1,1,IF(AND(PCdb[[#This Row],[FL]]>UIoptions!$S$16,PCdb[[#This Row],[FL]]<UIoptions!$T$16),1,0)) -> 1 | BJ20: =IF(OR(UIoptions!$Q$18=PCdb[[#This Row],[THRU_SCREW]],UIoptions!$Q$18="NA"),1,0) -> 1 | BK20: =IF(OR(UIoptions!$P$19=PCdb[[#This Row],[THREAD_SZ]],UIoptions!$P$19="NA"),1,0) -> 1 | BL20: =IF(UIoptions!$N$75=1,1,IF(AND(PCdb[[#This Row],[THREAD_L]]>UIoptions!$S$17,PCdb[[#This Row],[THREAD_L]]<UIoptions!$T$17),1,0)) -> 1 | BM20: =IF(SUM(PCdb[[#This Row],[BDhit]:[THREAD_Lhit]])=11,1,0) -> 0 | BN20: =CONCATENATE(PCdb[[#This Row],[BCD]],PCdb[[#This Row],[PD]],PCdb[[#This Row],[PL (MAX)]],PCdb[[#This Row],[SD]],PCdb[[#This Row],[SL]],PCdb[[#This Row],[SQ_SZ]],PCdb[[#This Row],[ROUND_D]],PCdb[[#This Row],[FL]],PCdb[[#This Row],[THRU_SCREW]],PCdb[[#This Row],[THREAD_SZ]],PCdb[[#This Row],[THREAD_L]],PCdb[[#This Row],[NBR_HOLES]]) -> 66,738,149,5331,858NA7M4NANA4 | BO20: =SUM(PCdb[[#This Row],[BDhit]:[THREAD_Lhit]]) -> 7
A21: 18 | B21: 65 | C21: 40 | D21: 4 | E21: 9 | F21: 20 | G21: 58 | H21: NA | I21: 7 | J21: M5 | K21: NA | L21: NA | M21: 4 | N21: M5 | V21: 45.2 | W21: 26 | X21: NA | Y21: Y | Z21: B | AA21: 45 | AB21: 90 | AP21: 25 | AQ21: 0 | AR21: Y | AS21: C | AT21: 45 | AU21: 90 | BB21: =IF(AND(PCdb[[#This Row],[BCD]]>UIoptions!$S$10,PCdb[[#This Row],[BCD]]<UIoptions!$T$10),1,0) -> 0 | BC21: =IF(AND(PCdb[[#This Row],[PD]]>UIoptions!$S$11,PCdb[[#This Row],[PD]]<UIoptions!$T$11),1,0) -> 1 | BD21: =IF(AND(UIoptions!$P$14<=PCdb[[#This Row],[PL (MAX)]],UIoptions!$P$14>UIoptions!$S$14),1,0) -> 1 | BE21: =IF(AND(PCdb[[#This Row],[SD]]>UIoptions!$S$12,PCdb[[#This Row],[SD]]<UIoptions!$T$12),1,0) -> 0 | BF21: =IF(AND(PCdb[[#This Row],[SL]]>UIoptions!$S$13,PCdb[[#This Row],[SL]]<UIoptions!$T$13),1,0) -> 1 | BG21: =IF(UIoptions!$N$35=1,IF(AND(PCdb[[#This Row],[SQ_SZ]]>UIoptions!$S$15,PCdb[[#This Row],[SQ_SZ]]<UIoptions!$T$15),1,0),1) -> 1 | BH21: =IF(UIoptions!$N$35=2,IF(AND(PCdb[[#This Row],[ROUND_D]]>UIoptions!$S$15,PCdb[[#This Row],[ROUND_D]]<UIoptions!$T$15),1,0),1) -> 1 | BI21: =IF(UIoptions!$N$75<>1,1,IF(AND(PCdb[[#This Row],[FL]]>UIoptions!$S$16,PCdb[[#This Row],[FL]]<UIoptions!$T$16),1,0)) -> 1 | BJ21: =IF(OR(UIoptions!$Q$18=PCdb[[#This Row],[THRU_SCREW]],UIoptions!$Q$18="NA"),1,0) -> 0 | BK21: =IF(OR(UIoptions!$P$19=PCdb[[#This Row],[THREAD_SZ]],UIoptions!$P$19="NA"),1,0) -> 1 | BL21: =IF(UIoptions!$N$75=1,1,IF(AND(PCdb[[#This Row],[THREAD_L]]>UIoptions!$S$17,PCdb[[#This Row],[THREAD_L]]<UIoptions!$T$17),1,0)) -> 1 | BM21: =IF(SUM(PCdb[[#This Row],[BDhit]:[THREAD_Lhit]])=11,1,0) -> 0 | BN21: =CONCATENATE(PCdb[[#This Row],[BCD]],PCdb[[#This Row],[PD]],PCdb[[#This Row],[PL (MAX)]],PCdb[[#This Row],[SD]],PCdb[[#This Row],[SL]],PCdb[[#This Row],[SQ_SZ]],PCdb[[#This Row],[ROUND_D]],PCdb[[#This Row],[FL]],PCdb[[#This Row],[THRU_SCREW]],PCdb[[#This Row],[THREAD_SZ]],PCdb[[#This Row],[THREAD_L]],PCdb[[#This Row],[NBR_HOLES]]) -> 6540492058NA7M5NANA4 | BO21: =SUM(PCdb[[#This Row],[BDhit]:[THREAD_Lhit]]) -> 8
A22: 19 | B22: 66.7 | C22: 38.1 | D22: 4 | E22: 9.53 | F22: 20.6 | G22: 58 | H22: NA | I22: 7 | J22: M4 | K22: NA | L22: NA | M22: 4 | N22: M4 | O22: 38.7 | P22: 23 | Q22: 0 | R22: Y | S22: B | T22: 45 | U22: 90 | AC22: 48.7 | AD22: 4 | AE22: 47 | AF22: Y | AG22: A | AH22: 45 | AI22: 90 | AJ22: 22 | AK22: 0 | AL22: Y | AM22: D | AN22: 45 | AO22: 90 | AP22: 22 | AQ22: 0 | AR22: Y | AS22: C | AT22: 45 | AU22: 90 | AV22: 26 | AW22: NA | AX22: Y | AY22: C | AZ22: 45 | BA22: 90 | BB22: =IF(AND(PCdb[[#This Row],[BCD]]>UIoptions!$S$10,PCdb[[#This Row],[BCD]]<UIoptions!$T$10),1,0) -> 0 | BC22: =IF(AND(PCdb[[#This Row],[PD]]>UIoptions!$S$11,PCdb[[#This Row],[PD]]<UIoptions!$T$11),1,0) -> 0 | BD22: =IF(AND(UIoptions!$P$14<=PCdb[[#This Row],[PL (MAX)]],UIoptions!$P$14>UIoptions!$S$14),1,0) -> 1 | BE22: =IF(AND(PCdb[[#This Row],[SD]]>UIoptions!$S$12,PCdb[[#This Row],[SD]]<UIoptions!$T$12),1,0) -> 0 | BF22: =IF(AND(PCdb[[#This Row],[SL]]>UIoptions!$S$13,PCdb[[#This Row],[SL]]<UIoptions!$T$13),1,0) -> 0 | BG22: =IF(UIoptions!$N$35=1,IF(AND(PCdb[[#This Row],[SQ_SZ]]>UIoptions!$S$15,PCdb[[#This Row],[SQ_SZ]]<UIoptions!$T$15),1,0),1) -> 1 | BH22: =IF(UIoptions!$N$35=2,IF(AND(PCdb[[#This Row],[ROUND_D]]>UIoptions!$S$15,PCdb[[#This Row],[ROUND_D]]<UIoptions!$T$15),1,0),1) -> 1 | BI22: =IF(UIoptions!$N$75<>1,1,IF(AND(PCdb[[#This Row],[FL]]>UIoptions!$S$16,PCdb[[#This Row],[FL]]<UIoptions!$T$16),1,0)) -> 1 | BJ22: =IF(OR(UIoptions!$Q$18=PCdb[[#This Row],[THRU_SCREW]],UIoptions!$Q$18="NA"),1,0) -> 1 | BK22: =IF(OR(UIoptions!$P$19=PCdb[[#This Row],[THREAD_SZ]],UIoptions!$P$19="NA"),1,0) -> 1 | BL22: =IF(UIoptions!$N$75=1,1,IF(AND(PCdb[[#This Row],[THREAD_L]]>UIoptions!$S$17,PCdb[[#This Row],[THREAD_L]]<UIoptions!$T$17),1,0)) -> 1 | BM22: =IF(SUM(PCdb[[#This Row],[BDhit]:[THREAD_Lhit]])=11,1,0) -> 0 | BN22: =CONCATENATE(PCdb[[#This Row],[BCD]],PCdb[[#This Row],[PD]],PCdb[[#This Row],[PL (MAX)]],PCdb[[#This Row],[SD]],PCdb[[#This Row],[SL]],PCdb[[#This Row],[SQ_SZ]],PCdb[[#This Row],[ROUND_D]],PCdb[[#This Row],[FL]],PCdb[[#This Row],[THRU_SCREW]],PCdb[[#This Row],[THREAD_SZ]],PCdb[[#This Row],[THREAD_L]],PCdb[[#This Row],[NBR_HOLES]]) -> 66,738,149,5320,658NA7M4NANA4 | BO22: =SUM(PCdb[[#This Row],[BDhit]:[THREAD_Lhit]]) -> 7
A23: 20 | B23: 85 | C23: 60 | D23: 4 | E23: 14 | F23: 30 | G23: 70 | H23: NA | I23: 6.9 | J23: M5 | K23: NA | L23: NA | M23: 4 | N23: M5 | AP23: 32 | AQ23: 0 | AR23: Y | AS23: D | AT23: 45 | AU23: 90 | AV23: 32 | AW23: 0 | AX23: Y* | AY23: C | AZ23: 45 | BA23: 90 | BB23: =IF(AND(PCdb[[#This Row],[BCD]]>UIoptions!$S$10,PCdb[[#This Row],[BCD]]<UIoptions!$T$10),1,0) -> 0 | BC23: =IF(AND(PCdb[[#This Row],[PD]]>UIoptions!$S$11,PCdb[[#This Row],[PD]]<UIoptions!$T$11),1,0) -> 0 | BD23: =IF(AND(UIoptions!$P$14<=PCdb[[#This Row],[PL (MAX)]],UIoptions!$P$14>UIoptions!$S$14),1,0) -> 1 | BE23: =IF(AND(PCdb[[#This Row],[SD]]>UIoptions!$S$12,PCdb[[#This Row],[SD]]<UIoptions!$T$12),1,0) -> 0 | BF23: =IF(AND(PCdb[[#This Row],[SL]]>UIoptions!$S$13,PCdb[[#This Row],[SL]]<UIoptions!$T$13),1,0) -> 0 | BG23: =IF(UIoptions!$N$35=1,IF(AND(PCdb[[#This Row],[SQ_SZ]]>UIoptions!$S$15,PCdb[[#This Row],[SQ_SZ]]<UIoptions!$T$15),1,0),1) -> 0 | BH23: =IF(UIoptions!$N$35=2,IF(AND(PCdb[[#This Row],[ROUND_D]]>UIoptions!$S$15,PCdb[[#This Row],[ROUND_D]]<UIoptions!$T$15),1,0),1) -> 1 | BI23: =IF(UIoptions!$N$75<>1,1,IF(AND(PCdb[[#This Row],[FL]]>UIoptions!$S$16,PCdb[[#This Row],[FL]]<UIoptions!$T$16),1,0)) -> 0 | BJ23: =IF(OR(UIoptions!$Q$18=PCdb[[#This Row],[THRU_SCREW]],UIoptions!$Q$18="NA"),1,0) -> 0 | BK23: =IF(OR(UIoptions!$P$19=PCdb[[#This Row],[THREAD_SZ]],UIoptions!$P$19="NA"),1,0) -> 1 | BL23: =IF(UIoptions!$N$75=1,1,IF(AND(PCdb[[#This Row],[THREAD_L]]>UIoptions!$S$17,PCdb[[#This Row],[THREAD_L]]<UIoptions!$T$17),1,0)) -> 1 | BM23: =IF(SUM(PCdb[[#This Row],[BDhit]:[THREAD_Lhit]])=11,1,0) -> 0 | BN23: =CONCATENATE(PCdb[[#This Row],[BCD]],PCdb[[#This Row],[PD]],PCdb[[#This Row],[PL (MAX)]],PCdb[[#This Row],[SD]],PCdb[[#This Row],[SL]],PCdb[[#This Row],[SQ_SZ]],PCdb[[#This Row],[ROUND_D]],PCdb[[#This Row],[FL]],PCdb[[#This Row],[THRU_SCREW]],PCdb[[#This Row],[THREAD_SZ]],PCdb[[#This Row],[THREAD_L]],PCdb[[#This Row],[NBR_HOLES]]) -> 85604143070NA6,9M5NANA4 | BO23: =SUM(PCdb[[#This Row],[BDhit]:[THREAD_Lhit]]) -> 4
A24: 21 | B24: 75 | C24: 60 | D24: 4 | E24: 11 | F24: 23 | G24: 70 | H24: NA | I24: 6.9 | J24: M5 | K24: NA | L24: NA | M24: 4 | N24: M5 | AP24: 33 | AQ24: NA | AR24: Y | AS24: D | AT24: 45 | AU24: 90 | BB24: =IF(AND(PCdb[[#This Row],[BCD]]>UIoptions!$S$10,PCdb[[#This Row],[BCD]]<UIoptions!$T$10),1,0) -> 0 | BC24: =IF(AND(PCdb[[#This Row],[PD]]>UIoptions!$S$11,PCdb[[#This Row],[PD]]<UIoptions!$T$11),1,0) -> 0 | BD24: =IF(AND(UIoptions!$P$14<=PCdb[[#This Row],[PL (MAX)]],UIoptions!$P$14>UIoptions!$S$14),1,0) -> 1 | BE24: =IF(AND(PCdb[[#This Row],[SD]]>UIoptions!$S$12,PCdb[[#This Row],[SD]]<UIoptions!$T$12),1,0) -> 0 | BF24: =IF(AND(PCdb[[#This Row],[SL]]>UIoptions!$S$13,PCdb[[#This Row],[SL]]<UIoptions!$T$13),1,0) -> 0 | BG24: =IF(UIoptions!$N$35=1,IF(AND(PCdb[[#This Row],[SQ_SZ]]>UIoptions!$S$15,PCdb[[#This Row],[SQ_SZ]]<UIoptions!$T$15),1,0),1) -> 0 | BH24: =IF(UIoptions!$N$35=2,IF(AND(PCdb[[#This Row],[ROUND_D]]>UIoptions!$S$15,PCdb[[#This Row],[ROUND_D]]<UIoptions!$T$15),1,0),1) -> 1 | BI24: =IF(UIoptions!$N$75<>1,1,IF(AND(PCdb[[#This Row],[FL]]>UIoptions!$S$16,PCdb[[#This Row],[FL]]<UIoptions!$T$16),1,0)) -> 0 | BJ24: =IF(OR(UIoptions!$Q$18=PCdb[[#This Row],[THRU_SCREW]],UIoptions!$Q$18="NA"),1,0) -> 0 | BK24: =IF(OR(UIoptions!$P$19=PCdb[[#This Row],[THREAD_SZ]],UIoptions!$P$19="NA"),1,0) -> 1 | BL24: =IF(UIoptions!$N$75=1,1,IF(AND(PCdb[[#This Row],[THREAD_L]]>UIoptions!$S$17,PCdb[[#This Row],[THREAD_L]]<UIoptions!$T$17),1,0)) -> 1 | BM24: =IF(SUM(PCdb[[#This Row],[BDhit]:[THREAD_Lhit]])=11,1,0) -> 0 | BN24: =CONCATENATE(PCdb[[#This Row],[BCD]],PCdb[[#This Row],[PD]],PCdb[[#This Row],[PL (MAX)]],PCdb[[#This Row],[SD]],PCdb[[#This Row],[SL]],PCdb[[#This Row],[SQ_SZ]],PCdb[[#This Row],[ROUND_D]],PCdb[[#This Row],[FL]],PCdb[[#This Row],[THRU_SCREW]],PCdb[[#This Row],[THREAD_SZ]],PCdb[[#This Row],[THREAD_L]],PCdb[[#This Row],[NBR_HOLES]]) -> 75604112370NA6,9M5NANA4 | BO24: =SUM(PCdb[[#This Row],[BDhit]:[THREAD_Lhit]]) -> 4
A25: 22 | B25: 98.4 | C25: 73.03 | D25: 4 | E25: 12.7 | F25: 31.8 | G25: 84 | H25: NA | I25: 8 | J25: M5 | K25: NA | L25: NA | M25: 4 | N25: M5 | O25: NA | P25: NA | Q25: NA | R25: NA | S25: NA | T25: NA | U25: NA | V25: 41.7 | W25: 37.8 | X25: 0 | Y25: Y | Z25: B | AA25: 45 | AB25: 90 | AC25: 45.2 | AD25: 39 | AE25: 0 | AF25: Y | AG25: B | AJ25: NA | AK25: NA | AL25: NA | AM25: NA | AN25: NA | AO25: NA | AP25: NA | AQ25: NA | AR25: NA | AS25: NA | AT25: NA | AU25: NA | AV25: 39 | AW25: 0 | AX25: Y | AY25: D | AZ25: 45 | BA25: 90 | BB25: =IF(AND(PCdb[[#This Row],[BCD]]>UIoptions!$S$10,PCdb[[#This Row],[BCD]]<UIoptions!$T$10),1,0) -> 0 | BC25: =IF(AND(PCdb[[#This Row],[PD]]>UIoptions!$S$11,PCdb[[#This Row],[PD]]<UIoptions!$T$11),1,0) -> 0 | BD25: =IF(AND(UIoptions!$P$14<=PCdb[[#This Row],[PL (MAX)]],UIoptions!$P$14>UIoptions!$S$14),1,0) -> 1 | BE25: =IF(AND(PCdb[[#This Row],[SD]]>UIoptions!$S$12,PCdb[[#This Row],[SD]]<UIoptions!$T$12),1,0) -> 0 | BF25: =IF(AND(PCdb[[#This Row],[SL]]>UIoptions!$S$13,PCdb[[#This Row],[SL]]<UIoptions!$T$13),1,0) -> 0 | BG25: =IF(UIoptions!$N$35=1,IF(AND(PCdb[[#This Row],[SQ_SZ]]>UIoptions!$S$15,PCdb[[#This Row],[SQ_SZ]]<UIoptions!$T$15),1,0),1) -> 0 | BH25: =IF(UIoptions!$N$35=2,IF(AND(PCdb[[#This Row],[ROUND_D]]>UIoptions!$S$15,PCdb[[#This Row],[ROUND_D]]<UIoptions!$T$15),1,0),1) -> 1 | BI25: =IF(UIoptions!$N$75<>1,1,IF(AND(PCdb[[#This Row],[FL]]>UIoptions!$S$16,PCdb[[#This Row],[FL]]<UIoptions!$T$16),1,0)) -> 0 | BJ25: =IF(OR(UIoptions!$Q$18=PCdb[[#This Row],[THRU_SCREW]],UIoptions!$Q$18="NA"),1,0) -> 0 | BK25: =IF(OR(UIoptions!$P$19=PCdb[[#This Row],[THREAD_SZ]],UIoptions!$P$19="NA"),1,0) -> 1 | BL25: =IF(UIoptions!$N$75=1,1,IF(AND(PCdb[[#This Row],[THREAD_L]]>UIoptions!$S$17,PCdb[[#This Row],[THREAD_L]]<UIoptions!$T$17),1,0)) -> 1 | BM25: =IF(SUM(PCdb[[#This Row],[BDhit]:[THREAD_Lhit]])=11,1,0) -> 0 | BN25: =CONCATENATE(PCdb[[#This Row],[BCD]],PCdb[[#This Row],[PD]],PCdb[[#This Row],[PL (MAX)]],PCdb[[#This Row],[SD]],PCdb[[#This Row],[SL]],PCdb[[#This Row],[SQ_SZ]],PCdb[[#This Row],[ROUND_D]],PCdb[[#This Row],[FL]],PCdb[[#This Row],[THRU_SCREW]],PCdb[[#This Row],[THREAD_SZ]],PCdb[[#This Row],[THREAD_L]],PCdb[[#This Row],[NBR_HOLES]]) -> 98,473,03412,731,884NA8M5NANA4 | BO25: =SUM(PCdb[[#This Row],[BDhit]:[THREAD_Lhit]]) -> 4
A26: 23 | B26: 90 | C26: 60 | D26: 4 | E26: 14 | F26: 30 | G26: 84 | H26: NA | I26: 8 | J26: M5 | K26: NA | L26: NA | M26: 4 | N26: M5 | O26: NA | P26: NA | Q26: NA | R26: NA | S26: NA | T26: NA | U26: NA | V26: 45.2 | W26: 35 | X26: 0 | Y26: Y | Z26: B | AA26: 45 | AB26: 90 | AC26: 48.7 | AD26: 39 | AE26: NA | AF26: Y | AG26: B | AH26: 45 | AI26: 90 | AJ26: NA | AK26: NA | AL26: NA | AM26: NA | AN26: NA | AO26: NA | AP26: NA | AQ26: NA | AR26: NA | AS26: NA | AT26: NA | AU26: NA | AV26: 38 | AW26: NA | AX26: Y | AY26: D | AZ26: 45 | BA26: 90 | BB26: =IF(AND(PCdb[[#This Row],[BCD]]>UIoptions!$S$10,PCdb[[#This Row],[BCD]]<UIoptions!$T$10),1,0) -> 0 | BC26: =IF(AND(PCdb[[#This Row],[PD]]>UIoptions!$S$11,PCdb[[#This Row],[PD]]<UIoptions!$T$11),1,0) -> 0 | BD26: =IF(AND(UIoptions!$P$14<=PCdb[[#This Row],[PL (MAX)]],UIoptions!$P$14>UIoptions!$S$14),1,0) -> 1 | BE26: =IF(AND(PCdb[[#This Row],[SD]]>UIoptions!$S$12,PCdb[[#This Row],[SD]]<UIoptions!$T$12),1,0) -> 0 | BF26: =IF(AND(PCdb[[#This Row],[SL]]>UIoptions!$S$13,PCdb[[#This Row],[SL]]<UIoptions!$T$13),1,0) -> 0 | BG26: =IF(UIoptions!$N$35=1,IF(AND(PCdb[[#This Row],[SQ_SZ]]>UIoptions!$S$15,PCdb[[#This Row],[SQ_SZ]]<UIoptions!$T$15),1,0),1) -> 0 | BH26: =IF(UIoptions!$N$35=2,IF(AND(PCdb[[#This Row],[ROUND_D]]>UIoptions!$S$15,PCdb[[#This Row],[ROUND_D]]<UIoptions!$T$15),1,0),1) -> 1 | BI26: =IF(UIoptions!$N$75<>1,1,IF(AND(PCdb[[#This Row],[FL]]>UIoptions!$S$16,PCdb[[#This Row],[FL]]<UIoptions!$T$16),1,0)) -> 0 | BJ26: =IF(OR(UIoptions!$Q$18=PCdb[[#This Row],[THRU_SCREW]],UIoptions!$Q$18="NA"),1,0) -> 0 | BK26: =IF(OR(UIoptions!$P$19=PCdb[[#This Row],[THREAD_SZ]],UIoptions!$P$19="NA"),1,0) -> 1 | BL26: =IF(UIoptions!$N$75=1,1,IF(AND(PCdb[[#This Row],[THREAD_L]]>UIoptions!$S$17,PCdb[[#This Row],[THREAD_L]]<UIoptions!$T$17),1,0)) -> 1 | BM26: =IF(SUM(PCdb[[#This Row],[BDhit]:[THREAD_Lhit]])=11,1,0) -> 0 | BN26: =CONCATENATE(PCdb[[#This Row],[BCD]],PCdb[[#This Row],[PD]],PCdb[[#This Row],[PL (MAX)]],PCdb[[#This Row],[SD]],PCdb[[#This Row],[SL]],PCdb[[#This Row],[SQ_SZ]],PCdb[[#This Row],[ROUND_D]],PCdb[[#This Row],[FL]],PCdb[[#This Row],[THRU_SCREW]],PCdb[[#This Row],[THREAD_SZ]],PCdb[[#This Row],[THREAD_L]],PCdb[[#This Row],[NBR_HOLES]]) -> 90604143084NA8M5NANA4 | BO26: =SUM(PCdb[[#This Row],[BDhit]:[THREAD_Lhit]]) -> 4
A27: 24 | B27: 90 | C27: 70 | D27: 4 | E27: 16 | F27: 40 | G27: 84 | H27: NA | I27: 8 | J27: M6 | K27: NA | L27: NA | M27: 4 | N27: M6 | O27: NA | P27: NA | Q27: NA | R27: NA | S27: NA | T27: NA | U27: NA | AJ27: NA | AK27: NA | AL27: NA | AM27: NA | AN27: NA | AO27: NA | AP27: NA | AQ27: NA | AR27: NA | AS27: NA | AT27: NA | AU27: NA | AV27: 38 | AW27: 0 | AX27: Y | AY27: D | AZ27: 45 | BA27: 90 | BB27: =IF(AND(PCdb[[#This Row],[BCD]]>UIoptions!$S$10,PCdb[[#This Row],[BCD]]<UIoptions!$T$10),1,0) -> 0 | BC27: =IF(AND(PCdb[[#This Row],[PD]]>UIoptions!$S$11,PCdb[[#This Row],[PD]]<UIoptions!$T$11),1,0) -> 0 | BD27: =IF(AND(UIoptions!$P$14<=PCdb[[#This Row],[PL (MAX)]],UIoptions!$P$14>UIoptions!$S$14),1,0) -> 1 | BE27: =IF(AND(PCdb[[#This Row],[SD]]>UIoptions!$S$12,PCdb[[#This Row],[SD]]<UIoptions!$T$12),1,0) -> 0 | BF27: =IF(AND(PCdb[[#This Row],[SL]]>UIoptions!$S$13,PCdb[[#This Row],[SL]]<UIoptions!$T$13),1,0) -> 0 | BG27: =IF(UIoptions!$N$35=1,IF(AND(PCdb[[#This Row],[SQ_SZ]]>UIoptions!$S$15,PCdb[[#This Row],[SQ_SZ]]<UIoptions!$T$15),1,0),1) -> 0 | BH27: =IF(UIoptions!$N$35=2,IF(AND(PCdb[[#This Row],[ROUND_D]]>UIoptions!$S$15,PCdb[[#This Row],[ROUND_D]]<UIoptions!$T$15),1,0),1) -> 1 | BI27: =IF(UIoptions!$N$75<>1,1,IF(AND(PCdb[[#This Row],[FL]]>UIoptions!$S$16,PCdb[[#This Row],[FL]]<UIoptions!$T$16),1,0)) -> 0 | BJ27: =IF(OR(UIoptions!$Q$18=PCdb[[#This Row],[THRU_SCREW]],UIoptions!$Q$18="NA"),1,0) -> 0 | BK27: =IF(OR(UIoptions!$P$19=PCdb[[#This Row],[THREAD_SZ]],UIoptions!$P$19="NA"),1,0) -> 1 | BL27: =IF(UIoptions!$N$75=1,1,IF(AND(PCdb[[#This Row],[THREAD_L]]>UIoptions!$S$17,PCdb[[#This Row],[THREAD_L]]<UIoptions!$T$17),1,0)) -> 1 | BM27: =IF(SUM(PCdb[[#This Row],[BDhit]:[THREAD_Lhit]])=11,1,0) -> 0 | BN27: =CONCATENATE(PCdb[[#This Row],[BCD]],PCdb[[#This Row],[PD]],PCdb[[#This Row],[PL (MAX)]],PCdb[[#This Row],[SD]],PCdb[[#This Row],[SL]],PCdb[[#This Row],[SQ_SZ]],PCdb[[#This Row],[ROUND_D]],PCdb[[#This Row],[FL]],PCdb[[#This Row],[THRU_SCREW]],PCdb[[#This Row],[THREAD_SZ]],PCdb[[#This Row],[THREAD_L]],PCdb[[#This Row],[NBR_HOLES]]) -> 90704164084NA8M6NANA4 | BO27: =SUM(PCdb[[#This Row],[BDhit]:[THREAD_Lhit]]) -> 4
A28: 25 | B28: 70.7 | C28: 36 | D28: 4 | E28: 11 | F28: 28.5 | G28: 58 | H28: NA | I28: 6.1 | J28: M4 | K28: NA | L28: NA | M28: 4 | N28: M4 | O28: 36.2 | P28: 23 | Q28: 0 | R28: Y | T28: 45 | U28: 90 | V28: 45.2 | W28: 26 | X28: 0 | Y28: Y | AC28: 48.7 | AD28: 4 | AE28: 48 | AF28: Y | AJ28: NA | AK28: NA | AL28: NA | AP28: 20 | AQ28: 0 | AR28: Y | AV28: 20 | AW28: 0 | AX28: Y | BB28: =IF(AND(PCdb[[#This Row],[BCD]]>UIoptions!$S$10,PCdb[[#This Row],[BCD]]<UIoptions!$T$10),1,0) -> 0 | BC28: =IF(AND(PCdb[[#This Row],[PD]]>UIoptions!$S$11,PCdb[[#This Row],[PD]]<UIoptions!$T$11),1,0) -> 0 | BD28: =IF(AND(UIoptions!$P$14<=PCdb[[#This Row],[PL (MAX)]],UIoptions!$P$14>UIoptions!$S$14),1,0) -> 1 | BE28: =IF(AND(PCdb[[#This Row],[SD]]>UIoptions!$S$12,PCdb[[#This Row],[SD]]<UIoptions!$T$12),1,0) -> 0 | BF28: =IF(AND(PCdb[[#This Row],[SL]]>UIoptions!$S$13,PCdb[[#This Row],[SL]]<UIoptions!$T$13),1,0) -> 0 | BG28: =IF(UIoptions!$N$35=1,IF(AND(PCdb[[#This Row],[SQ_SZ]]>UIoptions!$S$15,PCdb[[#This Row],[SQ_SZ]]<UIoptions!$T$15),1,0),1) -> 1 | BH28: =IF(UIoptions!$N$35=2,IF(AND(PCdb[[#This Row],[ROUND_D]]>UIoptions!$S$15,PCdb[[#This Row],[ROUND_D]]<UIoptions!$T$15),1,0),1) -> 1 | BI28: =IF(UIoptions!$N$75<>1,1,IF(AND(PCdb[[#This Row],[FL]]>UIoptions!$S$16,PCdb[[#This Row],[FL]]<UIoptions!$T$16),1,0)) -> 0 | BJ28: =IF(OR(UIoptions!$Q$18=PCdb[[#This Row],[THRU_SCREW]],UIoptions!$Q$18="NA"),1,0) -> 1 | BK28: =IF(OR(UIoptions!$P$19=PCdb[[#This Row],[THREAD_SZ]],UIoptions!$P$19="NA"),1,0) -> 1 | BL28: =IF(UIoptions!$N$75=1,1,IF(AND(PCdb[[#This Row],[THREAD_L]]>UIoptions!$S$17,PCdb[[#This Row],[THREAD_L]]<UIoptions!$T$17),1,0)) -> 1 | BM28: =IF(SUM(PCdb[[#This Row],[BDhit]:[THREAD_Lhit]])=11,1,0) -> 0 | BN28: =CONCATENATE(PCdb[[#This Row],[BCD]],PCdb[[#This Row],[PD]],PCdb[[#This Row],[PL (MAX)]],PCdb[[#This Row],[SD]],PCdb[[#This Row],[SL]],PCdb[[#This Row],[SQ_SZ]],PCdb[[#This Row],[ROUND_D]],PCdb[[#This Row],[FL]],PCdb[[#This Row],[THRU_SCREW]],PCdb[[#This Row],[THREAD_SZ]],PCdb[[#This Row],[THREAD_L]],PCdb[[#This Row],[NBR_HOLES]]) -> 70,73641128,558NA6,1M4NANA4 | BO28: =SUM(PCdb[[#This Row],[BDhit]:[THREAD_Lhit]]) -> 6
A29: 26 | B29: 75 | C29: 60 | D29: 4 | E29: 14 | F29: 30 | G29: 72 | H29: NA | I29: 7 | J29: M5 | K29: NA | L29: NA | M29: 4 | N29: M5 | O29: NA | P29: NA | Q29: NA | R29: NA | S29: NA | T29: NA | U29: NA | V29: 45.2 | W29: 32 | X29: 0 | Y29: Y | Z29: B | AA29: 45 | AB29: 90 | AC29: 48.7 | AD29: 32 | AE29: 0 | AF29: Y | AG29: B | AH29: 45 | AI29: 90 | AJ29: NA | AK29: NA | AL29: NA | AM29: NA | AP29: 32.5 | AQ29: 0 | AR29: Y | AS29: D | AT29: 45 | AU29: 90 | AV29: 32.5 | AW29: 0 | AX29: Y | AY29: C | AZ29: 45 | BA29: 90 | BB29: =IF(AND(PCdb[[#This Row],[BCD]]>UIoptions!$S$10,PCdb[[#This Row],[BCD]]<UIoptions!$T$10),1,0) -> 0 | BC29: =IF(AND(PCdb[[#This Row],[PD]]>UIoptions!$S$11,PCdb[[#This Row],[PD]]<UIoptions!$T$11),1,0) -> 0 | BD29: =IF(AND(UIoptions!$P$14<=PCdb[[#This Row],[PL (MAX)]],UIoptions!$P$14>UIoptions!$S$14),1,0) -> 1 | BE29: =IF(AND(PCdb[[#This Row],[SD]]>UIoptions!$S$12,PCdb[[#This Row],[SD]]<UIoptions!$T$12),1,0) -> 0 | BF29: =IF(AND(PCdb[[#This Row],[SL]]>UIoptions!$S$13,PCdb[[#This Row],[SL]]<UIoptions!$T$13),1,0) -> 0 | BG29: =IF(UIoptions!$N$35=1,IF(AND(PCdb[[#This Row],[SQ_SZ]]>UIoptions!$S$15,PCdb[[#This Row],[SQ_SZ]]<UIoptions!$T$15),1,0),1) -> 0 | BH29: =IF(UIoptions!$N$35=2,IF(AND(PCdb[[#This Row],[ROUND_D]]>UIoptions!$S$15,PCdb[[#This Row],[ROUND_D]]<UIoptions!$T$15),1,0),1) -> 1 | BI29: =IF(UIoptions!$N$75<>1,1,IF(AND(PCdb[[#This Row],[FL]]>UIoptions!$S$16,PCdb[[#This Row],[FL]]<UIoptions!$T$16),1,0)) -> 1 | BJ29: =IF(OR(UIoptions!$Q$18=PCdb[[#This Row],[THRU_SCREW]],UIoptions!$Q$18="NA"),1,0) -> 0 | BK29: =IF(OR(UIoptions!$P$19=PCdb[[#This Row],[THREAD_SZ]],UIoptions!$P$19="NA"),1,0) -> 1 | BL29: =IF(UIoptions!$N$75=1,1,IF(AND(PCdb[[#This Row],[THREAD_L]]>UIoptions!$S$17,PCdb[[#This Row],[THREAD_L]]<UIoptions!$T$17),1,0)) -> 1 | BM29: =IF(SUM(PCdb[[#This Row],[BDhit]:[THREAD_Lhit]])=11,1,0) -> 0 | BN29: =CONCATENATE(PCdb[[#This Row],[BCD]],PCdb[[#This Row],[PD]],PCdb[[#This Row],[PL (MAX)]],PCdb[[#This Row],[SD]],PCdb[[#This Row],[SL]],PCdb[[#This Row],[SQ_SZ]],PCdb[[#This Row],[ROUND_D]],PCdb[[#This Row],[FL]],PCdb[[#This Row],[THRU_SCREW]],PCdb[[#This Row],[THREAD_SZ]],PCdb[[#This Row],[THREAD_L]],PCdb[[#This Row],[NBR_HOLES]]) -> 75604143072NA7M5NANA4 | BO29: =SUM(PCdb[[#This Row],[BDhit]:[THREAD_Lhit]]) -> 5
A30: 27 | B30: 36 | C30: 25 | D30: 4 | E30: 8 | F30: 25 | G30: NA | H30: 42 | I30: NA | J30: NA | K30: M4 | L30: 8 | M30: 4 | N30: 4.5 | AJ30: NA | AK30: NA | AL30: Y | AM30: D2 | BB30: =IF(AND(PCdb[[#This Row],[BCD]]>UIoptions!$S$10,PCdb[[#This Row],[BCD]]<UIoptions!$T$10),1,0) -> 0 | BC30: =IF(AND(PCdb[[#This Row],[PD]]>UIoptions!$S$11,PCdb[[#This Row],[PD]]<UIoptions!$T$11),1,0) -> 0 | BD30: =IF(AND(UIoptions!$P$14<=PCdb[[#This Row],[PL (MAX)]],UIoptions!$P$14>UIoptions!$S$14),1,0) -> 1 | BE30: =IF(AND(PCdb[[#This Row],[SD]]>UIoptions!$S$12,PCdb[[#This Row],[SD]]<UIoptions!$T$12),1,0) -> 0 | BF30: =IF(AND(PCdb[[#This Row],[SL]]>UIoptions!$S$13,PCdb[[#This Row],[SL]]<UIoptions!$T$13),1,0) -> 0 | BG30: =IF(UIoptions!$N$35=1,IF(AND(PCdb[[#This Row],[SQ_SZ]]>UIoptions!$S$15,PCdb[[#This Row],[SQ_SZ]]<UIoptions!$T$15),1,0),1) -> 0 | BH30: =IF(UIoptions!$N$35=2,IF(AND(PCdb[[#This Row],[ROUND_D]]>UIoptions!$S$15,PCdb[[#This Row],[ROUND_D]]<UIoptions!$T$15),1,0),1) -> 1 | BI30: =IF(UIoptions!$N$75<>1,1,IF(AND(PCdb[[#This Row],[FL]]>UIoptions!$S$16,PCdb[[#This Row],[FL]]<UIoptions!$T$16),1,0)) -> 0 | BJ30: =IF(OR(UIoptions!$Q$18=PCdb[[#This Row],[THRU_SCREW]],UIoptions!$Q$18="NA"),1,0) -> 0 | BK30: =IF(OR(UIoptions!$P$19=PCdb[[#This Row],[THREAD_SZ]],UIoptions!$P$19="NA"),1,0) -> 1 | BL30: =IF(UIoptions!$N$75=1,1,IF(AND(PCdb[[#This Row],[THREAD_L]]>UIoptions!$S$17,PCdb[[#This Row],[THREAD_L]]<UIoptions!$T$17),1,0)) -> 1 | BM30: =IF(SUM(PCdb[[#This Row],[BDhit]:[THREAD_Lhit]])=11,1,0) -> 0 | BN30: =CONCATENATE(PCdb[[#This Row],[BCD]],PCdb[[#This Row],[PD]],PCdb[[#This Row],[PL (MAX)]],PCdb[[#This Row],[SD]],PCdb[[#This Row],[SL]],PCdb[[#This Row],[SQ_SZ]],PCdb[[#This Row],[ROUND_D]],PCdb[[#This Row],[FL]],PCdb[[#This Row],[THRU_SCREW]],PCdb[[#This Row],[THREAD_SZ]],PCdb[[#This Row],[THREAD_L]],PCdb[[#This Row],[NBR_HOLES]]) -> 36254825NA42NANAM484 | BO30: =SUM(PCdb[[#This Row],[BDhit]:[THREAD_Lhit]]) -> 4
A31: 28 | B31: 66.7 | C31: 38.1 | D31: 4 | E31: 6.35 | F31: 20 | G31: 56.4 | H31: NA | I31: 5 | J31: M4 | K31: NA | L31: NA | M31: 4 | N31: M4 | O31: 38.7 | P31: 25 | Q31: 0 | R31: Y | S31: B | T31: 45 | U31: 90 | AJ31: 25 | AK31: 0 | AL31: Y* | AM31: D | AN31: 45 | AO31: 90 | BB31: =IF(AND(PCdb[[#This Row],[BCD]]>UIoptions!$S$10,PCdb[[#This Row],[BCD]]<UIoptions!$T$10),1,0) -> 0 | BC31: =IF(AND(PCdb[[#This Row],[PD]]>UIoptions!$S$11,PCdb[[#This Row],[PD]]<UIoptions!$T$11),1,0) -> 0 | BD31: =IF(AND(UIoptions!$P$14<=PCdb[[#This Row],[PL (MAX)]],UIoptions!$P$14>UIoptions!$S$14),1,0) -> 1 | BE31: =IF(AND(PCdb[[#This Row],[SD]]>UIoptions!$S$12,PCdb[[#This Row],[SD]]<UIoptions!$T$12),1,0) -> 0 | BF31: =IF(AND(PCdb[[#This Row],[SL]]>UIoptions!$S$13,PCdb[[#This Row],[SL]]<UIoptions!$T$13),1,0) -> 1 | BG31: =IF(UIoptions!$N$35=1,IF(AND(PCdb[[#This Row],[SQ_SZ]]>UIoptions!$S$15,PCdb[[#This Row],[SQ_SZ]]<UIoptions!$T$15),1,0),1) -> 0 | BH31: =IF(UIoptions!$N$35=2,IF(AND(PCdb[[#This Row],[ROUND_D]]>UIoptions!$S$15,PCdb[[#This Row],[ROUND_D]]<UIoptions!$T$15),1,0),1) -> 1 | BI31: =IF(UIoptions!$N$75<>1,1,IF(AND(PCdb[[#This Row],[FL]]>UIoptions!$S$16,PCdb[[#This Row],[FL]]<UIoptions!$T$16),1,0)) -> 0 | BJ31: =IF(OR(UIoptions!$Q$18=PCdb[[#This Row],[THRU_SCREW]],UIoptions!$Q$18="NA"),1,0) -> 1 | BK31: =IF(OR(UIoptions!$P$19=PCdb[[#This Row],[THREAD_SZ]],UIoptions!$P$19="NA"),1,0) -> 1 | BL31: =IF(UIoptions!$N$75=1,1,IF(AND(PCdb[[#This Row],[THREAD_L]]>UIoptions!$S$17,PCdb[[#This Row],[THREAD_L]]<UIoptions!$T$17),1,0)) -> 1 | BM31: =IF(SUM(PCdb[[#This Row],[BDhit]:[THREAD_Lhit]])=11,1,0) -> 0 | BN31: =CONCATENATE(PCdb[[#This Row],[BCD]],PCdb[[#This Row],[PD]],PCdb[[#This Row],[PL (MAX)]],PCdb[[#This Row],[SD]],PCdb[[#This Row],[SL]],PCdb[[#This Row],[SQ_SZ]],PCdb[[#This Row],[ROUND_D]],PCdb[[#This Row],[FL]],PCdb[[#This Row],[THRU_SCREW]],PCdb[[#This Row],[THREAD_SZ]],PCdb[[#This Row],[THREAD_L]],PCdb[[#This Row],[NBR_HOLES]]) -> 66,738,146,352056,4NA5M4NANA4 | BO31: =SUM(PCdb[[#This Row],[BDhit]:[THREAD_Lhit]]) -> 6
A32: 29 | B32: 98.4 | C32: 73 | D32: 4 | E32: 12.7 | F32: 37 | G32: 85.8 | H32: NA | I32: 10 | J32: M6 | K32: NA | L32: NA | M32: 4 | N32: M6 | V32: 45.2 | W32: 38 | X32: 0 | Y32: Y | Z32: B | AA32: 45 | AB32: 90 | AC32: 48.7 | AD32: 39 | AE32: NA | AF32: Y | AG32: B | AH32: 45 | AI32: 90 | BB32: =IF(AND(PCdb[[#This Row],[BCD]]>UIoptions!$S$10,PCdb[[#This Row],[BCD]]<UIoptions!$T$10),1,0) -> 0 | BC32: =IF(AND(PCdb[[#This Row],[PD]]>UIoptions!$S$11,PCdb[[#This Row],[PD]]<UIoptions!$T$11),1,0) -> 0 | BD32: =IF(AND(UIoptions!$P$14<=PCdb[[#This Row],[PL (MAX)]],UIoptions!$P$14>UIoptions!$S$14),1,0) -> 1 | BE32: =IF(AND(PCdb[[#This Row],[SD]]>UIoptions!$S$12,PCdb[[#This Row],[SD]]<UIoptions!$T$12),1,0) -> 0 | BF32: =IF(AND(PCdb[[#This Row],[SL]]>UIoptions!$S$13,PCdb[[#This Row],[SL]]<UIoptions!$T$13),1,0) -> 0 | BG32: =IF(UIoptions!$N$35=1,IF(AND(PCdb[[#This Row],[SQ_SZ]]>UIoptions!$S$15,PCdb[[#This Row],[SQ_SZ]]<UIoptions!$T$15),1,0),1) -> 0 | BH32: =IF(UIoptions!$N$35=2,IF(AND(PCdb[[#This Row],[ROUND_D]]>UIoptions!$S$15,PCdb[[#This Row],[ROUND_D]]<UIoptions!$T$15),1,0),1) -> 1 | BI32: =IF(UIoptions!$N$75<>1,1,IF(AND(PCdb[[#This Row],[FL]]>UIoptions!$S$16,PCdb[[#This Row],[FL]]<UIoptions!$T$16),1,0)) -> 0 | BJ32: =IF(OR(UIoptions!$Q$18=PCdb[[#This Row],[THRU_SCREW]],UIoptions!$Q$18="NA"),1,0) -> 0 | BK32: =IF(OR(UIoptions!$P$19=PCdb[[#This Row],[THREAD_SZ]],UIoptions!$P$19="NA"),1,0) -> 1 | BL32: =IF(UIoptions!$N$75=1,1,IF(AND(PCdb[[#This Row],[THREAD_L]]>UIoptions!$S$17,PCdb[[#This Row],[THREAD_L]]<UIoptions!$T$17),1,0)) -> 1 | BM32: =IF(SUM(PCdb[[#This Row],[BDhit]:[THREAD_Lhit]])=11,1,0) -> 0 | BN32: =CONCATENATE(PCdb[[#This Row],[BCD]],PCdb[[#This Row],[PD]],PCdb[[#This Row],[PL (MAX)]],PCdb[[#This Row],[SD]],PCdb[[#This Row],[SL]],PCdb[[#This Row],[SQ_SZ]],PCdb[[#This Row],[ROUND_D]],PCdb[[#This Row],[FL]],PCdb[[#This Row],[THRU_SCREW]],PCdb[[#This Row],[THREAD_SZ]],PCdb[[#This Row],[THREAD_L]],PCdb[[#This Row],[NBR_HOLES]]) -> 98,473412,73785,8NA10M6NANA4 | BO32: =SUM(PCdb[[#This Row],[BDhit]:[THREAD_Lhit]]) -> 4
A33: 30 | B33: 66.7 | C33: 38.1 | D33: 4 | E33: 9.5 | F33: 30.7 | G33: 57.7 | H33: NA | I33: 7.5 | J33: M4 | K33: NA | L33: NA | M33: 4 | N33: M4 | O33: 38.7 | P33: 22 | Q33: NA | R33: Y | S33: B | T33: 45 | U33: 90 | AJ33: 22 | AK33: 0 | AL33: Y | AM33: D | AN33: 45 | AO33: 90 | BB33: =IF(AND(PCdb[[#This Row],[BCD]]>UIoptions!$S$10,PCdb[[#This Row],[BCD]]<UIoptions!$T$10),1,0) -> 0 | BC33: =IF(AND(PCdb[[#This Row],[PD]]>UIoptions!$S$11,PCdb[[#This Row],[PD]]<UIoptions!$T$11),1,0) -> 0 | BD33: =IF(AND(UIoptions!$P$14<=PCdb[[#This Row],[PL (MAX)]],UIoptions!$P$14>UIoptions!$S$14),1,0) -> 1 | BE33: =IF(AND(PCdb[[#This Row],[SD]]>UIoptions!$S$12,PCdb[[#This Row],[SD]]<UIoptions!$T$12),1,0) -> 0 | BF33: =IF(AND(PCdb[[#This Row],[SL]]>UIoptions!$S$13,PCdb[[#This Row],[SL]]<UIoptions!$T$13),1,0) -> 0 | BG33: =IF(UIoptions!$N$35=1,IF(AND(PCdb[[#This Row],[SQ_SZ]]>UIoptions!$S$15,PCdb[[#This Row],[SQ_SZ]]<UIoptions!$T$15),1,0),1) -> 0 | BH33: =IF(UIoptions!$N$35=2,IF(AND(PCdb[[#This Row],[ROUND_D]]>UIoptions!$S$15,PCdb[[#This Row],[ROUND_D]]<UIoptions!$T$15),1,0),1) -> 1 | BI33: =IF(UIoptions!$N$75<>1,1,IF(AND(PCdb[[#This Row],[FL]]>UIoptions!$S$16,PCdb[[#This Row],[FL]]<UIoptions!$T$16),1,0)) -> 0 | BJ33: =IF(OR(UIoptions!$Q$18=PCdb[[#This Row],[THRU_SCREW]],UIoptions!$Q$18="NA"),1,0) -> 1 | BK33: =IF(OR(UIoptions!$P$19=PCdb[[#This Row],[THREAD_SZ]],UIoptions!$P$19="NA"),1,0) -> 1 | BL33: =IF(UIoptions!$N$75=1,1,IF(AND(PCdb[[#This Row],[THREAD_L]]>UIoptions!$S$17,PCdb[[#This Row],[THREAD_L]]<UIoptions!$T$17),1,0)) -> 1 | BM33: =IF(SUM(PCdb[[#This Row],[BDhit]:[THREAD_Lhit]])=11,1,0) -> 0 | BN33: =CONCATENATE(PCdb[[#This Row],[BCD]],PCdb[[#This Row],[PD]],PCdb[[#This Row],[PL (MAX)]],PCdb[[#This Row],[SD]],PCdb[[#This Row],[SL]],PCdb[[#This Row],[SQ_SZ]],PCdb[[#This Row],[ROUND_D]],PCdb[[#This Row],[FL]],PCdb[[#This Row],[THRU_SCREW]],PCdb[[#This Row],[THREAD_SZ]],PCdb[[#This Row],[THREAD_L]],PCdb[[#This Row],[NBR_HOLES]]) -> 66,738,149,530,757,7NA7,5M4NANA4 | BO33: =SUM(PCdb[[#This Row],[BDhit]:[THREAD_Lhit]]) -> 5
A34: 31 | B34: 75 | C34: 60 | D34: 4 | E34: 11 | F34: 23.5 | G34: 65.2 | H34: NA | I34: 7.5 | J34: M5 | K34: NA | L34: NA | M34: 4 | N34: M5 | BB34: =IF(AND(PCdb[[#This Row],[BCD]]>UIoptions!$S$10,PCdb[[#This Row],[BCD]]<UIoptions!$T$10),1,0) -> 0 | BC34: =IF(AND(PCdb[[#This Row],[PD]]>UIoptions!$S$11,PCdb[[#This Row],[PD]]<UIoptions!$T$11),1,0) -> 0 | BD34: =IF(AND(UIoptions!$P$14<=PCdb[[#This Row],[PL (MAX)]],UIoptions!$P$14>UIoptions!$S$14),1,0) -> 1 | BE34: =IF(AND(PCdb[[#This Row],[SD]]>UIoptions!$S$12,PCdb[[#This Row],[SD]]<UIoptions!$T$12),1,0) -> 0 | BF34: =IF(AND(PCdb[[#This Row],[SL]]>UIoptions!$S$13,PCdb[[#This Row],[SL]]<UIoptions!$T$13),1,0) -> 0 | BG34: =IF(UIoptions!$N$35=1,IF(AND(PCdb[[#This Row],[SQ_SZ]]>UIoptions!$S$15,PCdb[[#This Row],[SQ_SZ]]<UIoptions!$T$15),1,0),1) -> 0 | BH34: =IF(UIoptions!$N$35=2,IF(AND(PCdb[[#This Row],[ROUND_D]]>UIoptions!$S$15,PCdb[[#This Row],[ROUND_D]]<UIoptions!$T$15),1,0),1) -> 1 | BI34: =IF(UIoptions!$N$75<>1,1,IF(AND(PCdb[[#This Row],[FL]]>UIoptions!$S$16,PCdb[[#This Row],[FL]]<UIoptions!$T$16),1,0)) -> 0 | BJ34: =IF(OR(UIoptions!$Q$18=PCdb[[#This Row],[THRU_SCREW]],UIoptions!$Q$18="NA"),1,0) -> 0 | BK34: =IF(OR(UIoptions!$P$19=PCdb[[#This Row],[THREAD_SZ]],UIoptions!$P$19="NA"),1,0) -> 1 | BL34: =IF(UIoptions!$N$75=1,1,IF(AND(PCdb[[#This Row],[THREAD_L]]>UIoptions!$S$17,PCdb[[#This Row],[THREAD_L]]<UIoptions!$T$17),1,0)) -> 1 | BM34: =IF(SUM(PCdb[[#This Row],[BDhit]:[THREAD_Lhit]])=11,1,0) -> 0 | BN34: =CONCATENATE(PCdb[[#This Row],[BCD]],PCdb[[#This Row],[PD]],PCdb[[#This Row],[PL (MAX)]],PCdb[[#This Row],[SD]],PCdb[[#This Row],[SL]],PCdb[[#This Row],[SQ_SZ]],PCdb[[#This Row],[ROUND_D]],PCdb[[#This Row],[FL]],PCdb[[#This Row],[THRU_SCREW]],PCdb[[#This Row],[THREAD_SZ]],PCdb[[#This Row],[THREAD_L]],PCdb[[#This Row],[NBR_HOLES]]) -> 756041123,565,2NA7,5M5NANA4 | BO34: =SUM(PCdb[[#This Row],[BDhit]:[THREAD_Lhit]]) -> 4
A35: 32 | B35: 100 | C35: 80 | D35: 4 | E35: 14 | F35: 30 | G35: 92 | H35: NA | I35: 7.5 | J35: M6 | K35: NA | L35: NA | M35: 4 | N35: M6 | BB35: =IF(AND(PCdb[[#This Row],[BCD]]>UIoptions!$S$10,PCdb[[#This Row],[BCD]]<UIoptions!$T$10),1,0) -> 0 | BC35: =IF(AND(PCdb[[#This Row],[PD]]>UIoptions!$S$11,PCdb[[#This Row],[PD]]<UIoptions!$T$11),1,0) -> 0 | BD35: =IF(AND(UIoptions!$P$14<=PCdb[[#This Row],[PL (MAX)]],UIoptions!$P$14>UIoptions!$S$14),1,0) -> 1 | BE35: =IF(AND(PCdb[[#This Row],[SD]]>UIoptions!$S$12,PCdb[[#This Row],[SD]]<UIoptions!$T$12),1,0) -> 0 | BF35: =IF(AND(PCdb[[#This Row],[SL]]>UIoptions!$S$13,PCdb[[#This Row],[SL]]<UIoptions!$T$13),1,0) -> 0 | BG35: =IF(UIoptions!$N$35=1,IF(AND(PCdb[[#This Row],[SQ_SZ]]>UIoptions!$S$15,PCdb[[#This Row],[SQ_SZ]]<UIoptions!$T$15),1,0),1) -> 0 | BH35: =IF(UIoptions!$N$35=2,IF(AND(PCdb[[#This Row],[ROUND_D]]>UIoptions!$S$15,PCdb[[#This Row],[ROUND_D]]<UIoptions!$T$15),1,0),1) -> 1 | BI35: =IF(UIoptions!$N$75<>1,1,IF(AND(PCdb[[#This Row],[FL]]>UIoptions!$S$16,PCdb[[#This Row],[FL]]<UIoptions!$T$16),1,0)) -> 0 | BJ35: =IF(OR(UIoptions!$Q$18=PCdb[[#This Row],[THRU_SCREW]],UIoptions!$Q$18="NA"),1,0) -> 0 | BK35: =IF(OR(UIoptions!$P$19=PCdb[[#This Row],[THREAD_SZ]],UIoptions!$P$19="NA"),1,0) -> 1 | BL35: =IF(UIoptions!$N$75=1,1,IF(AND(PCdb[[#This Row],[THREAD_L]]>UIoptions!$S$17,PCdb[[#This Row],[THREAD_L]]<UIoptions!$T$17),1,0)) -> 1 | BM35: =IF(SUM(PCdb[[#This Row],[BDhit]:[THREAD_Lhit]])=11,1,0) -> 0 | BN35: =CONCATENATE(PCdb[[#This Row],[BCD]],PCdb[[#This Row],[PD]],PCdb[[#This Row],[PL (MAX)]],PCdb[[#This Row],[SD]],PCdb[[#This Row],[SL]],PCdb[[#This Row],[SQ_SZ]],PCdb[[#This Row],[ROUND_D]],PCdb[[#This Row],[FL]],PCdb[[#This Row],[THRU_SCREW]],PCdb[[#This Row],[THREAD_SZ]],PCdb[[#This Row],[THREAD_L]],PCdb[[#This Row],[NBR_HOLES]]) -> 100804143092NA7,5M6NANA4 | BO35: =SUM(PCdb[[#This Row],[BDhit]:[THREAD_Lhit]]) -> 4
A36: 33 | B36: 70 | C36: 50 | D36: 4 | E36: 9 | F36: 25 | G36: 60 | H36: NA | I36: 6 | J36: M5 | K36: NA | L36: NA | M36: 4 | N36: M5 | AJ36: 27 | AK36: 0 | AL36: Y | AM36: D | AN36: 45 | AO36: 90 | BB36: =IF(AND(PCdb[[#This Row],[BCD]]>UIoptions!$S$10,PCdb[[#This Row],[BCD]]<UIoptions!$T$10),1,0) -> 0 | BC36: =IF(AND(PCdb[[#This Row],[PD]]>UIoptions!$S$11,PCdb[[#This Row],[PD]]<UIoptions!$T$11),1,0) -> 0 | BD36: =IF(AND(UIoptions!$P$14<=PCdb[[#This Row],[PL (MAX)]],UIoptions!$P$14>UIoptions!$S$14),1,0) -> 1 | BE36: =IF(AND(PCdb[[#This Row],[SD]]>UIoptions!$S$12,PCdb[[#This Row],[SD]]<UIoptions!$T$12),1,0) -> 0 | BF36: =IF(AND(PCdb[[#This Row],[SL]]>UIoptions!$S$13,PCdb[[#This Row],[SL]]<UIoptions!$T$13),1,0) -> 0 | BG36: =IF(UIoptions!$N$35=1,IF(AND(PCdb[[#This Row],[SQ_SZ]]>UIoptions!$S$15,PCdb[[#This Row],[SQ_SZ]]<UIoptions!$T$15),1,0),1) -> 0 | BH36: =IF(UIoptions!$N$35=2,IF(AND(PCdb[[#This Row],[ROUND_D]]>UIoptions!$S$15,PCdb[[#This Row],[ROUND_D]]<UIoptions!$T$15),1,0),1) -> 1 | BI36: =IF(UIoptions!$N$75<>1,1,IF(AND(PCdb[[#This Row],[FL]]>UIoptions!$S$16,PCdb[[#This Row],[FL]]<UIoptions!$T$16),1,0)) -> 0 | BJ36: =IF(OR(UIoptions!$Q$18=PCdb[[#This Row],[THRU_SCREW]],UIoptions!$Q$18="NA"),1,0) -> 0 | BK36: =IF(OR(UIoptions!$P$19=PCdb[[#This Row],[THREAD_SZ]],UIoptions!$P$19="NA"),1,0) -> 1 | BL36: =IF(UIoptions!$N$75=1,1,IF(AND(PCdb[[#This Row],[THREAD_L]]>UIoptions!$S$17,PCdb[[#This Row],[THREAD_L]]<UIoptions!$T$17),1,0)) -> 1 | BM36: =IF(SUM(PCdb[[#This Row],[BDhit]:[THREAD_Lhit]])=11,1,0) -> 0 | BN36: =CONCATENATE(PCdb[[#This Row],[BCD]],PCdb[[#This Row],[PD]],PCdb[[#This Row],[PL (MAX)]],PCdb[[#This Row],[SD]],PCdb[[#This Row],[SL]],PCdb[[#This Row],[SQ_SZ]],PCdb[[#This Row],[ROUND_D]],PCdb[[#This Row],[FL]],PCdb[[#This Row],[THRU_SCREW]],PCdb[[#This Row],[THREAD_SZ]],PCdb[[#This Row],[THREAD_L]],PCdb[[#This Row],[NBR_HOLES]]) -> 7050492560NA6M5NANA4 | BO36: =SUM(PCdb[[#This Row],[BDhit]:[THREAD_Lhit]]) -> 4
A37: 34 | B37: 66.7 | C37: 38.2 | D37: 4 | E37: 6.35 | F37: 20 | G37: 57.7 | H37: NA | I37: 6 | J37: M4 | K37: NA | L37: NA | M37: 4 | N37: M4 | O37: 38.7 | P37: 22 | Q37: 0 | R37: Y | S37: B | T37: 45 | U37: 90 | BB37: =IF(AND(PCdb[[#This Row],[BCD]]>UIoptions!$S$10,PCdb[[#This Row],[BCD]]<UIoptions!$T$10),1,0) -> 0 | BC37: =IF(AND(PCdb[[#This Row],[PD]]>UIoptions!$S$11,PCdb[[#This Row],[PD]]<UIoptions!$T$11),1,0) -> 0 | BD37: =IF(AND(UIoptions!$P$14<=PCdb[[#This Row],[PL (MAX)]],UIoptions!$P$14>UIoptions!$S$14),1,0) -> 1 | BE37: =IF(AND(PCdb[[#This Row],[SD]]>UIoptions!$S$12,PCdb[[#This Row],[SD]]<UIoptions!$T$12),1,0) -> 0 | BF37: =IF(AND(PCdb[[#This Row],[SL]]>UIoptions!$S$13,PCdb[[#This Row],[SL]]<UIoptions!$T$13),1,0) -> 1 | BG37: =IF(UIoptions!$N$35=1,IF(AND(PCdb[[#This Row],[SQ_SZ]]>UIoptions!$S$15,PCdb[[#This Row],[SQ_SZ]]<UIoptions!$T$15),1,0),1) -> 0 | BH37: =IF(UIoptions!$N$35=2,IF(AND(PCdb[[#This Row],[ROUND_D]]>UIoptions!$S$15,PCdb[[#This Row],[ROUND_D]]<UIoptions!$T$15),1,0),1) -> 1 | BI37: =IF(UIoptions!$N$75<>1,1,IF(AND(PCdb[[#This Row],[FL]]>UIoptions!$S$16,PCdb[[#This Row],[FL]]<UIoptions!$T$16),1,0)) -> 0 | BJ37: =IF(OR(UIoptions!$Q$18=PCdb[[#This Row],[THRU_SCREW]],UIoptions!$Q$18="NA"),1,0) -> 1 | BK37: =IF(OR(UIoptions!$P$19=PCdb[[#This Row],[THREAD_SZ]],UIoptions!$P$19="NA"),1,0) -> 1 | BL37: =IF(UIoptions!$N$75=1,1,IF(AND(PCdb[[#This Row],[THREAD_L]]>UIoptions!$S$17,PCdb[[#This Row],[THREAD_L]]<UIoptions!$T$17),1,0)) -> 1 | BM37: =IF(SUM(PCdb[[#This Row],[BDhit]:[THREAD_Lhit]])=11,1,0) -> 0 | BN37: =CONCATENATE(PCdb[[#This Row],[BCD]],PCdb[[#This Row],[PD]],PCdb[[#This Row],[PL (MAX)]],PCdb[[#This Row],[SD]],PCdb[[#This Row],[SL]],PCdb[[#This Row],[SQ_SZ]],PCdb[[#This Row],[ROUND_D]],PCdb[[#This Row],[FL]],PCdb[[#This Row],[THRU_SCREW]],PCdb[[#This Row],[THREAD_SZ]],PCdb[[#This Row],[THREAD_L]],PCdb[[#This Row],[NBR_HOLES]]) -> 66,738,246,352057,7NA6M4NANA4 | BO37: =SUM(PCdb[[#This Row],[BDhit]:[THREAD_Lhit]]) -> 6
A38: 35 | B38: 98.4 | C38: 73.08 | D38: 4 | E38: 9.53 | F38: 30 | G38: 86.9 | H38: NA | I38: 8 | J38: M5 | K38: NA | L38: NA | M38: 4 | N38: M5 | BB38: =IF(AND(PCdb[[#This Row],[BCD]]>UIoptions!$S$10,PCdb[[#This Row],[BCD]]<UIoptions!$T$10),1,0) -> 0 | BC38: =IF(AND(PCdb[[#This Row],[PD]]>UIoptions!$S$11,PCdb[[#This Row],[PD]]<UIoptions!$T$11),1,0) -> 0 | BD38: =IF(AND(UIoptions!$P$14<=PCdb[[#This Row],[PL (MAX)]],UIoptions!$P$14>UIoptions!$S$14),1,0) -> 1 | BE38: =IF(AND(PCdb[[#This Row],[SD]]>UIoptions!$S$12,PCdb[[#This Row],[SD]]<UIoptions!$T$12),1,0) -> 0 | BF38: =IF(AND(PCdb[[#This Row],[SL]]>UIoptions!$S$13,PCdb[[#This Row],[SL]]<UIoptions!$T$13),1,0) -> 0 | BG38: =IF(UIoptions!$N$35=1,IF(AND(PCdb[[#This Row],[SQ_SZ]]>UIoptions!$S$15,PCdb[[#This Row],[SQ_SZ]]<UIoptions!$T$15),1,0),1) -> 0 | BH38: =IF(UIoptions!$N$35=2,IF(AND(PCdb[[#This Row],[ROUND_D]]>UIoptions!$S$15,PCdb[[#This Row],[ROUND_D]]<UIoptions!$T$15),1,0),1) -> 1 | BI38: =IF(UIoptions!$N$75<>1,1,IF(AND(PCdb[[#This Row],[FL]]>UIoptions!$S$16,PCdb[[#This Row],[FL]]<UIoptions!$T$16),1,0)) -> 0 | BJ38: =IF(OR(UIoptions!$Q$18=PCdb[[#This Row],[THRU_SCREW]],UIoptions!$Q$18="NA"),1,0) -> 0 | BK38: =IF(OR(UIoptions!$P$19=PCdb[[#This Row],[THREAD_SZ]],UIoptions!$P$19="NA"),1,0) -> 1 | BL38: =IF(UIoptions!$N$75=1,1,IF(AND(PCdb[[#This Row],[THREAD_L]]>UIoptions!$S$17,PCdb[[#This Row],[THREAD_L]]<UIoptions!$T$17),1,0)) -> 1 | BM38: =IF(SUM(PCdb[[#This Row],[BDhit]:[THREAD_Lhit]])=11,1,0) -> 0 | BN38: =CONCATENATE(PCdb[[#This Row],[BCD]],PCdb[[#This Row],[PD]],PCdb[[#This Row],[PL (MAX)]],PCdb[[#This Row],[SD]],PCdb[[#This Row],[SL]],PCdb[[#This Row],[SQ_SZ]],PCdb[[#This Row],[ROUND_D]],PCdb[[#This Row],[FL]],PCdb[[#This Row],[THRU_SCREW]],PCdb[[#This Row],[THREAD_SZ]],PCdb[[#This Row],[THREAD_L]],PCdb[[#This Row],[NBR_HOLES]]) -> 98,473,0849,533086,9NA8M5NANA4 | BO38: =SUM(PCdb[[#This Row],[BDhit]:[THREAD_Lhit]]) -> 4
A39: 36 | B39: 98.4 | C39: 73.08 | D39: 4 | E39: 15.875 | F39: 30 | G39: 86.9 | H39: NA | I39: 8 | J39: M5 | K39: NA | L39: NA | M39: 4 | N39: M5 | BB39: =IF(AND(PCdb[[#This Row],[BCD]]>UIoptions!$S$10,PCdb[[#This Row],[BCD]]<UIoptions!$T$10),1,0) -> 0 | BC39: =IF(AND(PCdb[[#This Row],[PD]]>UIoptions!$S$11,PCdb[[#This Row],[PD]]<UIoptions!$T$11),1,0) -> 0 | BD39: =IF(AND(UIoptions!$P$14<=PCdb[[#This Row],[PL (MAX)]],UIoptions!$P$14>UIoptions!$S$14),1,0) -> 1 | BE39: =IF(AND(PCdb[[#This Row],[SD]]>UIoptions!$S$12,PCdb[[#This Row],[SD]]<UIoptions!$T$12),1,0) -> 0 | BF39: =IF(AND(PCdb[[#This Row],[SL]]>UIoptions!$S$13,PCdb[[#This Row],[SL]]<UIoptions!$T$13),1,0) -> 0 | BG39: =IF(UIoptions!$N$35=1,IF(AND(PCdb[[#This Row],[SQ_SZ]]>UIoptions!$S$15,PCdb[[#This Row],[SQ_SZ]]<UIoptions!$T$15),1,0),1) -> 0 | BH39: =IF(UIoptions!$N$35=2,IF(AND(PCdb[[#This Row],[ROUND_D]]>UIoptions!$S$15,PCdb[[#This Row],[ROUND_D]]<UIoptions!$T$15),1,0),1) -> 1 | BI39: =IF(UIoptions!$N$75<>1,1,IF(AND(PCdb[[#This Row],[FL]]>UIoptions!$S$16,PCdb[[#This Row],[FL]]<UIoptions!$T$16),1,0)) -> 0 | BJ39: =IF(OR(UIoptions!$Q$18=PCdb[[#This Row],[THRU_SCREW]],UIoptions!$Q$18="NA"),1,0) -> 0 | BK39: =IF(OR(UIoptions!$P$19=PCdb[[#This Row],[THREAD_SZ]],UIoptions!$P$19="NA"),1,0) -> 1 | BL39: =IF(UIoptions!$N$75=1,1,IF(AND(PCdb[[#This Row],[THREAD_L]]>UIoptions!$S$17,PCdb[[#This Row],[THREAD_L]]<UIoptions!$T$17),1,0)) -> 1 | BM39: =IF(SUM(PCdb[[#This Row],[BDhit]:[THREAD_Lhit]])=11,1,0) -> 0 | BN39: =CONCATENATE(PCdb[[#This Row],[BCD]],PCdb[[#This Row],[PD]],PCdb[[#This Row],[PL (MAX)]],PCdb[[#This Row],[SD]],PCdb[[#This Row],[SL]],PCdb[[#This Row],[SQ_SZ]],PCdb[[#This Row],[ROUND_D]],PCdb[[#This Row],[FL]],PCdb[[#This Row],[THRU_SCREW]],PCdb[[#This Row],[THREAD_SZ]],PCdb[[#This Row],[THREAD_L]],PCdb[[#This Row],[NBR_HOLES]]) -> 98,473,08415,8753086,9NA8M5NANA4 | BO39: =SUM(PCdb[[#This Row],[BDhit]:[THREAD_Lhit]]) -> 4
A40: 37 | B40: 63 | C40: 40 | D40: 4 | E40: 9 | F40: 20 | G40: 54 | H40: NA | I40: 7 | J40: M4 | K40: NA | L40: NA | M40: 4 | N40: M4 | AV40: 24 | AW40: 0 | AX40: Y* | AY40: C | AZ40: 45 | BA40: 90 | BB40: =IF(AND(PCdb[[#This Row],[BCD]]>UIoptions!$S$10,PCdb[[#This Row],[BCD]]<UIoptions!$T$10),1,0) -> 1 | BC40: =IF(AND(PCdb[[#This Row],[PD]]>UIoptions!$S$11,PCdb[[#This Row],[PD]]<UIoptions!$T$11),1,0) -> 1 | BD40: =IF(AND(UIoptions!$P$14<=PCdb[[#This Row],[PL (MAX)]],UIoptions!$P$14>UIoptions!$S$14),1,0) -> 1 | BE40: =IF(AND(PCdb[[#This Row],[SD]]>UIoptions!$S$12,PCdb[[#This Row],[SD]]<UIoptions!$T$12),1,0) -> 0 | BF40: =IF(AND(PCdb[[#This Row],[SL]]>UIoptions!$S$13,PCdb[[#This Row],[SL]]<UIoptions!$T$13),1,0) -> 1 | BG40: =IF(UIoptions!$N$35=1,IF(AND(PCdb[[#This Row],[SQ_SZ]]>UIoptions!$S$15,PCdb[[#This Row],[SQ_SZ]]<UIoptions!$T$15),1,0),1) -> 0 | BH40: =IF(UIoptions!$N$35=2,IF(AND(PCdb[[#This Row],[ROUND_D]]>UIoptions!$S$15,PCdb[[#This Row],[ROUND_D]]<UIoptions!$T$15),1,0),1) -> 1 | BI40: =IF(UIoptions!$N$75<>1,1,IF(AND(PCdb[[#This Row],[FL]]>UIoptions!$S$16,PCdb[[#This Row],[FL]]<UIoptions!$T$16),1,0)) -> 1 | BJ40: =IF(OR(UIoptions!$Q$18=PCdb[[#This Row],[THRU_SCREW]],UIoptions!$Q$18="NA"),1,0) -> 1 | BK40: =IF(OR(UIoptions!$P$19=PCdb[[#This Row],[THREAD_SZ]],UIoptions!$P$19="NA"),1,0) -> 1 | BL40: =IF(UIoptions!$N$75=1,1,IF(AND(PCdb[[#This Row],[THREAD_L]]>UIoptions!$S$17,PCdb[[#This Row],[THREAD_L]]<UIoptions!$T$17),1,0)) -> 1 | BM40: =IF(SUM(PCdb[[#This Row],[BDhit]:[THREAD_Lhit]])=11,1,0) -> 0 | BN40: =CONCATENATE(PCdb[[#This Row],[BCD]],PCdb[[#This Row],[PD]],PCdb[[#This Row],[PL (MAX)]],PCdb[[#This Row],[SD]],PCdb[[#This Row],[SL]],PCdb[[#This Row],[SQ_SZ]],PCdb[[#This Row],[ROUND_D]],PCdb[[#This Row],[FL]],PCdb[[#This Row],[THRU_SCREW]],PCdb[[#This Row],[THREAD_SZ]],PCdb[[#This Row],[THREAD_L]],PCdb[[#This Row],[NBR_HOLES]]) -> 6340492054NA7M4NANA4 | BO40: =SUM(PCdb[[#This Row],[BDhit]:[THREAD_Lhit]]) -> 9
A41: 38 | B41: 95 | C41: 50 | D41: 4 | E41: 14 | F41: 30 | G41: 82 | H41: NA | I41: 8 | J41: M6 | K41: NA | L41: NA | M41: 4 | N41: M6 | V41: 45.2 | W41: 30 | X41: 0 | Y41: Y | Z41: B | AA41: 45 | AB41: 90 | BB41: =IF(AND(PCdb[[#This Row],[BCD]]>UIoptions!$S$10,PCdb[[#This Row],[BCD]]<UIoptions!$T$10),1,0) -> 0 | BC41: =IF(AND(PCdb[[#This Row],[PD]]>UIoptions!$S$11,PCdb[[#This Row],[PD]]<UIoptions!$T$11),1,0) -> 0 | BD41: =IF(AND(UIoptions!$P$14<=PCdb[[#This Row],[PL (MAX)]],UIoptions!$P$14>UIoptions!$S$14),1,0) -> 1 | BE41: =IF(AND(PCdb[[#This Row],[SD]]>UIoptions!$S$12,PCdb[[#This Row],[SD]]<UIoptions!$T$12),1,0) -> 0 | BF41: =IF(AND(PCdb[[#This Row],[SL]]>UIoptions!$S$13,PCdb[[#This Row],[SL]]<UIoptions!$T$13),1,0) -> 0 | BG41: =IF(UIoptions!$N$35=1,IF(AND(PCdb[[#This Row],[SQ_SZ]]>UIoptions!$S$15,PCdb[[#This Row],[SQ_SZ]]<UIoptions!$T$15),1,0),1) -> 0 | BH41: =IF(UIoptions!$N$35=2,IF(AND(PCdb[[#This Row],[ROUND_D]]>UIoptions!$S$15,PCdb[[#This Row],[ROUND_D]]<UIoptions!$T$15),1,0),1) -> 1 | BI41: =IF(UIoptions!$N$75<>1,1,IF(AND(PCdb[[#This Row],[FL]]>UIoptions!$S$16,PCdb[[#This Row],[FL]]<UIoptions!$T$16),1,0)) -> 0 | BJ41: =IF(OR(UIoptions!$Q$18=PCdb[[#This Row],[THRU_SCREW]],UIoptions!$Q$18="NA"),1,0) -> 0 | BK41: =IF(OR(UIoptions!$P$19=PCdb[[#This Row],[THREAD_SZ]],UIoptions!$P$19="NA"),1,0) -> 1 | BL41: =IF(UIoptions!$N$75=1,1,IF(AND(PCdb[[#This Row],[THREAD_L]]>UIoptions!$S$17,PCdb[[#This Row],[THREAD_L]]<UIoptions!$T$17),1,0)) -> 1 | BM41: =IF(SUM(PCdb[[#This Row],[BDhit]:[THREAD_Lhit]])=11,1,0) -> 0 | BN41: =CONCATENATE(PCdb[[#This Row],[BCD]],PCdb[[#This Row],[PD]],PCdb[[#This Row],[PL (MAX)]],PCdb[[#This Row],[SD]],PCdb[[#This Row],[SL]],PCdb[[#This Row],[SQ_SZ]],PCdb[[#This Row],[ROUND_D]],PCdb[[#This Row],[FL]],PCdb[[#This Row],[THRU_SCREW]],PCdb[[#This Row],[THREAD_SZ]],PCdb[[#This Row],[THREAD_L]],PCdb[[#This Row],[NBR_HOLES]]) -> 95504143082NA8M6NANA4 | BO41: =SUM(PCdb[[#This Row],[BDhit]:[THREAD_Lhit]]) -> 4
A42: 39 | B42: 66.8 | C42: 38.1 | D42: 4 | E42: 6.35 | F42: 20.6 | G42: 57.2 | H42: NA | I42: 5.1 | J42: M4 | K42: NA | L42: NA | M42: 4 | N42: M4 | BB42: =IF(AND(PCdb[[#This Row],[BCD]]>UIoptions!$S$10,PCdb[[#This Row],[BCD]]<UIoptions!$T$10),1,0) -> 0 | BC42: =IF(AND(PCdb[[#This Row],[PD]]>UIoptions!$S$11,PCdb[[#This Row],[PD]]<UIoptions!$T$11),1,0) -> 0 | BD42: =IF(AND(UIoptions!$P$14<=PCdb[[#This Row],[PL (MAX)]],UIoptions!$P$14>UIoptions!$S$14),1,0) -> 1 | BE42: =IF(AND(PCdb[[#This Row],[SD]]>UIoptions!$S$12,PCdb[[#This Row],[SD]]<UIoptions!$T$12),1,0) -> 0 | BF42: =IF(AND(PCdb[[#This Row],[SL]]>UIoptions!$S$13,PCdb[[#This Row],[SL]]<UIoptions!$T$13),1,0) -> 0 | BG42: =IF(UIoptions!$N$35=1,IF(AND(PCdb[[#This Row],[SQ_SZ]]>UIoptions!$S$15,PCdb[[#This Row],[SQ_SZ]]<UIoptions!$T$15),1,0),1) -> 0 | BH42: =IF(UIoptions!$N$35=2,IF(AND(PCdb[[#This Row],[ROUND_D]]>UIoptions!$S$15,PCdb[[#This Row],[ROUND_D]]<UIoptions!$T$15),1,0),1) -> 1 | BI42: =IF(UIoptions!$N$75<>1,1,IF(AND(PCdb[[#This Row],[FL]]>UIoptions!$S$16,PCdb[[#This Row],[FL]]<UIoptions!$T$16),1,0)) -> 0 | BJ42: =IF(OR(UIoptions!$Q$18=PCdb[[#This Row],[THRU_SCREW]],UIoptions!$Q$18="NA"),1,0) -> 1 | BK42: =IF(OR(UIoptions!$P$19=PCdb[[#This Row],[THREAD_SZ]],UIoptions!$P$19="NA"),1,0) -> 1 | BL42: =IF(UIoptions!$N$75=1,1,IF(AND(PCdb[[#This Row],[THREAD_L]]>UIoptions!$S$17,PCdb[[#This Row],[THREAD_L]]<UIoptions!$T$17),1,0)) -> 1 | BM42: =IF(SUM(PCdb[[#This Row],[BDhit]:[THREAD_Lhit]])=11,1,0) -> 0 | BN42: =CONCATENATE(PCdb[[#This Row],[BCD]],PCdb[[#This Row],[PD]],PCdb[[#This Row],[PL (MAX)]],PCdb[[#This Row],[SD]],PCdb[[#This Row],[SL]],PCdb[[#This Row],[SQ_SZ]],PCdb[[#This Row],[ROUND_D]],PCdb[[#This Row],[FL]],PCdb[[#This Row],[THRU_SCREW]],PCdb[[#This Row],[THREAD_SZ]],PCdb[[#This Row],[THREAD_L]],PCdb[[#This Row],[NBR_HOLES]]) -> 66,838,146,3520,657,2NA5,1M4NANA4 | BO42: =SUM(PCdb[[#This Row],[BDhit]:[THREAD_Lhit]]) -> 5
A43: 40 | B43: 98.4 | C43: 73.03 | D43: 4 | E43: 12.7 | F43: 37.1 | G43: 86.1 | H43: NA | I43: 10.2 | J43: M6 | K43: NA | L43: NA | M43: 4 | N43: M6 | AC43: 48.7 | AD43: 39 | AE43: NA | AF43: Y | AG43: B | AH43: 45 | AI43: 90 | BB43: =IF(AND(PCdb[[#This Row],[BCD]]>UIoptions!$S$10,PCdb[[#This Row],[BCD]]<UIoptions!$T$10),1,0) -> 0 | BC43: =IF(AND(PCdb[[#This Row],[PD]]>UIoptions!$S$11,PCdb[[#This Row],[PD]]<UIoptions!$T$11),1,0) -> 0 | BD43: =IF(AND(UIoptions!$P$14<=PCdb[[#This Row],[PL (MAX)]],UIoptions!$P$14>UIoptions!$S$14),1,0) -> 1 | BE43: =IF(AND(PCdb[[#This Row],[SD]]>UIoptions!$S$12,PCdb[[#This Row],[SD]]<UIoptions!$T$12),1,0) -> 0 | BF43: =IF(AND(PCdb[[#This Row],[SL]]>UIoptions!$S$13,PCdb[[#This Row],[SL]]<UIoptions!$T$13),1,0) -> 0 | BG43: =IF(UIoptions!$N$35=1,IF(AND(PCdb[[#This Row],[SQ_SZ]]>UIoptions!$S$15,PCdb[[#This Row],[SQ_SZ]]<UIoptions!$T$15),1,0),1) -> 0 | BH43: =IF(UIoptions!$N$35=2,IF(AND(PCdb[[#This Row],[ROUND_D]]>UIoptions!$S$15,PCdb[[#This Row],[ROUND_D]]<UIoptions!$T$15),1,0),1) -> 1 | BI43: =IF(UIoptions!$N$75<>1,1,IF(AND(PCdb[[#This Row],[FL]]>UIoptions!$S$16,PCdb[[#This Row],[FL]]<UIoptions!$T$16),1,0)) -> 0 | BJ43: =IF(OR(UIoptions!$Q$18=PCdb[[#This Row],[THRU_SCREW]],UIoptions!$Q$18="NA"),1,0) -> 0 | BK43: =IF(OR(UIoptions!$P$19=PCdb[[#This Row],[THREAD_SZ]],UIoptions!$P$19="NA"),1,0) -> 1 | BL43: =IF(UIoptions!$N$75=1,1,IF(AND(PCdb[[#This Row],[THREAD_L]]>UIoptions!$S$17,PCdb[[#This Row],[THREAD_L]]<UIoptions!$T$17),1,0)) -> 1 | BM43: =IF(SUM(PCdb[[#This Row],[BDhit]:[THREAD_Lhit]])=11,1,0) -> 0 | BN43: =CONCATENATE(PCdb[[#This Row],[BCD]],PCdb[[#This Row],[PD]],PCdb[[#This Row],[PL (MAX)]],PCdb[[#This Row],[SD]],PCdb[[#This Row],[SL]],PCdb[[#This Row],[SQ_SZ]],PCdb[[#This Row],[ROUND_D]],PCdb[[#This Row],[FL]],PCdb[[#This Row],[THRU_SCREW]],PCdb[[#This Row],[THREAD_SZ]],PCdb[[#This Row],[THREAD_L]],PCdb[[#This Row],[NBR_HOLES]]) -> 98,473,03412,737,186,1NA10,2M6NANA4 | BO43: =SUM(PCdb[[#This Row],[BDhit]:[THREAD_Lhit]]) -> 4
A44: 41 | B44: 66.8 | C44: 38.1 | D44: 4 | E44: 6.35 | F44: 20.5 | G44: 57.4 | H44: NA | I44: 4.6 | J44: M4 | K44: NA | L44: NA | M44: 4 | N44: M4 | BB44: =IF(AND(PCdb[[#This Row],[BCD]]>UIoptions!$S$10,PCdb[[#This Row],[BCD]]<UIoptions!$T$10),1,0) -> 0 | BC44: =IF(AND(PCdb[[#This Row],[PD]]>UIoptions!$S$11,PCdb[[#This Row],[PD]]<UIoptions!$T$11),1,0) -> 0 | BD44: =IF(AND(UIoptions!$P$14<=PCdb[[#This Row],[PL (MAX)]],UIoptions!$P$14>UIoptions!$S$14),1,0) -> 1 | BE44: =IF(AND(PCdb[[#This Row],[SD]]>UIoptions!$S$12,PCdb[[#This Row],[SD]]<UIoptions!$T$12),1,0) -> 0 | BF44: =IF(AND(PCdb[[#This Row],[SL]]>UIoptions!$S$13,PCdb[[#This Row],[SL]]<UIoptions!$T$13),1,0) -> 0 | BG44: =IF(UIoptions!$N$35=1,IF(AND(PCdb[[#This Row],[SQ_SZ]]>UIoptions!$S$15,PCdb[[#This Row],[SQ_SZ]]<UIoptions!$T$15),1,0),1) -> 0 | BH44: =IF(UIoptions!$N$35=2,IF(AND(PCdb[[#This Row],[ROUND_D]]>UIoptions!$S$15,PCdb[[#This Row],[ROUND_D]]<UIoptions!$T$15),1,0),1) -> 1 | BI44: =IF(UIoptions!$N$75<>1,1,IF(AND(PCdb[[#This Row],[FL]]>UIoptions!$S$16,PCdb[[#This Row],[FL]]<UIoptions!$T$16),1,0)) -> 0 | BJ44: =IF(OR(UIoptions!$Q$18=PCdb[[#This Row],[THRU_SCREW]],UIoptions!$Q$18="NA"),1,0) -> 1 | BK44: =IF(OR(UIoptions!$P$19=PCdb[[#This Row],[THREAD_SZ]],UIoptions!$P$19="NA"),1,0) -> 1 | BL44: =IF(UIoptions!$N$75=1,1,IF(AND(PCdb[[#This Row],[THREAD_L]]>UIoptions!$S$17,PCdb[[#This Row],[THREAD_L]]<UIoptions!$T$17),1,0)) -> 1 | BM44: =IF(SUM(PCdb[[#This Row],[BDhit]:[THREAD_Lhit]])=11,1,0) -> 0 | BN44: =CONCATENATE(PCdb[[#This Row],[BCD]],PCdb[[#This Row],[PD]],PCdb[[#This Row],[PL (MAX)]],PCdb[[#This Row],[SD]],PCdb[[#This Row],[SL]],PCdb[[#This Row],[SQ_SZ]],PCdb[[#This Row],[ROUND_D]],PCdb[[#This Row],[FL]],PCdb[[#This Row],[THRU_SCREW]],PCdb[[#This Row],[THREAD_SZ]],PCdb[[#This Row],[THREAD_L]],PCdb[[#This Row],[NBR_HOLES]]) -> 66,838,146,3520,557,4NA4,6M4NANA4 | BO44: =SUM(PCdb[[#This Row],[BDhit]:[THREAD_Lhit]]) -> 5
A45: 42 | B45: 46 | C45: 30 | D45: 4 | E45: 8 | F45: 25 | G45: 40 | H45: NA | I45: 5 | J45: M4 | K45: NA | L45: NA | M45: 4 | N45: M4 | O45: 38.7 | P45: 0 | Q45: 31.5 | R45: Y | S45: A | T45: 45 | U45: 90 | AJ45: 18 | AK45: 0 | AL45: Y | AM45: C | AN45: 45 | AO45: 90 | AP45: 17.5 | AQ45: NA | AR45: Y | AS45: C | AT45: 45 | AU45: 90 | BB45: =IF(AND(PCdb[[#This Row],[BCD]]>UIoptions!$S$10,PCdb[[#This Row],[BCD]]<UIoptions!$T$10),1,0) -> 0 | BC45: =IF(AND(PCdb[[#This Row],[PD]]>UIoptions!$S$11,PCdb[[#This Row],[PD]]<UIoptions!$T$11),1,0) -> 0 | BD45: =IF(AND(UIoptions!$P$14<=PCdb[[#This Row],[PL (MAX)]],UIoptions!$P$14>UIoptions!$S$14),1,0) -> 1 | BE45: =IF(AND(PCdb[[#This Row],[SD]]>UIoptions!$S$12,PCdb[[#This Row],[SD]]<UIoptions!$T$12),1,0) -> 0 | BF45: =IF(AND(PCdb[[#This Row],[SL]]>UIoptions!$S$13,PCdb[[#This Row],[SL]]<UIoptions!$T$13),1,0) -> 0 | BG45: =IF(UIoptions!$N$35=1,IF(AND(PCdb[[#This Row],[SQ_SZ]]>UIoptions!$S$15,PCdb[[#This Row],[SQ_SZ]]<UIoptions!$T$15),1,0),1) -> 0 | BH45: =IF(UIoptions!$N$35=2,IF(AND(PCdb[[#This Row],[ROUND_D]]>UIoptions!$S$15,PCdb[[#This Row],[ROUND_D]]<UIoptions!$T$15),1,0),1) -> 1 | BI45: =IF(UIoptions!$N$75<>1,1,IF(AND(PCdb[[#This Row],[FL]]>UIoptions!$S$16,PCdb[[#This Row],[FL]]<UIoptions!$T$16),1,0)) -> 0 | BJ45: =IF(OR(UIoptions!$Q$18=PCdb[[#This Row],[THRU_SCREW]],UIoptions!$Q$18="NA"),1,0) -> 1 | BK45: =IF(OR(UIoptions!$P$19=PCdb[[#This Row],[THREAD_SZ]],UIoptions!$P$19="NA"),1,0) -> 1 | BL45: =IF(UIoptions!$N$75=1,1,IF(AND(PCdb[[#This Row],[THREAD_L]]>UIoptions!$S$17,PCdb[[#This Row],[THREAD_L]]<UIoptions!$T$17),1,0)) -> 1 | BM45: =IF(SUM(PCdb[[#This Row],[BDhit]:[THREAD_Lhit]])=11,1,0) -> 0 | BN45: =CONCATENATE(PCdb[[#This Row],[BCD]],PCdb[[#This Row],[PD]],PCdb[[#This Row],[PL (MAX)]],PCdb[[#This Row],[SD]],PCdb[[#This Row],[SL]],PCdb[[#This Row],[SQ_SZ]],PCdb[[#This Row],[ROUND_D]],PCdb[[#This Row],[FL]],PCdb[[#This Row],[THRU_SCREW]],PCdb[[#This Row],[THREAD_SZ]],PCdb[[#This Row],[THREAD_L]],PCdb[[#This Row],[NBR_HOLES]]) -> 4630482540NA5M4NANA4 | BO45: =SUM(PCdb[[#This Row],[BDhit]:[THREAD_Lhit]]) -> 5
A46: 43 | B46: 70 | C46: 50 | D46: 4 | E46: 14 | F46: 30 | G46: 60 | H46: NA | I46: 7 | J46: M5 | K46: NA | L46: NA | M46: 4 | N46: M5 | V46: 45.2 | W46: 28 | X46: 0 | Y46: Y | Z46: B | AA46: 45 | AB46: 90 | AC46: 48.7 | AD46: NA | AE46: 55 | AF46: Y | AG46: A | AH46: 45 | AI46: 90 | AP46: 27 | AQ46: 0 | AR46: Y | AS46: C | AT46: 45 | AU46: 90 | AV46: 27 | AW46: 0 | AX46: Y | AY46: C | AZ46: 45 | BA46: 90 | BB46: =IF(AND(PCdb[[#This Row],[BCD]]>UIoptions!$S$10,PCdb[[#This Row],[BCD]]<UIoptions!$T$10),1,0) -> 0 | BC46: =IF(AND(PCdb[[#This Row],[PD]]>UIoptions!$S$11,PCdb[[#This Row],[PD]]<UIoptions!$T$11),1,0) -> 0 | BD46: =IF(AND(UIoptions!$P$14<=PCdb[[#This Row],[PL (MAX)]],UIoptions!$P$14>UIoptions!$S$14),1,0) -> 1 | BE46: =IF(AND(PCdb[[#This Row],[SD]]>UIoptions!$S$12,PCdb[[#This Row],[SD]]<UIoptions!$T$12),1,0) -> 0 | BF46: =IF(AND(PCdb[[#This Row],[SL]]>UIoptions!$S$13,PCdb[[#This Row],[SL]]<UIoptions!$T$13),1,0) -> 0 | BG46: =IF(UIoptions!$N$35=1,IF(AND(PCdb[[#This Row],[SQ_SZ]]>UIoptions!$S$15,PCdb[[#This Row],[SQ_SZ]]<UIoptions!$T$15),1,0),1) -> 0 | BH46: =IF(UIoptions!$N$35=2,IF(AND(PCdb[[#This Row],[ROUND_D]]>UIoptions!$S$15,PCdb[[#This Row],[ROUND_D]]<UIoptions!$T$15),1,0),1) -> 1 | BI46: =IF(UIoptions!$N$75<>1,1,IF(AND(PCdb[[#This Row],[FL]]>UIoptions!$S$16,PCdb[[#This Row],[FL]]<UIoptions!$T$16),1,0)) -> 1 | BJ46: =IF(OR(UIoptions!$Q$18=PCdb[[#This Row],[THRU_SCREW]],UIoptions!$Q$18="NA"),1,0) -> 0 | BK46: =IF(OR(UIoptions!$P$19=PCdb[[#This Row],[THREAD_SZ]],UIoptions!$P$19="NA"),1,0) -> 1 | BL46: =IF(UIoptions!$N$75=1,1,IF(AND(PCdb[[#This Row],[THREAD_L]]>UIoptions!$S$17,PCdb[[#This Row],[THREAD_L]]<UIoptions!$T$17),1,0)) -> 1 | BM46: =IF(SUM(PCdb[[#This Row],[BDhit]:[THREAD_Lhit]])=11,1,0) -> 0 | BN46: =CONCATENATE(PCdb[[#This Row],[BCD]],PCdb[[#This Row],[PD]],PCdb[[#This Row],[PL (MAX)]],PCdb[[#This Row],[SD]],PCdb[[#This Row],[SL]],PCdb[[#This Row],[SQ_SZ]],PCdb[[#This Row],[ROUND_D]],PCdb[[#This Row],[FL]],PCdb[[#This Row],[THRU_SCREW]],PCdb[[#This Row],[THREAD_SZ]],PCdb[[#This Row],[THREAD_L]],PCdb[[#This Row],[NBR_HOLES]]) -> 70504143060NA7M5NANA4 | BO46: =SUM(PCdb[[#This Row],[BDhit]:[THREAD_Lhit]]) -> 5
A47: 44 | B47: 75 | C47: 60 | D47: 4 | E47: 11 | F47: 23 | G47: 70 | H47: NA | I47: 9 | J47: M5 | K47: NA | L47: NA | M47: 4 | N47: M5 | O47: NA | P47: NA | Q47: NA | R47: NA | S47: NA | T47: NA | U47: NA | V47: 45.2 | W47: 32 | X47: NA | Y47: Y | Z47: B | AA47: 45 | AB47: 90 | AJ47: NA | AK47: NA | AL47: NA | AM47: NA | AN47: NA | AO47: NA | AP47: 32 | AQ47: NA | AR47: Y | AS47: D | AT47: 45 | AU47: 90 | AV47: 32 | AW47: 0 | AX47: Y | AY47: C | AZ47: 45 | BA47: 90 | BB47: =IF(AND(PCdb[[#This Row],[BCD]]>UIoptions!$S$10,PCdb[[#This Row],[BCD]]<UIoptions!$T$10),1,0) -> 0 | BC47: =IF(AND(PCdb[[#This Row],[PD]]>UIoptions!$S$11,PCdb[[#This Row],[PD]]<UIoptions!$T$11),1,0) -> 0 | BD47: =IF(AND(UIoptions!$P$14<=PCdb[[#This Row],[PL (MAX)]],UIoptions!$P$14>UIoptions!$S$14),1,0) -> 1 | BE47: =IF(AND(PCdb[[#This Row],[SD]]>UIoptions!$S$12,PCdb[[#This Row],[SD]]<UIoptions!$T$12),1,0) -> 0 | BF47: =IF(AND(PCdb[[#This Row],[SL]]>UIoptions!$S$13,PCdb[[#This Row],[SL]]<UIoptions!$T$13),1,0) -> 0 | BG47: =IF(UIoptions!$N$35=1,IF(AND(PCdb[[#This Row],[SQ_SZ]]>UIoptions!$S$15,PCdb[[#This Row],[SQ_SZ]]<UIoptions!$T$15),1,0),1) -> 0 | BH47: =IF(UIoptions!$N$35=2,IF(AND(PCdb[[#This Row],[ROUND_D]]>UIoptions!$S$15,PCdb[[#This Row],[ROUND_D]]<UIoptions!$T$15),1,0),1) -> 1 | BI47: =IF(UIoptions!$N$75<>1,1,IF(AND(PCdb[[#This Row],[FL]]>UIoptions!$S$16,PCdb[[#This Row],[FL]]<UIoptions!$T$16),1,0)) -> 0 | BJ47: =IF(OR(UIoptions!$Q$18=PCdb[[#This Row],[THRU_SCREW]],UIoptions!$Q$18="NA"),1,0) -> 0 | BK47: =IF(OR(UIoptions!$P$19=PCdb[[#This Row],[THREAD_SZ]],UIoptions!$P$19="NA"),1,0) -> 1 | BL47: =IF(UIoptions!$N$75=1,1,IF(AND(PCdb[[#This Row],[THREAD_L]]>UIoptions!$S$17,PCdb[[#This Row],[THREAD_L]]<UIoptions!$T$17),1,0)) -> 1 | BM47: =IF(SUM(PCdb[[#This Row],[BDhit]:[THREAD_Lhit]])=11,1,0) -> 0 | BN47: =CONCATENATE(PCdb[[#This Row],[BCD]],PCdb[[#This Row],[PD]],PCdb[[#This Row],[PL (MAX)]],PCdb[[#This Row],[SD]],PCdb[[#This Row],[SL]],PCdb[[#This Row],[SQ_SZ]],PCdb[[#This Row],[ROUND_D]],PCdb[[#This Row],[FL]],PCdb[[#This Row],[THRU_SCREW]],PCdb[[#This Row],[THREAD_SZ]],PCdb[[#This Row],[THREAD_L]],PCdb[[#This Row],[NBR_HOLES]]) -> 75604112370NA9M5NANA4 | BO47: =SUM(PCdb[[#This Row],[BDhit]:[THREAD_Lhit]]) -> 4
A48: 45 | B48: 45 | C48: 30 | D48: 4 | E48: 8 | F48: 25 | G48: 38 | H48: NA | I48: 6 | J48: M3 | K48: NA | L48: NA | M48: 4 | N48: M3 | O48: 38.7 | P48: 2 | Q48: 31.5 | R48: Y | S48: A | T48: 45 | U48: 90 | AJ48: 16.5 | AK48: NA | AL48: Y | AM48: C | AN48: 45 | AO48: 90 | BB48: =IF(AND(PCdb[[#This Row],[BCD]]>UIoptions!$S$10,PCdb[[#This Row],[BCD]]<UIoptions!$T$10),1,0) -> 0 | BC48: =IF(AND(PCdb[[#This Row],[PD]]>UIoptions!$S$11,PCdb[[#This Row],[PD]]<UIoptions!$T$11),1,0) -> 0 | BD48: =IF(AND(UIoptions!$P$14<=PCdb[[#This Row],[PL (MAX)]],UIoptions!$P$14>UIoptions!$S$14),1,0) -> 1 | BE48: =IF(AND(PCdb[[#This Row],[SD]]>UIoptions!$S$12,PCdb[[#This Row],[SD]]<UIoptions!$T$12),1,0) -> 0 | BF48: =IF(AND(PCdb[[#This Row],[SL]]>UIoptions!$S$13,PCdb[[#This Row],[SL]]<UIoptions!$T$13),1,0) -> 0 | BG48: =IF(UIoptions!$N$35=1,IF(AND(PCdb[[#This Row],[SQ_SZ]]>UIoptions!$S$15,PCdb[[#This Row],[SQ_SZ]]<UIoptions!$T$15),1,0),1) -> 0 | BH48: =IF(UIoptions!$N$35=2,IF(AND(PCdb[[#This Row],[ROUND_D]]>UIoptions!$S$15,PCdb[[#This Row],[ROUND_D]]<UIoptions!$T$15),1,0),1) -> 1 | BI48: =IF(UIoptions!$N$75<>1,1,IF(AND(PCdb[[#This Row],[FL]]>UIoptions!$S$16,PCdb[[#This Row],[FL]]<UIoptions!$T$16),1,0)) -> 0 | BJ48: =IF(OR(UIoptions!$Q$18=PCdb[[#This Row],[THRU_SCREW]],UIoptions!$Q$18="NA"),1,0) -> 0 | BK48: =IF(OR(UIoptions!$P$19=PCdb[[#This Row],[THREAD_SZ]],UIoptions!$P$19="NA"),1,0) -> 1 | BL48: =IF(UIoptions!$N$75=1,1,IF(AND(PCdb[[#This Row],[THREAD_L]]>UIoptions!$S$17,PCdb[[#This Row],[THREAD_L]]<UIoptions!$T$17),1,0)) -> 1 | BM48: =IF(SUM(PCdb[[#This Row],[BDhit]:[THREAD_Lhit]])=11,1,0) -> 0 | BN48: =CONCATENATE(PCdb[[#This Row],[BCD]],PCdb[[#This Row],[PD]],PCdb[[#This Row],[PL (MAX)]],PCdb[[#This Row],[SD]],PCdb[[#This Row],[SL]],PCdb[[#This Row],[SQ_SZ]],PCdb[[#This Row],[ROUND_D]],PCdb[[#This Row],[FL]],PCdb[[#This Row],[THRU_SCREW]],PCdb[[#This Row],[THREAD_SZ]],PCdb[[#This Row],[THREAD_L]],PCdb[[#This Row],[NBR_HOLES]]) -> 4530482538NA6M3NANA4 | BO48: =SUM(PCdb[[#This Row],[BDhit]:[THREAD_Lhit]]) -> 4
A49: 46 | B49: 70 | C49: 50 | D49: 4 | E49: 11 | F49: 30 | G49: 60 | H49: NA | I49: 6.5 | J49: M4 | K49: NA | L49: NA | M49: 4 | N49: M4 | O49: 38.7 | P49: 27 | Q49: 0 | R49: Y | S49: B | T49: 45 | U49: 90 | AP49: 27 | AQ49: NA | AR49: Y | AS49: C | AT49: 45 | AU49: 90 | BB49: =IF(AND(PCdb[[#This Row],[BCD]]>UIoptions!$S$10,PCdb[[#This Row],[BCD]]<UIoptions!$T$10),1,0) -> 0 | BC49: =IF(AND(PCdb[[#This Row],[PD]]>UIoptions!$S$11,PCdb[[#This Row],[PD]]<UIoptions!$T$11),1,0) -> 0 | BD49: =IF(AND(UIoptions!$P$14<=PCdb[[#This Row],[PL (MAX)]],UIoptions!$P$14>UIoptions!$S$14),1,0) -> 1 | BE49: =IF(AND(PCdb[[#This Row],[SD]]>UIoptions!$S$12,PCdb[[#This Row],[SD]]<UIoptions!$T$12),1,0) -> 0 | BF49: =IF(AND(PCdb[[#This Row],[SL]]>UIoptions!$S$13,PCdb[[#This Row],[SL]]<UIoptions!$T$13),1,0) -> 0 | BG49: =IF(UIoptions!$N$35=1,IF(AND(PCdb[[#This Row],[SQ_SZ]]>UIoptions!$S$15,PCdb[[#This Row],[SQ_SZ]]<UIoptions!$T$15),1,0),1) -> 0 | BH49: =IF(UIoptions!$N$35=2,IF(AND(PCdb[[#This Row],[ROUND_D]]>UIoptions!$S$15,PCdb[[#This Row],[ROUND_D]]<UIoptions!$T$15),1,0),1) -> 1 | BI49: =IF(UIoptions!$N$75<>1,1,IF(AND(PCdb[[#This Row],[FL]]>UIoptions!$S$16,PCdb[[#This Row],[FL]]<UIoptions!$T$16),1,0)) -> 0 | BJ49: =IF(OR(UIoptions!$Q$18=PCdb[[#This Row],[THRU_SCREW]],UIoptions!$Q$18="NA"),1,0) -> 1 | BK49: =IF(OR(UIoptions!$P$19=PCdb[[#This Row],[THREAD_SZ]],UIoptions!$P$19="NA"),1,0) -> 1 | BL49: =IF(UIoptions!$N$75=1,1,IF(AND(PCdb[[#This Row],[THREAD_L]]>UIoptions!$S$17,PCdb[[#This Row],[THREAD_L]]<UIoptions!$T$17),1,0)) -> 1 | BM49: =IF(SUM(PCdb[[#This Row],[BDhit]:[THREAD_Lhit]])=11,1,0) -> 0 | BN49: =CONCATENATE(PCdb[[#This Row],[BCD]],PCdb[[#This Row],[PD]],PCdb[[#This Row],[PL (MAX)]],PCdb[[#This Row],[SD]],PCdb[[#This Row],[SL]],PCdb[[#This Row],[SQ_SZ]],PCdb[[#This Row],[ROUND_D]],PCdb[[#This Row],[FL]],PCdb[[#This Row],[THRU_SCREW]],PCdb[[#This Row],[THREAD_SZ]],PCdb[[#This Row],[THREAD_L]],PCdb[[#This Row],[NBR_HOLES]]) -> 70504113060NA6,5M4NANA4 | BO49: =SUM(PCdb[[#This Row],[BDhit]:[THREAD_Lhit]]) -> 5
A50: 47 | B50: 70 | C50: 50 | D50: 4 | E50: 14 | F50: 30 | G50: 60 | H50: NA | I50: 6.5 | J50: M4 | K50: NA | L50: NA | M50: 4 | N50: M4 | V50: 45.2 | W50: 27 | X50: NA | Y50: Y | Z50: B | AA50: 45 | AB50: 90 | AC50: 48.7 | AD50: 2.5 | AE50: 50 | AF50: Y | AG50: A | AH50: 45 | AI50: 90 | AJ50: 27 | AK50: NA | AL50: Y | AM50: D | AN50: 45 | AO50: 90 | AP50: 27 | AQ50: NA | AR50: Y | AS50: C | AT50: 45 | AU50: 90 | AV50: 28 | AW50: 0 | AX50: Y | AY50: C | AZ50: 45 | BA50: 90 | BB50: =IF(AND(PCdb[[#This Row],[BCD]]>UIoptions!$S$10,PCdb[[#This Row],[BCD]]<UIoptions!$T$10),1,0) -> 0 | BC50: =IF(AND(PCdb[[#This Row],[PD]]>UIoptions!$S$11,PCdb[[#This Row],[PD]]<UIoptions!$T$11),1,0) -> 0 | BD50: =IF(AND(UIoptions!$P$14<=PCdb[[#This Row],[PL (MAX)]],UIoptions!$P$14>UIoptions!$S$14),1,0) -> 1 | BE50: =IF(AND(PCdb[[#This Row],[SD]]>UIoptions!$S$12,PCdb[[#This Row],[SD]]<UIoptions!$T$12),1,0) -> 0 | BF50: =IF(AND(PCdb[[#This Row],[SL]]>UIoptions!$S$13,PCdb[[#This Row],[SL]]<UIoptions!$T$13),1,0) -> 0 | BG50: =IF(UIoptions!$N$35=1,IF(AND(PCdb[[#This Row],[SQ_SZ]]>UIoptions!$S$15,PCdb[[#This Row],[SQ_SZ]]<UIoptions!$T$15),1,0),1) -> 0 | BH50: =IF(UIoptions!$N$35=2,IF(AND(PCdb[[#This Row],[ROUND_D]]>UIoptions!$S$15,PCdb[[#This Row],[ROUND_D]]<UIoptions!$T$15),1,0),1) -> 1 | BI50: =IF(UIoptions!$N$75<>1,1,IF(AND(PCdb[[#This Row],[FL]]>UIoptions!$S$16,PCdb[[#This Row],[FL]]<UIoptions!$T$16),1,0)) -> 0 | BJ50: =IF(OR(UIoptions!$Q$18=PCdb[[#This Row],[THRU_SCREW]],UIoptions!$Q$18="NA"),1,0) -> 1 | BK50: =IF(OR(UIoptions!$P$19=PCdb[[#This Row],[THREAD_SZ]],UIoptions!$P$19="NA"),1,0) -> 1 | BL50: =IF(UIoptions!$N$75=1,1,IF(AND(PCdb[[#This Row],[THREAD_L]]>UIoptions!$S$17,PCdb[[#This Row],[THREAD_L]]<UIoptions!$T$17),1,0)) -> 1 | BM50: =IF(SUM(PCdb[[#This Row],[BDhit]:[THREAD_Lhit]])=11,1,0) -> 0 | BN50: =CONCATENATE(PCdb[[#This Row],[BCD]],PCdb[[#This Row],[PD]],PCdb[[#This Row],[PL (MAX)]],PCdb[[#This Row],[SD]],PCdb[[#This Row],[SL]],PCdb[[#This Row],[SQ_SZ]],PCdb[[#This Row],[ROUND_D]],PCdb[[#This Row],[FL]],PCdb[[#This Row],[THRU_SCREW]],PCdb[[#This Row],[THREAD_SZ]],PCdb[[#This Row],[THREAD_L]],PCdb[[#This Row],[NBR_HOLES]]) -> 70504143060NA6,5M4NANA4 | BO50: =SUM(PCdb[[#This Row],[BDhit]:[THREAD_Lhit]]) -> 5
A51: 48 | B51: 100 | C51: 80 | D51: 4 | E51: 16 | F51: 40.1 | G51: 88.8 | H51: NA | I51: 9.9 | J51: M6 | K51: NA | L51: NA | M51: 4 | N51: M6 | BB51: =IF(AND(PCdb[[#This Row],[BCD]]>UIoptions!$S$10,PCdb[[#This Row],[BCD]]<UIoptions!$T$10),1,0) -> 0 | BC51: =IF(AND(PCdb[[#This Row],[PD]]>UIoptions!$S$11,PCdb[[#This Row],[PD]]<UIoptions!$T$11),1,0) -> 0 | BD51: =IF(AND(UIoptions!$P$14<=PCdb[[#This Row],[PL (MAX)]],UIoptions!$P$14>UIoptions!$S$14),1,0) -> 1 | BE51: =IF(AND(PCdb[[#This Row],[SD]]>UIoptions!$S$12,PCdb[[#This Row],[SD]]<UIoptions!$T$12),1,0) -> 0 | BF51: =IF(AND(PCdb[[#This Row],[SL]]>UIoptions!$S$13,PCdb[[#This Row],[SL]]<UIoptions!$T$13),1,0) -> 0 | BG51: =IF(UIoptions!$N$35=1,IF(AND(PCdb[[#This Row],[SQ_SZ]]>UIoptions!$S$15,PCdb[[#This Row],[SQ_SZ]]<UIoptions!$T$15),1,0),1) -> 0 | BH51: =IF(UIoptions!$N$35=2,IF(AND(PCdb[[#This Row],[ROUND_D]]>UIoptions!$S$15,PCdb[[#This Row],[ROUND_D]]<UIoptions!$T$15),1,0),1) -> 1 | BI51: =IF(UIoptions!$N$75<>1,1,IF(AND(PCdb[[#This Row],[FL]]>UIoptions!$S$16,PCdb[[#This Row],[FL]]<UIoptions!$T$16),1,0)) -> 0 | BJ51: =IF(OR(UIoptions!$Q$18=PCdb[[#This Row],[THRU_SCREW]],UIoptions!$Q$18="NA"),1,0) -> 0 | BK51: =IF(OR(UIoptions!$P$19=PCdb[[#This Row],[THREAD_SZ]],UIoptions!$P$19="NA"),1,0) -> 1 | BL51: =IF(UIoptions!$N$75=1,1,IF(AND(PCdb[[#This Row],[THREAD_L]]>UIoptions!$S$17,PCdb[[#This Row],[THREAD_L]]<UIoptions!$T$17),1,0)) -> 1 | BM51: =IF(SUM(PCdb[[#This Row],[BDhit]:[THREAD_Lhit]])=11,1,0) -> 0 | BN51: =CONCATENATE(PCdb[[#This Row],[BCD]],PCdb[[#This Row],[PD]],PCdb[[#This Row],[PL (MAX)]],PCdb[[#This Row],[SD]],PCdb[[#This Row],[SL]],PCdb[[#This Row],[SQ_SZ]],PCdb[[#This Row],[ROUND_D]],PCdb[[#This Row],[FL]],PCdb[[#This Row],[THRU_SCREW]],PCdb[[#This Row],[THREAD_SZ]],PCdb[[#This Row],[THREAD_L]],PCdb[[#This Row],[NBR_HOLES]]) -> 1008041640,188,8NA9,9M6NANA4 | BO51: =SUM(PCdb[[#This Row],[BDhit]:[THREAD_Lhit]]) -> 4
A52: 49 | B52: 80 | C52: 50 | D52: 4 | E52: 8 | F52: 30 | G52: 66 | H52: NA | I52: 10.2 | J52: M4 | K52: NA | L52: NA | M52: 4 | N52: M4 | BB52: =IF(AND(PCdb[[#This Row],[BCD]]>UIoptions!$S$10,PCdb[[#This Row],[BCD]]<UIoptions!$T$10),1,0) -> 0 | BC52: =IF(AND(PCdb[[#This Row],[PD]]>UIoptions!$S$11,PCdb[[#This Row],[PD]]<UIoptions!$T$11),1,0) -> 0 | BD52: =IF(AND(UIoptions!$P$14<=PCdb[[#This Row],[PL (MAX)]],UIoptions!$P$14>UIoptions!$S$14),1,0) -> 1 | BE52: =IF(AND(PCdb[[#This Row],[SD]]>UIoptions!$S$12,PCdb[[#This Row],[SD]]<UIoptions!$T$12),1,0) -> 0 | BF52: =IF(AND(PCdb[[#This Row],[SL]]>UIoptions!$S$13,PCdb[[#This Row],[SL]]<UIoptions!$T$13),1,0) -> 0 | BG52: =IF(UIoptions!$N$35=1,IF(AND(PCdb[[#This Row],[SQ_SZ]]>UIoptions!$S$15,PCdb[[#This Row],[SQ_SZ]]<UIoptions!$T$15),1,0),1) -> 0 | BH52: =IF(UIoptions!$N$35=2,IF(AND(PCdb[[#This Row],[ROUND_D]]>UIoptions!$S$15,PCdb[[#This Row],[ROUND_D]]<UIoptions!$T$15),1,0),1) -> 1 | BI52: =IF(UIoptions!$N$75<>1,1,IF(AND(PCdb[[#This Row],[FL]]>UIoptions!$S$16,PCdb[[#This Row],[FL]]<UIoptions!$T$16),1,0)) -> 0 | BJ52: =IF(OR(UIoptions!$Q$18=PCdb[[#This Row],[THRU_SCREW]],UIoptions!$Q$18="NA"),1,0) -> 1 | BK52: =IF(OR(UIoptions!$P$19=PCdb[[#This Row],[THREAD_SZ]],UIoptions!$P$19="NA"),1,0) -> 1 | BL52: =IF(UIoptions!$N$75=1,1,IF(AND(PCdb[[#This Row],[THREAD_L]]>UIoptions!$S$17,PCdb[[#This Row],[THREAD_L]]<UIoptions!$T$17),1,0)) -> 1 | BM52: =IF(SUM(PCdb[[#This Row],[BDhit]:[THREAD_Lhit]])=11,1,0) -> 0 | BN52: =CONCATENATE(PCdb[[#This Row],[BCD]],PCdb[[#This Row],[PD]],PCdb[[#This Row],[PL (MAX)]],PCdb[[#This Row],[SD]],PCdb[[#This Row],[SL]],PCdb[[#This Row],[SQ_SZ]],PCdb[[#This Row],[ROUND_D]],PCdb[[#This Row],[FL]],PCdb[[#This Row],[THRU_SCREW]],PCdb[[#This Row],[THREAD_SZ]],PCdb[[#This Row],[THREAD_L]],PCdb[[#This Row],[NBR_HOLES]]) -> 8050483066NA10,2M4NANA4 | BO52: =SUM(PCdb[[#This Row],[BDhit]:[THREAD_Lhit]]) -> 5
A53: 50 | B53: 75 | C53: 60 | D53: 4 | E53: 11 | F53: 23 | G53: 72 | H53: NA | I53: 11.2 | J53: M5 | K53: NA | L53: NA | M53: 4 | N53: M5 | BB53: =IF(AND(PCdb[[#This Row],[BCD]]>UIoptions!$S$10,PCdb[[#This Row],[BCD]]<UIoptions!$T$10),1,0) -> 0 | BC53: =IF(AND(PCdb[[#This Row],[PD]]>UIoptions!$S$11,PCdb[[#This Row],[PD]]<UIoptions!$T$11),1,0) -> 0 | BD53: =IF(AND(UIoptions!$P$14<=PCdb[[#This Row],[PL (MAX)]],UIoptions!$P$14>UIoptions!$S$14),1,0) -> 1 | BE53: =IF(AND(PCdb[[#This Row],[SD]]>UIoptions!$S$12,PCdb[[#This Row],[SD]]<UIoptions!$T$12),1,0) -> 0 | BF53: =IF(AND(PCdb[[#This Row],[SL]]>UIoptions!$S$13,PCdb[[#This Row],[SL]]<UIoptions!$T$13),1,0) -> 0 | BG53: =IF(UIoptions!$N$35=1,IF(AND(PCdb[[#This Row],[SQ_SZ]]>UIoptions!$S$15,PCdb[[#This Row],[SQ_SZ]]<UIoptions!$T$15),1,0),1) -> 0 | BH53: =IF(UIoptions!$N$35=2,IF(AND(PCdb[[#This Row],[ROUND_D]]>UIoptions!$S$15,PCdb[[#This Row],[ROUND_D]]<UIoptions!$T$15),1,0),1) -> 1 | BI53: =IF(UIoptions!$N$75<>1,1,IF(AND(PCdb[[#This Row],[FL]]>UIoptions!$S$16,PCdb[[#This Row],[FL]]<UIoptions!$T$16),1,0)) -> 0 | BJ53: =IF(OR(UIoptions!$Q$18=PCdb[[#This Row],[THRU_SCREW]],UIoptions!$Q$18="NA"),1,0) -> 0 | BK53: =IF(OR(UIoptions!$P$19=PCdb[[#This Row],[THREAD_SZ]],UIoptions!$P$19="NA"),1,0) -> 1 | BL53: =IF(UIoptions!$N$75=1,1,IF(AND(PCdb[[#This Row],[THREAD_L]]>UIoptions!$S$17,PCdb[[#This Row],[THREAD_L]]<UIoptions!$T$17),1,0)) -> 1 | BM53: =IF(SUM(PCdb[[#This Row],[BDhit]:[THREAD_Lhit]])=11,1,0) -> 0 | BN53: =CONCATENATE(PCdb[[#This Row],[BCD]],PCdb[[#This Row],[PD]],PCdb[[#This Row],[PL (MAX)]],PCdb[[#This Row],[SD]],PCdb[[#This Row],[SL]],PCdb[[#This Row],[SQ_SZ]],PCdb[[#This Row],[ROUND_D]],PCdb[[#This Row],[FL]],PCdb[[#This Row],[THRU_SCREW]],PCdb[[#This Row],[THREAD_SZ]],PCdb[[#This Row],[THREAD_L]],PCdb[[#This Row],[NBR_HOLES]]) -> 75604112372NA11,2M5NANA4 | BO53: =SUM(PCdb[[#This Row],[BDhit]:[THREAD_Lhit]]) -> 4
A54: 51 | B54: 98.4 | C54: 73.03 | D54: 4 | E54: 12.7 | F54: 30 | G54: 84.1 | H54: NA | I54: 11.2 | J54: M5 | K54: NA | L54: NA | M54: 4 | N54: M5 | BB54: =IF(AND(PCdb[[#This Row],[BCD]]>UIoptions!$S$10,PCdb[[#This Row],[BCD]]<UIoptions!$T$10),1,0) -> 0 | BC54: =IF(AND(PCdb[[#This Row],[PD]]>UIoptions!$S$11,PCdb[[#This Row],[PD]]<UIoptions!$T$11),1,0) -> 0 | BD54: =IF(AND(UIoptions!$P$14<=PCdb[[#This Row],[PL (MAX)]],UIoptions!$P$14>UIoptions!$S$14),1,0) -> 1 | BE54: =IF(AND(PCdb[[#This Row],[SD]]>UIoptions!$S$12,PCdb[[#This Row],[SD]]<UIoptions!$T$12),1,0) -> 0 | BF54: =IF(AND(PCdb[[#This Row],[SL]]>UIoptions!$S$13,PCdb[[#This Row],[SL]]<UIoptions!$T$13),1,0) -> 0 | BG54: =IF(UIoptions!$N$35=1,IF(AND(PCdb[[#This Row],[SQ_SZ]]>UIoptions!$S$15,PCdb[[#This Row],[SQ_SZ]]<UIoptions!$T$15),1,0),1) -> 0 | BH54: =IF(UIoptions!$N$35=2,IF(AND(PCdb[[#This Row],[ROUND_D]]>UIoptions!$S$15,PCdb[[#This Row],[ROUND_D]]<UIoptions!$T$15),1,0),1) -> 1 | BI54: =IF(UIoptions!$N$75<>1,1,IF(AND(PCdb[[#This Row],[FL]]>UIoptions!$S$16,PCdb[[#This Row],[FL]]<UIoptions!$T$16),1,0)) -> 0 | BJ54: =IF(OR(UIoptions!$Q$18=PCdb[[#This Row],[THRU_SCREW]],UIoptions!$Q$18="NA"),1,0) -> 0 | BK54: =IF(OR(UIoptions!$P$19=PCdb[[#This Row],[THREAD_SZ]],UIoptions!$P$19="NA"),1,0) -> 1 | BL54: =IF(UIoptions!$N$75=1,1,IF(AND(PCdb[[#This Row],[THREAD_L]]>UIoptions!$S$17,PCdb[[#This Row],[THREAD_L]]<UIoptions!$T$17),1,0)) -> 1 | BM54: =IF(SUM(PCdb[[#This Row],[BDhit]:[THREAD_Lhit]])=11,1,0) -> 0 | BN54: =CONCATENATE(PCdb[[#This Row],[BCD]],PCdb[[#This Row],[PD]],PCdb[[#This Row],[PL (MAX)]],PCdb[[#This Row],[SD]],PCdb[[#This Row],[SL]],PCdb[[#This Row],[SQ_SZ]],PCdb[[#This Row],[ROUND_D]],PCdb[[#This Row],[FL]],PCdb[[#This Row],[THRU_SCREW]],PCdb[[#This Row],[THREAD_SZ]],PCdb[[#This Row],[THREAD_L]],PCdb[[#This Row],[NBR_HOLES]]) -> 98,473,03412,73084,1NA11,2M5NANA4 | BO54: =SUM(PCdb[[#This Row],[BDhit]:[THREAD_Lhit]]) -> 4
A55: 52 | B55: 100 | C55: 80 | D55: 4 | E55: 14 | F55: 30 | G55: 89 | H55: NA | I55: 11.2 | J55: M6 | K55: NA | L55: NA | M55: 4 | N55: M6 | BB55: =IF(AND(PCdb[[#This Row],[BCD]]>UIoptions!$S$10,PCdb[[#This Row],[BCD]]<UIoptions!$T$10),1,0) -> 0 | BC55: =IF(AND(PCdb[[#This Row],[PD]]>UIoptions!$S$11,PCdb[[#This Row],[PD]]<UIoptions!$T$11),1,0) -> 0 | BD55: =IF(AND(UIoptions!$P$14<=PCdb[[#This Row],[PL (MAX)]],UIoptions!$P$14>UIoptions!$S$14),1,0) -> 1 | BE55: =IF(AND(PCdb[[#This Row],[SD]]>UIoptions!$S$12,PCdb[[#This Row],[SD]]<UIoptions!$T$12),1,0) -> 0 | BF55: =IF(AND(PCdb[[#This Row],[SL]]>UIoptions!$S$13,PCdb[[#This Row],[SL]]<UIoptions!$T$13),1,0) -> 0 | BG55: =IF(UIoptions!$N$35=1,IF(AND(PCdb[[#This Row],[SQ_SZ]]>UIoptions!$S$15,PCdb[[#This Row],[SQ_SZ]]<UIoptions!$T$15),1,0),1) -> 0 | BH55: =IF(UIoptions!$N$35=2,IF(AND(PCdb[[#This Row],[ROUND_D]]>UIoptions!$S$15,PCdb[[#This Row],[ROUND_D]]<UIoptions!$T$15),1,0),1) -> 1 | BI55: =IF(UIoptions!$N$75<>1,1,IF(AND(PCdb[[#This Row],[FL]]>UIoptions!$S$16,PCdb[[#This Row],[FL]]<UIoptions!$T$16),1,0)) -> 0 | BJ55: =IF(OR(UIoptions!$Q$18=PCdb[[#This Row],[THRU_SCREW]],UIoptions!$Q$18="NA"),1,0) -> 0 | BK55: =IF(OR(UIoptions!$P$19=PCdb[[#This Row],[THREAD_SZ]],UIoptions!$P$19="NA"),1,0) -> 1 | BL55: =IF(UIoptions!$N$75=1,1,IF(AND(PCdb[[#This Row],[THREAD_L]]>UIoptions!$S$17,PCdb[[#This Row],[THREAD_L]]<UIoptions!$T$17),1,0)) -> 1 | BM55: =IF(SUM(PCdb[[#This Row],[BDhit]:[THREAD_Lhit]])=11,1,0) -> 0 | BN55: =CONCATENATE(PCdb[[#This Row],[BCD]],PCdb[[#This Row],[PD]],PCdb[[#This Row],[PL (MAX)]],PCdb[[#This Row],[SD]],PCdb[[#This Row],[SL]],PCdb[[#This Row],[SQ_SZ]],PCdb[[#This Row],[ROUND_D]],PCdb[[#This Row],[FL]],PCdb[[#This Row],[THRU_SCREW]],PCdb[[#This Row],[THREAD_SZ]],PCdb[[#This Row],[THREAD_L]],PCdb[[#This Row],[NBR_HOLES]]) -> 100804143089NA11,2M6NANA4 | BO55: =SUM(PCdb[[#This Row],[BDhit]:[THREAD_Lhit]]) -> 4
A56: 53 | B56: 46.7 | C56: 22.02 | D56: 4 | E56: 6.35 | F56: 24.8 | G56: 40.9 | H56: NA | I56: 6.5 | J56: M3 | K56: NA | L56: NA | M56: 4 | N56: M3 | BB56: =IF(AND(PCdb[[#This Row],[BCD]]>UIoptions!$S$10,PCdb[[#This Row],[BCD]]<UIoptions!$T$10),1,0) -> 0 | BC56: =IF(AND(PCdb[[#This Row],[PD]]>UIoptions!$S$11,PCdb[[#This Row],[PD]]<UIoptions!$T$11),1,0) -> 0 | BD56: =IF(AND(UIoptions!$P$14<=PCdb[[#This Row],[PL (MAX)]],UIoptions!$P$14>UIoptions!$S$14),1,0) -> 1 | BE56: =IF(AND(PCdb[[#This Row],[SD]]>UIoptions!$S$12,PCdb[[#This Row],[SD]]<UIoptions!$T$12),1,0) -> 0 | BF56: =IF(AND(PCdb[[#This Row],[SL]]>UIoptions!$S$13,PCdb[[#This Row],[SL]]<UIoptions!$T$13),1,0) -> 0 | BG56: =IF(UIoptions!$N$35=1,IF(AND(PCdb[[#This Row],[SQ_SZ]]>UIoptions!$S$15,PCdb[[#This Row],[SQ_SZ]]<UIoptions!$T$15),1,0),1) -> 0 | BH56: =IF(UIoptions!$N$35=2,IF(AND(PCdb[[#This Row],[ROUND_D]]>UIoptions!$S$15,PCdb[[#This Row],[ROUND_D]]<UIoptions!$T$15),1,0),1) -> 1 | BI56: =IF(UIoptions!$N$75<>1,1,IF(AND(PCdb[[#This Row],[FL]]>UIoptions!$S$16,PCdb[[#This Row],[FL]]<UIoptions!$T$16),1,0)) -> 0 | BJ56: =IF(OR(UIoptions!$Q$18=PCdb[[#This Row],[THRU_SCREW]],UIoptions!$Q$18="NA"),1,0) -> 0 | BK56: =IF(OR(UIoptions!$P$19=PCdb[[#This Row],[THREAD_SZ]],UIoptions!$P$19="NA"),1,0) -> 1 | BL56: =IF(UIoptions!$N$75=1,1,IF(AND(PCdb[[#This Row],[THREAD_L]]>UIoptions!$S$17,PCdb[[#This Row],[THREAD_L]]<UIoptions!$T$17),1,0)) -> 1 | BM56: =IF(SUM(PCdb[[#This Row],[BDhit]:[THREAD_Lhit]])=11,1,0) -> 0 | BN56: =CONCATENATE(PCdb[[#This Row],[BCD]],PCdb[[#This Row],[PD]],PCdb[[#This Row],[PL (MAX)]],PCdb[[#This Row],[SD]],PCdb[[#This Row],[SL]],PCdb[[#This Row],[SQ_SZ]],PCdb[[#This Row],[ROUND_D]],PCdb[[#This Row],[FL]],PCdb[[#This Row],[THRU_SCREW]],PCdb[[#This Row],[THREAD_SZ]],PCdb[[#This Row],[THREAD_L]],PCdb[[#This Row],[NBR_HOLES]]) -> 46,722,0246,3524,840,9NA6,5M3NANA4 | BO56: =SUM(PCdb[[#This Row],[BDhit]:[THREAD_Lhit]]) -> 4
A57: 54 | B57: 66.7 | C57: 38.1 | D57: 4 | E57: 9.51 | F57: 31.9 | G57: 57.3 | H57: NA | I57: 9.1 | J57: M5 | K57: NA | L57: NA | M57: 4 | N57: M5 | BB57: =IF(AND(PCdb[[#This Row],[BCD]]>UIoptions!$S$10,PCdb[[#This Row],[BCD]]<UIoptions!$T$10),1,0) -> 0 | BC57: =IF(AND(PCdb[[#This Row],[PD]]>UIoptions!$S$11,PCdb[[#This Row],[PD]]<UIoptions!$T$11),1,0) -> 0 | BD57: =IF(AND(UIoptions!$P$14<=PCdb[[#This Row],[PL (MAX)]],UIoptions!$P$14>UIoptions!$S$14),1,0) -> 1 | BE57: =IF(AND(PCdb[[#This Row],[SD]]>UIoptions!$S$12,PCdb[[#This Row],[SD]]<UIoptions!$T$12),1,0) -> 0 | BF57: =IF(AND(PCdb[[#This Row],[SL]]>UIoptions!$S$13,PCdb[[#This Row],[SL]]<UIoptions!$T$13),1,0) -> 0 | BG57: =IF(UIoptions!$N$35=1,IF(AND(PCdb[[#This Row],[SQ_SZ]]>UIoptions!$S$15,PCdb[[#This Row],[SQ_SZ]]<UIoptions!$T$15),1,0),1) -> 0 | BH57: =IF(UIoptions!$N$35=2,IF(AND(PCdb[[#This Row],[ROUND_D]]>UIoptions!$S$15,PCdb[[#This Row],[ROUND_D]]<UIoptions!$T$15),1,0),1) -> 1 | BI57: =IF(UIoptions!$N$75<>1,1,IF(AND(PCdb[[#This Row],[FL]]>UIoptions!$S$16,PCdb[[#This Row],[FL]]<UIoptions!$T$16),1,0)) -> 0 | BJ57: =IF(OR(UIoptions!$Q$18=PCdb[[#This Row],[THRU_SCREW]],UIoptions!$Q$18="NA"),1,0) -> 0 | BK57: =IF(OR(UIoptions!$P$19=PCdb[[#This Row],[THREAD_SZ]],UIoptions!$P$19="NA"),1,0) -> 1 | BL57: =IF(UIoptions!$N$75=1,1,IF(AND(PCdb[[#This Row],[THREAD_L]]>UIoptions!$S$17,PCdb[[#This Row],[THREAD_L]]<UIoptions!$T$17),1,0)) -> 1 | BM57: =IF(SUM(PCdb[[#This Row],[BDhit]:[THREAD_Lhit]])=11,1,0) -> 0 | BN57: =CONCATENATE(PCdb[[#This Row],[BCD]],PCdb[[#This Row],[PD]],PCdb[[#This Row],[PL (MAX)]],PCdb[[#This Row],[SD]],PCdb[[#This Row],[SL]],PCdb[[#This Row],[SQ_SZ]],PCdb[[#This Row],[ROUND_D]],PCdb[[#This Row],[FL]],PCdb[[#This Row],[THRU_SCREW]],PCdb[[#This Row],[THREAD_SZ]],PCdb[[#This Row],[THREAD_L]],PCdb[[#This Row],[NBR_HOLES]]) -> 66,738,149,5131,957,3NA9,1M5NANA4 | BO57: =SUM(PCdb[[#This Row],[BDhit]:[THREAD_Lhit]]) -> 4
A58: 55 | B58: 98.4 | C58: 73.03 | D58: 4 | E58: 12.7 | F58: 30.3 | G58: 84.9 | H58: NA | I58: 7 | J58: M5 | K58: NA | L58: NA | M58: 4 | N58: M5 | AV58: 39 | AW58: NA | AX58: Y | AY58: D | AZ58: 45 | BA58: 90 | BB58: =IF(AND(PCdb[[#This Row],[BCD]]>UIoptions!$S$10,PCdb[[#This Row],[BCD]]<UIoptions!$T$10),1,0) -> 0 | BC58: =IF(AND(PCdb[[#This Row],[PD]]>UIoptions!$S$11,PCdb[[#This Row],[PD]]<UIoptions!$T$11),1,0) -> 0 | BD58: =IF(AND(UIoptions!$P$14<=PCdb[[#This Row],[PL (MAX)]],UIoptions!$P$14>UIoptions!$S$14),1,0) -> 1 | BE58: =IF(AND(PCdb[[#This Row],[SD]]>UIoptions!$S$12,PCdb[[#This Row],[SD]]<UIoptions!$T$12),1,0) -> 0 | BF58: =IF(AND(PCdb[[#This Row],[SL]]>UIoptions!$S$13,PCdb[[#This Row],[SL]]<UIoptions!$T$13),1,0) -> 0 | BG58: =IF(UIoptions!$N$35=1,IF(AND(PCdb[[#This Row],[SQ_SZ]]>UIoptions!$S$15,PCdb[[#This Row],[SQ_SZ]]<UIoptions!$T$15),1,0),1) -> 0 | BH58: =IF(UIoptions!$N$35=2,IF(AND(PCdb[[#This Row],[ROUND_D]]>UIoptions!$S$15,PCdb[[#This Row],[ROUND_D]]<UIoptions!$T$15),1,0),1) -> 1 | BI58: =IF(UIoptions!$N$75<>1,1,IF(AND(PCdb[[#This Row],[FL]]>UIoptions!$S$16,PCdb[[#This Row],[FL]]<UIoptions!$T$16),1,0)) -> 1 | BJ58: =IF(OR(UIoptions!$Q$18=PCdb[[#This Row],[THRU_SCREW]],UIoptions!$Q$18="NA"),1,0) -> 0 | BK58: =IF(OR(UIoptions!$P$19=PCdb[[#This Row],[THREAD_SZ]],UIoptions!$P$19="NA"),1,0) -> 1 | BL58: =IF(UIoptions!$N$75=1,1,IF(AND(PCdb[[#This Row],[THREAD_L]]>UIoptions!$S$17,PCdb[[#This Row],[THREAD_L]]<UIoptions!$T$17),1,0)) -> 1 | BM58: =IF(SUM(PCdb[[#This Row],[BDhit]:[THREAD_Lhit]])=11,1,0) -> 0 | BN58: =CONCATENATE(PCdb[[#This Row],[BCD]],PCdb[[#This Row],[PD]],PCdb[[#This Row],[PL (MAX)]],PCdb[[#This Row],[SD]],PCdb[[#This Row],[SL]],PCdb[[#This Row],[SQ_SZ]],PCdb[[#This Row],[ROUND_D]],PCdb[[#This Row],[FL]],PCdb[[#This Row],[THRU_SCREW]],PCdb[[#This Row],[THREAD_SZ]],PCdb[[#This Row],[THREAD_L]],PCdb[[#This Row],[NBR_HOLES]]) -> 98,473,03412,730,384,9NA7M5NANA4 | BO58: =SUM(PCdb[[#This Row],[BDhit]:[THREAD_Lhit]]) -> 5
A59: 56 | B59: 100 | C59: 80 | D59: 4 | E59: 16 | F59: 40 | G59: 92.4 | H59: NA | I59: 9.9 | J59: M6 | K59: NA | L59: NA | M59: 4 | N59: M6 | AC59: 45.2 | AD59: 42 | AE59: 0 | AF59: Y | AG59: B | AH59: 45 | AI59: 90 | BB59: =IF(AND(PCdb[[#This Row],[BCD]]>UIoptions!$S$10,PCdb[[#This Row],[BCD]]<UIoptions!$T$10),1,0) -> 0 | BC59: =IF(AND(PCdb[[#This Row],[PD]]>UIoptions!$S$11,PCdb[[#This Row],[PD]]<UIoptions!$T$11),1,0) -> 0 | BD59: =IF(AND(UIoptions!$P$14<=PCdb[[#This Row],[PL (MAX)]],UIoptions!$P$14>UIoptions!$S$14),1,0) -> 1 | BE59: =IF(AND(PCdb[[#This Row],[SD]]>UIoptions!$S$12,PCdb[[#This Row],[SD]]<UIoptions!$T$12),1,0) -> 0 | BF59: =IF(AND(PCdb[[#This Row],[SL]]>UIoptions!$S$13,PCdb[[#This Row],[SL]]<UIoptions!$T$13),1,0) -> 0 | BG59: =IF(UIoptions!$N$35=1,IF(AND(PCdb[[#This Row],[SQ_SZ]]>UIoptions!$S$15,PCdb[[#This Row],[SQ_SZ]]<UIoptions!$T$15),1,0),1) -> 0 | BH59: =IF(UIoptions!$N$35=2,IF(AND(PCdb[[#This Row],[ROUND_D]]>UIoptions!$S$15,PCdb[[#This Row],[ROUND_D]]<UIoptions!$T$15),1,0),1) -> 1 | BI59: =IF(UIoptions!$N$75<>1,1,IF(AND(PCdb[[#This Row],[FL]]>UIoptions!$S$16,PCdb[[#This Row],[FL]]<UIoptions!$T$16),1,0)) -> 0 | BJ59: =IF(OR(UIoptions!$Q$18=PCdb[[#This Row],[THRU_SCREW]],UIoptions!$Q$18="NA"),1,0) -> 0 | BK59: =IF(OR(UIoptions!$P$19=PCdb[[#This Row],[THREAD_SZ]],UIoptions!$P$19="NA"),1,0) -> 1 | BL59: =IF(UIoptions!$N$75=1,1,IF(AND(PCdb[[#This Row],[THREAD_L]]>UIoptions!$S$17,PCdb[[#This Row],[THREAD_L]]<UIoptions!$T$17),1,0)) -> 1 | BM59: =IF(SUM(PCdb[[#This Row],[BDhit]:[THREAD_Lhit]])=11,1,0) -> 0 | BN59: =CONCATENATE(PCdb[[#This Row],[BCD]],PCdb[[#This Row],[PD]],PCdb[[#This Row],[PL (MAX)]],PCdb[[#This Row],[SD]],PCdb[[#This Row],[SL]],PCdb[[#This Row],[SQ_SZ]],PCdb[[#This Row],[ROUND_D]],PCdb[[#This Row],[FL]],PCdb[[#This Row],[THRU_SCREW]],PCdb[[#This Row],[THREAD_SZ]],PCdb[[#This Row],[THREAD_L]],PCdb[[#This Row],[NBR_HOLES]]) -> 100804164092,4NA9,9M6NANA4 | BO59: =SUM(PCdb[[#This Row],[BDhit]:[THREAD_Lhit]]) -> 4
A60: 57 | B60: 63 | C60: 40 | D60: 4 | E60: 9 | F60: 19.7 | G60: 55 | H60: NA | I60: 6.5 | J60: M5 | K60: NA | L60: NA | M60: 4 | N60: M5 | V60: 38.7 | W60: NA | X60: NA | Y60: NO | Z60: B | AA60: 45 | AB60: 90 | AJ60: 23 | AK60: 0 | AL60: Y | AM60: D | AN60: 45 | AO60: 90 | AP60: 24 | AQ60: NA | AR60: Y | AS60: C | AT60: 45 | AU60: 90 | BB60: =IF(AND(PCdb[[#This Row],[BCD]]>UIoptions!$S$10,PCdb[[#This Row],[BCD]]<UIoptions!$T$10),1,0) -> 1 | BC60: =IF(AND(PCdb[[#This Row],[PD]]>UIoptions!$S$11,PCdb[[#This Row],[PD]]<UIoptions!$T$11),1,0) -> 1 | BD60: =IF(AND(UIoptions!$P$14<=PCdb[[#This Row],[PL (MAX)]],UIoptions!$P$14>UIoptions!$S$14),1,0) -> 1 | BE60: =IF(AND(PCdb[[#This Row],[SD]]>UIoptions!$S$12,PCdb[[#This Row],[SD]]<UIoptions!$T$12),1,0) -> 0 | BF60: =IF(AND(PCdb[[#This Row],[SL]]>UIoptions!$S$13,PCdb[[#This Row],[SL]]<UIoptions!$T$13),1,0) -> 0 | BG60: =IF(UIoptions!$N$35=1,IF(AND(PCdb[[#This Row],[SQ_SZ]]>UIoptions!$S$15,PCdb[[#This Row],[SQ_SZ]]<UIoptions!$T$15),1,0),1) -> 0 | BH60: =IF(UIoptions!$N$35=2,IF(AND(PCdb[[#This Row],[ROUND_D]]>UIoptions!$S$15,PCdb[[#This Row],[ROUND_D]]<UIoptions!$T$15),1,0),1) -> 1 | BI60: =IF(UIoptions!$N$75<>1,1,IF(AND(PCdb[[#This Row],[FL]]>UIoptions!$S$16,PCdb[[#This Row],[FL]]<UIoptions!$T$16),1,0)) -> 0 | BJ60: =IF(OR(UIoptions!$Q$18=PCdb[[#This Row],[THRU_SCREW]],UIoptions!$Q$18="NA"),1,0) -> 0 | BK60: =IF(OR(UIoptions!$P$19=PCdb[[#This Row],[THREAD_SZ]],UIoptions!$P$19="NA"),1,0) -> 1 | BL60: =IF(UIoptions!$N$75=1,1,IF(AND(PCdb[[#This Row],[THREAD_L]]>UIoptions!$S$17,PCdb[[#This Row],[THREAD_L]]<UIoptions!$T$17),1,0)) -> 1 | BM60: =IF(SUM(PCdb[[#This Row],[BDhit]:[THREAD_Lhit]])=11,1,0) -> 0 | BN60: =CONCATENATE(PCdb[[#This Row],[BCD]],PCdb[[#This Row],[PD]],PCdb[[#This Row],[PL (MAX)]],PCdb[[#This Row],[SD]],PCdb[[#This Row],[SL]],PCdb[[#This Row],[SQ_SZ]],PCdb[[#This Row],[ROUND_D]],PCdb[[#This Row],[FL]],PCdb[[#This Row],[THRU_SCREW]],PCdb[[#This Row],[THREAD_SZ]],PCdb[[#This Row],[THREAD_L]],PCdb[[#This Row],[NBR_HOLES]]) -> 63404919,755NA6.5M5NANA4 | BO60: =SUM(PCdb[[#This Row],[BDhit]:[THREAD_Lhit]]) -> 6
A61: 58 | B61: 75 | C61: 60 | D61: 4 | E61: 11 | F61: 22.7 | G61: 70 | H61: NA | I61: 9 | J61: M5 | K61: NA | L61: NA | M61: 4 | N61: M5 | O61: NA | P61: NA | Q61: NA | R61: NA | S61: NA | T61: NA | U61: NA | AC61: 48.7 | AD61: 32 | AE61: 0 | AF61: Y | AG61: C | AH61: 45 | AI61: 90 | AJ61: NA | AK61: NA | AL61: NA | AM61: NA | AN61: NA | AO61: NA | AP61: 32 | AQ61: 0 | AR61: Y | AS61: D | AT61: 45 | AU61: 90 | AV61: 32 | AW61: NA | AX61: Y | AY61: C | AZ61: 45 | BA61: 90 | BB61: =IF(AND(PCdb[[#This Row],[BCD]]>UIoptions!$S$10,PCdb[[#This Row],[BCD]]<UIoptions!$T$10),1,0) -> 0 | BC61: =IF(AND(PCdb[[#This Row],[PD]]>UIoptions!$S$11,PCdb[[#This Row],[PD]]<UIoptions!$T$11),1,0) -> 0 | BD61: =IF(AND(UIoptions!$P$14<=PCdb[[#This Row],[PL (MAX)]],UIoptions!$P$14>UIoptions!$S$14),1,0) -> 1 | BE61: =IF(AND(PCdb[[#This Row],[SD]]>UIoptions!$S$12,PCdb[[#This Row],[SD]]<UIoptions!$T$12),1,0) -> 0 | BF61: =IF(AND(PCdb[[#This Row],[SL]]>UIoptions!$S$13,PCdb[[#This Row],[SL]]<UIoptions!$T$13),1,0) -> 0 | BG61: =IF(UIoptions!$N$35=1,IF(AND(PCdb[[#This Row],[SQ_SZ]]>UIoptions!$S$15,PCdb[[#This Row],[SQ_SZ]]<UIoptions!$T$15),1,0),1) -> 0 | BH61: =IF(UIoptions!$N$35=2,IF(AND(PCdb[[#This Row],[ROUND_D]]>UIoptions!$S$15,PCdb[[#This Row],[ROUND_D]]<UIoptions!$T$15),1,0),1) -> 1 | BI61: =IF(UIoptions!$N$75<>1,1,IF(AND(PCdb[[#This Row],[FL]]>UIoptions!$S$16,PCdb[[#This Row],[FL]]<UIoptions!$T$16),1,0)) -> 0 | BJ61: =IF(OR(UIoptions!$Q$18=PCdb[[#This Row],[THRU_SCREW]],UIoptions!$Q$18="NA"),1,0) -> 0 | BK61: =IF(OR(UIoptions!$P$19=PCdb[[#This Row],[THREAD_SZ]],UIoptions!$P$19="NA"),1,0) -> 1 | BL61: =IF(UIoptions!$N$75=1,1,IF(AND(PCdb[[#This Row],[THREAD_L]]>UIoptions!$S$17,PCdb[[#This Row],[THREAD_L]]<UIoptions!$T$17),1,0)) -> 1 | BM61: =IF(SUM(PCdb[[#This Row],[BDhit]:[THREAD_Lhit]])=11,1,0) -> 0 | BN61: =CONCATENATE(PCdb[[#This Row],[BCD]],PCdb[[#This Row],[PD]],PCdb[[#This Row],[PL (MAX)]],PCdb[[#This Row],[SD]],PCdb[[#This Row],[SL]],PCdb[[#This Row],[SQ_SZ]],PCdb[[#This Row],[ROUND_D]],PCdb[[#This Row],[FL]],PCdb[[#This Row],[THRU_SCREW]],PCdb[[#This Row],[THREAD_SZ]],PCdb[[#This Row],[THREAD_L]],PCdb[[#This Row],[NBR_HOLES]]) -> 756041122,770NA9M5NANA4 | BO61: =SUM(PCdb[[#This Row],[BDhit]:[THREAD_Lhit]]) -> 4
A62: 59 | B62: 70 | C62: 50 | D62: 4 | E62: 12 | F62: 30 | G62: 60 | H62: NA | I62: 6 | J62: M5 | K62: NA | L62: NA | M62: 4 | N62: M5 | BB62: =IF(AND(PCdb[[#This Row],[BCD]]>UIoptions!$S$10,PCdb[[#This Row],[BCD]]<UIoptions!$T$10),1,0) -> 0 | BC62: =IF(AND(PCdb[[#This Row],[PD]]>UIoptions!$S$11,PCdb[[#This Row],[PD]]<UIoptions!$T$11),1,0) -> 0 | BD62: =IF(AND(UIoptions!$P$14<=PCdb[[#This Row],[PL (MAX)]],UIoptions!$P$14>UIoptions!$S$14),1,0) -> 1 | BE62: =IF(AND(PCdb[[#This Row],[SD]]>UIoptions!$S$12,PCdb[[#This Row],[SD]]<UIoptions!$T$12),1,0) -> 0 | BF62: =IF(AND(PCdb[[#This Row],[SL]]>UIoptions!$S$13,PCdb[[#This Row],[SL]]<UIoptions!$T$13),1,0) -> 0 | BG62: =IF(UIoptions!$N$35=1,IF(AND(PCdb[[#This Row],[SQ_SZ]]>UIoptions!$S$15,PCdb[[#This Row],[SQ_SZ]]<UIoptions!$T$15),1,0),1) -> 0 | BH62: =IF(UIoptions!$N$35=2,IF(AND(PCdb[[#This Row],[ROUND_D]]>UIoptions!$S$15,PCdb[[#This Row],[ROUND_D]]<UIoptions!$T$15),1,0),1) -> 1 | BI62: =IF(UIoptions!$N$75<>1,1,IF(AND(PCdb[[#This Row],[FL]]>UIoptions!$S$16,PCdb[[#This Row],[FL]]<UIoptions!$T$16),1,0)) -> 0 | BJ62: =IF(OR(UIoptions!$Q$18=PCdb[[#This Row],[THRU_SCREW]],UIoptions!$Q$18="NA"),1,0) -> 0 | BK62: =IF(OR(UIoptions!$P$19=PCdb[[#This Row],[THREAD_SZ]],UIoptions!$P$19="NA"),1,0) -> 1 | BL62: =IF(UIoptions!$N$75=1,1,IF(AND(PCdb[[#This Row],[THREAD_L]]>UIoptions!$S$17,PCdb[[#This Row],[THREAD_L]]<UIoptions!$T$17),1,0)) -> 1 | BM62: =IF(SUM(PCdb[[#This Row],[BDhit]:[THREAD_Lhit]])=11,1,0) -> 0 | BN62: =CONCATENATE(PCdb[[#This Row],[BCD]],PCdb[[#This Row],[PD]],PCdb[[#This Row],[PL (MAX)]],PCdb[[#This Row],[SD]],PCdb[[#This Row],[SL]],PCdb[[#This Row],[SQ_SZ]],PCdb[[#This Row],[ROUND_D]],PCdb[[#This Row],[FL]],PCdb[[#This Row],[THRU_SCREW]],PCdb[[#This Row],[THREAD_SZ]],PCdb[[#This Row],[THREAD_L]],PCdb[[#This Row],[NBR_HOLES]]) -> 70504123060NA6M5NANA4 | BO62: =SUM(PCdb[[#This Row],[BDhit]:[THREAD_Lhit]]) -> 4
A63: 60 | B63: 66.7 | C63: 38.1 | D63: 4 | E63: 12.7 | F63: 38.1 | G63: 60 | H63: NA | I63: 6 | J63: M5 | K63: NA | L63: NA | M63: 4 | N63: M5 | BB63: =IF(AND(PCdb[[#This Row],[BCD]]>UIoptions!$S$10,PCdb[[#This Row],[BCD]]<UIoptions!$T$10),1,0) -> 0 | BC63: =IF(AND(PCdb[[#This Row],[PD]]>UIoptions!$S$11,PCdb[[#This Row],[PD]]<UIoptions!$T$11),1,0) -> 0 | BD63: =IF(AND(UIoptions!$P$14<=PCdb[[#This Row],[PL (MAX)]],UIoptions!$P$14>UIoptions!$S$14),1,0) -> 1 | BE63: =IF(AND(PCdb[[#This Row],[SD]]>UIoptions!$S$12,PCdb[[#This Row],[SD]]<UIoptions!$T$12),1,0) -> 0 | BF63: =IF(AND(PCdb[[#This Row],[SL]]>UIoptions!$S$13,PCdb[[#This Row],[SL]]<UIoptions!$T$13),1,0) -> 0 | BG63: =IF(UIoptions!$N$35=1,IF(AND(PCdb[[#This Row],[SQ_SZ]]>UIoptions!$S$15,PCdb[[#This Row],[SQ_SZ]]<UIoptions!$T$15),1,0),1) -> 0 | BH63: =IF(UIoptions!$N$35=2,IF(AND(PCdb[[#This Row],[ROUND_D]]>UIoptions!$S$15,PCdb[[#This Row],[ROUND_D]]<UIoptions!$T$15),1,0),1) -> 1 | BI63: =IF(UIoptions!$N$75<>1,1,IF(AND(PCdb[[#This Row],[FL]]>UIoptions!$S$16,PCdb[[#This Row],[FL]]<UIoptions!$T$16),1,0)) -> 0 | BJ63: =IF(OR(UIoptions!$Q$18=PCdb[[#This Row],[THRU_SCREW]],UIoptions!$Q$18="NA"),1,0) -> 0 | BK63: =IF(OR(UIoptions!$P$19=PCdb[[#This Row],[THREAD_SZ]],UIoptions!$P$19="NA"),1,0) -> 1 | BL63: =IF(UIoptions!$N$75=1,1,IF(AND(PCdb[[#This Row],[THREAD_L]]>UIoptions!$S$17,PCdb[[#This Row],[THREAD_L]]<UIoptions!$T$17),1,0)) -> 1 | BM63: =IF(SUM(PCdb[[#This Row],[BDhit]:[THREAD_Lhit]])=11,1,0) -> 0 | BN63: =CONCATENATE(PCdb[[#This Row],[BCD]],PCdb[[#This Row],[PD]],PCdb[[#This Row],[PL (MAX)]],PCdb[[#This Row],[SD]],PCdb[[#This Row],[SL]],PCdb[[#This Row],[SQ_SZ]],PCdb[[#This Row],[ROUND_D]],PCdb[[#This Row],[FL]],PCdb[[#This Row],[THRU_SCREW]],PCdb[[#This Row],[THREAD_SZ]],PCdb[[#This Row],[THREAD_L]],PCdb[[#This Row],[NBR_HOLES]]) -> 66,738,1412,738,160NA6M5NANA4 | BO63: =SUM(PCdb[[#This Row],[BDhit]:[THREAD_Lhit]]) -> 4
A64: 61 | B64: 66.7 | C64: 38.1 | D64: 4 | E64: 6.35 | F64: 20.6 | G64: 56 | H64: NA | I64: 5 | J64: M4 | K64: NA | L64: NA | M64: 4 | N64: M4 | O64: 38.7 | P64: 22 | Q64: 0 | R64: Y | S64: B | T64: 45 | U64: 90 | AJ64: 22 | AK64: 0 | AL64: Y | AM64: D | AN64: 45 | AO64: 90 | AP64: 22 | AQ64: NA | AR64: Y | AS64: C | AT64: 45 | AU64: 90 | AV64: 22 | AW64: 0 | AX64: Y | AY64: C | AZ64: 45 | BA64: 90 | BB64: =IF(AND(PCdb[[#This Row],[BCD]]>UIoptions!$S$10,PCdb[[#This Row],[BCD]]<UIoptions!$T$10),1,0) -> 0 | BC64: =IF(AND(PCdb[[#This Row],[PD]]>UIoptions!$S$11,PCdb[[#This Row],[PD]]<UIoptions!$T$11),1,0) -> 0 | BD64: =IF(AND(UIoptions!$P$14<=PCdb[[#This Row],[PL (MAX)]],UIoptions!$P$14>UIoptions!$S$14),1,0) -> 1 | BE64: =IF(AND(PCdb[[#This Row],[SD]]>UIoptions!$S$12,PCdb[[#This Row],[SD]]<UIoptions!$T$12),1,0) -> 0 | BF64: =IF(AND(PCdb[[#This Row],[SL]]>UIoptions!$S$13,PCdb[[#This Row],[SL]]<UIoptions!$T$13),1,0) -> 0 | BG64: =IF(UIoptions!$N$35=1,IF(AND(PCdb[[#This Row],[SQ_SZ]]>UIoptions!$S$15,PCdb[[#This Row],[SQ_SZ]]<UIoptions!$T$15),1,0),1) -> 0 | BH64: =IF(UIoptions!$N$35=2,IF(AND(PCdb[[#This Row],[ROUND_D]]>UIoptions!$S$15,PCdb[[#This Row],[ROUND_D]]<UIoptions!$T$15),1,0),1) -> 1 | BI64: =IF(UIoptions!$N$75<>1,1,IF(AND(PCdb[[#This Row],[FL]]>UIoptions!$S$16,PCdb[[#This Row],[FL]]<UIoptions!$T$16),1,0)) -> 0 | BJ64: =IF(OR(UIoptions!$Q$18=PCdb[[#This Row],[THRU_SCREW]],UIoptions!$Q$18="NA"),1,0) -> 1 | BK64: =IF(OR(UIoptions!$P$19=PCdb[[#This Row],[THREAD_SZ]],UIoptions!$P$19="NA"),1,0) -> 1 | BL64: =IF(UIoptions!$N$75=1,1,IF(AND(PCdb[[#This Row],[THREAD_L]]>UIoptions!$S$17,PCdb[[#This Row],[THREAD_L]]<UIoptions!$T$17),1,0)) -> 1 | BM64: =IF(SUM(PCdb[[#This Row],[BDhit]:[THREAD_Lhit]])=11,1,0) -> 0 | BN64: =CONCATENATE(PCdb[[#This Row],[BCD]],PCdb[[#This Row],[PD]],PCdb[[#This Row],[PL (MAX)]],PCdb[[#This Row],[SD]],PCdb[[#This Row],[SL]],PCdb[[#This Row],[SQ_SZ]],PCdb[[#This Row],[ROUND_D]],PCdb[[#This Row],[FL]],PCdb[[#This Row],[THRU_SCREW]],PCdb[[#This Row],[THREAD_SZ]],PCdb[[#This Row],[THREAD_L]],PCdb[[#This Row],[NBR_HOLES]]) -> 66,738,146,3520,656NA5M4NANA4 | BO64: =SUM(PCdb[[#This Row],[BDhit]:[THREAD_Lhit]]) -> 5
A65: 62 | B65: 46 | C65: 30 | D65: 4 | E65: 6 | F65: 25 | G65: 40 | H65: NA | I65: 5 | J65: M4 | K65: NA | L65: NA | M65: 4 | N65: M4 | V65: 41.7 | W65: 15.5 | X65: NA | Y65: Y | Z65: A | AA65: 45 | AB65: 90 | BB65: =IF(AND(PCdb[[#This Row],[BCD]]>UIoptions!$S$10,PCdb[[#This Row],[BCD]]<UIoptions!$T$10),1,0) -> 0 | BC65: =IF(AND(PCdb[[#This Row],[PD]]>UIoptions!$S$11,PCdb[[#This Row],[PD]]<UIoptions!$T$11),1,0) -> 0 | BD65: =IF(AND(UIoptions!$P$14<=PCdb[[#This Row],[PL (MAX)]],UIoptions!$P$14>UIoptions!$S$14),1,0) -> 1 | BE65: =IF(AND(PCdb[[#This Row],[SD]]>UIoptions!$S$12,PCdb[[#This Row],[SD]]<UIoptions!$T$12),1,0) -> 0 | BF65: =IF(AND(PCdb[[#This Row],[SL]]>UIoptions!$S$13,PCdb[[#This Row],[SL]]<UIoptions!$T$13),1,0) -> 0 | BG65: =IF(UIoptions!$N$35=1,IF(AND(PCdb[[#This Row],[SQ_SZ]]>UIoptions!$S$15,PCdb[[#This Row],[SQ_SZ]]<UIoptions!$T$15),1,0),1) -> 0 | BH65: =IF(UIoptions!$N$35=2,IF(AND(PCdb[[#This Row],[ROUND_D]]>UIoptions!$S$15,PCdb[[#This Row],[ROUND_D]]<UIoptions!$T$15),1,0),1) -> 1 | BI65: =IF(UIoptions!$N$75<>1,1,IF(AND(PCdb[[#This Row],[FL]]>UIoptions!$S$16,PCdb[[#This Row],[FL]]<UIoptions!$T$16),1,0)) -> 0 | BJ65: =IF(OR(UIoptions!$Q$18=PCdb[[#This Row],[THRU_SCREW]],UIoptions!$Q$18="NA"),1,0) -> 1 | BK65: =IF(OR(UIoptions!$P$19=PCdb[[#This Row],[THREAD_SZ]],UIoptions!$P$19="NA"),1,0) -> 1 | BL65: =IF(UIoptions!$N$75=1,1,IF(AND(PCdb[[#This Row],[THREAD_L]]>UIoptions!$S$17,PCdb[[#This Row],[THREAD_L]]<UIoptions!$T$17),1,0)) -> 1 | BM65: =IF(SUM(PCdb[[#This Row],[BDhit]:[THREAD_Lhit]])=11,1,0) -> 0 | BN65: =CONCATENATE(PCdb[[#This Row],[BCD]],PCdb[[#This Row],[PD]],PCdb[[#This Row],[PL (MAX)]],PCdb[[#This Row],[SD]],PCdb[[#This Row],[SL]],PCdb[[#This Row],[SQ_SZ]],PCdb[[#This Row],[ROUND_D]],PCdb[[#This Row],[FL]],PCdb[[#This Row],[THRU_SCREW]],PCdb[[#This Row],[THREAD_SZ]],PCdb[[#This Row],[THREAD_L]],PCdb[[#This Row],[NBR_HOLES]]) -> 4630462540NA5M4NANA4 | BO65: =SUM(PCdb[[#This Row],[BDhit]:[THREAD_Lhit]]) -> 5
A66: 63 | B66: 70 | C66: 50 | D66: 4 | E66: 14 | F66: 30 | G66: 60 | H66: NA | I66: 6 | J66: M5 | K66: NA | L66: NA | M66: 4 | N66: M5 | O66: NA | P66: NA | Q66: NA | R66: NA | S66: NA | T66: NA | U66: NA | V66: 41.7 | W66: 27 | X66: NA | Y66: Y | Z66: B | AA66: 45 | AB66: 90 | AC66: 48.7 | AD66: NA | AE66: NA | AF66: N | AG66: A | AH66: 45 | AI66: 90 | AJ66: NA | AK66: NA | AL66: NA | AM66: NA | AN66: NA | AO66: NA | AP66: 28 | AQ66: 0 | AR66: Y | AS66: C | AT66: 45 | AU66: 90 | AV66: 28 | AW66: 0 | AX66: Y | AY66: C | AZ66: 45 | BA66: 90 | BB66: =IF(AND(PCdb[[#This Row],[BCD]]>UIoptions!$S$10,PCdb[[#This Row],[BCD]]<UIoptions!$T$10),1,0) -> 0 | BC66: =IF(AND(PCdb[[#This Row],[PD]]>UIoptions!$S$11,PCdb[[#This Row],[PD]]<UIoptions!$T$11),1,0) -> 0 | BD66: =IF(AND(UIoptions!$P$14<=PCdb[[#This Row],[PL (MAX)]],UIoptions!$P$14>UIoptions!$S$14),1,0) -> 1 | BE66: =IF(AND(PCdb[[#This Row],[SD]]>UIoptions!$S$12,PCdb[[#This Row],[SD]]<UIoptions!$T$12),1,0) -> 0 | BF66: =IF(AND(PCdb[[#This Row],[SL]]>UIoptions!$S$13,PCdb[[#This Row],[SL]]<UIoptions!$T$13),1,0) -> 0 | BG66: =IF(UIoptions!$N$35=1,IF(AND(PCdb[[#This Row],[SQ_SZ]]>UIoptions!$S$15,PCdb[[#This Row],[SQ_SZ]]<UIoptions!$T$15),1,0),1) -> 0 | BH66: =IF(UIoptions!$N$35=2,IF(AND(PCdb[[#This Row],[ROUND_D]]>UIoptions!$S$15,PCdb[[#This Row],[ROUND_D]]<UIoptions!$T$15),1,0),1) -> 1 | BI66: =IF(UIoptions!$N$75<>1,1,IF(AND(PCdb[[#This Row],[FL]]>UIoptions!$S$16,PCdb[[#This Row],[FL]]<UIoptions!$T$16),1,0)) -> 0 | BJ66: =IF(OR(UIoptions!$Q$18=PCdb[[#This Row],[THRU_SCREW]],UIoptions!$Q$18="NA"),1,0) -> 0 | BK66: =IF(OR(UIoptions!$P$19=PCdb[[#This Row],[THREAD_SZ]],UIoptions!$P$19="NA"),1,0) -> 1 | BL66: =IF(UIoptions!$N$75=1,1,IF(AND(PCdb[[#This Row],[THREAD_L]]>UIoptions!$S$17,PCdb[[#This Row],[THREAD_L]]<UIoptions!$T$17),1,0)) -> 1 | BM66: =IF(SUM(PCdb[[#This Row],[BDhit]:[THREAD_Lhit]])=11,1,0) -> 0 | BN66: =CONCATENATE(PCdb[[#This Row],[BCD]],PCdb[[#This Row],[PD]],PCdb[[#This Row],[PL (MAX)]],PCdb[[#This Row],[SD]],PCdb[[#This Row],[SL]],PCdb[[#This Row],[SQ_SZ]],PCdb[[#This Row],[ROUND_D]],PCdb[[#This Row],[FL]],PCdb[[#This Row],[THRU_SCREW]],PCdb[[#This Row],[THREAD_SZ]],PCdb[[#This Row],[THREAD_L]],PCdb[[#This Row],[NBR_HOLES]]) -> 70504143060NA6M5NANA4 | BO66: =SUM(PCdb[[#This Row],[BDhit]:[THREAD_Lhit]]) -> 4
A67: 64 | B67: 90 | C67: 70 | D67: 4 | E67: 16 | F67: 40 | G67: 76 | H67: NA | I67: 8 | J67: M5 | K67: NA | L67: NA | M67: 4 | N67: M5 | BB67: =IF(AND(PCdb[[#This Row],[BCD]]>UIoptions!$S$10,PCdb[[#This Row],[BCD]]<UIoptions!$T$10),1,0) -> 0 | BC67: =IF(AND(PCdb[[#This Row],[PD]]>UIoptions!$S$11,PCdb[[#This Row],[PD]]<UIoptions!$T$11),1,0) -> 0 | BD67: =IF(AND(UIoptions!$P$14<=PCdb[[#This Row],[PL (MAX)]],UIoptions!$P$14>UIoptions!$S$14),1,0) -> 1 | BE67: =IF(AND(PCdb[[#This Row],[SD]]>UIoptions!$S$12,PCdb[[#This Row],[SD]]<UIoptions!$T$12),1,0) -> 0 | BF67: =IF(AND(PCdb[[#This Row],[SL]]>UIoptions!$S$13,PCdb[[#This Row],[SL]]<UIoptions!$T$13),1,0) -> 0 | BG67: =IF(UIoptions!$N$35=1,IF(AND(PCdb[[#This Row],[SQ_SZ]]>UIoptions!$S$15,PCdb[[#This Row],[SQ_SZ]]<UIoptions!$T$15),1,0),1) -> 0 | BH67: =IF(UIoptions!$N$35=2,IF(AND(PCdb[[#This Row],[ROUND_D]]>UIoptions!$S$15,PCdb[[#This Row],[ROUND_D]]<UIoptions!$T$15),1,0),1) -> 1 | BI67: =IF(UIoptions!$N$75<>1,1,IF(AND(PCdb[[#This Row],[FL]]>UIoptions!$S$16,PCdb[[#This Row],[FL]]<UIoptions!$T$16),1,0)) -> 0 | BJ67: =IF(OR(UIoptions!$Q$18=PCdb[[#This Row],[THRU_SCREW]],UIoptions!$Q$18="NA"),1,0) -> 0 | BK67: =IF(OR(UIoptions!$P$19=PCdb[[#This Row],[THREAD_SZ]],UIoptions!$P$19="NA"),1,0) -> 1 | BL67: =IF(UIoptions!$N$75=1,1,IF(AND(PCdb[[#This Row],[THREAD_L]]>UIoptions!$S$17,PCdb[[#This Row],[THREAD_L]]<UIoptions!$T$17),1,0)) -> 1 | BM67: =IF(SUM(PCdb[[#This Row],[BDhit]:[THREAD_Lhit]])=11,1,0) -> 0 | BN67: =CONCATENATE(PCdb[[#This Row],[BCD]],PCdb[[#This Row],[PD]],PCdb[[#This Row],[PL (MAX)]],PCdb[[#This Row],[SD]],PCdb[[#This Row],[SL]],PCdb[[#This Row],[SQ_SZ]],PCdb[[#This Row],[ROUND_D]],PCdb[[#This Row],[FL]],PCdb[[#This Row],[THRU_SCREW]],PCdb[[#This Row],[THREAD_SZ]],PCdb[[#This Row],[THREAD_L]],PCdb[[#This Row],[NBR_HOLES]]) -> 90704164076NA8M5NANA4 | BO67: =SUM(PCdb[[#This Row],[BDhit]:[THREAD_Lhit]]) -> 4
A68: 65 | B68: 90 | C68: 70 | D68: 4 | E68: 16 | F68: 40 | G68: 80 | H68: NA | I68: 8 | J68: M6 | K68: NA | L68: NA | M68: 4 | N68: M6 | O68: NA | P68: NA | Q68: NA | R68: NA | S68: NA | T68: NA | U68: NA | AJ68: NA | AK68: NA | AL68: NA | AM68: NA | AN68: NA | AO68: NA | AP68: NA | AQ68: NA | AR68: NA | AS68: NA | AT68: NA | AU68: NA | AV68: 37 | AW68: 0 | AX68: Y | AY68: D | AZ68: 45 | BA68: 90 | BB68: =IF(AND(PCdb[[#This Row],[BCD]]>UIoptions!$S$10,PCdb[[#This Row],[BCD]]<UIoptions!$T$10),1,0) -> 0 | BC68: =IF(AND(PCdb[[#This Row],[PD]]>UIoptions!$S$11,PCdb[[#This Row],[PD]]<UIoptions!$T$11),1,0) -> 0 | BD68: =IF(AND(UIoptions!$P$14<=PCdb[[#This Row],[PL (MAX)]],UIoptions!$P$14>UIoptions!$S$14),1,0) -> 1 | BE68: =IF(AND(PCdb[[#This Row],[SD]]>UIoptions!$S$12,PCdb[[#This Row],[SD]]<UIoptions!$T$12),1,0) -> 0 | BF68: =IF(AND(PCdb[[#This Row],[SL]]>UIoptions!$S$13,PCdb[[#This Row],[SL]]<UIoptions!$T$13),1,0) -> 0 | BG68: =IF(UIoptions!$N$35=1,IF(AND(PCdb[[#This Row],[SQ_SZ]]>UIoptions!$S$15,PCdb[[#This Row],[SQ_SZ]]<UIoptions!$T$15),1,0),1) -> 0 | BH68: =IF(UIoptions!$N$35=2,IF(AND(PCdb[[#This Row],[ROUND_D]]>UIoptions!$S$15,PCdb[[#This Row],[ROUND_D]]<UIoptions!$T$15),1,0),1) -> 1 | BI68: =IF(UIoptions!$N$75<>1,1,IF(AND(PCdb[[#This Row],[FL]]>UIoptions!$S$16,PCdb[[#This Row],[FL]]<UIoptions!$T$16),1,0)) -> 0 | BJ68: =IF(OR(UIoptions!$Q$18=PCdb[[#This Row],[THRU_SCREW]],UIoptions!$Q$18="NA"),1,0) -> 0 | BK68: =IF(OR(UIoptions!$P$19=PCdb[[#This Row],[THREAD_SZ]],UIoptions!$P$19="NA"),1,0) -> 1 | BL68: =IF(UIoptions!$N$75=1,1,IF(AND(PCdb[[#This Row],[THREAD_L]]>UIoptions!$S$17,PCdb[[#This Row],[THREAD_L]]<UIoptions!$T$17),1,0)) -> 1 | BM68: =IF(SUM(PCdb[[#This Row],[BDhit]:[THREAD_Lhit]])=11,1,0) -> 0 | BN68: =CONCATENATE(PCdb[[#This Row],[BCD]],PCdb[[#This Row],[PD]],PCdb[[#This Row],[PL (MAX)]],PCdb[[#This Row],[SD]],PCdb[[#This Row],[SL]],PCdb[[#This Row],[SQ_SZ]],PCdb[[#This Row],[ROUND_D]],PCdb[[#This Row],[FL]],PCdb[[#This Row],[THRU_SCREW]],PCdb[[#This Row],[THREAD_SZ]],PCdb[[#This Row],[THREAD_L]],PCdb[[#This Row],[NBR_HOLES]]) -> 90704164080NA8M6NANA4 | BO68: =SUM(PCdb[[#This Row],[BDhit]:[THREAD_Lhit]]) -> 4
A69: 66 | B69: 48 | C69: 34 | D69: 4 | E69: 7 | F69: 24 | G69: 42 | H69: NA | I69: 5 | J69: M3 | K69: NA | L69: NA | M69: 4 | N69: M3 | BB69: =IF(AND(PCdb[[#This Row],[BCD]]>UIoptions!$S$10,PCdb[[#This Row],[BCD]]<UIoptions!$T$10),1,0) -> 0 | BC69: =IF(AND(PCdb[[#This Row],[PD]]>UIoptions!$S$11,PCdb[[#This Row],[PD]]<UIoptions!$T$11),1,0) -> 0 | BD69: =IF(AND(UIoptions!$P$14<=PCdb[[#This Row],[PL (MAX)]],UIoptions!$P$14>UIoptions!$S$14),1,0) -> 1 | BE69: =IF(AND(PCdb[[#This Row],[SD]]>UIoptions!$S$12,PCdb[[#This Row],[SD]]<UIoptions!$T$12),1,0) -> 0 | BF69: =IF(AND(PCdb[[#This Row],[SL]]>UIoptions!$S$13,PCdb[[#This Row],[SL]]<UIoptions!$T$13),1,0) -> 0 | BG69: =IF(UIoptions!$N$35=1,IF(AND(PCdb[[#This Row],[SQ_SZ]]>UIoptions!$S$15,PCdb[[#This Row],[SQ_SZ]]<UIoptions!$T$15),1,0),1) -> 0 | BH69: =IF(UIoptions!$N$35=2,IF(AND(PCdb[[#This Row],[ROUND_D]]>UIoptions!$S$15,PCdb[[#This Row],[ROUND_D]]<UIoptions!$T$15),1,0),1) -> 1 | BI69: =IF(UIoptions!$N$75<>1,1,IF(AND(PCdb[[#This Row],[FL]]>UIoptions!$S$16,PCdb[[#This Row],[FL]]<UIoptions!$T$16),1,0)) -> 0 | BJ69: =IF(OR(UIoptions!$Q$18=PCdb[[#This Row],[THRU_SCREW]],UIoptions!$Q$18="NA"),1,0) -> 0 | BK69: =IF(OR(UIoptions!$P$19=PCdb[[#This Row],[THREAD_SZ]],UIoptions!$P$19="NA"),1,0) -> 1 | BL69: =IF(UIoptions!$N$75=1,1,IF(AND(PCdb[[#This Row],[THREAD_L]]>UIoptions!$S$17,PCdb[[#This Row],[THREAD_L]]<UIoptions!$T$17),1,0)) -> 1 | BM69: =IF(SUM(PCdb[[#This Row],[BDhit]:[THREAD_Lhit]])=11,1,0) -> 0 | BN69: =CONCATENATE(PCdb[[#This Row],[BCD]],PCdb[[#This Row],[PD]],PCdb[[#This Row],[PL (MAX)]],PCdb[[#This Row],[SD]],PCdb[[#This Row],[SL]],PCdb[[#This Row],[SQ_SZ]],PCdb[[#This Row],[ROUND_D]],PCdb[[#This Row],[FL]],PCdb[[#This Row],[THRU_SCREW]],PCdb[[#This Row],[THREAD_SZ]],PCdb[[#This Row],[THREAD_L]],PCdb[[#This Row],[NBR_HOLES]]) -> 4834472442NA5M3NANA4 | BO69: =SUM(PCdb[[#This Row],[BDhit]:[THREAD_Lhit]]) -> 4
A70: 67 | B70: 60 | C70: 50 | D70: 4 | E70: 8 | F70: 24 | G70: 54 | H70: NA | I70: 5 | J70: M4 | K70: NA | L70: NA | M70: 4 | N70: M4 | BB70: =IF(AND(PCdb[[#This Row],[BCD]]>UIoptions!$S$10,PCdb[[#This Row],[BCD]]<UIoptions!$T$10),1,0) -> 0 | BC70: =IF(AND(PCdb[[#This Row],[PD]]>UIoptions!$S$11,PCdb[[#This Row],[PD]]<UIoptions!$T$11),1,0) -> 0 | BD70: =IF(AND(UIoptions!$P$14<=PCdb[[#This Row],[PL (MAX)]],UIoptions!$P$14>UIoptions!$S$14),1,0) -> 1 | BE70: =IF(AND(PCdb[[#This Row],[SD]]>UIoptions!$S$12,PCdb[[#This Row],[SD]]<UIoptions!$T$12),1,0) -> 0 | BF70: =IF(AND(PCdb[[#This Row],[SL]]>UIoptions!$S$13,PCdb[[#This Row],[SL]]<UIoptions!$T$13),1,0) -> 0 | BG70: =IF(UIoptions!$N$35=1,IF(AND(PCdb[[#This Row],[SQ_SZ]]>UIoptions!$S$15,PCdb[[#This Row],[SQ_SZ]]<UIoptions!$T$15),1,0),1) -> 0 | BH70: =IF(UIoptions!$N$35=2,IF(AND(PCdb[[#This Row],[ROUND_D]]>UIoptions!$S$15,PCdb[[#This Row],[ROUND_D]]<UIoptions!$T$15),1,0),1) -> 1 | BI70: =IF(UIoptions!$N$75<>1,1,IF(AND(PCdb[[#This Row],[FL]]>UIoptions!$S$16,PCdb[[#This Row],[FL]]<UIoptions!$T$16),1,0)) -> 0 | BJ70: =IF(OR(UIoptions!$Q$18=PCdb[[#This Row],[THRU_SCREW]],UIoptions!$Q$18="NA"),1,0) -> 1 | BK70: =IF(OR(UIoptions!$P$19=PCdb[[#This Row],[THREAD_SZ]],UIoptions!$P$19="NA"),1,0) -> 1 | BL70: =IF(UIoptions!$N$75=1,1,IF(AND(PCdb[[#This Row],[THREAD_L]]>UIoptions!$S$17,PCdb[[#This Row],[THREAD_L]]<UIoptions!$T$17),1,0)) -> 1 | BM70: =IF(SUM(PCdb[[#This Row],[BDhit]:[THREAD_Lhit]])=11,1,0) -> 0 | BN70: =CONCATENATE(PCdb[[#This Row],[BCD]],PCdb[[#This Row],[PD]],PCdb[[#This Row],[PL (MAX)]],PCdb[[#This Row],[SD]],PCdb[[#This Row],[SL]],PCdb[[#This Row],[SQ_SZ]],PCdb[[#This Row],[ROUND_D]],PCdb[[#This Row],[FL]],PCdb[[#This Row],[THRU_SCREW]],PCdb[[#This Row],[THREAD_SZ]],PCdb[[#This Row],[THREAD_L]],PCdb[[#This Row],[NBR_HOLES]]) -> 6050482454NA5M4NANA4 | BO70: =SUM(PCdb[[#This Row],[BDhit]:[THREAD_Lhit]]) -> 5
A71: 68 | B71: 90 | C71: 70 | D71: 4 | E71: 14 | F71: 30 | G71: 76 | H71: NA | I71: 8 | J71: M5 | K71: NA | L71: NA | M71: 4 | N71: M5 | BB71: =IF(AND(PCdb[[#This Row],[BCD]]>UIoptions!$S$10,PCdb[[#This Row],[BCD]]<UIoptions!$T$10),1,0) -> 0 | BC71: =IF(AND(PCdb[[#This Row],[PD]]>UIoptions!$S$11,PCdb[[#This Row],[PD]]<UIoptions!$T$11),1,0) -> 0 | BD71: =IF(AND(UIoptions!$P$14<=PCdb[[#This Row],[PL (MAX)]],UIoptions!$P$14>UIoptions!$S$14),1,0) -> 1 | BE71: =IF(AND(PCdb[[#This Row],[SD]]>UIoptions!$S$12,PCdb[[#This Row],[SD]]<UIoptions!$T$12),1,0) -> 0 | BF71: =IF(AND(PCdb[[#This Row],[SL]]>UIoptions!$S$13,PCdb[[#This Row],[SL]]<UIoptions!$T$13),1,0) -> 0 | BG71: =IF(UIoptions!$N$35=1,IF(AND(PCdb[[#This Row],[SQ_SZ]]>UIoptions!$S$15,PCdb[[#This Row],[SQ_SZ]]<UIoptions!$T$15),1,0),1) -> 0 | BH71: =IF(UIoptions!$N$35=2,IF(AND(PCdb[[#This Row],[ROUND_D]]>UIoptions!$S$15,PCdb[[#This Row],[ROUND_D]]<UIoptions!$T$15),1,0),1) -> 1 | BI71: =IF(UIoptions!$N$75<>1,1,IF(AND(PCdb[[#This Row],[FL]]>UIoptions!$S$16,PCdb[[#This Row],[FL]]<UIoptions!$T$16),1,0)) -> 0 | BJ71: =IF(OR(UIoptions!$Q$18=PCdb[[#This Row],[THRU_SCREW]],UIoptions!$Q$18="NA"),1,0) -> 0 | BK71: =IF(OR(UIoptions!$P$19=PCdb[[#This Row],[THREAD_SZ]],UIoptions!$P$19="NA"),1,0) -> 1 | BL71: =IF(UIoptions!$N$75=1,1,IF(AND(PCdb[[#This Row],[THREAD_L]]>UIoptions!$S$17,PCdb[[#This Row],[THREAD_L]]<UIoptions!$T$17),1,0)) -> 1 | BM71: =IF(SUM(PCdb[[#This Row],[BDhit]:[THREAD_Lhit]])=11,1,0) -> 0 | BN71: =CONCATENATE(PCdb[[#This Row],[BCD]],PCdb[[#This Row],[PD]],PCdb[[#This Row],[PL (MAX)]],PCdb[[#This Row],[SD]],PCdb[[#This Row],[SL]],PCdb[[#This Row],[SQ_SZ]],PCdb[[#This Row],[ROUND_D]],PCdb[[#This Row],[FL]],PCdb[[#This Row],[THRU_SCREW]],PCdb[[#This Row],[THREAD_SZ]],PCdb[[#This Row],[THREAD_L]],PCdb[[#This Row],[NBR_HOLES]]) -> 90704143076NA8M5NANA4 | BO71: =SUM(PCdb[[#This Row],[BDhit]:[THREAD_Lhit]]) -> 4
A72: 69 | B72: 100 | C72: 80 | D72: 4 | E72: 16 | F72: 35 | G72: 86 | H72: NA | I72: 8 | J72: M6 | K72: NA | L72: NA | M72: 4 | N72: M6 | AC72: 48.7 | AD72: 41 | AE72: NA | AF72: Y | AG72: B | AH72: 45 | AI72: 90 | AV72: 41.5 | AW72: NA | AX72: Y | AY72: D | AZ72: 45 | BA72: 90 | BB72: =IF(AND(PCdb[[#This Row],[BCD]]>UIoptions!$S$10,PCdb[[#This Row],[BCD]]<UIoptions!$T$10),1,0) -> 0 | BC72: =IF(AND(PCdb[[#This Row],[PD]]>UIoptions!$S$11,PCdb[[#This Row],[PD]]<UIoptions!$T$11),1,0) -> 0 | BD72: =IF(AND(UIoptions!$P$14<=PCdb[[#This Row],[PL (MAX)]],UIoptions!$P$14>UIoptions!$S$14),1,0) -> 1 | BE72: =IF(AND(PCdb[[#This Row],[SD]]>UIoptions!$S$12,PCdb[[#This Row],[SD]]<UIoptions!$T$12),1,0) -> 0 | BF72: =IF(AND(PCdb[[#This Row],[SL]]>UIoptions!$S$13,PCdb[[#This Row],[SL]]<UIoptions!$T$13),1,0) -> 0 | BG72: =IF(UIoptions!$N$35=1,IF(AND(PCdb[[#This Row],[SQ_SZ]]>UIoptions!$S$15,PCdb[[#This Row],[SQ_SZ]]<UIoptions!$T$15),1,0),1) -> 0 | BH72: =IF(UIoptions!$N$35=2,IF(AND(PCdb[[#This Row],[ROUND_D]]>UIoptions!$S$15,PCdb[[#This Row],[ROUND_D]]<UIoptions!$T$15),1,0),1) -> 1 | BI72: =IF(UIoptions!$N$75<>1,1,IF(AND(PCdb[[#This Row],[FL]]>UIoptions!$S$16,PCdb[[#This Row],[FL]]<UIoptions!$T$16),1,0)) -> 0 | BJ72: =IF(OR(UIoptions!$Q$18=PCdb[[#This Row],[THRU_SCREW]],UIoptions!$Q$18="NA"),1,0) -> 0 | BK72: =IF(OR(UIoptions!$P$19=PCdb[[#This Row],[THREAD_SZ]],UIoptions!$P$19="NA"),1,0) -> 1 | BL72: =IF(UIoptions!$N$75=1,1,IF(AND(PCdb[[#This Row],[THREAD_L]]>UIoptions!$S$17,PCdb[[#This Row],[THREAD_L]]<UIoptions!$T$17),1,0)) -> 1 | BM72: =IF(SUM(PCdb[[#This Row],[BDhit]:[THREAD_Lhit]])=11,1,0) -> 0 | BN72: =CONCATENATE(PCdb[[#This Row],[BCD]],PCdb[[#This Row],[PD]],PCdb[[#This Row],[PL (MAX)]],PCdb[[#This Row],[SD]],PCdb[[#This Row],[SL]],PCdb[[#This Row],[SQ_SZ]],PCdb[[#This Row],[ROUND_D]],PCdb[[#This Row],[FL]],PCdb[[#This Row],[THRU_SCREW]],PCdb[[#This Row],[THREAD_SZ]],PCdb[[#This Row],[THREAD_L]],PCdb[[#This Row],[NBR_HOLES]]) -> 100804163586NA8M6NANA4 | BO72: =SUM(PCdb[[#This Row],[BDhit]:[THREAD_Lhit]]) -> 4
A73: 70 | B73: 98.4 | C73: 73.03 | D73: 4 | E73: 14 | F73: 30 | G73: 85.5 | H73: NA | I73: 8 | J73: M5 | K73: NA | L73: NA | M73: 4 | N73: M5 | BB73: =IF(AND(PCdb[[#This Row],[BCD]]>UIoptions!$S$10,PCdb[[#This Row],[BCD]]<UIoptions!$T$10),1,0) -> 0 | BC73: =IF(AND(PCdb[[#This Row],[PD]]>UIoptions!$S$11,PCdb[[#This Row],[PD]]<UIoptions!$T$11),1,0) -> 0 | BD73: =IF(AND(UIoptions!$P$14<=PCdb[[#This Row],[PL (MAX)]],UIoptions!$P$14>UIoptions!$S$14),1,0) -> 1 | BE73: =IF(AND(PCdb[[#This Row],[SD]]>UIoptions!$S$12,PCdb[[#This Row],[SD]]<UIoptions!$T$12),1,0) -> 0 | BF73: =IF(AND(PCdb[[#This Row],[SL]]>UIoptions!$S$13,PCdb[[#This Row],[SL]]<UIoptions!$T$13),1,0) -> 0 | BG73: =IF(UIoptions!$N$35=1,IF(AND(PCdb[[#This Row],[SQ_SZ]]>UIoptions!$S$15,PCdb[[#This Row],[SQ_SZ]]<UIoptions!$T$15),1,0),1) -> 0 | BH73: =IF(UIoptions!$N$35=2,IF(AND(PCdb[[#This Row],[ROUND_D]]>UIoptions!$S$15,PCdb[[#This Row],[ROUND_D]]<UIoptions!$T$15),1,0),1) -> 1 | BI73: =IF(UIoptions!$N$75<>1,1,IF(AND(PCdb[[#This Row],[FL]]>UIoptions!$S$16,PCdb[[#This Row],[FL]]<UIoptions!$T$16),1,0)) -> 0 | BJ73: =IF(OR(UIoptions!$Q$18=PCdb[[#This Row],[THRU_SCREW]],UIoptions!$Q$18="NA"),1,0) -> 0 | BK73: =IF(OR(UIoptions!$P$19=PCdb[[#This Row],[THREAD_SZ]],UIoptions!$P$19="NA"),1,0) -> 1 | BL73: =IF(UIoptions!$N$75=1,1,IF(AND(PCdb[[#This Row],[THREAD_L]]>UIoptions!$S$17,PCdb[[#This Row],[THREAD_L]]<UIoptions!$T$17),1,0)) -> 1 | BM73: =IF(SUM(PCdb[[#This Row],[BDhit]:[THREAD_Lhit]])=11,1,0) -> 0 | BN73: =CONCATENATE(PCdb[[#This Row],[BCD]],PCdb[[#This Row],[PD]],PCdb[[#This Row],[PL (MAX)]],PCdb[[#This Row],[SD]],PCdb[[#This Row],[SL]],PCdb[[#This Row],[SQ_SZ]],PCdb[[#This Row],[ROUND_D]],PCdb[[#This Row],[FL]],PCdb[[#This Row],[THRU_SCREW]],PCdb[[#This Row],[THREAD_SZ]],PCdb[[#This Row],[THREAD_L]],PCdb[[#This Row],[NBR_HOLES]]) -> 98,473,034143085,5NA8M5NANA4 | BO73: =SUM(PCdb[[#This Row],[BDhit]:[THREAD_Lhit]]) -> 4
A74: 71 | B74: 100 | C74: 80 | D74: 4 | E74: 14 | F74: 30 | G74: 82 | H74: NA | I74: 10.5 | J74: M6 | K74: NA | L74: NA | M74: 4 | N74: M6 | BB74: =IF(AND(PCdb[[#This Row],[BCD]]>UIoptions!$S$10,PCdb[[#This Row],[BCD]]<UIoptions!$T$10),1,0) -> 0 | BC74: =IF(AND(PCdb[[#This Row],[PD]]>UIoptions!$S$11,PCdb[[#This Row],[PD]]<UIoptions!$T$11),1,0) -> 0 | BD74: =IF(AND(UIoptions!$P$14<=PCdb[[#This Row],[PL (MAX)]],UIoptions!$P$14>UIoptions!$S$14),1,0) -> 1 | BE74: =IF(AND(PCdb[[#This Row],[SD]]>UIoptions!$S$12,PCdb[[#This Row],[SD]]<UIoptions!$T$12),1,0) -> 0 | BF74: =IF(AND(PCdb[[#This Row],[SL]]>UIoptions!$S$13,PCdb[[#This Row],[SL]]<UIoptions!$T$13),1,0) -> 0 | BG74: =IF(UIoptions!$N$35=1,IF(AND(PCdb[[#This Row],[SQ_SZ]]>UIoptions!$S$15,PCdb[[#This Row],[SQ_SZ]]<UIoptions!$T$15),1,0),1) -> 0 | BH74: =IF(UIoptions!$N$35=2,IF(AND(PCdb[[#This Row],[ROUND_D]]>UIoptions!$S$15,PCdb[[#This Row],[ROUND_D]]<UIoptions!$T$15),1,0),1) -> 1 | BI74: =IF(UIoptions!$N$75<>1,1,IF(AND(PCdb[[#This Row],[FL]]>UIoptions!$S$16,PCdb[[#This Row],[FL]]<UIoptions!$T$16),1,0)) -> 0 | BJ74: =IF(OR(UIoptions!$Q$18=PCdb[[#This Row],[THRU_SCREW]],UIoptions!$Q$18="NA"),1,0) -> 0 | BK74: =IF(OR(UIoptions!$P$19=PCdb[[#This Row],[THREAD_SZ]],UIoptions!$P$19="NA"),1,0) -> 1 | BL74: =IF(UIoptions!$N$75=1,1,IF(AND(PCdb[[#This Row],[THREAD_L]]>UIoptions!$S$17,PCdb[[#This Row],[THREAD_L]]<UIoptions!$T$17),1,0)) -> 1 | BM74: =IF(SUM(PCdb[[#This Row],[BDhit]:[THREAD_Lhit]])=11,1,0) -> 0 | BN74: =CONCATENATE(PCdb[[#This Row],[BCD]],PCdb[[#This Row],[PD]],PCdb[[#This Row],[PL (MAX)]],PCdb[[#This Row],[SD]],PCdb[[#This Row],[SL]],PCdb[[#This Row],[SQ_SZ]],PCdb[[#This Row],[ROUND_D]],PCdb[[#This Row],[FL]],PCdb[[#This Row],[THRU_SCREW]],PCdb[[#This Row],[THREAD_SZ]],PCdb[[#This Row],[THREAD_L]],PCdb[[#This Row],[NBR_HOLES]]) -> 100804143082NA10,5M6NANA4 | BO74: =SUM(PCdb[[#This Row],[BDhit]:[THREAD_Lhit]]) -> 4
A75: 72 | B75: 63 | C75: 40 | D75: 4 | E75: 9 | F75: 20 | G75: 55 | H75: NA | I75: 10 | J75: M5 | K75: NA | L75: NA | M75: 4 | N75: M5 | V75: 45.2 | W75: 25.5 | X75: 0 | Y75: Y | Z75: B | AA75: 45 | AB75: 90 | AJ75: 24 | AK75: 0 | AL75: Y | AM75: D | AN75: 45 | AO75: 90 | AP75: 25.5 | AQ75: 0 | AR75: Y | AS75: C | AT75: 45 | AU75: 90 | BB75: =IF(AND(PCdb[[#This Row],[BCD]]>UIoptions!$S$10,PCdb[[#This Row],[BCD]]<UIoptions!$T$10),1,0) -> 1 | BC75: =IF(AND(PCdb[[#This Row],[PD]]>UIoptions!$S$11,PCdb[[#This Row],[PD]]<UIoptions!$T$11),1,0) -> 1 | BD75: =IF(AND(UIoptions!$P$14<=PCdb[[#This Row],[PL (MAX)]],UIoptions!$P$14>UIoptions!$S$14),1,0) -> 1 | BE75: =IF(AND(PCdb[[#This Row],[SD]]>UIoptions!$S$12,PCdb[[#This Row],[SD]]<UIoptions!$T$12),1,0) -> 0 | BF75: =IF(AND(PCdb[[#This Row],[SL]]>UIoptions!$S$13,PCdb[[#This Row],[SL]]<UIoptions!$T$13),1,0) -> 1 | BG75: =IF(UIoptions!$N$35=1,IF(AND(PCdb[[#This Row],[SQ_SZ]]>UIoptions!$S$15,PCdb[[#This Row],[SQ_SZ]]<UIoptions!$T$15),1,0),1) -> 0 | BH75: =IF(UIoptions!$N$35=2,IF(AND(PCdb[[#This Row],[ROUND_D]]>UIoptions!$S$15,PCdb[[#This Row],[ROUND_D]]<UIoptions!$T$15),1,0),1) -> 1 | BI75: =IF(UIoptions!$N$75<>1,1,IF(AND(PCdb[[#This Row],[FL]]>UIoptions!$S$16,PCdb[[#This Row],[FL]]<UIoptions!$T$16),1,0)) -> 0 | BJ75: =IF(OR(UIoptions!$Q$18=PCdb[[#This Row],[THRU_SCREW]],UIoptions!$Q$18="NA"),1,0) -> 0 | BK75: =IF(OR(UIoptions!$P$19=PCdb[[#This Row],[THREAD_SZ]],UIoptions!$P$19="NA"),1,0) -> 1 | BL75: =IF(UIoptions!$N$75=1,1,IF(AND(PCdb[[#This Row],[THREAD_L]]>UIoptions!$S$17,PCdb[[#This Row],[THREAD_L]]<UIoptions!$T$17),1,0)) -> 1 | BM75: =IF(SUM(PCdb[[#This Row],[BDhit]:[THREAD_Lhit]])=11,1,0) -> 0 | BN75: =CONCATENATE(PCdb[[#This Row],[BCD]],PCdb[[#This Row],[PD]],PCdb[[#This Row],[PL (MAX)]],PCdb[[#This Row],[SD]],PCdb[[#This Row],[SL]],PCdb[[#This Row],[SQ_SZ]],PCdb[[#This Row],[ROUND_D]],PCdb[[#This Row],[FL]],PCdb[[#This Row],[THRU_SCREW]],PCdb[[#This Row],[THREAD_SZ]],PCdb[[#This Row],[THREAD_L]],PCdb[[#This Row],[NBR_HOLES]]) -> 6340492055NA10M5NANA4 | BO75: =SUM(PCdb[[#This Row],[BDhit]:[THREAD_Lhit]]) -> 7
A76: 73 | B76: 75 | C76: 60 | D76: 4 | E76: 14 | F76: 30 | G76: 72 | H76: NA | I76: 8 | J76: M6 | K76: NA | L76: NA | M76: 4 | N76: M6 | V76: 45.2 | W76: 32 | X76: 0 | Y76: Y | Z76: B | AA76: 45 | AB76: 90 | AP76: 32 | AQ76: 0 | AR76: Y | AS76: D | AT76: 45 | AU76: 90 | AV76: 32 | AW76: 0 | AX76: Y | AY76: C | AZ76: 45 | BA76: 90 | BB76: 1 | BC76: 1 | BD76: =IF(AND(UIoptions!$P$14<=PCdb[[#This Row],[PL (MAX)]],UIoptions!$P$14>UIoptions!$S$14),1,0) -> 1 | BE76: =IF(AND(PCdb[[#This Row],[SD]]>UIoptions!$S$12,PCdb[[#This Row],[SD]]<UIoptions!$T$12),1,0) -> 0 | BF76: =IF(AND(PCdb[[#This Row],[SL]]>UIoptions!$S$13,PCdb[[#This Row],[SL]]<UIoptions!$T$13),1,0) -> 0 | BG76: =IF(UIoptions!$N$35=1,IF(AND(PCdb[[#This Row],[SQ_SZ]]>UIoptions!$S$15,PCdb[[#This Row],[SQ_SZ]]<UIoptions!$T$15),1,0),1) -> 0 | BH76: =IF(UIoptions!$N$35=2,IF(AND(PCdb[[#This Row],[ROUND_D]]>UIoptions!$S$15,PCdb[[#This Row],[ROUND_D]]<UIoptions!$T$15),1,0),1) -> 1 | BI76: =IF(UIoptions!$N$75<>1,1,IF(AND(PCdb[[#This Row],[FL]]>UIoptions!$S$16,PCdb[[#This Row],[FL]]<UIoptions!$T$16),1,0)) -> 0 | BJ76: =IF(OR(UIoptions!$Q$18=PCdb[[#This Row],[THRU_SCREW]],UIoptions!$Q$18="NA"),1,0) -> 0 | BK76: =IF(OR(UIoptions!$P$19=PCdb[[#This Row],[THREAD_SZ]],UIoptions!$P$19="NA"),1,0) -> 1 | BL76: =IF(UIoptions!$N$75=1,1,IF(AND(PCdb[[#This Row],[THREAD_L]]>UIoptions!$S$17,PCdb[[#This Row],[THREAD_L]]<UIoptions!$T$17),1,0)) -> 1 | BM76: =IF(SUM(PCdb[[#This Row],[BDhit]:[THREAD_Lhit]])=11,1,0) -> 0 | BN76: =CONCATENATE(PCdb[[#This Row],[BCD]],PCdb[[#This Row],[PD]],PCdb[[#This Row],[PL (MAX)]],PCdb[[#This Row],[SD]],PCdb[[#This Row],[SL]],PCdb[[#This Row],[SQ_SZ]],PCdb[[#This Row],[ROUND_D]],PCdb[[#This Row],[FL]],PCdb[[#This Row],[THRU_SCREW]],PCdb[[#This Row],[THREAD_SZ]],PCdb[[#This Row],[THREAD_L]],PCdb[[#This Row],[NBR_HOLES]]) -> 75604143072NA8M6NANA4 | BO76: =SUM(PCdb[[#This Row],[BDhit]:[THREAD_Lhit]]) -> 6
A77: 74 | B77: 66.7 | C77: 38.1 | D77: 4 | E77: 6.35 | F77: 20.6 | G77: 56.9 | H77: NA | I77: 4.8 | J77: M4 | K77: NA | L77: NA | M77: 4 | N77: M4 | BB77: =IF(AND(PCdb[[#This Row],[BCD]]>UIoptions!$S$10,PCdb[[#This Row],[BCD]]<UIoptions!$T$10),1,0) -> 0 | BC77: =IF(AND(PCdb[[#This Row],[PD]]>UIoptions!$S$11,PCdb[[#This Row],[PD]]<UIoptions!$T$11),1,0) -> 0 | BD77: =IF(AND(UIoptions!$P$14<=PCdb[[#This Row],[PL (MAX)]],UIoptions!$P$14>UIoptions!$S$14),1,0) -> 1 | BE77: =IF(AND(PCdb[[#This Row],[SD]]>UIoptions!$S$12,PCdb[[#This Row],[SD]]<UIoptions!$T$12),1,0) -> 0 | BF77: =IF(AND(PCdb[[#This Row],[SL]]>UIoptions!$S$13,PCdb[[#This Row],[SL]]<UIoptions!$T$13),1,0) -> 0 | BG77: =IF(UIoptions!$N$35=1,IF(AND(PCdb[[#This Row],[SQ_SZ]]>UIoptions!$S$15,PCdb[[#This Row],[SQ_SZ]]<UIoptions!$T$15),1,0),1) -> 0 | BH77: =IF(UIoptions!$N$35=2,IF(AND(PCdb[[#This Row],[ROUND_D]]>UIoptions!$S$15,PCdb[[#This Row],[ROUND_D]]<UIoptions!$T$15),1,0),1) -> 1 | BI77: =IF(UIoptions!$N$75<>1,1,IF(AND(PCdb[[#This Row],[FL]]>UIoptions!$S$16,PCdb[[#This Row],[FL]]<UIoptions!$T$16),1,0)) -> 0 | BJ77: =IF(OR(UIoptions!$Q$18=PCdb[[#This Row],[THRU_SCREW]],UIoptions!$Q$18="NA"),1,0) -> 1 | BK77: =IF(OR(UIoptions!$P$19=PCdb[[#This Row],[THREAD_SZ]],UIoptions!$P$19="NA"),1,0) -> 1 | BL77: =IF(UIoptions!$N$75=1,1,IF(AND(PCdb[[#This Row],[THREAD_L]]>UIoptions!$S$17,PCdb[[#This Row],[THREAD_L]]<UIoptions!$T$17),1,0)) -> 1 | BM77: =IF(SUM(PCdb[[#This Row],[BDhit]:[THREAD_Lhit]])=11,1,0) -> 0 | BN77: =CONCATENATE(PCdb[[#This Row],[BCD]],PCdb[[#This Row],[PD]],PCdb[[#This Row],[PL (MAX)]],PCdb[[#This Row],[SD]],PCdb[[#This Row],[SL]],PCdb[[#This Row],[SQ_SZ]],PCdb[[#This Row],[ROUND_D]],PCdb[[#This Row],[FL]],PCdb[[#This Row],[THRU_SCREW]],PCdb[[#This Row],[THREAD_SZ]],PCdb[[#This Row],[THREAD_L]],PCdb[[#This Row],[NBR_HOLES]]) -> 66,738,146,3520,656,9NA4,8M4NANA4 | BO77: =SUM(PCdb[[#This Row],[BDhit]:[THREAD_Lhit]]) -> 5
A78: 75 | B78: 98.4 | C78: 73.03 | D78: 4 | E78: 9.53 | F78: 30.2 | G78: 86 | H78: NA | I78: 4.8 | J78: M5 | K78: NA | L78: NA | M78: 4 | N78: M5 | BB78: =IF(AND(PCdb[[#This Row],[BCD]]>UIoptions!$S$10,PCdb[[#This Row],[BCD]]<UIoptions!$T$10),1,0) -> 0 | BC78: =IF(AND(PCdb[[#This Row],[PD]]>UIoptions!$S$11,PCdb[[#This Row],[PD]]<UIoptions!$T$11),1,0) -> 0 | BD78: =IF(AND(UIoptions!$P$14<=PCdb[[#This Row],[PL (MAX)]],UIoptions!$P$14>UIoptions!$S$14),1,0) -> 1 | BE78: =IF(AND(PCdb[[#This Row],[SD]]>UIoptions!$S$12,PCdb[[#This Row],[SD]]<UIoptions!$T$12),1,0) -> 0 | BF78: =IF(AND(PCdb[[#This Row],[SL]]>UIoptions!$S$13,PCdb[[#This Row],[SL]]<UIoptions!$T$13),1,0) -> 0 | BG78: =IF(UIoptions!$N$35=1,IF(AND(PCdb[[#This Row],[SQ_SZ]]>UIoptions!$S$15,PCdb[[#This Row],[SQ_SZ]]<UIoptions!$T$15),1,0),1) -> 0 | BH78: =IF(UIoptions!$N$35=2,IF(AND(PCdb[[#This Row],[ROUND_D]]>UIoptions!$S$15,PCdb[[#This Row],[ROUND_D]]<UIoptions!$T$15),1,0),1) -> 1 | BI78: =IF(UIoptions!$N$75<>1,1,IF(AND(PCdb[[#This Row],[FL]]>UIoptions!$S$16,PCdb[[#This Row],[FL]]<UIoptions!$T$16),1,0)) -> 0 | BJ78: =IF(OR(UIoptions!$Q$18=PCdb[[#This Row],[THRU_SCREW]],UIoptions!$Q$18="NA"),1,0) -> 0 | BK78: =IF(OR(UIoptions!$P$19=PCdb[[#This Row],[THREAD_SZ]],UIoptions!$P$19="NA"),1,0) -> 1 | BL78: =IF(UIoptions!$N$75=1,1,IF(AND(PCdb[[#This Row],[THREAD_L]]>UIoptions!$S$17,PCdb[[#This Row],[THREAD_L]]<UIoptions!$T$17),1,0)) -> 1 | BM78: =IF(SUM(PCdb[[#This Row],[BDhit]:[THREAD_Lhit]])=11,1,0) -> 0 | BN78: =CONCATENATE(PCdb[[#This Row],[BCD]],PCdb[[#This Row],[PD]],PCdb[[#This Row],[PL (MAX)]],PCdb[[#This Row],[SD]],PCdb[[#This Row],[SL]],PCdb[[#This Row],[SQ_SZ]],PCdb[[#This Row],[ROUND_D]],PCdb[[#This Row],[FL]],PCdb[[#This Row],[THRU_SCREW]],PCdb[[#This Row],[THREAD_SZ]],PCdb[[#This Row],[THREAD_L]],PCdb[[#This Row],[NBR_HOLES]]) -> 98,473,0349,5330,286NA4,8M5NANA4 | BO78: =SUM(PCdb[[#This Row],[BDhit]:[THREAD_Lhit]]) -> 4
A79: 76 | B79: 70 | C79: 50 | D79: 4 | E79: 8 | F79: 25 | G79: 60 | H79: NA | I79: 6 | J79: M5 | K79: NA | L79: NA | M79: 4 | N79: M5 | AJ79: 27 | AK79: NA | AL79: Y | AM79: D | AN79: 45 | AO79: 90 | BB79: =IF(AND(PCdb[[#This Row],[BCD]]>UIoptions!$S$10,PCdb[[#This Row],[BCD]]<UIoptions!$T$10),1,0) -> 0 | BC79: =IF(AND(PCdb[[#This Row],[PD]]>UIoptions!$S$11,PCdb[[#This Row],[PD]]<UIoptions!$T$11),1,0) -> 0 | BD79: =IF(AND(UIoptions!$P$14<=PCdb[[#This Row],[PL (MAX)]],UIoptions!$P$14>UIoptions!$S$14),1,0) -> 1 | BE79: =IF(AND(PCdb[[#This Row],[SD]]>UIoptions!$S$12,PCdb[[#This Row],[SD]]<UIoptions!$T$12),1,0) -> 0 | BF79: =IF(AND(PCdb[[#This Row],[SL]]>UIoptions!$S$13,PCdb[[#This Row],[SL]]<UIoptions!$T$13),1,0) -> 0 | BG79: =IF(UIoptions!$N$35=1,IF(AND(PCdb[[#This Row],[SQ_SZ]]>UIoptions!$S$15,PCdb[[#This Row],[SQ_SZ]]<UIoptions!$T$15),1,0),1) -> 0 | BH79: =IF(UIoptions!$N$35=2,IF(AND(PCdb[[#This Row],[ROUND_D]]>UIoptions!$S$15,PCdb[[#This Row],[ROUND_D]]<UIoptions!$T$15),1,0),1) -> 1 | BI79: =IF(UIoptions!$N$75<>1,1,IF(AND(PCdb[[#This Row],[FL]]>UIoptions!$S$16,PCdb[[#This Row],[FL]]<UIoptions!$T$16),1,0)) -> 0 | BJ79: =IF(OR(UIoptions!$Q$18=PCdb[[#This Row],[THRU_SCREW]],UIoptions!$Q$18="NA"),1,0) -> 0 | BK79: =IF(OR(UIoptions!$P$19=PCdb[[#This Row],[THREAD_SZ]],UIoptions!$P$19="NA"),1,0) -> 1 | BL79: =IF(UIoptions!$N$75=1,1,IF(AND(PCdb[[#This Row],[THREAD_L]]>UIoptions!$S$17,PCdb[[#This Row],[THREAD_L]]<UIoptions!$T$17),1,0)) -> 1 | BM79: =IF(SUM(PCdb[[#This Row],[BDhit]:[THREAD_Lhit]])=11,1,0) -> 0 | BN79: =CONCATENATE(PCdb[[#This Row],[BCD]],PCdb[[#This Row],[PD]],PCdb[[#This Row],[PL (MAX)]],PCdb[[#This Row],[SD]],PCdb[[#This Row],[SL]],PCdb[[#This Row],[SQ_SZ]],PCdb[[#This Row],[ROUND_D]],PCdb[[#This Row],[FL]],PCdb[[#This Row],[THRU_SCREW]],PCdb[[#This Row],[THREAD_SZ]],PCdb[[#This Row],[THREAD_L]],PCdb[[#This Row],[NBR_HOLES]]) -> 7050482560NA6M5NANA4 | BO79: =SUM(PCdb[[#This Row],[BDhit]:[THREAD_Lhit]]) -> 4
A80: 77 | B80: 90 | C80: 70 | D80: 4 | E80: 14 | F80: 30 | G80: 80 | H80: NA | I80: 8 | J80: M6 | K80: NA | L80: NA | M80: 4 | N80: M6 | AV80: 40 | AW80: 0 | AX80: Y | AY80: D | AZ80: 45 | BA80: 90 | BB80: =IF(AND(PCdb[[#This Row],[BCD]]>UIoptions!$S$10,PCdb[[#This Row],[BCD]]<UIoptions!$T$10),1,0) -> 0 | BC80: =IF(AND(PCdb[[#This Row],[PD]]>UIoptions!$S$11,PCdb[[#This Row],[PD]]<UIoptions!$T$11),1,0) -> 0 | BD80: =IF(AND(UIoptions!$P$14<=PCdb[[#This Row],[PL (MAX)]],UIoptions!$P$14>UIoptions!$S$14),1,0) -> 1 | BE80: =IF(AND(PCdb[[#This Row],[SD]]>UIoptions!$S$12,PCdb[[#This Row],[SD]]<UIoptions!$T$12),1,0) -> 0 | BF80: =IF(AND(PCdb[[#This Row],[SL]]>UIoptions!$S$13,PCdb[[#This Row],[SL]]<UIoptions!$T$13),1,0) -> 0 | BG80: =IF(UIoptions!$N$35=1,IF(AND(PCdb[[#This Row],[SQ_SZ]]>UIoptions!$S$15,PCdb[[#This Row],[SQ_SZ]]<UIoptions!$T$15),1,0),1) -> 0 | BH80: =IF(UIoptions!$N$35=2,IF(AND(PCdb[[#This Row],[ROUND_D]]>UIoptions!$S$15,PCdb[[#This Row],[ROUND_D]]<UIoptions!$T$15),1,0),1) -> 1 | BI80: =IF(UIoptions!$N$75<>1,1,IF(AND(PCdb[[#This Row],[FL]]>UIoptions!$S$16,PCdb[[#This Row],[FL]]<UIoptions!$T$16),1,0)) -> 0 | BJ80: =IF(OR(UIoptions!$Q$18=PCdb[[#This Row],[THRU_SCREW]],UIoptions!$Q$18="NA"),1,0) -> 0 | BK80: =IF(OR(UIoptions!$P$19=PCdb[[#This Row],[THREAD_SZ]],UIoptions!$P$19="NA"),1,0) -> 1 | BL80: =IF(UIoptions!$N$75=1,1,IF(AND(PCdb[[#This Row],[THREAD_L]]>UIoptions!$S$17,PCdb[[#This Row],[THREAD_L]]<UIoptions!$T$17),1,0)) -> 1 | BM80: =IF(SUM(PCdb[[#This Row],[BDhit]:[THREAD_Lhit]])=11,1,0) -> 0 | BN80: =CONCATENATE(PCdb[[#This Row],[BCD]],PCdb[[#This Row],[PD]],PCdb[[#This Row],[PL (MAX)]],PCdb[[#This Row],[SD]],PCdb[[#This Row],[SL]],PCdb[[#This Row],[SQ_SZ]],PCdb[[#This Row],[ROUND_D]],PCdb[[#This Row],[FL]],PCdb[[#This Row],[THRU_SCREW]],PCdb[[#This Row],[THREAD_SZ]],PCdb[[#This Row],[THREAD_L]],PCdb[[#This Row],[NBR_HOLES]]) -> 90704143080NA8M6NANA4 | BO80: =SUM(PCdb[[#This Row],[BDhit]:[THREAD_Lhit]]) -> 4
A81: 78 | B81: 34 | C81: 25 | D81: 4 | E81: 8 | F81: 25 | G81: 42 | H81: NA | I81: NA | J81: NA | K81: M3 | L81: 8 | M81: 4 | N81: 3.5 | AJ81: NA | AK81: NA | AL81: Y | AM81: C2 | AN81: 45 | AO81: 90 | BB81: =IF(AND(PCdb[[#This Row],[BCD]]>UIoptions!$S$10,PCdb[[#This Row],[BCD]]<UIoptions!$T$10),1,0) -> 0 | BC81: =IF(AND(PCdb[[#This Row],[PD]]>UIoptions!$S$11,PCdb[[#This Row],[PD]]<UIoptions!$T$11),1,0) -> 0 | BD81: =IF(AND(UIoptions!$P$14<=PCdb[[#This Row],[PL (MAX)]],UIoptions!$P$14>UIoptions!$S$14),1,0) -> 1 | BE81: =IF(AND(PCdb[[#This Row],[SD]]>UIoptions!$S$12,PCdb[[#This Row],[SD]]<UIoptions!$T$12),1,0) -> 0 | BF81: =IF(AND(PCdb[[#This Row],[SL]]>UIoptions!$S$13,PCdb[[#This Row],[SL]]<UIoptions!$T$13),1,0) -> 0 | BG81: =IF(UIoptions!$N$35=1,IF(AND(PCdb[[#This Row],[SQ_SZ]]>UIoptions!$S$15,PCdb[[#This Row],[SQ_SZ]]<UIoptions!$T$15),1,0),1) -> 0 | BH81: =IF(UIoptions!$N$35=2,IF(AND(PCdb[[#This Row],[ROUND_D]]>UIoptions!$S$15,PCdb[[#This Row],[ROUND_D]]<UIoptions!$T$15),1,0),1) -> 1 | BI81: =IF(UIoptions!$N$75<>1,1,IF(AND(PCdb[[#This Row],[FL]]>UIoptions!$S$16,PCdb[[#This Row],[FL]]<UIoptions!$T$16),1,0)) -> 0 | BJ81: =IF(OR(UIoptions!$Q$18=PCdb[[#This Row],[THRU_SCREW]],UIoptions!$Q$18="NA"),1,0) -> 0 | BK81: =IF(OR(UIoptions!$P$19=PCdb[[#This Row],[THREAD_SZ]],UIoptions!$P$19="NA"),1,0) -> 1 | BL81: =IF(UIoptions!$N$75=1,1,IF(AND(PCdb[[#This Row],[THREAD_L]]>UIoptions!$S$17,PCdb[[#This Row],[THREAD_L]]<UIoptions!$T$17),1,0)) -> 1 | BM81: =IF(SUM(PCdb[[#This Row],[BDhit]:[THREAD_Lhit]])=11,1,0) -> 0 | BN81: =CONCATENATE(PCdb[[#This Row],[BCD]],PCdb[[#This Row],[PD]],PCdb[[#This Row],[PL (MAX)]],PCdb[[#This Row],[SD]],PCdb[[#This Row],[SL]],PCdb[[#This Row],[SQ_SZ]],PCdb[[#This Row],[ROUND_D]],PCdb[[#This Row],[FL]],PCdb[[#This Row],[THRU_SCREW]],PCdb[[#This Row],[THREAD_SZ]],PCdb[[#This Row],[THREAD_L]],PCdb[[#This Row],[NBR_HOLES]]) -> 3425482542NANANAM384 | BO81: =SUM(PCdb[[#This Row],[BDhit]:[THREAD_Lhit]]) -> 4
A82: 79 | B82: 100 | C82: 80 | D82: 4 | E82: 14 | F82: 30 | G82: 91.3 | H82: NA | I82: 11 | J82: M6 | K82: NA | L82: NA | M82: 4 | N82: M6 | AC82: 48.7 | AD82: 42 | AE82: NA | AF82: Y | AG82: B | AH82: 45 | AI82: 90 | BB82: =IF(AND(PCdb[[#This Row],[BCD]]>UIoptions!$S$10,PCdb[[#This Row],[BCD]]<UIoptions!$T$10),1,0) -> 0 | BC82: =IF(AND(PCdb[[#This Row],[PD]]>UIoptions!$S$11,PCdb[[#This Row],[PD]]<UIoptions!$T$11),1,0) -> 0 | BD82: =IF(AND(UIoptions!$P$14<=PCdb[[#This Row],[PL (MAX)]],UIoptions!$P$14>UIoptions!$S$14),1,0) -> 1 | BE82: =IF(AND(PCdb[[#This Row],[SD]]>UIoptions!$S$12,PCdb[[#This Row],[SD]]<UIoptions!$T$12),1,0) -> 0 | BF82: =IF(AND(PCdb[[#This Row],[SL]]>UIoptions!$S$13,PCdb[[#This Row],[SL]]<UIoptions!$T$13),1,0) -> 0 | BG82: =IF(UIoptions!$N$35=1,IF(AND(PCdb[[#This Row],[SQ_SZ]]>UIoptions!$S$15,PCdb[[#This Row],[SQ_SZ]]<UIoptions!$T$15),1,0),1) -> 0 | BH82: =IF(UIoptions!$N$35=2,IF(AND(PCdb[[#This Row],[ROUND_D]]>UIoptions!$S$15,PCdb[[#This Row],[ROUND_D]]<UIoptions!$T$15),1,0),1) -> 1 | BI82: =IF(UIoptions!$N$75<>1,1,IF(AND(PCdb[[#This Row],[FL]]>UIoptions!$S$16,PCdb[[#This Row],[FL]]<UIoptions!$T$16),1,0)) -> 0 | BJ82: =IF(OR(UIoptions!$Q$18=PCdb[[#This Row],[THRU_SCREW]],UIoptions!$Q$18="NA"),1,0) -> 0 | BK82: =IF(OR(UIoptions!$P$19=PCdb[[#This Row],[THREAD_SZ]],UIoptions!$P$19="NA"),1,0) -> 1 | BL82: =IF(UIoptions!$N$75=1,1,IF(AND(PCdb[[#This Row],[THREAD_L]]>UIoptions!$S$17,PCdb[[#This Row],[THREAD_L]]<UIoptions!$T$17),1,0)) -> 1 | BM82: =IF(SUM(PCdb[[#This Row],[BDhit]:[THREAD_Lhit]])=11,1,0) -> 0 | BN82: =CONCATENATE(PCdb[[#This Row],[BCD]],PCdb[[#This Row],[PD]],PCdb[[#This Row],[PL (MAX)]],PCdb[[#This Row],[SD]],PCdb[[#This Row],[SL]],PCdb[[#This Row],[SQ_SZ]],PCdb[[#This Row],[ROUND_D]],PCdb[[#This Row],[FL]],PCdb[[#This Row],[THRU_SCREW]],PCdb[[#This Row],[THREAD_SZ]],PCdb[[#This Row],[THREAD_L]],PCdb[[#This Row],[NBR_HOLES]]) -> 100804143091,3NA11M6NANA4 | BO82: =SUM(PCdb[[#This Row],[BDhit]:[THREAD_Lhit]]) -> 4
A83: 80 | B83: 46 | C83: 30 | D83: 4 | E83: 8 | F83: 25 | G83: 40 | H83: NA | I83: 6 | J83: M4 | K83: NA | L83: NA | M83: 4 | N83: M4 | O83: 38.7 | P83: 3 | Q83: 32 | R83: Y | S83: A | T83: 45 | U83: 90 | AJ83: 18 | AK83: 0 | AL83: Y | AM83: C | AN83: 45 | AO83: 90 | BB83: =IF(AND(PCdb[[#This Row],[BCD]]>UIoptions!$S$10,PCdb[[#This Row],[BCD]]<UIoptions!$T$10),1,0) -> 0 | BC83: =IF(AND(PCdb[[#This Row],[PD]]>UIoptions!$S$11,PCdb[[#This Row],[PD]]<UIoptions!$T$11),1,0) -> 0 | BD83: =IF(AND(UIoptions!$P$14<=PCdb[[#This Row],[PL (MAX)]],UIoptions!$P$14>UIoptions!$S$14),1,0) -> 1 | BE83: =IF(AND(PCdb[[#This Row],[SD]]>UIoptions!$S$12,PCdb[[#This Row],[SD]]<UIoptions!$T$12),1,0) -> 0 | BF83: =IF(AND(PCdb[[#This Row],[SL]]>UIoptions!$S$13,PCdb[[#This Row],[SL]]<UIoptions!$T$13),1,0) -> 0 | BG83: =IF(UIoptions!$N$35=1,IF(AND(PCdb[[#This Row],[SQ_SZ]]>UIoptions!$S$15,PCdb[[#This Row],[SQ_SZ]]<UIoptions!$T$15),1,0),1) -> 0 | BH83: =IF(UIoptions!$N$35=2,IF(AND(PCdb[[#This Row],[ROUND_D]]>UIoptions!$S$15,PCdb[[#This Row],[ROUND_D]]<UIoptions!$T$15),1,0),1) -> 1 | BI83: =IF(UIoptions!$N$75<>1,1,IF(AND(PCdb[[#This Row],[FL]]>UIoptions!$S$16,PCdb[[#This Row],[FL]]<UIoptions!$T$16),1,0)) -> 0 | BJ83: =IF(OR(UIoptions!$Q$18=PCdb[[#This Row],[THRU_SCREW]],UIoptions!$Q$18="NA"),1,0) -> 1 | BK83: =IF(OR(UIoptions!$P$19=PCdb[[#This Row],[THREAD_SZ]],UIoptions!$P$19="NA"),1,0) -> 1 | BL83: =IF(UIoptions!$N$75=1,1,IF(AND(PCdb[[#This Row],[THREAD_L]]>UIoptions!$S$17,PCdb[[#This Row],[THREAD_L]]<UIoptions!$T$17),1,0)) -> 1 | BM83: =IF(SUM(PCdb[[#This Row],[BDhit]:[THREAD_Lhit]])=11,1,0) -> 0 | BN83: =CONCATENATE(PCdb[[#This Row],[BCD]],PCdb[[#This Row],[PD]],PCdb[[#This Row],[PL (MAX)]],PCdb[[#This Row],[SD]],PCdb[[#This Row],[SL]],PCdb[[#This Row],[SQ_SZ]],PCdb[[#This Row],[ROUND_D]],PCdb[[#This Row],[FL]],PCdb[[#This Row],[THRU_SCREW]],PCdb[[#This Row],[THREAD_SZ]],PCdb[[#This Row],[THREAD_L]],PCdb[[#This Row],[NBR_HOLES]]) -> 4630482540NA6M4NANA4 | BO83: =SUM(PCdb[[#This Row],[BDhit]:[THREAD_Lhit]]) -> 5
A84: 81 | B84: 70 | C84: 50 | D84: 4 | E84: 14 | F84: 30 | G84: 58 | H84: NA | I84: 6.1 | J84: M5 | K84: NA | L84: NA | M84: 4 | N84: M5 | BB84: =IF(AND(PCdb[[#This Row],[BCD]]>UIoptions!$S$10,PCdb[[#This Row],[BCD]]<UIoptions!$T$10),1,0) -> 0 | BC84: =IF(AND(PCdb[[#This Row],[PD]]>UIoptions!$S$11,PCdb[[#This Row],[PD]]<UIoptions!$T$11),1,0) -> 0 | BD84: =IF(AND(UIoptions!$P$14<=PCdb[[#This Row],[PL (MAX)]],UIoptions!$P$14>UIoptions!$S$14),1,0) -> 1 | BE84: =IF(AND(PCdb[[#This Row],[SD]]>UIoptions!$S$12,PCdb[[#This Row],[SD]]<UIoptions!$T$12),1,0) -> 0 | BF84: =IF(AND(PCdb[[#This Row],[SL]]>UIoptions!$S$13,PCdb[[#This Row],[SL]]<UIoptions!$T$13),1,0) -> 0 | BG84: =IF(UIoptions!$N$35=1,IF(AND(PCdb[[#This Row],[SQ_SZ]]>UIoptions!$S$15,PCdb[[#This Row],[SQ_SZ]]<UIoptions!$T$15),1,0),1) -> 1 | BH84: =IF(UIoptions!$N$35=2,IF(AND(PCdb[[#This Row],[ROUND_D]]>UIoptions!$S$15,PCdb[[#This Row],[ROUND_D]]<UIoptions!$T$15),1,0),1) -> 1 | BI84: =IF(UIoptions!$N$75<>1,1,IF(AND(PCdb[[#This Row],[FL]]>UIoptions!$S$16,PCdb[[#This Row],[FL]]<UIoptions!$T$16),1,0)) -> 0 | BJ84: =IF(OR(UIoptions!$Q$18=PCdb[[#This Row],[THRU_SCREW]],UIoptions!$Q$18="NA"),1,0) -> 0 | BK84: =IF(OR(UIoptions!$P$19=PCdb[[#This Row],[THREAD_SZ]],UIoptions!$P$19="NA"),1,0) -> 1 | BL84: =IF(UIoptions!$N$75=1,1,IF(AND(PCdb[[#This Row],[THREAD_L]]>UIoptions!$S$17,PCdb[[#This Row],[THREAD_L]]<UIoptions!$T$17),1,0)) -> 1 | BM84: =IF(SUM(PCdb[[#This Row],[BDhit]:[THREAD_Lhit]])=11,1,0) -> 0 | BN84: =CONCATENATE(PCdb[[#This Row],[BCD]],PCdb[[#This Row],[PD]],PCdb[[#This Row],[PL (MAX)]],PCdb[[#This Row],[SD]],PCdb[[#This Row],[SL]],PCdb[[#This Row],[SQ_SZ]],PCdb[[#This Row],[ROUND_D]],PCdb[[#This Row],[FL]],PCdb[[#This Row],[THRU_SCREW]],PCdb[[#This Row],[THREAD_SZ]],PCdb[[#This Row],[THREAD_L]],PCdb[[#This Row],[NBR_HOLES]]) -> 70504143058NA6,1M5NANA4 | BO84: =SUM(PCdb[[#This Row],[BDhit]:[THREAD_Lhit]]) -> 5
A85: 82 | B85: 66.7 | C85: 38.1 | D85: 4 | E85: 9.53 | F85: 20.6 | G85: 58 | H85: NA | I85: 6.1 | J85: M4 | K85: NA | L85: NA | M85: 4 | N85: M4 | O85: 38.7 | P85: 22 | Q85: NA | R85: Y | S85: B | T85: 45 | U85: 90 | BB85: =IF(AND(PCdb[[#This Row],[BCD]]>UIoptions!$S$10,PCdb[[#This Row],[BCD]]<UIoptions!$T$10),1,0) -> 0 | BC85: =IF(AND(PCdb[[#This Row],[PD]]>UIoptions!$S$11,PCdb[[#This Row],[PD]]<UIoptions!$T$11),1,0) -> 0 | BD85: =IF(AND(UIoptions!$P$14<=PCdb[[#This Row],[PL (MAX)]],UIoptions!$P$14>UIoptions!$S$14),1,0) -> 1 | BE85: =IF(AND(PCdb[[#This Row],[SD]]>UIoptions!$S$12,PCdb[[#This Row],[SD]]<UIoptions!$T$12),1,0) -> 0 | BF85: =IF(AND(PCdb[[#This Row],[SL]]>UIoptions!$S$13,PCdb[[#This Row],[SL]]<UIoptions!$T$13),1,0) -> 0 | BG85: =IF(UIoptions!$N$35=1,IF(AND(PCdb[[#This Row],[SQ_SZ]]>UIoptions!$S$15,PCdb[[#This Row],[SQ_SZ]]<UIoptions!$T$15),1,0),1) -> 1 | BH85: =IF(UIoptions!$N$35=2,IF(AND(PCdb[[#This Row],[ROUND_D]]>UIoptions!$S$15,PCdb[[#This Row],[ROUND_D]]<UIoptions!$T$15),1,0),1) -> 1 | BI85: =IF(UIoptions!$N$75<>1,1,IF(AND(PCdb[[#This Row],[FL]]>UIoptions!$S$16,PCdb[[#This Row],[FL]]<UIoptions!$T$16),1,0)) -> 0 | BJ85: =IF(OR(UIoptions!$Q$18=PCdb[[#This Row],[THRU_SCREW]],UIoptions!$Q$18="NA"),1,0) -> 1 | BK85: =IF(OR(UIoptions!$P$19=PCdb[[#This Row],[THREAD_SZ]],UIoptions!$P$19="NA"),1,0) -> 1 | BL85: =IF(UIoptions!$N$75=1,1,IF(AND(PCdb[[#This Row],[THREAD_L]]>UIoptions!$S$17,PCdb[[#This Row],[THREAD_L]]<UIoptions!$T$17),1,0)) -> 1 | BM85: =IF(SUM(PCdb[[#This Row],[BDhit]:[THREAD_Lhit]])=11,1,0) -> 0 | BN85: =CONCATENATE(PCdb[[#This Row],[BCD]],PCdb[[#This Row],[PD]],PCdb[[#This Row],[PL (MAX)]],PCdb[[#This Row],[SD]],PCdb[[#This Row],[SL]],PCdb[[#This Row],[SQ_SZ]],PCdb[[#This Row],[ROUND_D]],PCdb[[#This Row],[FL]],PCdb[[#This Row],[THRU_SCREW]],PCdb[[#This Row],[THREAD_SZ]],PCdb[[#This Row],[THREAD_L]],PCdb[[#This Row],[NBR_HOLES]]) -> 66,738,149,5320,658NA6,1M4NANA4 | BO85: =SUM(PCdb[[#This Row],[BDhit]:[THREAD_Lhit]]) -> 6
A86: 83 | B86: 66.7 | C86: 38.1 | D86: 4 | E86: 6.35 | F86: 20.6 | G86: 57.9 | H86: NA | I86: 6.1 | J86: M4 | K86: NA | L86: NA | M86: 4 | N86: M4 | BB86: =IF(AND(PCdb[[#This Row],[BCD]]>UIoptions!$S$10,PCdb[[#This Row],[BCD]]<UIoptions!$T$10),1,0) -> 0 | BC86: =IF(AND(PCdb[[#This Row],[PD]]>UIoptions!$S$11,PCdb[[#This Row],[PD]]<UIoptions!$T$11),1,0) -> 0 | BD86: =IF(AND(UIoptions!$P$14<=PCdb[[#This Row],[PL (MAX)]],UIoptions!$P$14>UIoptions!$S$14),1,0) -> 1 | BE86: =IF(AND(PCdb[[#This Row],[SD]]>UIoptions!$S$12,PCdb[[#This Row],[SD]]<UIoptions!$T$12),1,0) -> 0 | BF86: =IF(AND(PCdb[[#This Row],[SL]]>UIoptions!$S$13,PCdb[[#This Row],[SL]]<UIoptions!$T$13),1,0) -> 0 | BG86: =IF(UIoptions!$N$35=1,IF(AND(PCdb[[#This Row],[SQ_SZ]]>UIoptions!$S$15,PCdb[[#This Row],[SQ_SZ]]<UIoptions!$T$15),1,0),1) -> 1 | BH86: =IF(UIoptions!$N$35=2,IF(AND(PCdb[[#This Row],[ROUND_D]]>UIoptions!$S$15,PCdb[[#This Row],[ROUND_D]]<UIoptions!$T$15),1,0),1) -> 1 | BI86: =IF(UIoptions!$N$75<>1,1,IF(AND(PCdb[[#This Row],[FL]]>UIoptions!$S$16,PCdb[[#This Row],[FL]]<UIoptions!$T$16),1,0)) -> 0 | BJ86: =IF(OR(UIoptions!$Q$18=PCdb[[#This Row],[THRU_SCREW]],UIoptions!$Q$18="NA"),1,0) -> 1 | BK86: =IF(OR(UIoptions!$P$19=PCdb[[#This Row],[THREAD_SZ]],UIoptions!$P$19="NA"),1,0) -> 1 | BL86: =IF(UIoptions!$N$75=1,1,IF(AND(PCdb[[#This Row],[THREAD_L]]>UIoptions!$S$17,PCdb[[#This Row],[THREAD_L]]<UIoptions!$T$17),1,0)) -> 1 | BM86: =IF(SUM(PCdb[[#This Row],[BDhit]:[THREAD_Lhit]])=11,1,0) -> 0 | BN86: =CONCATENATE(PCdb[[#This Row],[BCD]],PCdb[[#This Row],[PD]],PCdb[[#This Row],[PL (MAX)]],PCdb[[#This Row],[SD]],PCdb[[#This Row],[SL]],PCdb[[#This Row],[SQ_SZ]],PCdb[[#This Row],[ROUND_D]],PCdb[[#This Row],[FL]],PCdb[[#This Row],[THRU_SCREW]],PCdb[[#This Row],[THREAD_SZ]],PCdb[[#This Row],[THREAD_L]],PCdb[[#This Row],[NBR_HOLES]]) -> 66,738,146,3520,657,9NA6,1M4NANA4 | BO86: =SUM(PCdb[[#This Row],[BDhit]:[THREAD_Lhit]]) -> 6
A87: 84 | B87: 100 | C87: 80 | D87: 4 | E87: 14 | F87: 30 | G87: 86 | H87: NA | I87: 8.4 | J87: M6 | K87: NA | L87: NA | M87: 4 | N87: M6 | BB87: =IF(AND(PCdb[[#This Row],[BCD]]>UIoptions!$S$10,PCdb[[#This Row],[BCD]]<UIoptions!$T$10),1,0) -> 0 | BC87: =IF(AND(PCdb[[#This Row],[PD]]>UIoptions!$S$11,PCdb[[#This Row],[PD]]<UIoptions!$T$11),1,0) -> 0 | BD87: =IF(AND(UIoptions!$P$14<=PCdb[[#This Row],[PL (MAX)]],UIoptions!$P$14>UIoptions!$S$14),1,0) -> 1 | BE87: =IF(AND(PCdb[[#This Row],[SD]]>UIoptions!$S$12,PCdb[[#This Row],[SD]]<UIoptions!$T$12),1,0) -> 0 | BF87: =IF(AND(PCdb[[#This Row],[SL]]>UIoptions!$S$13,PCdb[[#This Row],[SL]]<UIoptions!$T$13),1,0) -> 0 | BG87: =IF(UIoptions!$N$35=1,IF(AND(PCdb[[#This Row],[SQ_SZ]]>UIoptions!$S$15,PCdb[[#This Row],[SQ_SZ]]<UIoptions!$T$15),1,0),1) -> 0 | BH87: =IF(UIoptions!$N$35=2,IF(AND(PCdb[[#This Row],[ROUND_D]]>UIoptions!$S$15,PCdb[[#This Row],[ROUND_D]]<UIoptions!$T$15),1,0),1) -> 1 | BI87: =IF(UIoptions!$N$75<>1,1,IF(AND(PCdb[[#This Row],[FL]]>UIoptions!$S$16,PCdb[[#This Row],[FL]]<UIoptions!$T$16),1,0)) -> 0 | BJ87: =IF(OR(UIoptions!$Q$18=PCdb[[#This Row],[THRU_SCREW]],UIoptions!$Q$18="NA"),1,0) -> 0 | BK87: =IF(OR(UIoptions!$P$19=PCdb[[#This Row],[THREAD_SZ]],UIoptions!$P$19="NA"),1,0) -> 1 | BL87: =IF(UIoptions!$N$75=1,1,IF(AND(PCdb[[#This Row],[THREAD_L]]>UIoptions!$S$17,PCdb[[#This Row],[THREAD_L]]<UIoptions!$T$17),1,0)) -> 1 | BM87: =IF(SUM(PCdb[[#This Row],[BDhit]:[THREAD_Lhit]])=11,1,0) -> 0 | BN87: =CONCATENATE(PCdb[[#This Row],[BCD]],PCdb[[#This Row],[PD]],PCdb[[#This Row],[PL (MAX)]],PCdb[[#This Row],[SD]],PCdb[[#This Row],[SL]],PCdb[[#This Row],[SQ_SZ]],PCdb[[#This Row],[ROUND_D]],PCdb[[#This Row],[FL]],PCdb[[#This Row],[THRU_SCREW]],PCdb[[#This Row],[THREAD_SZ]],PCdb[[#This Row],[THREAD_L]],PCdb[[#This Row],[NBR_HOLES]]) -> 100804143086NA8,4M6NANA4 | BO87: =SUM(PCdb[[#This Row],[BDhit]:[THREAD_Lhit]]) -> 4
A88: 85 | B88: 98.4 | C88: 73.03 | D88: 4 | E88: 12.7 | F88: 31.8 | G88: 85.9 | H88: NA | I88: 8.4 | J88: M5 | K88: NA | L88: NA | M88: 4 | N88: M5 | AV88: 40 | AW88: NA | AX88: Y | AY88: D | AZ88: 45 | BA88: 90 | BB88: =IF(AND(PCdb[[#This Row],[BCD]]>UIoptions!$S$10,PCdb[[#This Row],[BCD]]<UIoptions!$T$10),1,0) -> 0 | BC88: =IF(AND(PCdb[[#This Row],[PD]]>UIoptions!$S$11,PCdb[[#This Row],[PD]]<UIoptions!$T$11),1,0) -> 0 | BD88: =IF(AND(UIoptions!$P$14<=PCdb[[#This Row],[PL (MAX)]],UIoptions!$P$14>UIoptions!$S$14),1,0) -> 1 | BE88: =IF(AND(PCdb[[#This Row],[SD]]>UIoptions!$S$12,PCdb[[#This Row],[SD]]<UIoptions!$T$12),1,0) -> 0 | BF88: =IF(AND(PCdb[[#This Row],[SL]]>UIoptions!$S$13,PCdb[[#This Row],[SL]]<UIoptions!$T$13),1,0) -> 0 | BG88: =IF(UIoptions!$N$35=1,IF(AND(PCdb[[#This Row],[SQ_SZ]]>UIoptions!$S$15,PCdb[[#This Row],[SQ_SZ]]<UIoptions!$T$15),1,0),1) -> 0 | BH88: =IF(UIoptions!$N$35=2,IF(AND(PCdb[[#This Row],[ROUND_D]]>UIoptions!$S$15,PCdb[[#This Row],[ROUND_D]]<UIoptions!$T$15),1,0),1) -> 1 | BI88: =IF(UIoptions!$N$75<>1,1,IF(AND(PCdb[[#This Row],[FL]]>UIoptions!$S$16,PCdb[[#This Row],[FL]]<UIoptions!$T$16),1,0)) -> 0 | BJ88: =IF(OR(UIoptions!$Q$18=PCdb[[#This Row],[THRU_SCREW]],UIoptions!$Q$18="NA"),1,0) -> 0 | BK88: =IF(OR(UIoptions!$P$19=PCdb[[#This Row],[THREAD_SZ]],UIoptions!$P$19="NA"),1,0) -> 1 | BL88: =IF(UIoptions!$N$75=1,1,IF(AND(PCdb[[#This Row],[THREAD_L]]>UIoptions!$S$17,PCdb[[#This Row],[THREAD_L]]<UIoptions!$T$17),1,0)) -> 1 | BM88: =IF(SUM(PCdb[[#This Row],[BDhit]:[THREAD_Lhit]])=11,1,0) -> 0 | BN88: =CONCATENATE(PCdb[[#This Row],[BCD]],PCdb[[#This Row],[PD]],PCdb[[#This Row],[PL (MAX)]],PCdb[[#This Row],[SD]],PCdb[[#This Row],[SL]],PCdb[[#This Row],[SQ_SZ]],PCdb[[#This Row],[ROUND_D]],PCdb[[#This Row],[FL]],PCdb[[#This Row],[THRU_SCREW]],PCdb[[#This Row],[THREAD_SZ]],PCdb[[#This Row],[THREAD_L]],PCdb[[#This Row],[NBR_HOLES]]) -> 98,473,03412,731,885,9NA8,4M5NANA4 | BO88: =SUM(PCdb[[#This Row],[BDhit]:[THREAD_Lhit]]) -> 4
A89: 86 | B89: 66.7 | C89: 38.1 | D89: 4 | E89: 6.35 | F89: 20.6 | G89: 57.2 | H89: NA | I89: 5.3 | J89: M4 | K89: NA | L89: NA | M89: 4 | N89: M4 | O89: 38.7 | P89: 22 | Q89: 0 | R89: Y | S89: B | T89: 45 | U89: 90 | V89: 45.2 | W89: 26 | X89: 0 | Y89: Y | Z89: B | AA89: 45 | AB89: 90 | AC89: 48.7 | AD89: NA | AE89: NA | AF89: NO | AG89: A | AH89: 45 | AI89: 90 | AP89: 22 | AQ89: 0 | AR89: Y | AS89: C | AT89: 45 | AU89: 90 | BB89: =IF(AND(PCdb[[#This Row],[BCD]]>UIoptions!$S$10,PCdb[[#This Row],[BCD]]<UIoptions!$T$10),1,0) -> 0 | BC89: =IF(AND(PCdb[[#This Row],[PD]]>UIoptions!$S$11,PCdb[[#This Row],[PD]]<UIoptions!$T$11),1,0) -> 0 | BD89: =IF(AND(UIoptions!$P$14<=PCdb[[#This Row],[PL (MAX)]],UIoptions!$P$14>UIoptions!$S$14),1,0) -> 1 | BE89: =IF(AND(PCdb[[#This Row],[SD]]>UIoptions!$S$12,PCdb[[#This Row],[SD]]<UIoptions!$T$12),1,0) -> 0 | BF89: =IF(AND(PCdb[[#This Row],[SL]]>UIoptions!$S$13,PCdb[[#This Row],[SL]]<UIoptions!$T$13),1,0) -> 0 | BG89: =IF(UIoptions!$N$35=1,IF(AND(PCdb[[#This Row],[SQ_SZ]]>UIoptions!$S$15,PCdb[[#This Row],[SQ_SZ]]<UIoptions!$T$15),1,0),1) -> 0 | BH89: =IF(UIoptions!$N$35=2,IF(AND(PCdb[[#This Row],[ROUND_D]]>UIoptions!$S$15,PCdb[[#This Row],[ROUND_D]]<UIoptions!$T$15),1,0),1) -> 1 | BI89: =IF(UIoptions!$N$75<>1,1,IF(AND(PCdb[[#This Row],[FL]]>UIoptions!$S$16,PCdb[[#This Row],[FL]]<UIoptions!$T$16),1,0)) -> 0 | BJ89: =IF(OR(UIoptions!$Q$18=PCdb[[#This Row],[THRU_SCREW]],UIoptions!$Q$18="NA"),1,0) -> 1 | BK89: =IF(OR(UIoptions!$P$19=PCdb[[#This Row],[THREAD_SZ]],UIoptions!$P$19="NA"),1,0) -> 1 | BL89: =IF(UIoptions!$N$75=1,1,IF(AND(PCdb[[#This Row],[THREAD_L]]>UIoptions!$S$17,PCdb[[#This Row],[THREAD_L]]<UIoptions!$T$17),1,0)) -> 1 | BM89: =IF(SUM(PCdb[[#This Row],[BDhit]:[THREAD_Lhit]])=11,1,0) -> 0 | BN89: =CONCATENATE(PCdb[[#This Row],[BCD]],PCdb[[#This Row],[PD]],PCdb[[#This Row],[PL (MAX)]],PCdb[[#This Row],[SD]],PCdb[[#This Row],[SL]],PCdb[[#This Row],[SQ_SZ]],PCdb[[#This Row],[ROUND_D]],PCdb[[#This Row],[FL]],PCdb[[#This Row],[THRU_SCREW]],PCdb[[#This Row],[THREAD_SZ]],PCdb[[#This Row],[THREAD_L]],PCdb[[#This Row],[NBR_HOLES]]) -> 66,738,146,3520,657,2NA5,3M4NANA4 | BO89: =SUM(PCdb[[#This Row],[BDhit]:[THREAD_Lhit]]) -> 5
A90: 87 | B90: 98.4 | C90: 73.03 | D90: 4 | E90: 12.7 | F90: 31.8 | G90: 87.1 | H90: NA | I90: 9.9 | J90: M5 | K90: NA | L90: NA | M90: 4 | N90: M5 | O90: NA | P90: NA | Q90: NA | R90: NA | S90: NA | T90: NA | U90: NA | AJ90: NA | AK90: NA | AL90: NA | AM90: NA | AN90: NA | AO90: NA | AP90: NA | AQ90: NA | AR90: NA | AS90: NA | AT90: NA | AU90: NA | AV90: 39 | AW90: NA | AX90: Y | AY90: D | AZ90: 45 | BA90: 90 | BB90: =IF(AND(PCdb[[#This Row],[BCD]]>UIoptions!$S$10,PCdb[[#This Row],[BCD]]<UIoptions!$T$10),1,0) -> 0 | BC90: =IF(AND(PCdb[[#This Row],[PD]]>UIoptions!$S$11,PCdb[[#This Row],[PD]]<UIoptions!$T$11),1,0) -> 0 | BD90: =IF(AND(UIoptions!$P$14<=PCdb[[#This Row],[PL (MAX)]],UIoptions!$P$14>UIoptions!$S$14),1,0) -> 1 | BE90: =IF(AND(PCdb[[#This Row],[SD]]>UIoptions!$S$12,PCdb[[#This Row],[SD]]<UIoptions!$T$12),1,0) -> 0 | BF90: =IF(AND(PCdb[[#This Row],[SL]]>UIoptions!$S$13,PCdb[[#This Row],[SL]]<UIoptions!$T$13),1,0) -> 0 | BG90: =IF(UIoptions!$N$35=1,IF(AND(PCdb[[#This Row],[SQ_SZ]]>UIoptions!$S$15,PCdb[[#This Row],[SQ_SZ]]<UIoptions!$T$15),1,0),1) -> 0 | BH90: =IF(UIoptions!$N$35=2,IF(AND(PCdb[[#This Row],[ROUND_D]]>UIoptions!$S$15,PCdb[[#This Row],[ROUND_D]]<UIoptions!$T$15),1,0),1) -> 1 | BI90: =IF(UIoptions!$N$75<>1,1,IF(AND(PCdb[[#This Row],[FL]]>UIoptions!$S$16,PCdb[[#This Row],[FL]]<UIoptions!$T$16),1,0)) -> 0 | BJ90: =IF(OR(UIoptions!$Q$18=PCdb[[#This Row],[THRU_SCREW]],UIoptions!$Q$18="NA"),1,0) -> 0 | BK90: =IF(OR(UIoptions!$P$19=PCdb[[#This Row],[THREAD_SZ]],UIoptions!$P$19="NA"),1,0) -> 1 | BL90: =IF(UIoptions!$N$75=1,1,IF(AND(PCdb[[#This Row],[THREAD_L]]>UIoptions!$S$17,PCdb[[#This Row],[THREAD_L]]<UIoptions!$T$17),1,0)) -> 1 | BM90: =IF(SUM(PCdb[[#This Row],[BDhit]:[THREAD_Lhit]])=11,1,0) -> 0 | BN90: =CONCATENATE(PCdb[[#This Row],[BCD]],PCdb[[#This Row],[PD]],PCdb[[#This Row],[PL (MAX)]],PCdb[[#This Row],[SD]],PCdb[[#This Row],[SL]],PCdb[[#This Row],[SQ_SZ]],PCdb[[#This Row],[ROUND_D]],PCdb[[#This Row],[FL]],PCdb[[#This Row],[THRU_SCREW]],PCdb[[#This Row],[THREAD_SZ]],PCdb[[#This Row],[THREAD_L]],PCdb[[#This Row],[NBR_HOLES]]) -> 98,473,03412,731,887,1NA9,9M5NANA4 | BO90: =SUM(PCdb[[#This Row],[BDhit]:[THREAD_Lhit]]) -> 4
A91: 88 | B91: 46 | C91: 30 | D91: 4 | E91: 8 | F91: 25 | G91: 40.9 | H91: NA | I91: 5 | J91: M4 | K91: NA | L91: NA | M91: 4 | N91: M4 | O91: 38.7 | P91: 3 | Q91: 32 | R91: Y | S91: A | T91: 45 | U91: 90 | V91: 41.7 | W91: 15.5 | X91: 0 | Y91: ? | Z91: A | AA91: 45 | AB91: 90 | AC91: 48.7 | AD91: 17 | AE91: 0 | AF91: ? | AG91: A | AH91: 45 | AI91: 90 | AJ91: 17.5 | AK91: 0 | AL91: Y | AM91: C | AN91: 45 | AO91: 90 | AP91: 17.5 | AQ91: 0 | AR91: Y | AS91: C | AT91: 45 | AU91: 90 | AV91: 17.5 | AW91: 0 | AX91: Y | AY91: C | AZ91: 45 | BA91: 90 | BB91: =IF(AND(PCdb[[#This Row],[BCD]]>UIoptions!$S$10,PCdb[[#This Row],[BCD]]<UIoptions!$T$10),1,0) -> 0 | BC91: =IF(AND(PCdb[[#This Row],[PD]]>UIoptions!$S$11,PCdb[[#This Row],[PD]]<UIoptions!$T$11),1,0) -> 0 | BD91: =IF(AND(UIoptions!$P$14<=PCdb[[#This Row],[PL (MAX)]],UIoptions!$P$14>UIoptions!$S$14),1,0) -> 1 | BE91: =IF(AND(PCdb[[#This Row],[SD]]>UIoptions!$S$12,PCdb[[#This Row],[SD]]<UIoptions!$T$12),1,0) -> 0 | BF91: =IF(AND(PCdb[[#This Row],[SL]]>UIoptions!$S$13,PCdb[[#This Row],[SL]]<UIoptions!$T$13),1,0) -> 0 | BG91: =IF(UIoptions!$N$35=1,IF(AND(PCdb[[#This Row],[SQ_SZ]]>UIoptions!$S$15,PCdb[[#This Row],[SQ_SZ]]<UIoptions!$T$15),1,0),1) -> 0 | BH91: =IF(UIoptions!$N$35=2,IF(AND(PCdb[[#This Row],[ROUND_D]]>UIoptions!$S$15,PCdb[[#This Row],[ROUND_D]]<UIoptions!$T$15),1,0),1) -> 1 | BI91: =IF(UIoptions!$N$75<>1,1,IF(AND(PCdb[[#This Row],[FL]]>UIoptions!$S$16,PCdb[[#This Row],[FL]]<UIoptions!$T$16),1,0)) -> 0 | BJ91: =IF(OR(UIoptions!$Q$18=PCdb[[#This Row],[THRU_SCREW]],UIoptions!$Q$18="NA"),1,0) -> 1 | BK91: =IF(OR(UIoptions!$P$19=PCdb[[#This Row],[THREAD_SZ]],UIoptions!$P$19="NA"),1,0) -> 1 | BL91: =IF(UIoptions!$N$75=1,1,IF(AND(PCdb[[#This Row],[THREAD_L]]>UIoptions!$S$17,PCdb[[#This Row],[THREAD_L]]<UIoptions!$T$17),1,0)) -> 1 | BM91: =IF(SUM(PCdb[[#This Row],[BDhit]:[THREAD_Lhit]])=11,1,0) -> 0 | BN91: =CONCATENATE(PCdb[[#This Row],[BCD]],PCdb[[#This Row],[PD]],PCdb[[#This Row],[PL (MAX)]],PCdb[[#This Row],[SD]],PCdb[[#This Row],[SL]],PCdb[[#This Row],[SQ_SZ]],PCdb[[#This Row],[ROUND_D]],PCdb[[#This Row],[FL]],PCdb[[#This Row],[THRU_SCREW]],PCdb[[#This Row],[THREAD_SZ]],PCdb[[#This Row],[THREAD_L]],PCdb[[#This Row],[NBR_HOLES]]) -> 4630482540,9NA5M4NANA4 | BO91: =SUM(PCdb[[#This Row],[BDhit]:[THREAD_Lhit]]) -> 5
A92: 89 | B92: 75 | C92: 60 | D92: 4 | E92: 14 | F92: 30 | G92: 70 | H92: NA | I92: 5.8 | J92: M5 | K92: NA | L92: NA | M92: 4 | N92: M5 | AC92: 48.7 | AD92: 32 | AE92: NA | AF92: Y | AG92: B | AH92: 45 | AI92: 90 | AP92: 32 | AQ92: NA | AR92: Y | AS92: D | AT92: 45 | AU92: 90 | AV92: 32 | AW92: 0 | AX92: Y | AY92: C | AZ92: 45 | BA92: 90 | BB92: =IF(AND(PCdb[[#This Row],[BCD]]>UIoptions!$S$10,PCdb[[#This Row],[BCD]]<UIoptions!$T$10),1,0) -> 0 | BC92: =IF(AND(PCdb[[#This Row],[PD]]>UIoptions!$S$11,PCdb[[#This Row],[PD]]<UIoptions!$T$11),1,0) -> 0 | BD92: =IF(AND(UIoptions!$P$14<=PCdb[[#This Row],[PL (MAX)]],UIoptions!$P$14>UIoptions!$S$14),1,0) -> 1 | BE92: =IF(AND(PCdb[[#This Row],[SD]]>UIoptions!$S$12,PCdb[[#This Row],[SD]]<UIoptions!$T$12),1,0) -> 0 | BF92: =IF(AND(PCdb[[#This Row],[SL]]>UIoptions!$S$13,PCdb[[#This Row],[SL]]<UIoptions!$T$13),1,0) -> 0 | BG92: =IF(UIoptions!$N$35=1,IF(AND(PCdb[[#This Row],[SQ_SZ]]>UIoptions!$S$15,PCdb[[#This Row],[SQ_SZ]]<UIoptions!$T$15),1,0),1) -> 0 | BH92: =IF(UIoptions!$N$35=2,IF(AND(PCdb[[#This Row],[ROUND_D]]>UIoptions!$S$15,PCdb[[#This Row],[ROUND_D]]<UIoptions!$T$15),1,0),1) -> 1 | BI92: =IF(UIoptions!$N$75<>1,1,IF(AND(PCdb[[#This Row],[FL]]>UIoptions!$S$16,PCdb[[#This Row],[FL]]<UIoptions!$T$16),1,0)) -> 0 | BJ92: =IF(OR(UIoptions!$Q$18=PCdb[[#This Row],[THRU_SCREW]],UIoptions!$Q$18="NA"),1,0) -> 0 | BK92: =IF(OR(UIoptions!$P$19=PCdb[[#This Row],[THREAD_SZ]],UIoptions!$P$19="NA"),1,0) -> 1 | BL92: =IF(UIoptions!$N$75=1,1,IF(AND(PCdb[[#This Row],[THREAD_L]]>UIoptions!$S$17,PCdb[[#This Row],[THREAD_L]]<UIoptions!$T$17),1,0)) -> 1 | BM92: =IF(SUM(PCdb[[#This Row],[BDhit]:[THREAD_Lhit]])=11,1,0) -> 0 | BN92: =CONCATENATE(PCdb[[#This Row],[BCD]],PCdb[[#This Row],[PD]],PCdb[[#This Row],[PL (MAX)]],PCdb[[#This Row],[SD]],PCdb[[#This Row],[SL]],PCdb[[#This Row],[SQ_SZ]],PCdb[[#This Row],[ROUND_D]],PCdb[[#This Row],[FL]],PCdb[[#This Row],[THRU_SCREW]],PCdb[[#This Row],[THREAD_SZ]],PCdb[[#This Row],[THREAD_L]],PCdb[[#This Row],[NBR_HOLES]]) -> 75604143070NA5,8M5NANA4 | BO92: =SUM(PCdb[[#This Row],[BDhit]:[THREAD_Lhit]]) -> 4
A93: 90 | B93: 66.7 | C93: 38.1 | D93: 4 | E93: 6.35 | F93: 20.6 | G93: 57.2 | H93: NA | I93: 6.4 | J93: M4 | K93: NA | L93: NA | M93: 4 | N93: M4 | AJ93: 22 | AK93: 0 | AL93: Y | AM93: D | AN93: 45 | AO93: 90 | AP93: 22 | AQ93: 0 | AR93: Y | AS93: C | AT93: 45 | AU93: 90 | AV93: 22 | AW93: 0 | AX93: Y | AY93: C | AZ93: 45 | BA93: 90 | BB93: =IF(AND(PCdb[[#This Row],[BCD]]>UIoptions!$S$10,PCdb[[#This Row],[BCD]]<UIoptions!$T$10),1,0) -> 0 | BC93: =IF(AND(PCdb[[#This Row],[PD]]>UIoptions!$S$11,PCdb[[#This Row],[PD]]<UIoptions!$T$11),1,0) -> 0 | BD93: =IF(AND(UIoptions!$P$14<=PCdb[[#This Row],[PL (MAX)]],UIoptions!$P$14>UIoptions!$S$14),1,0) -> 1 | BE93: =IF(AND(PCdb[[#This Row],[SD]]>UIoptions!$S$12,PCdb[[#This Row],[SD]]<UIoptions!$T$12),1,0) -> 0 | BF93: =IF(AND(PCdb[[#This Row],[SL]]>UIoptions!$S$13,PCdb[[#This Row],[SL]]<UIoptions!$T$13),1,0) -> 0 | BG93: =IF(UIoptions!$N$35=1,IF(AND(PCdb[[#This Row],[SQ_SZ]]>UIoptions!$S$15,PCdb[[#This Row],[SQ_SZ]]<UIoptions!$T$15),1,0),1) -> 0 | BH93: =IF(UIoptions!$N$35=2,IF(AND(PCdb[[#This Row],[ROUND_D]]>UIoptions!$S$15,PCdb[[#This Row],[ROUND_D]]<UIoptions!$T$15),1,0),1) -> 1 | BI93: =IF(UIoptions!$N$75<>1,1,IF(AND(PCdb[[#This Row],[FL]]>UIoptions!$S$16,PCdb[[#This Row],[FL]]<UIoptions!$T$16),1,0)) -> 0 | BJ93: =IF(OR(UIoptions!$Q$18=PCdb[[#This Row],[THRU_SCREW]],UIoptions!$Q$18="NA"),1,0) -> 1 | BK93: =IF(OR(UIoptions!$P$19=PCdb[[#This Row],[THREAD_SZ]],UIoptions!$P$19="NA"),1,0) -> 1 | BL93: =IF(UIoptions!$N$75=1,1,IF(AND(PCdb[[#This Row],[THREAD_L]]>UIoptions!$S$17,PCdb[[#This Row],[THREAD_L]]<UIoptions!$T$17),1,0)) -> 1 | BM93: =IF(SUM(PCdb[[#This Row],[BDhit]:[THREAD_Lhit]])=11,1,0) -> 0 | BN93: =CONCATENATE(PCdb[[#This Row],[BCD]],PCdb[[#This Row],[PD]],PCdb[[#This Row],[PL (MAX)]],PCdb[[#This Row],[SD]],PCdb[[#This Row],[SL]],PCdb[[#This Row],[SQ_SZ]],PCdb[[#This Row],[ROUND_D]],PCdb[[#This Row],[FL]],PCdb[[#This Row],[THRU_SCREW]],PCdb[[#This Row],[THREAD_SZ]],PCdb[[#This Row],[THREAD_L]],PCdb[[#This Row],[NBR_HOLES]]) -> 66,738,146,3520,657,2NA6,4M4NANA4 | BO93: =SUM(PCdb[[#This Row],[BDhit]:[THREAD_Lhit]]) -> 5
A94: 91 | B94: 66.7 | C94: 38.1 | D94: 4 | E94: 9.53 | F94: 20.6 | G94: 59.1 | H94: NA | I94: 4.7 | J94: M4 | K94: NA | L94: NA | M94: 4 | N94: M4 | O94: 38.7 | P94: 22 | Q94: 0 | R94: Y | S94: B | T94: 45 | U94: 90 | V94: 45.2 | W94: 26 | X94: 0 | Y94: Y | Z94: B | AA94: 45 | AB94: 90 | AC94: 48.7 | AD94: 4 | AE94: 47 | AF94: Y | AG94: A | AH94: 45 | AI94: 90 | AJ94: 22 | AK94: 0 | AL94: Y | AM94: D | AN94: 45 | AO94: 90 | AP94: 22 | AQ94: 0 | AR94: Y | AS94: C | AT94: 45 | AU94: 90 | AV94: 22 | AW94: 0 | AX94: Y | AY94: C | AZ94: 45 | BA94: 90 | BB94: =IF(AND(PCdb[[#This Row],[BCD]]>UIoptions!$S$10,PCdb[[#This Row],[BCD]]<UIoptions!$T$10),1,0) -> 0 | BC94: =IF(AND(PCdb[[#This Row],[PD]]>UIoptions!$S$11,PCdb[[#This Row],[PD]]<UIoptions!$T$11),1,0) -> 0 | BD94: =IF(AND(UIoptions!$P$14<=PCdb[[#This Row],[PL (MAX)]],UIoptions!$P$14>UIoptions!$S$14),1,0) -> 1 | BE94: =IF(AND(PCdb[[#This Row],[SD]]>UIoptions!$S$12,PCdb[[#This Row],[SD]]<UIoptions!$T$12),1,0) -> 0 | BF94: =IF(AND(PCdb[[#This Row],[SL]]>UIoptions!$S$13,PCdb[[#This Row],[SL]]<UIoptions!$T$13),1,0) -> 0 | BG94: =IF(UIoptions!$N$35=1,IF(AND(PCdb[[#This Row],[SQ_SZ]]>UIoptions!$S$15,PCdb[[#This Row],[SQ_SZ]]<UIoptions!$T$15),1,0),1) -> 0 | BH94: =IF(UIoptions!$N$35=2,IF(AND(PCdb[[#This Row],[ROUND_D]]>UIoptions!$S$15,PCdb[[#This Row],[ROUND_D]]<UIoptions!$T$15),1,0),1) -> 1 | BI94: =IF(UIoptions!$N$75<>1,1,IF(AND(PCdb[[#This Row],[FL]]>UIoptions!$S$16,PCdb[[#This Row],[FL]]<UIoptions!$T$16),1,0)) -> 0 | BJ94: =IF(OR(UIoptions!$Q$18=PCdb[[#This Row],[THRU_SCREW]],UIoptions!$Q$18="NA"),1,0) -> 1 | BK94: =IF(OR(UIoptions!$P$19=PCdb[[#This Row],[THREAD_SZ]],UIoptions!$P$19="NA"),1,0) -> 1 | BL94: =IF(UIoptions!$N$75=1,1,IF(AND(PCdb[[#This Row],[THREAD_L]]>UIoptions!$S$17,PCdb[[#This Row],[THREAD_L]]<UIoptions!$T$17),1,0)) -> 1 | BM94: =IF(SUM(PCdb[[#This Row],[BDhit]:[THREAD_Lhit]])=11,1,0) -> 0 | BN94: =CONCATENATE(PCdb[[#This Row],[BCD]],PCdb[[#This Row],[PD]],PCdb[[#This Row],[PL (MAX)]],PCdb[[#This Row],[SD]],PCdb[[#This Row],[SL]],PCdb[[#This Row],[SQ_SZ]],PCdb[[#This Row],[ROUND_D]],PCdb[[#This Row],[FL]],PCdb[[#This Row],[THRU_SCREW]],PCdb[[#This Row],[THREAD_SZ]],PCdb[[#This Row],[THREAD_L]],PCdb[[#This Row],[NBR_HOLES]]) -> 66,738,149,5320,659,1NA4,7M4NANA4 | BO94: =SUM(PCdb[[#This Row],[BDhit]:[THREAD_Lhit]]) -> 5
A95: 197 | B95: 100 | C95: 80 | D95: 4 | E95: 14 | F95: 30 | G95: 84 | H95: NA | I95: 8 | J95: M6 | K95: NA | L95: NA | M95: 4 | N95: M6 | AC95: 48.7 | AD95: 41 | AE95: NA | AF95: Y | AG95: B | AH95: 45 | AI95: 90 | AV95: 41 | AW95: 0 | AX95: Y | AY95: D | AZ95: 45 | BA95: 90 | BB95: =IF(AND(PCdb[[#This Row],[BCD]]>UIoptions!$S$10,PCdb[[#This Row],[BCD]]<UIoptions!$T$10),1,0) -> 0 | BC95: =IF(AND(PCdb[[#This Row],[PD]]>UIoptions!$S$11,PCdb[[#This Row],[PD]]<UIoptions!$T$11),1,0) -> 0 | BD95: =IF(AND(UIoptions!$P$14<=PCdb[[#This Row],[PL (MAX)]],UIoptions!$P$14>UIoptions!$S$14),1,0) -> 1 | BE95: =IF(AND(PCdb[[#This Row],[SD]]>UIoptions!$S$12,PCdb[[#This Row],[SD]]<UIoptions!$T$12),1,0) -> 0 | BF95: =IF(AND(PCdb[[#This Row],[SL]]>UIoptions!$S$13,PCdb[[#This Row],[SL]]<UIoptions!$T$13),1,0) -> 0 | BG95: =IF(UIoptions!$N$35=1,IF(AND(PCdb[[#This Row],[SQ_SZ]]>UIoptions!$S$15,PCdb[[#This Row],[SQ_SZ]]<UIoptions!$T$15),1,0),1) -> 0 | BH95: =IF(UIoptions!$N$35=2,IF(AND(PCdb[[#This Row],[ROUND_D]]>UIoptions!$S$15,PCdb[[#This Row],[ROUND_D]]<UIoptions!$T$15),1,0),1) -> 1 | BI95: =IF(UIoptions!$N$75<>1,1,IF(AND(PCdb[[#This Row],[FL]]>UIoptions!$S$16,PCdb[[#This Row],[FL]]<UIoptions!$T$16),1,0)) -> 0 | BJ95: =IF(OR(UIoptions!$Q$18=PCdb[[#This Row],[THRU_SCREW]],UIoptions!$Q$18="NA"),1,0) -> 0 | BK95: =IF(OR(UIoptions!$P$19=PCdb[[#This Row],[THREAD_SZ]],UIoptions!$P$19="NA"),1,0) -> 1 | BL95: =IF(UIoptions!$N$75=1,1,IF(AND(PCdb[[#This Row],[THREAD_L]]>UIoptions!$S$17,PCdb[[#This Row],[THREAD_L]]<UIoptions!$T$17),1,0)) -> 1 | BM95: =IF(SUM(PCdb[[#This Row],[BDhit]:[THREAD_Lhit]])=11,1,0) -> 0 | BN95: =CONCATENATE(PCdb[[#This Row],[BCD]],PCdb[[#This Row],[PD]],PCdb[[#This Row],[PL (MAX)]],PCdb[[#This Row],[SD]],PCdb[[#This Row],[SL]],PCdb[[#This Row],[SQ_SZ]],PCdb[[#This Row],[ROUND_D]],PCdb[[#This Row],[FL]],PCdb[[#This Row],[THRU_SCREW]],PCdb[[#This Row],[THREAD_SZ]],PCdb[[#This Row],[THREAD_L]],PCdb[[#This Row],[NBR_HOLES]]) -> 100804143084NA8M6NANA4 | BO95: =SUM(PCdb[[#This Row],[BDhit]:[THREAD_Lhit]]) -> 4
A96: 367 | B96: 46 | C96: 30 | D96: 4 | E96: 8 | F96: 25 | G96: 40 | H96: NA | I96: 4 | J96: M4 | K96: NA | L96: NA | M96: 4 | N96: M4 | O96: 38.7 | P96: 2.2 | Q96: 32.53 | R96: Y | T96: 45 | U96: 90 | V96: 41.7 | W96: 15.5 | X96: NA | Y96: Y | Z96: A | AA96: 45 | AB96: 90 | AJ96: 17.5 | AK96: 0 | AL96: Y | AM96: C | AN96: 45 | AO96: 90 | AP96: ? | AQ96: ? | AR96: ? | BB96: =IF(AND(PCdb[[#This Row],[BCD]]>UIoptions!$S$10,PCdb[[#This Row],[BCD]]<UIoptions!$T$10),1,0) -> 0 | BC96: =IF(AND(PCdb[[#This Row],[PD]]>UIoptions!$S$11,PCdb[[#This Row],[PD]]<UIoptions!$T$11),1,0) -> 0 | BD96: =IF(AND(UIoptions!$P$14<=PCdb[[#This Row],[PL (MAX)]],UIoptions!$P$14>UIoptions!$S$14),1,0) -> 1 | BE96: =IF(AND(PCdb[[#This Row],[SD]]>UIoptions!$S$12,PCdb[[#This Row],[SD]]<UIoptions!$T$12),1,0) -> 0 | BF96: =IF(AND(PCdb[[#This Row],[SL]]>UIoptions!$S$13,PCdb[[#This Row],[SL]]<UIoptions!$T$13),1,0) -> 0 | BG96: =IF(UIoptions!$N$35=1,IF(AND(PCdb[[#This Row],[SQ_SZ]]>UIoptions!$S$15,PCdb[[#This Row],[SQ_SZ]]<UIoptions!$T$15),1,0),1) -> 0 | BH96: =IF(UIoptions!$N$35=2,IF(AND(PCdb[[#This Row],[ROUND_D]]>UIoptions!$S$15,PCdb[[#This Row],[ROUND_D]]<UIoptions!$T$15),1,0),1) -> 1 | BI96: =IF(UIoptions!$N$75<>1,1,IF(AND(PCdb[[#This Row],[FL]]>UIoptions!$S$16,PCdb[[#This Row],[FL]]<UIoptions!$T$16),1,0)) -> 0 | BJ96: =IF(OR(UIoptions!$Q$18=PCdb[[#This Row],[THRU_SCREW]],UIoptions!$Q$18="NA"),1,0) -> 1 | BK96: =IF(OR(UIoptions!$P$19=PCdb[[#This Row],[THREAD_SZ]],UIoptions!$P$19="NA"),1,0) -> 1 | BL96: =IF(UIoptions!$N$75=1,1,IF(AND(PCdb[[#This Row],[THREAD_L]]>UIoptions!$S$17,PCdb[[#This Row],[THREAD_L]]<UIoptions!$T$17),1,0)) -> 1 | BM96: =IF(SUM(PCdb[[#This Row],[BDhit]:[THREAD_Lhit]])=11,1,0) -> 0 | BN96: =CONCATENATE(PCdb[[#This Row],[BCD]],PCdb[[#This Row],[PD]],PCdb[[#This Row],[PL (MAX)]],PCdb[[#This Row],[SD]],PCdb[[#This Row],[SL]],PCdb[[#This Row],[SQ_SZ]],PCdb[[#This Row],[ROUND_D]],PCdb[[#This Row],[FL]],PCdb[[#This Row],[THRU_SCREW]],PCdb[[#This Row],[THREAD_SZ]],PCdb[[#This Row],[THREAD_L]],PCdb[[#This Row],[NBR_HOLES]]) -> 4630482540NA4M4NANA4 | BO96: =SUM(PCdb[[#This Row],[BDhit]:[THREAD_Lhit]]) -> 5
A97: 92 | B97: 32 | C97: 25.5 | D97: 4 | E97: 10 | F97: 22 | G97: NA | H97: 44 | I97: NA | J97: NA | K97: M4 | L97: 8 | M97: 3 | N97: 5 | AJ97: 0 | AK97: 0 | AL97: Y | AM97: SPLC2-092 | BB97: =IF(AND(PCdb[[#This Row],[BCD]]>UIoptions!$S$10,PCdb[[#This Row],[BCD]]<UIoptions!$T$10),1,0) -> 0 | BC97: =IF(AND(PCdb[[#This Row],[PD]]>UIoptions!$S$11,PCdb[[#This Row],[PD]]<UIoptions!$T$11),1,0) -> 0 | BD97: =IF(AND(UIoptions!$P$14<=PCdb[[#This Row],[PL (MAX)]],UIoptions!$P$14>UIoptions!$S$14),1,0) -> 1 | BE97: =IF(AND(PCdb[[#This Row],[SD]]>UIoptions!$S$12,PCdb[[#This Row],[SD]]<UIoptions!$T$12),1,0) -> 0 | BF97: =IF(AND(PCdb[[#This Row],[SL]]>UIoptions!$S$13,PCdb[[#This Row],[SL]]<UIoptions!$T$13),1,0) -> 0 | BG97: =IF(UIoptions!$N$35=1,IF(AND(PCdb[[#This Row],[SQ_SZ]]>UIoptions!$S$15,PCdb[[#This Row],[SQ_SZ]]<UIoptions!$T$15),1,0),1) -> 0 | BH97: =IF(UIoptions!$N$35=2,IF(AND(PCdb[[#This Row],[ROUND_D]]>UIoptions!$S$15,PCdb[[#This Row],[ROUND_D]]<UIoptions!$T$15),1,0),1) -> 1 | BI97: =IF(UIoptions!$N$75<>1,1,IF(AND(PCdb[[#This Row],[FL]]>UIoptions!$S$16,PCdb[[#This Row],[FL]]<UIoptions!$T$16),1,0)) -> 0 | BJ97: =IF(OR(UIoptions!$Q$18=PCdb[[#This Row],[THRU_SCREW]],UIoptions!$Q$18="NA"),1,0) -> 0 | BK97: =IF(OR(UIoptions!$P$19=PCdb[[#This Row],[THREAD_SZ]],UIoptions!$P$19="NA"),1,0) -> 1 | BL97: =IF(UIoptions!$N$75=1,1,IF(AND(PCdb[[#This Row],[THREAD_L]]>UIoptions!$S$17,PCdb[[#This Row],[THREAD_L]]<UIoptions!$T$17),1,0)) -> 1 | BM97: =IF(SUM(PCdb[[#This Row],[BDhit]:[THREAD_Lhit]])=11,1,0) -> 0 | BN97: =CONCATENATE(PCdb[[#This Row],[BCD]],PCdb[[#This Row],[PD]],PCdb[[#This Row],[PL (MAX)]],PCdb[[#This Row],[SD]],PCdb[[#This Row],[SL]],PCdb[[#This Row],[SQ_SZ]],PCdb[[#This Row],[ROUND_D]],PCdb[[#This Row],[FL]],PCdb[[#This Row],[THRU_SCREW]],PCdb[[#This Row],[THREAD_SZ]],PCdb[[#This Row],[THREAD_L]],PCdb[[#This Row],[NBR_HOLES]]) -> 3225,541022NA44NANAM483 | BO97: =SUM(PCdb[[#This Row],[BDhit]:[THREAD_Lhit]]) -> 4
A98: 93 | B98: 66.7 | C98: 38.1 | D98: 4 | E98: 6.35 | F98: 20.6 | G98: 56.4 | H98: NA | I98: 5.1 | J98: M4 | K98: NA | L98: NA | M98: 4 | N98: M4 | AP98: 25 | AQ98: 0 | AR98: Y* | AS98: C | AT98: 45 | AU98: 90 | BB98: =IF(AND(PCdb[[#This Row],[BCD]]>UIoptions!$S$10,PCdb[[#This Row],[BCD]]<UIoptions!$T$10),1,0) -> 0 | BC98: =IF(AND(PCdb[[#This Row],[PD]]>UIoptions!$S$11,PCdb[[#This Row],[PD]]<UIoptions!$T$11),1,0) -> 0 | BD98: =IF(AND(UIoptions!$P$14<=PCdb[[#This Row],[PL (MAX)]],UIoptions!$P$14>UIoptions!$S$14),1,0) -> 1 | BE98: =IF(AND(PCdb[[#This Row],[SD]]>UIoptions!$S$12,PCdb[[#This Row],[SD]]<UIoptions!$T$12),1,0) -> 0 | BF98: =IF(AND(PCdb[[#This Row],[SL]]>UIoptions!$S$13,PCdb[[#This Row],[SL]]<UIoptions!$T$13),1,0) -> 0 | BG98: =IF(UIoptions!$N$35=1,IF(AND(PCdb[[#This Row],[SQ_SZ]]>UIoptions!$S$15,PCdb[[#This Row],[SQ_SZ]]<UIoptions!$T$15),1,0),1) -> 0 | BH98: =IF(UIoptions!$N$35=2,IF(AND(PCdb[[#This Row],[ROUND_D]]>UIoptions!$S$15,PCdb[[#This Row],[ROUND_D]]<UIoptions!$T$15),1,0),1) -> 1 | BI98: =IF(UIoptions!$N$75<>1,1,IF(AND(PCdb[[#This Row],[FL]]>UIoptions!$S$16,PCdb[[#This Row],[FL]]<UIoptions!$T$16),1,0)) -> 0 | BJ98: =IF(OR(UIoptions!$Q$18=PCdb[[#This Row],[THRU_SCREW]],UIoptions!$Q$18="NA"),1,0) -> 1 | BK98: =IF(OR(UIoptions!$P$19=PCdb[[#This Row],[THREAD_SZ]],UIoptions!$P$19="NA"),1,0) -> 1 | BL98: =IF(UIoptions!$N$75=1,1,IF(AND(PCdb[[#This Row],[THREAD_L]]>UIoptions!$S$17,PCdb[[#This Row],[THREAD_L]]<UIoptions!$T$17),1,0)) -> 1 | BM98: =IF(SUM(PCdb[[#This Row],[BDhit]:[THREAD_Lhit]])=11,1,0) -> 0 | BN98: =CONCATENATE(PCdb[[#This Row],[BCD]],PCdb[[#This Row],[PD]],PCdb[[#This Row],[PL (MAX)]],PCdb[[#This Row],[SD]],PCdb[[#This Row],[SL]],PCdb[[#This Row],[SQ_SZ]],PCdb[[#This Row],[ROUND_D]],PCdb[[#This Row],[FL]],PCdb[[#This Row],[THRU_SCREW]],PCdb[[#This Row],[THREAD_SZ]],PCdb[[#This Row],[THREAD_L]],PCdb[[#This Row],[NBR_HOLES]]) -> 66,738,146,3520,656,4NA5,1M4NANA4 | BO98: =SUM(PCdb[[#This Row],[BDhit]:[THREAD_Lhit]]) -> 5
A99: 94 | B99: 98.3 | C99: 73.03 | D99: 4 | E99: 14 | F99: 37 | G99: 85.9 | H99: NA | I99: 8.5 | J99: M6 | K99: NA | L99: NA | M99: 4 | N99: M6 | O99: NA | P99: NA | Q99: NA | R99: NA | S99: NA | T99: NA | U99: NA | V99: 45.2 | W99: 38 | X99: 0 | Y99: Y | Z99: B | AA99: 45 | AB99: 90 | AJ99: NA | AK99: NA | AL99: NA | AM99: NA | AN99: NA | AO99: NA | AP99: NA | AQ99: NA | AR99: NA | AS99: NA | AT99: NA | AU99: NA | BB99: =IF(AND(PCdb[[#This Row],[BCD]]>UIoptions!$S$10,PCdb[[#This Row],[BCD]]<UIoptions!$T$10),1,0) -> 0 | BC99: =IF(AND(PCdb[[#This Row],[PD]]>UIoptions!$S$11,PCdb[[#This Row],[PD]]<UIoptions!$T$11),1,0) -> 0 | BD99: =IF(AND(UIoptions!$P$14<=PCdb[[#This Row],[PL (MAX)]],UIoptions!$P$14>UIoptions!$S$14),1,0) -> 1 | BE99: =IF(AND(PCdb[[#This Row],[SD]]>UIoptions!$S$12,PCdb[[#This Row],[SD]]<UIoptions!$T$12),1,0) -> 0 | BF99: =IF(AND(PCdb[[#This Row],[SL]]>UIoptions!$S$13,PCdb[[#This Row],[SL]]<UIoptions!$T$13),1,0) -> 0 | BG99: =IF(UIoptions!$N$35=1,IF(AND(PCdb[[#This Row],[SQ_SZ]]>UIoptions!$S$15,PCdb[[#This Row],[SQ_SZ]]<UIoptions!$T$15),1,0),1) -> 0 | BH99: =IF(UIoptions!$N$35=2,IF(AND(PCdb[[#This Row],[ROUND_D]]>UIoptions!$S$15,PCdb[[#This Row],[ROUND_D]]<UIoptions!$T$15),1,0),1) -> 1 | BI99: =IF(UIoptions!$N$75<>1,1,IF(AND(PCdb[[#This Row],[FL]]>UIoptions!$S$16,PCdb[[#This Row],[FL]]<UIoptions!$T$16),1,0)) -> 0 | BJ99: =IF(OR(UIoptions!$Q$18=PCdb[[#This Row],[THRU_SCREW]],UIoptions!$Q$18="NA"),1,0) -> 0 | BK99: =IF(OR(UIoptions!$P$19=PCdb[[#This Row],[THREAD_SZ]],UIoptions!$P$19="NA"),1,0) -> 1 | BL99: =IF(UIoptions!$N$75=1,1,IF(AND(PCdb[[#This Row],[THREAD_L]]>UIoptions!$S$17,PCdb[[#This Row],[THREAD_L]]<UIoptions!$T$17),1,0)) -> 1 | BM99: =IF(SUM(PCdb[[#This Row],[BDhit]:[THREAD_Lhit]])=11,1,0) -> 0 | BN99: =CONCATENATE(PCdb[[#This Row],[BCD]],PCdb[[#This Row],[PD]],PCdb[[#This Row],[PL (MAX)]],PCdb[[#This Row],[SD]],PCdb[[#This Row],[SL]],PCdb[[#This Row],[SQ_SZ]],PCdb[[#This Row],[ROUND_D]],PCdb[[#This Row],[FL]],PCdb[[#This Row],[THRU_SCREW]],PCdb[[#This Row],[THREAD_SZ]],PCdb[[#This Row],[THREAD_L]],PCdb[[#This Row],[NBR_HOLES]]) -> 98,373,034143785,9NA8,5M6NANA4 | BO99: =SUM(PCdb[[#This Row],[BDhit]:[THREAD_Lhit]]) -> 4
A100: 95 | B100: 66.7 | C100: 38.1 | D100: 4 | E100: 9.53 | F100: 20.6 | G100: 59.1 | H100: NA | I100: 4.8 | J100: M4 | K100: NA | L100: NA | M100: 4 | N100: M4 | O100: 38.7 | P100: 24 | Q100: 0 | R100: Y | S100: B | T100: 45 | U100: 90 | V100: 45.2 | W100: 26 | X100: 0 | Y100: Y | Z100: B | AA100: 45 | AB100: 90 | AJ100: 22 | AK100: 0 | AL100: Y | AM100: D | AN100: 45 | AO100: 90 | AP100: 24 | AQ100: 0 | AR100: Y | AS100: C | AT100: 45 | AU100: 90 | AV100: 25 | AW100: NA | AX100: Y | AY100: C | AZ100: 45 | BA100: 90 | BB100: =IF(AND(PCdb[[#This Row],[BCD]]>UIoptions!$S$10,PCdb[[#This Row],[BCD]]<UIoptions!$T$10),1,0) -> 0 | BC100: =IF(AND(PCdb[[#This Row],[PD]]>UIoptions!$S$11,PCdb[[#This Row],[PD]]<UIoptions!$T$11),1,0) -> 0 | BD100: =IF(AND(UIoptions!$P$14<=PCdb[[#This Row],[PL (MAX)]],UIoptions!$P$14>UIoptions!$S$14),1,0) -> 1 | BE100: =IF(AND(PCdb[[#This Row],[SD]]>UIoptions!$S$12,PCdb[[#This Row],[SD]]<UIoptions!$T$12),1,0) -> 0 | BF100: =IF(AND(PCdb[[#This Row],[SL]]>UIoptions!$S$13,PCdb[[#This Row],[SL]]<UIoptions!$T$13),1,0) -> 0 | BG100: =IF(UIoptions!$N$35=1,IF(AND(PCdb[[#This Row],[SQ_SZ]]>UIoptions!$S$15,PCdb[[#This Row],[SQ_SZ]]<UIoptions!$T$15),1,0),1) -> 0 | BH100: =IF(UIoptions!$N$35=2,IF(AND(PCdb[[#This Row],[ROUND_D]]>UIoptions!$S$15,PCdb[[#This Row],[ROUND_D]]<UIoptions!$T$15),1,0),1) -> 1 | BI100: =IF(UIoptions!$N$75<>1,1,IF(AND(PCdb[[#This Row],[FL]]>UIoptions!$S$16,PCdb[[#This Row],[FL]]<UIoptions!$T$16),1,0)) -> 0 | BJ100: =IF(OR(UIoptions!$Q$18=PCdb[[#This Row],[THRU_SCREW]],UIoptions!$Q$18="NA"),1,0) -> 1 | BK100: =IF(OR(UIoptions!$P$19=PCdb[[#This Row],[THREAD_SZ]],UIoptions!$P$19="NA"),1,0) -> 1 | BL100: =IF(UIoptions!$N$75=1,1,IF(AND(PCdb[[#This Row],[THREAD_L]]>UIoptions!$S$17,PCdb[[#This Row],[THREAD_L]]<UIoptions!$T$17),1,0)) -> 1 | BM100: =IF(SUM(PCdb[[#This Row],[BDhit]:[THREAD_Lhit]])=11,1,0) -> 0 | BN100: =CONCATENATE(PCdb[[#This Row],[BCD]],PCdb[[#This Row],[PD]],PCdb[[#This Row],[PL (MAX)]],PCdb[[#This Row],[SD]],PCdb[[#This Row],[SL]],PCdb[[#This Row],[SQ_SZ]],PCdb[[#This Row],[ROUND_D]],PCdb[[#This Row],[FL]],PCdb[[#This Row],[THRU_SCREW]],PCdb[[#This Row],[THREAD_SZ]],PCdb[[#This Row],[THREAD_L]],PCdb[[#This Row],[NBR_HOLES]]) -> 66,738,149,5320,659,1NA4,8M4NANA4 | BO100: =SUM(PCdb[[#This Row],[BDhit]:[THREAD_Lhit]]) -> 5
A101: 96 | B101: 98.4 | C101: 73.03 | D101: 4 | E101: 12.7 | F101: 32.5 | G101: 86.9 | H101: NA | I101: 6.4 | J101: M5 | K101: NA | L101: NA | M101: 4 | N101: M5 | O101: NA | P101: NA | Q101: NA | R101: NA | S101: NA | T101: NA | U101: NA | V101: 41.7 | W101: 38 | X101: 0 | Y101: Y | Z101: B | AA101: 45 | AB101: 90 | AC101: 45.2 | AD101: 38 | AE101: 0 | AF101: Y | AG101: B | AH101: 45 | AI101: 90 | AJ101: NA | AK101: NA | AL101: NA | AM101: NA | AN101: NA | AO101: NA | AP101: NA | AQ101: NA | AR101: NA | AS101: NA | AT101: NA | AU101: NA | BB101: =IF(AND(PCdb[[#This Row],[BCD]]>UIoptions!$S$10,PCdb[[#This Row],[BCD]]<UIoptions!$T$10),1,0) -> 0 | BC101: =IF(AND(PCdb[[#This Row],[PD]]>UIoptions!$S$11,PCdb[[#This Row],[PD]]<UIoptions!$T$11),1,0) -> 0 | BD101: =IF(AND(UIoptions!$P$14<=PCdb[[#This Row],[PL (MAX)]],UIoptions!$P$14>UIoptions!$S$14),1,0) -> 1 | BE101: =IF(AND(PCdb[[#This Row],[SD]]>UIoptions!$S$12,PCdb[[#This Row],[SD]]<UIoptions!$T$12),1,0) -> 0 | BF101: =IF(AND(PCdb[[#This Row],[SL]]>UIoptions!$S$13,PCdb[[#This Row],[SL]]<UIoptions!$T$13),1,0) -> 0 | BG101: =IF(UIoptions!$N$35=1,IF(AND(PCdb[[#This Row],[SQ_SZ]]>UIoptions!$S$15,PCdb[[#This Row],[SQ_SZ]]<UIoptions!$T$15),1,0),1) -> 0 | BH101: =IF(UIoptions!$N$35=2,IF(AND(PCdb[[#This Row],[ROUND_D]]>UIoptions!$S$15,PCdb[[#This Row],[ROUND_D]]<UIoptions!$T$15),1,0),1) -> 1 | BI101: =IF(UIoptions!$N$75<>1,1,IF(AND(PCdb[[#This Row],[FL]]>UIoptions!$S$16,PCdb[[#This Row],[FL]]<UIoptions!$T$16),1,0)) -> 0 | BJ101: =IF(OR(UIoptions!$Q$18=PCdb[[#This Row],[THRU_SCREW]],UIoptions!$Q$18="NA"),1,0) -> 0 | BK101: =IF(OR(UIoptions!$P$19=PCdb[[#This Row],[THREAD_SZ]],UIoptions!$P$19="NA"),1,0) -> 1 | BL101: =IF(UIoptions!$N$75=1,1,IF(AND(PCdb[[#This Row],[THREAD_L]]>UIoptions!$S$17,PCdb[[#This Row],[THREAD_L]]<UIoptions!$T$17),1,0)) -> 1 | BM101: =IF(SUM(PCdb[[#This Row],[BDhit]:[THREAD_Lhit]])=11,1,0) -> 0 | BN101: =CONCATENATE(PCdb[[#This Row],[BCD]],PCdb[[#This Row],[PD]],PCdb[[#This Row],[PL (MAX)]],PCdb[[#This Row],[SD]],PCdb[[#This Row],[SL]],PCdb[[#This Row],[SQ_SZ]],PCdb[[#This Row],[ROUND_D]],PCdb[[#This Row],[FL]],PCdb[[#This Row],[THRU_SCREW]],PCdb[[#This Row],[THREAD_SZ]],PCdb[[#This Row],[THREAD_L]],PCdb[[#This Row],[NBR_HOLES]]) -> 98,473,03412,732,586,9NA6,4M5NANA4 | BO101: =SUM(PCdb[[#This Row],[BDhit]:[THREAD_Lhit]]) -> 4
A102: 97 | B102: 70 | C102: 40 | D102: 4 | E102: 11 | F102: 23 | G102: 55 | H102: NA | I102: 7 | J102: M5 | K102: NA | L102: NA | M102: 4 | N102: M5 | O102: 36.2 | P102: 23 | Q102: 0 | R102: Y | S102: B | T102: 45 | U102: 90 | AJ102: NA | AK102: NA | AL102: NA | AM102: NA | AN102: NA | AO102: NA | BB102: =IF(AND(PCdb[[#This Row],[BCD]]>UIoptions!$S$10,PCdb[[#This Row],[BCD]]<UIoptions!$T$10),1,0) -> 0 | BC102: =IF(AND(PCdb[[#This Row],[PD]]>UIoptions!$S$11,PCdb[[#This Row],[PD]]<UIoptions!$T$11),1,0) -> 1 | BD102: =IF(AND(UIoptions!$P$14<=PCdb[[#This Row],[PL (MAX)]],UIoptions!$P$14>UIoptions!$S$14),1,0) -> 1 | BE102: =IF(AND(PCdb[[#This Row],[SD]]>UIoptions!$S$12,PCdb[[#This Row],[SD]]<UIoptions!$T$12),1,0) -> 0 | BF102: =IF(AND(PCdb[[#This Row],[SL]]>UIoptions!$S$13,PCdb[[#This Row],[SL]]<UIoptions!$T$13),1,0) -> 0 | BG102: =IF(UIoptions!$N$35=1,IF(AND(PCdb[[#This Row],[SQ_SZ]]>UIoptions!$S$15,PCdb[[#This Row],[SQ_SZ]]<UIoptions!$T$15),1,0),1) -> 0 | BH102: =IF(UIoptions!$N$35=2,IF(AND(PCdb[[#This Row],[ROUND_D]]>UIoptions!$S$15,PCdb[[#This Row],[ROUND_D]]<UIoptions!$T$15),1,0),1) -> 1 | BI102: =IF(UIoptions!$N$75<>1,1,IF(AND(PCdb[[#This Row],[FL]]>UIoptions!$S$16,PCdb[[#This Row],[FL]]<UIoptions!$T$16),1,0)) -> 1 | BJ102: =IF(OR(UIoptions!$Q$18=PCdb[[#This Row],[THRU_SCREW]],UIoptions!$Q$18="NA"),1,0) -> 0 | BK102: =IF(OR(UIoptions!$P$19=PCdb[[#This Row],[THREAD_SZ]],UIoptions!$P$19="NA"),1,0) -> 1 | BL102: =IF(UIoptions!$N$75=1,1,IF(AND(PCdb[[#This Row],[THREAD_L]]>UIoptions!$S$17,PCdb[[#This Row],[THREAD_L]]<UIoptions!$T$17),1,0)) -> 1 | BM102: =IF(SUM(PCdb[[#This Row],[BDhit]:[THREAD_Lhit]])=11,1,0) -> 0 | BN102: =CONCATENATE(PCdb[[#This Row],[BCD]],PCdb[[#This Row],[PD]],PCdb[[#This Row],[PL (MAX)]],PCdb[[#This Row],[SD]],PCdb[[#This Row],[SL]],PCdb[[#This Row],[SQ_SZ]],PCdb[[#This Row],[ROUND_D]],PCdb[[#This Row],[FL]],PCdb[[#This Row],[THRU_SCREW]],PCdb[[#This Row],[THREAD_SZ]],PCdb[[#This Row],[THREAD_L]],PCdb[[#This Row],[NBR_HOLES]]) -> 70404112355NA7M5NANA4 | BO102: =SUM(PCdb[[#This Row],[BDhit]:[THREAD_Lhit]]) -> 6
A103: 98 | B103: 50.8 | C103: 21 | D103: 4 | E103: 10 | F103: 33 | G103: NA | H103: NA | I103: NA | J103: NA | K103: M6 | L103: 14 | M103: 3 | N103: M6 | V103: 41.7 | W103: NA | X103: NA | Y103: N | Z103: B2 | AA103: 45 | AB103: 120 | BB103: =IF(AND(PCdb[[#This Row],[BCD]]>UIoptions!$S$10,PCdb[[#This Row],[BCD]]<UIoptions!$T$10),1,0) -> 0 | BC103: =IF(AND(PCdb[[#This Row],[PD]]>UIoptions!$S$11,PCdb[[#This Row],[PD]]<UIoptions!$T$11),1,0) -> 0 | BD103: =IF(AND(UIoptions!$P$14<=PCdb[[#This Row],[PL (MAX)]],UIoptions!$P$14>UIoptions!$S$14),1,0) -> 1 | BE103: =IF(AND(PCdb[[#This Row],[SD]]>UIoptions!$S$12,PCdb[[#This Row],[SD]]<UIoptions!$T$12),1,0) -> 0 | BF103: =IF(AND(PCdb[[#This Row],[SL]]>UIoptions!$S$13,PCdb[[#This Row],[SL]]<UIoptions!$T$13),1,0) -> 0 | BG103: =IF(UIoptions!$N$35=1,IF(AND(PCdb[[#This Row],[SQ_SZ]]>UIoptions!$S$15,PCdb[[#This Row],[SQ_SZ]]<UIoptions!$T$15),1,0),1) -> 0 | BH103: =IF(UIoptions!$N$35=2,IF(AND(PCdb[[#This Row],[ROUND_D]]>UIoptions!$S$15,PCdb[[#This Row],[ROUND_D]]<UIoptions!$T$15),1,0),1) -> 1 | BI103: =IF(UIoptions!$N$75<>1,1,IF(AND(PCdb[[#This Row],[FL]]>UIoptions!$S$16,PCdb[[#This Row],[FL]]<UIoptions!$T$16),1,0)) -> 0 | BJ103: =IF(OR(UIoptions!$Q$18=PCdb[[#This Row],[THRU_SCREW]],UIoptions!$Q$18="NA"),1,0) -> 0 | BK103: =IF(OR(UIoptions!$P$19=PCdb[[#This Row],[THREAD_SZ]],UIoptions!$P$19="NA"),1,0) -> 1 | BL103: =IF(UIoptions!$N$75=1,1,IF(AND(PCdb[[#This Row],[THREAD_L]]>UIoptions!$S$17,PCdb[[#This Row],[THREAD_L]]<UIoptions!$T$17),1,0)) -> 1 | BM103: =IF(SUM(PCdb[[#This Row],[BDhit]:[THREAD_Lhit]])=11,1,0) -> 0 | BN103: =CONCATENATE(PCdb[[#This Row],[BCD]],PCdb[[#This Row],[PD]],PCdb[[#This Row],[PL (MAX)]],PCdb[[#This Row],[SD]],PCdb[[#This Row],[SL]],PCdb[[#This Row],[SQ_SZ]],PCdb[[#This Row],[ROUND_D]],PCdb[[#This Row],[FL]],PCdb[[#This Row],[THRU_SCREW]],PCdb[[#This Row],[THREAD_SZ]],PCdb[[#This Row],[THREAD_L]],PCdb[[#This Row],[NBR_HOLES]]) -> 50,82141033NANANANAM6143 | BO103: =SUM(PCdb[[#This Row],[BDhit]:[THREAD_Lhit]]) -> 4
A104: 99 | B104: 75 | C104: 60 | D104: 4 | E104: 14 | F104: 30 | G104: 70 | H104: NA | I104: 7.5 | J104: 5.8 | K104: NA | L104: NA | M104: 4 | N104: M5 | AV104: 32.5 | AW104: 0 | AX104: Y | AY104: C | AZ104: 45 | BA104: 90 | BB104: =IF(AND(PCdb[[#This Row],[BCD]]>UIoptions!$S$10,PCdb[[#This Row],[BCD]]<UIoptions!$T$10),1,0) -> 0 | BC104: =IF(AND(PCdb[[#This Row],[PD]]>UIoptions!$S$11,PCdb[[#This Row],[PD]]<UIoptions!$T$11),1,0) -> 0 | BD104: =IF(AND(UIoptions!$P$14<=PCdb[[#This Row],[PL (MAX)]],UIoptions!$P$14>UIoptions!$S$14),1,0) -> 1 | BE104: =IF(AND(PCdb[[#This Row],[SD]]>UIoptions!$S$12,PCdb[[#This Row],[SD]]<UIoptions!$T$12),1,0) -> 0 | BF104: =IF(AND(PCdb[[#This Row],[SL]]>UIoptions!$S$13,PCdb[[#This Row],[SL]]<UIoptions!$T$13),1,0) -> 0 | BG104: =IF(UIoptions!$N$35=1,IF(AND(PCdb[[#This Row],[SQ_SZ]]>UIoptions!$S$15,PCdb[[#This Row],[SQ_SZ]]<UIoptions!$T$15),1,0),1) -> 0 | BH104: =IF(UIoptions!$N$35=2,IF(AND(PCdb[[#This Row],[ROUND_D]]>UIoptions!$S$15,PCdb[[#This Row],[ROUND_D]]<UIoptions!$T$15),1,0),1) -> 1 | BI104: =IF(UIoptions!$N$75<>1,1,IF(AND(PCdb[[#This Row],[FL]]>UIoptions!$S$16,PCdb[[#This Row],[FL]]<UIoptions!$T$16),1,0)) -> 0 | BJ104: =IF(OR(UIoptions!$Q$18=PCdb[[#This Row],[THRU_SCREW]],UIoptions!$Q$18="NA"),1,0) -> 0 | BK104: =IF(OR(UIoptions!$P$19=PCdb[[#This Row],[THREAD_SZ]],UIoptions!$P$19="NA"),1,0) -> 1 | BL104: =IF(UIoptions!$N$75=1,1,IF(AND(PCdb[[#This Row],[THREAD_L]]>UIoptions!$S$17,PCdb[[#This Row],[THREAD_L]]<UIoptions!$T$17),1,0)) -> 1 | BM104: =IF(SUM(PCdb[[#This Row],[BDhit]:[THREAD_Lhit]])=11,1,0) -> 0 | BN104: =CONCATENATE(PCdb[[#This Row],[BCD]],PCdb[[#This Row],[PD]],PCdb[[#This Row],[PL (MAX)]],PCdb[[#This Row],[SD]],PCdb[[#This Row],[SL]],PCdb[[#This Row],[SQ_SZ]],PCdb[[#This Row],[ROUND_D]],PCdb[[#This Row],[FL]],PCdb[[#This Row],[THRU_SCREW]],PCdb[[#This Row],[THREAD_SZ]],PCdb[[#This Row],[THREAD_L]],PCdb[[#This Row],[NBR_HOLES]]) -> 75604143070NA7,55,8NANA4 | BO104: =SUM(PCdb[[#This Row],[BDhit]:[THREAD_Lhit]]) -> 4
A105: 100 | B105: 46 | C105: 30 | D105: 4 | E105: 8 | F105: 25 | G105: 40 | H105: NA | I105: 10 | J105: 4.5 | K105: NA | L105: NA | M105: 4 | N105: M4 | AJ105: 17.5 | AK105: 0 | AL105: Y | AM105: C | AN105: 45 | AO105: 90 | BB105: =IF(AND(PCdb[[#This Row],[BCD]]>UIoptions!$S$10,PCdb[[#This Row],[BCD]]<UIoptions!$T$10),1,0) -> 0 | BC105: =IF(AND(PCdb[[#This Row],[PD]]>UIoptions!$S$11,PCdb[[#This Row],[PD]]<UIoptions!$T$11),1,0) -> 0 | BD105: =IF(AND(UIoptions!$P$14<=PCdb[[#This Row],[PL (MAX)]],UIoptions!$P$14>UIoptions!$S$14),1,0) -> 1 | BE105: =IF(AND(PCdb[[#This Row],[SD]]>UIoptions!$S$12,PCdb[[#This Row],[SD]]<UIoptions!$T$12),1,0) -> 0 | BF105: =IF(AND(PCdb[[#This Row],[SL]]>UIoptions!$S$13,PCdb[[#This Row],[SL]]<UIoptions!$T$13),1,0) -> 0 | BG105: =IF(UIoptions!$N$35=1,IF(AND(PCdb[[#This Row],[SQ_SZ]]>UIoptions!$S$15,PCdb[[#This Row],[SQ_SZ]]<UIoptions!$T$15),1,0),1) -> 0 | BH105: =IF(UIoptions!$N$35=2,IF(AND(PCdb[[#This Row],[ROUND_D]]>UIoptions!$S$15,PCdb[[#This Row],[ROUND_D]]<UIoptions!$T$15),1,0),1) -> 1 | BI105: =IF(UIoptions!$N$75<>1,1,IF(AND(PCdb[[#This Row],[FL]]>UIoptions!$S$16,PCdb[[#This Row],[FL]]<UIoptions!$T$16),1,0)) -> 0 | BJ105: =IF(OR(UIoptions!$Q$18=PCdb[[#This Row],[THRU_SCREW]],UIoptions!$Q$18="NA"),1,0) -> 0 | BK105: =IF(OR(UIoptions!$P$19=PCdb[[#This Row],[THREAD_SZ]],UIoptions!$P$19="NA"),1,0) -> 1 | BL105: =IF(UIoptions!$N$75=1,1,IF(AND(PCdb[[#This Row],[THREAD_L]]>UIoptions!$S$17,PCdb[[#This Row],[THREAD_L]]<UIoptions!$T$17),1,0)) -> 1 | BM105: =IF(SUM(PCdb[[#This Row],[BDhit]:[THREAD_Lhit]])=11,1,0) -> 0 | BN105: =CONCATENATE(PCdb[[#This Row],[BCD]],PCdb[[#This Row],[PD]],PCdb[[#This Row],[PL (MAX)]],PCdb[[#This Row],[SD]],PCdb[[#This Row],[SL]],PCdb[[#This Row],[SQ_SZ]],PCdb[[#This Row],[ROUND_D]],PCdb[[#This Row],[FL]],PCdb[[#This Row],[THRU_SCREW]],PCdb[[#This Row],[THREAD_SZ]],PCdb[[#This Row],[THREAD_L]],PCdb[[#This Row],[NBR_HOLES]]) -> 4630482540NA104,5NANA4 | BO105: =SUM(PCdb[[#This Row],[BDhit]:[THREAD_Lhit]]) -> 4
A106: 101 | B106: 75 | C106: 60 | D106: 4 | E106: 11 | F106: 23 | G106: NA | H106: 130 | I106: NA | J106: NA | K106: M5 | L106: 9 | M106: 4 | N106: 6 | AV106: NA | AW106: NA | AX106: NA | AY106: NA | AZ106: NA | BA106: NA | BB106: =IF(AND(PCdb[[#This Row],[BCD]]>UIoptions!$S$10,PCdb[[#This Row],[BCD]]<UIoptions!$T$10),1,0) -> 0 | BC106: =IF(AND(PCdb[[#This Row],[PD]]>UIoptions!$S$11,PCdb[[#This Row],[PD]]<UIoptions!$T$11),1,0) -> 0 | BD106: =IF(AND(UIoptions!$P$14<=PCdb[[#This Row],[PL (MAX)]],UIoptions!$P$14>UIoptions!$S$14),1,0) -> 1 | BE106: =IF(AND(PCdb[[#This Row],[SD]]>UIoptions!$S$12,PCdb[[#This Row],[SD]]<UIoptions!$T$12),1,0) -> 0 | BF106: =IF(AND(PCdb[[#This Row],[SL]]>UIoptions!$S$13,PCdb[[#This Row],[SL]]<UIoptions!$T$13),1,0) -> 0 | BG106: =IF(UIoptions!$N$35=1,IF(AND(PCdb[[#This Row],[SQ_SZ]]>UIoptions!$S$15,PCdb[[#This Row],[SQ_SZ]]<UIoptions!$T$15),1,0),1) -> 0 | BH106: =IF(UIoptions!$N$35=2,IF(AND(PCdb[[#This Row],[ROUND_D]]>UIoptions!$S$15,PCdb[[#This Row],[ROUND_D]]<UIoptions!$T$15),1,0),1) -> 1 | BI106: =IF(UIoptions!$N$75<>1,1,IF(AND(PCdb[[#This Row],[FL]]>UIoptions!$S$16,PCdb[[#This Row],[FL]]<UIoptions!$T$16),1,0)) -> 0 | BJ106: =IF(OR(UIoptions!$Q$18=PCdb[[#This Row],[THRU_SCREW]],UIoptions!$Q$18="NA"),1,0) -> 0 | BK106: =IF(OR(UIoptions!$P$19=PCdb[[#This Row],[THREAD_SZ]],UIoptions!$P$19="NA"),1,0) -> 1 | BL106: =IF(UIoptions!$N$75=1,1,IF(AND(PCdb[[#This Row],[THREAD_L]]>UIoptions!$S$17,PCdb[[#This Row],[THREAD_L]]<UIoptions!$T$17),1,0)) -> 1 | BM106: =IF(SUM(PCdb[[#This Row],[BDhit]:[THREAD_Lhit]])=11,1,0) -> 0 | BN106: =CONCATENATE(PCdb[[#This Row],[BCD]],PCdb[[#This Row],[PD]],PCdb[[#This Row],[PL (MAX)]],PCdb[[#This Row],[SD]],PCdb[[#This Row],[SL]],PCdb[[#This Row],[SQ_SZ]],PCdb[[#This Row],[ROUND_D]],PCdb[[#This Row],[FL]],PCdb[[#This Row],[THRU_SCREW]],PCdb[[#This Row],[THREAD_SZ]],PCdb[[#This Row],[THREAD_L]],PCdb[[#This Row],[NBR_HOLES]]) -> 756041123NA130NANAM594 | BO106: =SUM(PCdb[[#This Row],[BDhit]:[THREAD_Lhit]]) -> 4
A107: 102 | B107: 66.7 | C107: 38.1 | D107: 4 | E107: 6.35 | F107: 15 | G107: 56.4 | H107: NA | I107: 8 | J107: M4 | K107: NA | L107: NA | M107: 4 | N107: NA | O107: NA | P107: NA | Q107: NA | R107: NA | S107: NA | T107: NA | U107: NA | V107: NA | W107: NA | X107: NA | Y107: NA | Z107: NA | AA107: NA | AB107: NA | AC107: NA | AD107: NA | AE107: NA | AF107: NA | AG107: NA | AH107: NA | AI107: NA | BB107: =IF(AND(PCdb[[#This Row],[BCD]]>UIoptions!$S$10,PCdb[[#This Row],[BCD]]<UIoptions!$T$10),1,0) -> 0 | BC107: =IF(AND(PCdb[[#This Row],[PD]]>UIoptions!$S$11,PCdb[[#This Row],[PD]]<UIoptions!$T$11),1,0) -> 0 | BD107: =IF(AND(UIoptions!$P$14<=PCdb[[#This Row],[PL (MAX)]],UIoptions!$P$14>UIoptions!$S$14),1,0) -> 1 | BE107: =IF(AND(PCdb[[#This Row],[SD]]>UIoptions!$S$12,PCdb[[#This Row],[SD]]<UIoptions!$T$12),1,0) -> 0 | BF107: =IF(AND(PCdb[[#This Row],[SL]]>UIoptions!$S$13,PCdb[[#This Row],[SL]]<UIoptions!$T$13),1,0) -> 0 | BG107: =IF(UIoptions!$N$35=1,IF(AND(PCdb[[#This Row],[SQ_SZ]]>UIoptions!$S$15,PCdb[[#This Row],[SQ_SZ]]<UIoptions!$T$15),1,0),1) -> 0 | BH107: =IF(UIoptions!$N$35=2,IF(AND(PCdb[[#This Row],[ROUND_D]]>UIoptions!$S$15,PCdb[[#This Row],[ROUND_D]]<UIoptions!$T$15),1,0),1) -> 1 | BI107: =IF(UIoptions!$N$75<>1,1,IF(AND(PCdb[[#This Row],[FL]]>UIoptions!$S$16,PCdb[[#This Row],[FL]]<UIoptions!$T$16),1,0)) -> 0 | BJ107: =IF(OR(UIoptions!$Q$18=PCdb[[#This Row],[THRU_SCREW]],UIoptions!$Q$18="NA"),1,0) -> 1 | BK107: =IF(OR(UIoptions!$P$19=PCdb[[#This Row],[THREAD_SZ]],UIoptions!$P$19="NA"),1,0) -> 1 | BL107: =IF(UIoptions!$N$75=1,1,IF(AND(PCdb[[#This Row],[THREAD_L]]>UIoptions!$S$17,PCdb[[#This Row],[THREAD_L]]<UIoptions!$T$17),1,0)) -> 1 | BM107: =IF(SUM(PCdb[[#This Row],[BDhit]:[THREAD_Lhit]])=11,1,0) -> 0 | BN107: =CONCATENATE(PCdb[[#This Row],[BCD]],PCdb[[#This Row],[PD]],PCdb[[#This Row],[PL (MAX)]],PCdb[[#This Row],[SD]],PCdb[[#This Row],[SL]],PCdb[[#This Row],[SQ_SZ]],PCdb[[#This Row],[ROUND_D]],PCdb[[#This Row],[FL]],PCdb[[#This Row],[THRU_SCREW]],PCdb[[#This Row],[THREAD_SZ]],PCdb[[#This Row],[THREAD_L]],PCdb[[#This Row],[NBR_HOLES]]) -> 66,738,146,351556,4NA8M4NANA4 | BO107: =SUM(PCdb[[#This Row],[BDhit]:[THREAD_Lhit]]) -> 5
A108: 103 | B108: 43.8 | C108: 22 | D108: 4 | E108: 5 | F108: 21.9 | G108: 52.3 | H108: NA | I108: NA | J108: NA | K108: M3 | L108: 0.5 | M108: 4 | N108: NA | O108: NA | P108: NA | Q108: NA | R108: NA | S108: NA | T108: NA | U108: NA | AJ108: NA | AK108: NA | AL108: Y | AM108: D2 | AN108: 45 | AO108: 90 | BB108: =IF(AND(PCdb[[#This Row],[BCD]]>UIoptions!$S$10,PCdb[[#This Row],[BCD]]<UIoptions!$T$10),1,0) -> 0 | BC108: =IF(AND(PCdb[[#This Row],[PD]]>UIoptions!$S$11,PCdb[[#This Row],[PD]]<UIoptions!$T$11),1,0) -> 0 | BD108: =IF(AND(UIoptions!$P$14<=PCdb[[#This Row],[PL (MAX)]],UIoptions!$P$14>UIoptions!$S$14),1,0) -> 1 | BE108: =IF(AND(PCdb[[#This Row],[SD]]>UIoptions!$S$12,PCdb[[#This Row],[SD]]<UIoptions!$T$12),1,0) -> 0 | BF108: =IF(AND(PCdb[[#This Row],[SL]]>UIoptions!$S$13,PCdb[[#This Row],[SL]]<UIoptions!$T$13),1,0) -> 0 | BG108: =IF(UIoptions!$N$35=1,IF(AND(PCdb[[#This Row],[SQ_SZ]]>UIoptions!$S$15,PCdb[[#This Row],[SQ_SZ]]<UIoptions!$T$15),1,0),1) -> 0 | BH108: =IF(UIoptions!$N$35=2,IF(AND(PCdb[[#This Row],[ROUND_D]]>UIoptions!$S$15,PCdb[[#This Row],[ROUND_D]]<UIoptions!$T$15),1,0),1) -> 1 | BI108: =IF(UIoptions!$N$75<>1,1,IF(AND(PCdb[[#This Row],[FL]]>UIoptions!$S$16,PCdb[[#This Row],[FL]]<UIoptions!$T$16),1,0)) -> 0 | BJ108: =IF(OR(UIoptions!$Q$18=PCdb[[#This Row],[THRU_SCREW]],UIoptions!$Q$18="NA"),1,0) -> 0 | BK108: =IF(OR(UIoptions!$P$19=PCdb[[#This Row],[THREAD_SZ]],UIoptions!$P$19="NA"),1,0) -> 1 | BL108: =IF(UIoptions!$N$75=1,1,IF(AND(PCdb[[#This Row],[THREAD_L]]>UIoptions!$S$17,PCdb[[#This Row],[THREAD_L]]<UIoptions!$T$17),1,0)) -> 1 | BM108: =IF(SUM(PCdb[[#This Row],[BDhit]:[THREAD_Lhit]])=11,1,0) -> 0 | BN108: =CONCATENATE(PCdb[[#This Row],[BCD]],PCdb[[#This Row],[PD]],PCdb[[#This Row],[PL (MAX)]],PCdb[[#This Row],[SD]],PCdb[[#This Row],[SL]],PCdb[[#This Row],[SQ_SZ]],PCdb[[#This Row],[ROUND_D]],PCdb[[#This Row],[FL]],PCdb[[#This Row],[THRU_SCREW]],PCdb[[#This Row],[THREAD_SZ]],PCdb[[#This Row],[THREAD_L]],PCdb[[#This Row],[NBR_HOLES]]) -> 43,8224521,952,3NANANAM30,54 | BO108: =SUM(PCdb[[#This Row],[BDhit]:[THREAD_Lhit]]) -> 4
A109: 104 | B109: 66.6 | C109: 38.1 | D109: 4 | E109: 8 | F109: 20.6 | G109: 60 | H109: NA | I109: 7 | J109: M4 | K109: NA | L109: NA | M109: 4 | N109: M4 | U109: =IF(U96>4,"",4) ->  | AJ109: 23 | AK109: 0 | AL109: Y | AM109: D | AN109: 45 | AO109: 90 | BB109: =IF(AND(PCdb[[#This Row],[BCD]]>UIoptions!$S$10,PCdb[[#This Row],[BCD]]<UIoptions!$T$10),1,0) -> 0 | BC109: =IF(AND(PCdb[[#This Row],[PD]]>UIoptions!$S$11,PCdb[[#This Row],[PD]]<UIoptions!$T$11),1,0) -> 0 | BD109: =IF(AND(UIoptions!$P$14<=PCdb[[#This Row],[PL (MAX)]],UIoptions!$P$14>UIoptions!$S$14),1,0) -> 1 | BE109: =IF(AND(PCdb[[#This Row],[SD]]>UIoptions!$S$12,PCdb[[#This Row],[SD]]<UIoptions!$T$12),1,0) -> 0 | BF109: =IF(AND(PCdb[[#This Row],[SL]]>UIoptions!$S$13,PCdb[[#This Row],[SL]]<UIoptions!$T$13),1,0) -> 0 | BG109: =IF(UIoptions!$N$35=1,IF(AND(PCdb[[#This Row],[SQ_SZ]]>UIoptions!$S$15,PCdb[[#This Row],[SQ_SZ]]<UIoptions!$T$15),1,0),1) -> 0 | BH109: =IF(UIoptions!$N$35=2,IF(AND(PCdb[[#This Row],[ROUND_D]]>UIoptions!$S$15,PCdb[[#This Row],[ROUND_D]]<UIoptions!$T$15),1,0),1) -> 1 | BI109: =IF(UIoptions!$N$75<>1,1,IF(AND(PCdb[[#This Row],[FL]]>UIoptions!$S$16,PCdb[[#This Row],[FL]]<UIoptions!$T$16),1,0)) -> 1 | BJ109: =IF(OR(UIoptions!$Q$18=PCdb[[#This Row],[THRU_SCREW]],UIoptions!$Q$18="NA"),1,0) -> 1 | BK109: =IF(OR(UIoptions!$P$19=PCdb[[#This Row],[THREAD_SZ]],UIoptions!$P$19="NA"),1,0) -> 1 | BL109: =IF(UIoptions!$N$75=1,1,IF(AND(PCdb[[#This Row],[THREAD_L]]>UIoptions!$S$17,PCdb[[#This Row],[THREAD_L]]<UIoptions!$T$17),1,0)) -> 1 | BM109: =IF(SUM(PCdb[[#This Row],[BDhit]:[THREAD_Lhit]])=11,1,0) -> 0 | BN109: =CONCATENATE(PCdb[[#This Row],[BCD]],PCdb[[#This Row],[PD]],PCdb[[#This Row],[PL (MAX)]],PCdb[[#This Row],[SD]],PCdb[[#This Row],[SL]],PCdb[[#This Row],[SQ_SZ]],PCdb[[#This Row],[ROUND_D]],PCdb[[#This Row],[FL]],PCdb[[#This Row],[THRU_SCREW]],PCdb[[#This Row],[THREAD_SZ]],PCdb[[#This Row],[THREAD_L]],PCdb[[#This Row],[NBR_HOLES]]) -> 66,638,14820,660NA7M4NANA4 | BO109: =SUM(PCdb[[#This Row],[BDhit]:[THREAD_Lhit]]) -> 6
A110: 105 | B110: 70 | C110: 50 | D110: 4 | E110: 14 | F110: 27 | G110: 62 | H110: NA | I110: 6 | J110: M5 | K110: NA | L110: NA | M110: 4 | N110: M5 | O110: NA | P110: NA | Q110: NA | R110: NA | S110: NA | T110: NA | U110: NA | AJ110: NA | AK110: NA | AL110: NA | AM110: NA | AN110: NA | AO110: NA | AP110: 27 | AQ110: 0 | AR110: Y | AS110: C | AT110: 45 | AU110: 90 | BB110: =IF(AND(PCdb[[#This Row],[BCD]]>UIoptions!$S$10,PCdb[[#This Row],[BCD]]<UIoptions!$T$10),1,0) -> 0 | BC110: =IF(AND(PCdb[[#This Row],[PD]]>UIoptions!$S$11,PCdb[[#This Row],[PD]]<UIoptions!$T$11),1,0) -> 0 | BD110: =IF(AND(UIoptions!$P$14<=PCdb[[#This Row],[PL (MAX)]],UIoptions!$P$14>UIoptions!$S$14),1,0) -> 1 | BE110: =IF(AND(PCdb[[#This Row],[SD]]>UIoptions!$S$12,PCdb[[#This Row],[SD]]<UIoptions!$T$12),1,0) -> 0 | BF110: =IF(AND(PCdb[[#This Row],[SL]]>UIoptions!$S$13,PCdb[[#This Row],[SL]]<UIoptions!$T$13),1,0) -> 0 | BG110: =IF(UIoptions!$N$35=1,IF(AND(PCdb[[#This Row],[SQ_SZ]]>UIoptions!$S$15,PCdb[[#This Row],[SQ_SZ]]<UIoptions!$T$15),1,0),1) -> 0 | BH110: =IF(UIoptions!$N$35=2,IF(AND(PCdb[[#This Row],[ROUND_D]]>UIoptions!$S$15,PCdb[[#This Row],[ROUND_D]]<UIoptions!$T$15),1,0),1) -> 1 | BI110: =IF(UIoptions!$N$75<>1,1,IF(AND(PCdb[[#This Row],[FL]]>UIoptions!$S$16,PCdb[[#This Row],[FL]]<UIoptions!$T$16),1,0)) -> 0 | BJ110: =IF(OR(UIoptions!$Q$18=PCdb[[#This Row],[THRU_SCREW]],UIoptions!$Q$18="NA"),1,0) -> 0 | BK110: =IF(OR(UIoptions!$P$19=PCdb[[#This Row],[THREAD_SZ]],UIoptions!$P$19="NA"),1,0) -> 1 | BL110: =IF(UIoptions!$N$75=1,1,IF(AND(PCdb[[#This Row],[THREAD_L]]>UIoptions!$S$17,PCdb[[#This Row],[THREAD_L]]<UIoptions!$T$17),1,0)) -> 1 | BM110: =IF(SUM(PCdb[[#This Row],[BDhit]:[THREAD_Lhit]])=11,1,0) -> 0 | BN110: =CONCATENATE(PCdb[[#This Row],[BCD]],PCdb[[#This Row],[PD]],PCdb[[#This Row],[PL (MAX)]],PCdb[[#This Row],[SD]],PCdb[[#This Row],[SL]],PCdb[[#This Row],[SQ_SZ]],PCdb[[#This Row],[ROUND_D]],PCdb[[#This Row],[FL]],PCdb[[#This Row],[THRU_SCREW]],PCdb[[#This Row],[THREAD_SZ]],PCdb[[#This Row],[THREAD_L]],PCdb[[#This Row],[NBR_HOLES]]) -> 70504142762NA6M5NANA4 | BO110: =SUM(PCdb[[#This Row],[BDhit]:[THREAD_Lhit]]) -> 4
A111: 106 | B111: 35 | C111: 28 | D111: 4 | E111: 12 | F111: 29.5 | G111: 42 | H111: NA | I111: NA | J111: NA | K111: M4 | L111: 6 | M111: 4 | N111: 5 | X111: 35 | Y111: 28 | Z111: 4 | AA111: 12 | AB111: 29.5 | AC111: 42 | AD111: NA | AE111: NA | AF111: NA | AG111: M4 | AH111: 6 | AI111: 4 | AP111: NA | AQ111: NA | AR111: Y | AS111: SPLC2-106 | AT111: 45 | AU111: 90 | BB111: =IF(AND(PCdb[[#This Row],[BCD]]>UIoptions!$S$10,PCdb[[#This Row],[BCD]]<UIoptions!$T$10),1,0) -> 0 | BC111: =IF(AND(PCdb[[#This Row],[PD]]>UIoptions!$S$11,PCdb[[#This Row],[PD]]<UIoptions!$T$11),1,0) -> 0 | BD111: =IF(AND(UIoptions!$P$14<=PCdb[[#This Row],[PL (MAX)]],UIoptions!$P$14>UIoptions!$S$14),1,0) -> 1 | BE111: =IF(AND(PCdb[[#This Row],[SD]]>UIoptions!$S$12,PCdb[[#This Row],[SD]]<UIoptions!$T$12),1,0) -> 0 | BF111: =IF(AND(PCdb[[#This Row],[SL]]>UIoptions!$S$13,PCdb[[#This Row],[SL]]<UIoptions!$T$13),1,0) -> 0 | BG111: =IF(UIoptions!$N$35=1,IF(AND(PCdb[[#This Row],[SQ_SZ]]>UIoptions!$S$15,PCdb[[#This Row],[SQ_SZ]]<UIoptions!$T$15),1,0),1) -> 0 | BH111: =IF(UIoptions!$N$35=2,IF(AND(PCdb[[#This Row],[ROUND_D]]>UIoptions!$S$15,PCdb[[#This Row],[ROUND_D]]<UIoptions!$T$15),1,0),1) -> 1 | BI111: =IF(UIoptions!$N$75<>1,1,IF(AND(PCdb[[#This Row],[FL]]>UIoptions!$S$16,PCdb[[#This Row],[FL]]<UIoptions!$T$16),1,0)) -> 0 | BJ111: =IF(OR(UIoptions!$Q$18=PCdb[[#This Row],[THRU_SCREW]],UIoptions!$Q$18="NA"),1,0) -> 0 | BK111: =IF(OR(UIoptions!$P$19=PCdb[[#This Row],[THREAD_SZ]],UIoptions!$P$19="NA"),1,0) -> 1 | BL111: =IF(UIoptions!$N$75=1,1,IF(AND(PCdb[[#This Row],[THREAD_L]]>UIoptions!$S$17,PCdb[[#This Row],[THREAD_L]]<UIoptions!$T$17),1,0)) -> 1 | BM111: =IF(SUM(PCdb[[#This Row],[BDhit]:[THREAD_Lhit]])=11,1,0) -> 0 | BN111: =CONCATENATE(PCdb[[#This Row],[BCD]],PCdb[[#This Row],[PD]],PCdb[[#This Row],[PL (MAX)]],PCdb[[#This Row],[SD]],PCdb[[#This Row],[SL]],PCdb[[#This Row],[SQ_SZ]],PCdb[[#This Row],[ROUND_D]],PCdb[[#This Row],[FL]],PCdb[[#This Row],[THRU_SCREW]],PCdb[[#This Row],[THREAD_SZ]],PCdb[[#This Row],[THREAD_L]],PCdb[[#This Row],[NBR_HOLES]]) -> 352841229,542NANANAM464 | BO111: =SUM(PCdb[[#This Row],[BDhit]:[THREAD_Lhit]]) -> 4
A112: 107 | B112: 62 | C112: 52 | D112: 5 | E112: 16 | F112: 36 | G112: NA | H112: 70 | I112: NA | J112: NA | K112: M5 | L112: 10 | M112: 4 | N112: 6 | V112: 41.7 | W112: NA | X112: NA | Y112: N | Z112: SPLB2-107 | AA112: 45 | AB112: 90 | AC112: 38.7 | AD112: NA | AE112: NA | AF112: Y | AG112: SPLB2-107 | AH112: 45 | AI112: 90 | AV112: NA | AW112: NA | AX112: Y | AY112: SPLD2-107 | AZ112: 0 | BA112: 90 | BB112: =IF(AND(PCdb[[#This Row],[BCD]]>UIoptions!$S$10,PCdb[[#This Row],[BCD]]<UIoptions!$T$10),1,0) -> 0 | BC112: =IF(AND(PCdb[[#This Row],[PD]]>UIoptions!$S$11,PCdb[[#This Row],[PD]]<UIoptions!$T$11),1,0) -> 0 | BD112: =IF(AND(UIoptions!$P$14<=PCdb[[#This Row],[PL (MAX)]],UIoptions!$P$14>UIoptions!$S$14),1,0) -> 1 | BE112: =IF(AND(PCdb[[#This Row],[SD]]>UIoptions!$S$12,PCdb[[#This Row],[SD]]<UIoptions!$T$12),1,0) -> 0 | BF112: =IF(AND(PCdb[[#This Row],[SL]]>UIoptions!$S$13,PCdb[[#This Row],[SL]]<UIoptions!$T$13),1,0) -> 0 | BG112: =IF(UIoptions!$N$35=1,IF(AND(PCdb[[#This Row],[SQ_SZ]]>UIoptions!$S$15,PCdb[[#This Row],[SQ_SZ]]<UIoptions!$T$15),1,0),1) -> 0 | BH112: =IF(UIoptions!$N$35=2,IF(AND(PCdb[[#This Row],[ROUND_D]]>UIoptions!$S$15,PCdb[[#This Row],[ROUND_D]]<UIoptions!$T$15),1,0),1) -> 1 | BI112: =IF(UIoptions!$N$75<>1,1,IF(AND(PCdb[[#This Row],[FL]]>UIoptions!$S$16,PCdb[[#This Row],[FL]]<UIoptions!$T$16),1,0)) -> 0 | BJ112: =IF(OR(UIoptions!$Q$18=PCdb[[#This Row],[THRU_SCREW]],UIoptions!$Q$18="NA"),1,0) -> 0 | BK112: =IF(OR(UIoptions!$P$19=PCdb[[#This Row],[THREAD_SZ]],UIoptions!$P$19="NA"),1,0) -> 1 | BL112: =IF(UIoptions!$N$75=1,1,IF(AND(PCdb[[#This Row],[THREAD_L]]>UIoptions!$S$17,PCdb[[#This Row],[THREAD_L]]<UIoptions!$T$17),1,0)) -> 1 | BM112: =IF(SUM(PCdb[[#This Row],[BDhit]:[THREAD_Lhit]])=11,1,0) -> 0 | BN112: =CONCATENATE(PCdb[[#This Row],[BCD]],PCdb[[#This Row],[PD]],PCdb[[#This Row],[PL (MAX)]],PCdb[[#This Row],[SD]],PCdb[[#This Row],[SL]],PCdb[[#This Row],[SQ_SZ]],PCdb[[#This Row],[ROUND_D]],PCdb[[#This Row],[FL]],PCdb[[#This Row],[THRU_SCREW]],PCdb[[#This Row],[THREAD_SZ]],PCdb[[#This Row],[THREAD_L]],PCdb[[#This Row],[NBR_HOLES]]) -> 625251636NA70NANAM5104 | BO112: =SUM(PCdb[[#This Row],[BDhit]:[THREAD_Lhit]]) -> 4
A113: 108 | B113: 100 | C113: 80 | D113: 4 | E113: 16 | F113: 40 | G113: 89.4 | H113: NA | I113: 9.9 | J113: M4 | K113: NA | L113: NA | M113: 4 | N113: M4 | O113: NA | P113: NA | Q113: NA | R113: NA | S113: NA | T113: NA | U113: NA | V113: NA | W113: NA | X113: NA | Y113: NA | Z113: NA | AA113: NA | AB113: NA | AC113: 45.2 | AD113: 42 | AE113: 0 | AF113: Y | AG113: B | AH113: 45 | AI113: 90 | AJ113: NA | AK113: NA | AL113: NA | AM113: NA | AN113: NA | AO113: NA | AP113: NA | AQ113: NA | AR113: NA | AS113: NA | AT113: NA | AU113: NA | BB113: =IF(AND(PCdb[[#This Row],[BCD]]>UIoptions!$S$10,PCdb[[#This Row],[BCD]]<UIoptions!$T$10),1,0) -> 0 | BC113: =IF(AND(PCdb[[#This Row],[PD]]>UIoptions!$S$11,PCdb[[#This Row],[PD]]<UIoptions!$T$11),1,0) -> 0 | BD113: =IF(AND(UIoptions!$P$14<=PCdb[[#This Row],[PL (MAX)]],UIoptions!$P$14>UIoptions!$S$14),1,0) -> 1 | BE113: =IF(AND(PCdb[[#This Row],[SD]]>UIoptions!$S$12,PCdb[[#This Row],[SD]]<UIoptions!$T$12),1,0) -> 0 | BF113: =IF(AND(PCdb[[#This Row],[SL]]>UIoptions!$S$13,PCdb[[#This Row],[SL]]<UIoptions!$T$13),1,0) -> 0 | BG113: =IF(UIoptions!$N$35=1,IF(AND(PCdb[[#This Row],[SQ_SZ]]>UIoptions!$S$15,PCdb[[#This Row],[SQ_SZ]]<UIoptions!$T$15),1,0),1) -> 0 | BH113: =IF(UIoptions!$N$35=2,IF(AND(PCdb[[#This Row],[ROUND_D]]>UIoptions!$S$15,PCdb[[#This Row],[ROUND_D]]<UIoptions!$T$15),1,0),1) -> 1 | BI113: =IF(UIoptions!$N$75<>1,1,IF(AND(PCdb[[#This Row],[FL]]>UIoptions!$S$16,PCdb[[#This Row],[FL]]<UIoptions!$T$16),1,0)) -> 0 | BJ113: =IF(OR(UIoptions!$Q$18=PCdb[[#This Row],[THRU_SCREW]],UIoptions!$Q$18="NA"),1,0) -> 1 | BK113: =IF(OR(UIoptions!$P$19=PCdb[[#This Row],[THREAD_SZ]],UIoptions!$P$19="NA"),1,0) -> 1 | BL113: =IF(UIoptions!$N$75=1,1,IF(AND(PCdb[[#This Row],[THREAD_L]]>UIoptions!$S$17,PCdb[[#This Row],[THREAD_L]]<UIoptions!$T$17),1,0)) -> 1 | BM113: =IF(SUM(PCdb[[#This Row],[BDhit]:[THREAD_Lhit]])=11,1,0) -> 0 | BN113: =CONCATENATE(PCdb[[#This Row],[BCD]],PCdb[[#This Row],[PD]],PCdb[[#This Row],[PL (MAX)]],PCdb[[#This Row],[SD]],PCdb[[#This Row],[SL]],PCdb[[#This Row],[SQ_SZ]],PCdb[[#This Row],[ROUND_D]],PCdb[[#This Row],[FL]],PCdb[[#This Row],[THRU_SCREW]],PCdb[[#This Row],[THREAD_SZ]],PCdb[[#This Row],[THREAD_L]],PCdb[[#This Row],[NBR_HOLES]]) -> 100804164089,4NA9,9M4NANA4 | BO113: =SUM(PCdb[[#This Row],[BDhit]:[THREAD_Lhit]]) -> 5
A114: 109 | B114: 52 | C114: 40 | D114: 4 | E114: 14 | F114: 35 | G114: NA | H114: 60 | I114: NA | J114: NA | K114: M5 | L114: 8 | M114: 4 | N114: 6 | O114: NA | P114: NA | Q114: NA | R114: NA | S114: NA | T114: NA | U114: NA | AC114: 48.7 | AD114: NA | AE114: 0 | AF114: Y | AG114: B2 | AH114: 45 | AI114: 90 | AJ114: NA | AK114: NA | AL114: NA | AM114: NA | AN114: NA | AO114: NA | AP114: NA | AQ114: NA | AR114: Y | AS114: D2 | AT114: 45 | AU114: 90 | AV114: NA | AW114: NA | AX114: Y | AY114: D2 | AZ114: 45 | BA114: 90 | BB114: =IF(AND(PCdb[[#This Row],[BCD]]>UIoptions!$S$10,PCdb[[#This Row],[BCD]]<UIoptions!$T$10),1,0) -> 0 | BC114: =IF(AND(PCdb[[#This Row],[PD]]>UIoptions!$S$11,PCdb[[#This Row],[PD]]<UIoptions!$T$11),1,0) -> 1 | BD114: =IF(AND(UIoptions!$P$14<=PCdb[[#This Row],[PL (MAX)]],UIoptions!$P$14>UIoptions!$S$14),1,0) -> 1 | BE114: =IF(AND(PCdb[[#This Row],[SD]]>UIoptions!$S$12,PCdb[[#This Row],[SD]]<UIoptions!$T$12),1,0) -> 0 | BF114: =IF(AND(PCdb[[#This Row],[SL]]>UIoptions!$S$13,PCdb[[#This Row],[SL]]<UIoptions!$T$13),1,0) -> 0 | BG114: =IF(UIoptions!$N$35=1,IF(AND(PCdb[[#This Row],[SQ_SZ]]>UIoptions!$S$15,PCdb[[#This Row],[SQ_SZ]]<UIoptions!$T$15),1,0),1) -> 0 | BH114: =IF(UIoptions!$N$35=2,IF(AND(PCdb[[#This Row],[ROUND_D]]>UIoptions!$S$15,PCdb[[#This Row],[ROUND_D]]<UIoptions!$T$15),1,0),1) -> 1 | BI114: =IF(UIoptions!$N$75<>1,1,IF(AND(PCdb[[#This Row],[FL]]>UIoptions!$S$16,PCdb[[#This Row],[FL]]<UIoptions!$T$16),1,0)) -> 0 | BJ114: =IF(OR(UIoptions!$Q$18=PCdb[[#This Row],[THRU_SCREW]],UIoptions!$Q$18="NA"),1,0) -> 0 | BK114: =IF(OR(UIoptions!$P$19=PCdb[[#This Row],[THREAD_SZ]],UIoptions!$P$19="NA"),1,0) -> 1 | BL114: =IF(UIoptions!$N$75=1,1,IF(AND(PCdb[[#This Row],[THREAD_L]]>UIoptions!$S$17,PCdb[[#This Row],[THREAD_L]]<UIoptions!$T$17),1,0)) -> 1 | BM114: =IF(SUM(PCdb[[#This Row],[BDhit]:[THREAD_Lhit]])=11,1,0) -> 0 | BN114: =CONCATENATE(PCdb[[#This Row],[BCD]],PCdb[[#This Row],[PD]],PCdb[[#This Row],[PL (MAX)]],PCdb[[#This Row],[SD]],PCdb[[#This Row],[SL]],PCdb[[#This Row],[SQ_SZ]],PCdb[[#This Row],[ROUND_D]],PCdb[[#This Row],[FL]],PCdb[[#This Row],[THRU_SCREW]],PCdb[[#This Row],[THREAD_SZ]],PCdb[[#This Row],[THREAD_L]],PCdb[[#This Row],[NBR_HOLES]]) -> 524041435NA60NANAM584 | BO114: =SUM(PCdb[[#This Row],[BDhit]:[THREAD_Lhit]]) -> 5
A115: 110 | B115: 45 | C115: 19.5 | D115: 4 | E115: 8 | F115: 15 | G115: NA | H115: 45 | I115: 5.5 | J115: M3 | K115: NA | L115: NA | M115: 4 | N115: M3 | O115: NA | P115: NA | Q115: NA | R115: NA | S115: NA | T115: NA | U115: NA | V115: NA | W115: NA | X115: NA | Y115: NA | Z115: NA | AA115: NA | AB115: NA | AC115: NA | AD115: NA | AE115: NA | AF115: NA | AG115: NA | AH115: NA | AI115: NA | AJ115: 15 | AK115: 0 | AL115: Y | AM115: C | AN115: 45 | AO115: 90 | BB115: =IF(AND(PCdb[[#This Row],[BCD]]>UIoptions!$S$10,PCdb[[#This Row],[BCD]]<UIoptions!$T$10),1,0) -> 0 | BC115: =IF(AND(PCdb[[#This Row],[PD]]>UIoptions!$S$11,PCdb[[#This Row],[PD]]<UIoptions!$T$11),1,0) -> 0 | BD115: =IF(AND(UIoptions!$P$14<=PCdb[[#This Row],[PL (MAX)]],UIoptions!$P$14>UIoptions!$S$14),1,0) -> 1 | BE115: =IF(AND(PCdb[[#This Row],[SD]]>UIoptions!$S$12,PCdb[[#This Row],[SD]]<UIoptions!$T$12),1,0) -> 0 | BF115: =IF(AND(PCdb[[#This Row],[SL]]>UIoptions!$S$13,PCdb[[#This Row],[SL]]<UIoptions!$T$13),1,0) -> 0 | BG115: =IF(UIoptions!$N$35=1,IF(AND(PCdb[[#This Row],[SQ_SZ]]>UIoptions!$S$15,PCdb[[#This Row],[SQ_SZ]]<UIoptions!$T$15),1,0),1) -> 0 | BH115: =IF(UIoptions!$N$35=2,IF(AND(PCdb[[#This Row],[ROUND_D]]>UIoptions!$S$15,PCdb[[#This Row],[ROUND_D]]<UIoptions!$T$15),1,0),1) -> 1 | BI115: =IF(UIoptions!$N$75<>1,1,IF(AND(PCdb[[#This Row],[FL]]>UIoptions!$S$16,PCdb[[#This Row],[FL]]<UIoptions!$T$16),1,0)) -> 0 | BJ115: =IF(OR(UIoptions!$Q$18=PCdb[[#This Row],[THRU_SCREW]],UIoptions!$Q$18="NA"),1,0) -> 0 | BK115: =IF(OR(UIoptions!$P$19=PCdb[[#This Row],[THREAD_SZ]],UIoptions!$P$19="NA"),1,0) -> 1 | BL115: =IF(UIoptions!$N$75=1,1,IF(AND(PCdb[[#This Row],[THREAD_L]]>UIoptions!$S$17,PCdb[[#This Row],[THREAD_L]]<UIoptions!$T$17),1,0)) -> 1 | BM115: =IF(SUM(PCdb[[#This Row],[BDhit]:[THREAD_Lhit]])=11,1,0) -> 0 | BN115: =CONCATENATE(PCdb[[#This Row],[BCD]],PCdb[[#This Row],[PD]],PCdb[[#This Row],[PL (MAX)]],PCdb[[#This Row],[SD]],PCdb[[#This Row],[SL]],PCdb[[#This Row],[SQ_SZ]],PCdb[[#This Row],[ROUND_D]],PCdb[[#This Row],[FL]],PCdb[[#This Row],[THRU_SCREW]],PCdb[[#This Row],[THREAD_SZ]],PCdb[[#This Row],[THREAD_L]],PCdb[[#This Row],[NBR_HOLES]]) -> 4519,54815NA455,5M3NANA4 | BO115: =SUM(PCdb[[#This Row],[BDhit]:[THREAD_Lhit]]) -> 4
A116: 111 | B116: 65 | C116: 50 | D116: 4 | E116: 9 | F116: 20 | G116: NA | H116: 80 | I116: NA | J116: NA | K116: M5 | L116: 8 | M116: 4 | N116: 6 | O116: NA | P116: NA | Q116: NA | R116: NA | S116: NA | T116: NA | U116: NA | V116: NA | W116: NA | X116: NA | Y116: NA | Z116: NA | AA116: NA | AJ116: NA | AK116: NA | AL116: NA | AM116: NA | AN116: NA | AO116: NA | AP116: NA | AQ116: NA | AR116: N* | AS116: D2 | AT116: 45 | AU116: 90 | BB116: =IF(AND(PCdb[[#This Row],[BCD]]>UIoptions!$S$10,PCdb[[#This Row],[BCD]]<UIoptions!$T$10),1,0) -> 0 | BC116: =IF(AND(PCdb[[#This Row],[PD]]>UIoptions!$S$11,PCdb[[#This Row],[PD]]<UIoptions!$T$11),1,0) -> 0 | BD116: =IF(AND(UIoptions!$P$14<=PCdb[[#This Row],[PL (MAX)]],UIoptions!$P$14>UIoptions!$S$14),1,0) -> 1 | BE116: =IF(AND(PCdb[[#This Row],[SD]]>UIoptions!$S$12,PCdb[[#This Row],[SD]]<UIoptions!$T$12),1,0) -> 0 | BF116: =IF(AND(PCdb[[#This Row],[SL]]>UIoptions!$S$13,PCdb[[#This Row],[SL]]<UIoptions!$T$13),1,0) -> 1 | BG116: =IF(UIoptions!$N$35=1,IF(AND(PCdb[[#This Row],[SQ_SZ]]>UIoptions!$S$15,PCdb[[#This Row],[SQ_SZ]]<UIoptions!$T$15),1,0),1) -> 0 | BH116: =IF(UIoptions!$N$35=2,IF(AND(PCdb[[#This Row],[ROUND_D]]>UIoptions!$S$15,PCdb[[#This Row],[ROUND_D]]<UIoptions!$T$15),1,0),1) -> 1 | BI116: =IF(UIoptions!$N$75<>1,1,IF(AND(PCdb[[#This Row],[FL]]>UIoptions!$S$16,PCdb[[#This Row],[FL]]<UIoptions!$T$16),1,0)) -> 0 | BJ116: =IF(OR(UIoptions!$Q$18=PCdb[[#This Row],[THRU_SCREW]],UIoptions!$Q$18="NA"),1,0) -> 0 | BK116: =IF(OR(UIoptions!$P$19=PCdb[[#This Row],[THREAD_SZ]],UIoptions!$P$19="NA"),1,0) -> 1 | BL116: =IF(UIoptions!$N$75=1,1,IF(AND(PCdb[[#This Row],[THREAD_L]]>UIoptions!$S$17,PCdb[[#This Row],[THREAD_L]]<UIoptions!$T$17),1,0)) -> 1 | BM116: =IF(SUM(PCdb[[#This Row],[BDhit]:[THREAD_Lhit]])=11,1,0) -> 0 | BN116: =CONCATENATE(PCdb[[#This Row],[BCD]],PCdb[[#This Row],[PD]],PCdb[[#This Row],[PL (MAX)]],PCdb[[#This Row],[SD]],PCdb[[#This Row],[SL]],PCdb[[#This Row],[SQ_SZ]],PCdb[[#This Row],[ROUND_D]],PCdb[[#This Row],[FL]],PCdb[[#This Row],[THRU_SCREW]],PCdb[[#This Row],[THREAD_SZ]],PCdb[[#This Row],[THREAD_L]],PCdb[[#This Row],[NBR_HOLES]]) -> 65504920NA80NANAM584 | BO116: =SUM(PCdb[[#This Row],[BDhit]:[THREAD_Lhit]]) -> 5
A117: 112 | B117: 70 | C117: 60 | D117: 4 | E117: 11 | F117: 23 | G117: NA | H117: 95 | I117: NA | J117: NA | K117: M5 | L117: 15 | M117: 4 | N117: 6 | BB117: =IF(AND(PCdb[[#This Row],[BCD]]>UIoptions!$S$10,PCdb[[#This Row],[BCD]]<UIoptions!$T$10),1,0) -> 0 | BC117: =IF(AND(PCdb[[#This Row],[PD]]>UIoptions!$S$11,PCdb[[#This Row],[PD]]<UIoptions!$T$11),1,0) -> 0 | BD117: =IF(AND(UIoptions!$P$14<=PCdb[[#This Row],[PL (MAX)]],UIoptions!$P$14>UIoptions!$S$14),1,0) -> 1 | BE117: =IF(AND(PCdb[[#This Row],[SD]]>UIoptions!$S$12,PCdb[[#This Row],[SD]]<UIoptions!$T$12),1,0) -> 0 | BF117: =IF(AND(PCdb[[#This Row],[SL]]>UIoptions!$S$13,PCdb[[#This Row],[SL]]<UIoptions!$T$13),1,0) -> 0 | BG117: =IF(UIoptions!$N$35=1,IF(AND(PCdb[[#This Row],[SQ_SZ]]>UIoptions!$S$15,PCdb[[#This Row],[SQ_SZ]]<UIoptions!$T$15),1,0),1) -> 0 | BH117: =IF(UIoptions!$N$35=2,IF(AND(PCdb[[#This Row],[ROUND_D]]>UIoptions!$S$15,PCdb[[#This Row],[ROUND_D]]<UIoptions!$T$15),1,0),1) -> 1 | BI117: =IF(UIoptions!$N$75<>1,1,IF(AND(PCdb[[#This Row],[FL]]>UIoptions!$S$16,PCdb[[#This Row],[FL]]<UIoptions!$T$16),1,0)) -> 0 | BJ117: =IF(OR(UIoptions!$Q$18=PCdb[[#This Row],[THRU_SCREW]],UIoptions!$Q$18="NA"),1,0) -> 0 | BK117: =IF(OR(UIoptions!$P$19=PCdb[[#This Row],[THREAD_SZ]],UIoptions!$P$19="NA"),1,0) -> 1 | BL117: =IF(UIoptions!$N$75=1,1,IF(AND(PCdb[[#This Row],[THREAD_L]]>UIoptions!$S$17,PCdb[[#This Row],[THREAD_L]]<UIoptions!$T$17),1,0)) -> 1 | BM117: =IF(SUM(PCdb[[#This Row],[BDhit]:[THREAD_Lhit]])=11,1,0) -> 0 | BN117: =CONCATENATE(PCdb[[#This Row],[BCD]],PCdb[[#This Row],[PD]],PCdb[[#This Row],[PL (MAX)]],PCdb[[#This Row],[SD]],PCdb[[#This Row],[SL]],PCdb[[#This Row],[SQ_SZ]],PCdb[[#This Row],[ROUND_D]],PCdb[[#This Row],[FL]],PCdb[[#This Row],[THRU_SCREW]],PCdb[[#This Row],[THREAD_SZ]],PCdb[[#This Row],[THREAD_L]],PCdb[[#This Row],[NBR_HOLES]]) -> 706041123NA95NANAM5154 | BO117: =SUM(PCdb[[#This Row],[BDhit]:[THREAD_Lhit]]) -> 4
A118: 113 | B118: 90 | C118: 70 | D118: 4 | E118: 16 | F118: 40 | G118: 80 | H118: NA | I118: 11 | J118: M6 | K118: NA | L118: NA | M118: 4 | N118: M6 | O118: NA | P118: NA | Q118: NA | R118: NA | S118: NA | T118: NA | U118: NA | V118: NA | AJ118: NA | AK118: NA | AL118: NA | AM118: NA | AN118: NA | AO118: NA | AP118: NA | AQ118: NA | AR118: NA | AS118: NA | AT118: NA | AU118: NA | AV118: 39 | AW118: 0 | AX118: Y | AY118: D | AZ118: 45 | BA118: 90 | BB118: =IF(AND(PCdb[[#This Row],[BCD]]>UIoptions!$S$10,PCdb[[#This Row],[BCD]]<UIoptions!$T$10),1,0) -> 0 | BC118: =IF(AND(PCdb[[#This Row],[PD]]>UIoptions!$S$11,PCdb[[#This Row],[PD]]<UIoptions!$T$11),1,0) -> 0 | BD118: =IF(AND(UIoptions!$P$14<=PCdb[[#This Row],[PL (MAX)]],UIoptions!$P$14>UIoptions!$S$14),1,0) -> 1 | BE118: =IF(AND(PCdb[[#This Row],[SD]]>UIoptions!$S$12,PCdb[[#This Row],[SD]]<UIoptions!$T$12),1,0) -> 0 | BF118: =IF(AND(PCdb[[#This Row],[SL]]>UIoptions!$S$13,PCdb[[#This Row],[SL]]<UIoptions!$T$13),1,0) -> 0 | BG118: =IF(UIoptions!$N$35=1,IF(AND(PCdb[[#This Row],[SQ_SZ]]>UIoptions!$S$15,PCdb[[#This Row],[SQ_SZ]]<UIoptions!$T$15),1,0),1) -> 0 | BH118: =IF(UIoptions!$N$35=2,IF(AND(PCdb[[#This Row],[ROUND_D]]>UIoptions!$S$15,PCdb[[#This Row],[ROUND_D]]<UIoptions!$T$15),1,0),1) -> 1 | BI118: =IF(UIoptions!$N$75<>1,1,IF(AND(PCdb[[#This Row],[FL]]>UIoptions!$S$16,PCdb[[#This Row],[FL]]<UIoptions!$T$16),1,0)) -> 0 | BJ118: =IF(OR(UIoptions!$Q$18=PCdb[[#This Row],[THRU_SCREW]],UIoptions!$Q$18="NA"),1,0) -> 0 | BK118: =IF(OR(UIoptions!$P$19=PCdb[[#This Row],[THREAD_SZ]],UIoptions!$P$19="NA"),1,0) -> 1 | BL118: =IF(UIoptions!$N$75=1,1,IF(AND(PCdb[[#This Row],[THREAD_L]]>UIoptions!$S$17,PCdb[[#This Row],[THREAD_L]]<UIoptions!$T$17),1,0)) -> 1 | BM118: =IF(SUM(PCdb[[#This Row],[BDhit]:[THREAD_Lhit]])=11,1,0) -> 0 | BN118: =CONCATENATE(PCdb[[#This Row],[BCD]],PCdb[[#This Row],[PD]],PCdb[[#This Row],[PL (MAX)]],PCdb[[#This Row],[SD]],PCdb[[#This Row],[SL]],PCdb[[#This Row],[SQ_SZ]],PCdb[[#This Row],[ROUND_D]],PCdb[[#This Row],[FL]],PCdb[[#This Row],[THRU_SCREW]],PCdb[[#This Row],[THREAD_SZ]],PCdb[[#This Row],[THREAD_L]],PCdb[[#This Row],[NBR_HOLES]]) -> 90704164080NA11M6NANA4 | BO118: =SUM(PCdb[[#This Row],[BDhit]:[THREAD_Lhit]]) -> 4
A119: 114 | B119: 98.3 | C119: 73 | D119: 4 | E119: 14 | F119: 37 | G119: 86 | H119: NA | I119: 10 | J119: M6 | K119: NA | L119: NA | M119: 4 | N119: M6 | O119: NA | P119: NA | Q119: NA | R119: NA | S119: NA | T119: NA | U119: NA | V119: 45.2 | W119: 38 | X119: 0 | Y119: Y | Z119: B | AA119: 45 | AB119: 90 | AJ119: NA | AK119: NA | AL119: NA | AM119: NA | AN119: NA | AO119: NA | AP119: NA | AQ119: NA | AR119: NA | AS119: NA | AT119: NA | AU119: NA | BB119: =IF(AND(PCdb[[#This Row],[BCD]]>UIoptions!$S$10,PCdb[[#This Row],[BCD]]<UIoptions!$T$10),1,0) -> 0 | BC119: =IF(AND(PCdb[[#This Row],[PD]]>UIoptions!$S$11,PCdb[[#This Row],[PD]]<UIoptions!$T$11),1,0) -> 0 | BD119: =IF(AND(UIoptions!$P$14<=PCdb[[#This Row],[PL (MAX)]],UIoptions!$P$14>UIoptions!$S$14),1,0) -> 1 | BE119: =IF(AND(PCdb[[#This Row],[SD]]>UIoptions!$S$12,PCdb[[#This Row],[SD]]<UIoptions!$T$12),1,0) -> 0 | BF119: =IF(AND(PCdb[[#This Row],[SL]]>UIoptions!$S$13,PCdb[[#This Row],[SL]]<UIoptions!$T$13),1,0) -> 0 | BG119: =IF(UIoptions!$N$35=1,IF(AND(PCdb[[#This Row],[SQ_SZ]]>UIoptions!$S$15,PCdb[[#This Row],[SQ_SZ]]<UIoptions!$T$15),1,0),1) -> 0 | BH119: =IF(UIoptions!$N$35=2,IF(AND(PCdb[[#This Row],[ROUND_D]]>UIoptions!$S$15,PCdb[[#This Row],[ROUND_D]]<UIoptions!$T$15),1,0),1) -> 1 | BI119: =IF(UIoptions!$N$75<>1,1,IF(AND(PCdb[[#This Row],[FL]]>UIoptions!$S$16,PCdb[[#This Row],[FL]]<UIoptions!$T$16),1,0)) -> 0 | BJ119: =IF(OR(UIoptions!$Q$18=PCdb[[#This Row],[THRU_SCREW]],UIoptions!$Q$18="NA"),1,0) -> 0 | BK119: =IF(OR(UIoptions!$P$19=PCdb[[#This Row],[THREAD_SZ]],UIoptions!$P$19="NA"),1,0) -> 1 | BL119: =IF(UIoptions!$N$75=1,1,IF(AND(PCdb[[#This Row],[THREAD_L]]>UIoptions!$S$17,PCdb[[#This Row],[THREAD_L]]<UIoptions!$T$17),1,0)) -> 1 | BM119: =IF(SUM(PCdb[[#This Row],[BDhit]:[THREAD_Lhit]])=11,1,0) -> 0 | BN119: =CONCATENATE(PCdb[[#This Row],[BCD]],PCdb[[#This Row],[PD]],PCdb[[#This Row],[PL (MAX)]],PCdb[[#This Row],[SD]],PCdb[[#This Row],[SL]],PCdb[[#This Row],[SQ_SZ]],PCdb[[#This Row],[ROUND_D]],PCdb[[#This Row],[FL]],PCdb[[#This Row],[THRU_SCREW]],PCdb[[#This Row],[THREAD_SZ]],PCdb[[#This Row],[THREAD_L]],PCdb[[#This Row],[NBR_HOLES]]) -> 98,3734143786NA10M6NANA4 | BO119: =SUM(PCdb[[#This Row],[BDhit]:[THREAD_Lhit]]) -> 4
A120: 115 | B120: 66.7 | C120: 38.1 | D120: 4 | E120: 6.35 | F120: 20.6 | G120: 59.1 | H120: NA | I120: 4.8 | J120: M4 | K120: NA | L120: NA | M120: 4 | N120: M5 | O120: 38.7 | P120: 25 | Q120: 0 | R120: Y | S120: B | T120: 45 | U120: 90 | BB120: =IF(AND(PCdb[[#This Row],[BCD]]>UIoptions!$S$10,PCdb[[#This Row],[BCD]]<UIoptions!$T$10),1,0) -> 0 | BC120: =IF(AND(PCdb[[#This Row],[PD]]>UIoptions!$S$11,PCdb[[#This Row],[PD]]<UIoptions!$T$11),1,0) -> 0 | BD120: =IF(AND(UIoptions!$P$14<=PCdb[[#This Row],[PL (MAX)]],UIoptions!$P$14>UIoptions!$S$14),1,0) -> 1 | BE120: =IF(AND(PCdb[[#This Row],[SD]]>UIoptions!$S$12,PCdb[[#This Row],[SD]]<UIoptions!$T$12),1,0) -> 0 | BF120: =IF(AND(PCdb[[#This Row],[SL]]>UIoptions!$S$13,PCdb[[#This Row],[SL]]<UIoptions!$T$13),1,0) -> 0 | BG120: =IF(UIoptions!$N$35=1,IF(AND(PCdb[[#This Row],[SQ_SZ]]>UIoptions!$S$15,PCdb[[#This Row],[SQ_SZ]]<UIoptions!$T$15),1,0),1) -> 0 | BH120: =IF(UIoptions!$N$35=2,IF(AND(PCdb[[#This Row],[ROUND_D]]>UIoptions!$S$15,PCdb[[#This Row],[ROUND_D]]<UIoptions!$T$15),1,0),1) -> 1 | BI120: =IF(UIoptions!$N$75<>1,1,IF(AND(PCdb[[#This Row],[FL]]>UIoptions!$S$16,PCdb[[#This Row],[FL]]<UIoptions!$T$16),1,0)) -> 0 | BJ120: =IF(OR(UIoptions!$Q$18=PCdb[[#This Row],[THRU_SCREW]],UIoptions!$Q$18="NA"),1,0) -> 1 | BK120: =IF(OR(UIoptions!$P$19=PCdb[[#This Row],[THREAD_SZ]],UIoptions!$P$19="NA"),1,0) -> 1 | BL120: =IF(UIoptions!$N$75=1,1,IF(AND(PCdb[[#This Row],[THREAD_L]]>UIoptions!$S$17,PCdb[[#This Row],[THREAD_L]]<UIoptions!$T$17),1,0)) -> 1 | BM120: =IF(SUM(PCdb[[#This Row],[BDhit]:[THREAD_Lhit]])=11,1,0) -> 0 | BN120: =CONCATENATE(PCdb[[#This Row],[BCD]],PCdb[[#This Row],[PD]],PCdb[[#This Row],[PL (MAX)]],PCdb[[#This Row],[SD]],PCdb[[#This Row],[SL]],PCdb[[#This Row],[SQ_SZ]],PCdb[[#This Row],[ROUND_D]],PCdb[[#This Row],[FL]],PCdb[[#This Row],[THRU_SCREW]],PCdb[[#This Row],[THREAD_SZ]],PCdb[[#This Row],[THREAD_L]],PCdb[[#This Row],[NBR_HOLES]]) -> 66,738,146,3520,659,1NA4,8M4NANA4 | BO120: =SUM(PCdb[[#This Row],[BDhit]:[THREAD_Lhit]]) -> 5
A121: 116 | B121: 34 | C121: 26 | D121: 4 | E121: 10 | F121: 26 | G121: NA | H121: 44 | I121: NA | J121: NA | K121: M4 | L121: 9 | M121: 4 | N121: 5 | O121: 38.7 | P121: NA | Q121: NA | R121: Y | S121: B2 | T121: 45 | U121: 90 | AJ121: NA | AK121: NA | AL121: Y | AM121: D2 | AN121: 45 | AO121: 90 | BB121: =IF(AND(PCdb[[#This Row],[BCD]]>UIoptions!$S$10,PCdb[[#This Row],[BCD]]<UIoptions!$T$10),1,0) -> 0 | BC121: =IF(AND(PCdb[[#This Row],[PD]]>UIoptions!$S$11,PCdb[[#This Row],[PD]]<UIoptions!$T$11),1,0) -> 0 | BD121: =IF(AND(UIoptions!$P$14<=PCdb[[#This Row],[PL (MAX)]],UIoptions!$P$14>UIoptions!$S$14),1,0) -> 1 | BE121: =IF(AND(PCdb[[#This Row],[SD]]>UIoptions!$S$12,PCdb[[#This Row],[SD]]<UIoptions!$T$12),1,0) -> 0 | BF121: =IF(AND(PCdb[[#This Row],[SL]]>UIoptions!$S$13,PCdb[[#This Row],[SL]]<UIoptions!$T$13),1,0) -> 0 | BG121: =IF(UIoptions!$N$35=1,IF(AND(PCdb[[#This Row],[SQ_SZ]]>UIoptions!$S$15,PCdb[[#This Row],[SQ_SZ]]<UIoptions!$T$15),1,0),1) -> 0 | BH121: =IF(UIoptions!$N$35=2,IF(AND(PCdb[[#This Row],[ROUND_D]]>UIoptions!$S$15,PCdb[[#This Row],[ROUND_D]]<UIoptions!$T$15),1,0),1) -> 1 | BI121: =IF(UIoptions!$N$75<>1,1,IF(AND(PCdb[[#This Row],[FL]]>UIoptions!$S$16,PCdb[[#This Row],[FL]]<UIoptions!$T$16),1,0)) -> 0 | BJ121: =IF(OR(UIoptions!$Q$18=PCdb[[#This Row],[THRU_SCREW]],UIoptions!$Q$18="NA"),1,0) -> 0 | BK121: =IF(OR(UIoptions!$P$19=PCdb[[#This Row],[THREAD_SZ]],UIoptions!$P$19="NA"),1,0) -> 1 | BL121: =IF(UIoptions!$N$75=1,1,IF(AND(PCdb[[#This Row],[THREAD_L]]>UIoptions!$S$17,PCdb[[#This Row],[THREAD_L]]<UIoptions!$T$17),1,0)) -> 1 | BM121: =IF(SUM(PCdb[[#This Row],[BDhit]:[THREAD_Lhit]])=11,1,0) -> 0 | BN121: =CONCATENATE(PCdb[[#This Row],[BCD]],PCdb[[#This Row],[PD]],PCdb[[#This Row],[PL (MAX)]],PCdb[[#This Row],[SD]],PCdb[[#This Row],[SL]],PCdb[[#This Row],[SQ_SZ]],PCdb[[#This Row],[ROUND_D]],PCdb[[#This Row],[FL]],PCdb[[#This Row],[THRU_SCREW]],PCdb[[#This Row],[THREAD_SZ]],PCdb[[#This Row],[THREAD_L]],PCdb[[#This Row],[NBR_HOLES]]) -> 342641026NA44NANAM494 | BO121: =SUM(PCdb[[#This Row],[BDhit]:[THREAD_Lhit]]) -> 4
A122: 117 | B122: 35 | C122: 23 | D122: 4 | E122: 8 | F122: 22 | G122: NA | H122: 44.6 | I122: NA | J122: NA | K122: M4 | L122: 6 | M122: 4 | N122: 5 | O122: 36.2 | P122: NA | Q122: NA | R122: Y | S122: B2 | T122: 45 | U122: 90 | BB122: =IF(AND(PCdb[[#This Row],[BCD]]>UIoptions!$S$10,PCdb[[#This Row],[BCD]]<UIoptions!$T$10),1,0) -> 0 | BC122: =IF(AND(PCdb[[#This Row],[PD]]>UIoptions!$S$11,PCdb[[#This Row],[PD]]<UIoptions!$T$11),1,0) -> 0 | BD122: =IF(AND(UIoptions!$P$14<=PCdb[[#This Row],[PL (MAX)]],UIoptions!$P$14>UIoptions!$S$14),1,0) -> 1 | BE122: =IF(AND(PCdb[[#This Row],[SD]]>UIoptions!$S$12,PCdb[[#This Row],[SD]]<UIoptions!$T$12),1,0) -> 0 | BF122: =IF(AND(PCdb[[#This Row],[SL]]>UIoptions!$S$13,PCdb[[#This Row],[SL]]<UIoptions!$T$13),1,0) -> 0 | BG122: =IF(UIoptions!$N$35=1,IF(AND(PCdb[[#This Row],[SQ_SZ]]>UIoptions!$S$15,PCdb[[#This Row],[SQ_SZ]]<UIoptions!$T$15),1,0),1) -> 0 | BH122: =IF(UIoptions!$N$35=2,IF(AND(PCdb[[#This Row],[ROUND_D]]>UIoptions!$S$15,PCdb[[#This Row],[ROUND_D]]<UIoptions!$T$15),1,0),1) -> 1 | BI122: =IF(UIoptions!$N$75<>1,1,IF(AND(PCdb[[#This Row],[FL]]>UIoptions!$S$16,PCdb[[#This Row],[FL]]<UIoptions!$T$16),1,0)) -> 0 | BJ122: =IF(OR(UIoptions!$Q$18=PCdb[[#This Row],[THRU_SCREW]],UIoptions!$Q$18="NA"),1,0) -> 0 | BK122: =IF(OR(UIoptions!$P$19=PCdb[[#This Row],[THREAD_SZ]],UIoptions!$P$19="NA"),1,0) -> 1 | BL122: =IF(UIoptions!$N$75=1,1,IF(AND(PCdb[[#This Row],[THREAD_L]]>UIoptions!$S$17,PCdb[[#This Row],[THREAD_L]]<UIoptions!$T$17),1,0)) -> 1 | BM122: =IF(SUM(PCdb[[#This Row],[BDhit]:[THREAD_Lhit]])=11,1,0) -> 0 | BN122: =CONCATENATE(PCdb[[#This Row],[BCD]],PCdb[[#This Row],[PD]],PCdb[[#This Row],[PL (MAX)]],PCdb[[#This Row],[SD]],PCdb[[#This Row],[SL]],PCdb[[#This Row],[SQ_SZ]],PCdb[[#This Row],[ROUND_D]],PCdb[[#This Row],[FL]],PCdb[[#This Row],[THRU_SCREW]],PCdb[[#This Row],[THREAD_SZ]],PCdb[[#This Row],[THREAD_L]],PCdb[[#This Row],[NBR_HOLES]]) -> 35234822NA44,6NANAM464 | BO122: =SUM(PCdb[[#This Row],[BDhit]:[THREAD_Lhit]]) -> 4
A123: 118 | B123: 66.5 | C123: 38.1 | D123: 4 | E123: 6.35 | F123: 21 | G123: 56.5 | H123: NA | I123: 9 | J123: M5 | K123: NA | L123: NA | M123: 4 | N123: M5 | AP123: 24 | AQ123: 0 | AR123: Y | AS123: C | AT123: 45 | AU123: 90 | BB123: =IF(AND(PCdb[[#This Row],[BCD]]>UIoptions!$S$10,PCdb[[#This Row],[BCD]]<UIoptions!$T$10),1,0) -> 0 | BC123: =IF(AND(PCdb[[#This Row],[PD]]>UIoptions!$S$11,PCdb[[#This Row],[PD]]<UIoptions!$T$11),1,0) -> 0 | BD123: =IF(AND(UIoptions!$P$14<=PCdb[[#This Row],[PL (MAX)]],UIoptions!$P$14>UIoptions!$S$14),1,0) -> 1 | BE123: =IF(AND(PCdb[[#This Row],[SD]]>UIoptions!$S$12,PCdb[[#This Row],[SD]]<UIoptions!$T$12),1,0) -> 0 | BF123: =IF(AND(PCdb[[#This Row],[SL]]>UIoptions!$S$13,PCdb[[#This Row],[SL]]<UIoptions!$T$13),1,0) -> 0 | BG123: =IF(UIoptions!$N$35=1,IF(AND(PCdb[[#This Row],[SQ_SZ]]>UIoptions!$S$15,PCdb[[#This Row],[SQ_SZ]]<UIoptions!$T$15),1,0),1) -> 0 | BH123: =IF(UIoptions!$N$35=2,IF(AND(PCdb[[#This Row],[ROUND_D]]>UIoptions!$S$15,PCdb[[#This Row],[ROUND_D]]<UIoptions!$T$15),1,0),1) -> 1 | BI123: =IF(UIoptions!$N$75<>1,1,IF(AND(PCdb[[#This Row],[FL]]>UIoptions!$S$16,PCdb[[#This Row],[FL]]<UIoptions!$T$16),1,0)) -> 0 | BJ123: =IF(OR(UIoptions!$Q$18=PCdb[[#This Row],[THRU_SCREW]],UIoptions!$Q$18="NA"),1,0) -> 0 | BK123: =IF(OR(UIoptions!$P$19=PCdb[[#This Row],[THREAD_SZ]],UIoptions!$P$19="NA"),1,0) -> 1 | BL123: =IF(UIoptions!$N$75=1,1,IF(AND(PCdb[[#This Row],[THREAD_L]]>UIoptions!$S$17,PCdb[[#This Row],[THREAD_L]]<UIoptions!$T$17),1,0)) -> 1 | BM123: =IF(SUM(PCdb[[#This Row],[BDhit]:[THREAD_Lhit]])=11,1,0) -> 0 | BN123: =CONCATENATE(PCdb[[#This Row],[BCD]],PCdb[[#This Row],[PD]],PCdb[[#This Row],[PL (MAX)]],PCdb[[#This Row],[SD]],PCdb[[#This Row],[SL]],PCdb[[#This Row],[SQ_SZ]],PCdb[[#This Row],[ROUND_D]],PCdb[[#This Row],[FL]],PCdb[[#This Row],[THRU_SCREW]],PCdb[[#This Row],[THREAD_SZ]],PCdb[[#This Row],[THREAD_L]],PCdb[[#This Row],[NBR_HOLES]]) -> 66,538,146,352156,5NA9M5NANA4 | BO123: =SUM(PCdb[[#This Row],[BDhit]:[THREAD_Lhit]]) -> 4
A124: 119 | B124: 75 | C124: 60 | D124: 4 | E124: 11 | F124: 23 | G124: 60 | H124: NA | I124: 7 | J124: M5 | K124: NA | L124: NA | M124: 4 | N124: M5 | AP124: 32 | AQ124: NA | AR124: Y | AS124: D | AT124: 45 | AU124: 90 | BB124: =IF(AND(PCdb[[#This Row],[BCD]]>UIoptions!$S$10,PCdb[[#This Row],[BCD]]<UIoptions!$T$10),1,0) -> 0 | BC124: =IF(AND(PCdb[[#This Row],[PD]]>UIoptions!$S$11,PCdb[[#This Row],[PD]]<UIoptions!$T$11),1,0) -> 0 | BD124: =IF(AND(UIoptions!$P$14<=PCdb[[#This Row],[PL (MAX)]],UIoptions!$P$14>UIoptions!$S$14),1,0) -> 1 | BE124: =IF(AND(PCdb[[#This Row],[SD]]>UIoptions!$S$12,PCdb[[#This Row],[SD]]<UIoptions!$T$12),1,0) -> 0 | BF124: =IF(AND(PCdb[[#This Row],[SL]]>UIoptions!$S$13,PCdb[[#This Row],[SL]]<UIoptions!$T$13),1,0) -> 0 | BG124: =IF(UIoptions!$N$35=1,IF(AND(PCdb[[#This Row],[SQ_SZ]]>UIoptions!$S$15,PCdb[[#This Row],[SQ_SZ]]<UIoptions!$T$15),1,0),1) -> 0 | BH124: =IF(UIoptions!$N$35=2,IF(AND(PCdb[[#This Row],[ROUND_D]]>UIoptions!$S$15,PCdb[[#This Row],[ROUND_D]]<UIoptions!$T$15),1,0),1) -> 1 | BI124: =IF(UIoptions!$N$75<>1,1,IF(AND(PCdb[[#This Row],[FL]]>UIoptions!$S$16,PCdb[[#This Row],[FL]]<UIoptions!$T$16),1,0)) -> 1 | BJ124: =IF(OR(UIoptions!$Q$18=PCdb[[#This Row],[THRU_SCREW]],UIoptions!$Q$18="NA"),1,0) -> 0 | BK124: =IF(OR(UIoptions!$P$19=PCdb[[#This Row],[THREAD_SZ]],UIoptions!$P$19="NA"),1,0) -> 1 | BL124: =IF(UIoptions!$N$75=1,1,IF(AND(PCdb[[#This Row],[THREAD_L]]>UIoptions!$S$17,PCdb[[#This Row],[THREAD_L]]<UIoptions!$T$17),1,0)) -> 1 | BM124: =IF(SUM(PCdb[[#This Row],[BDhit]:[THREAD_Lhit]])=11,1,0) -> 0 | BN124: =CONCATENATE(PCdb[[#This Row],[BCD]],PCdb[[#This Row],[PD]],PCdb[[#This Row],[PL (MAX)]],PCdb[[#This Row],[SD]],PCdb[[#This Row],[SL]],PCdb[[#This Row],[SQ_SZ]],PCdb[[#This Row],[ROUND_D]],PCdb[[#This Row],[FL]],PCdb[[#This Row],[THRU_SCREW]],PCdb[[#This Row],[THREAD_SZ]],PCdb[[#This Row],[THREAD_L]],PCdb[[#This Row],[NBR_HOLES]]) -> 75604112360NA7M5NANA4 | BO124: =SUM(PCdb[[#This Row],[BDhit]:[THREAD_Lhit]]) -> 5
A125: 120 | B125: 62 | C125: 52 | D125: 11 | E125: 16 | F125: 36.5 | G125: NA | H125: 70 | I125: NA | J125: NA | K125: M5 | L125: 10 | M125: 4 | N125: 6 | AC125: 48.7 | AD125: NA | AE125: NA | AF125: Y | AG125: SPLB2-120 | AH125: 0 | AI125: 90 | BB125: =IF(AND(PCdb[[#This Row],[BCD]]>UIoptions!$S$10,PCdb[[#This Row],[BCD]]<UIoptions!$T$10),1,0) -> 0 | BC125: =IF(AND(PCdb[[#This Row],[PD]]>UIoptions!$S$11,PCdb[[#This Row],[PD]]<UIoptions!$T$11),1,0) -> 0 | BD125: =IF(AND(UIoptions!$P$14<=PCdb[[#This Row],[PL (MAX)]],UIoptions!$P$14>UIoptions!$S$14),1,0) -> 1 | BE125: =IF(AND(PCdb[[#This Row],[SD]]>UIoptions!$S$12,PCdb[[#This Row],[SD]]<UIoptions!$T$12),1,0) -> 0 | BF125: =IF(AND(PCdb[[#This Row],[SL]]>UIoptions!$S$13,PCdb[[#This Row],[SL]]<UIoptions!$T$13),1,0) -> 0 | BG125: =IF(UIoptions!$N$35=1,IF(AND(PCdb[[#This Row],[SQ_SZ]]>UIoptions!$S$15,PCdb[[#This Row],[SQ_SZ]]<UIoptions!$T$15),1,0),1) -> 0 | BH125: =IF(UIoptions!$N$35=2,IF(AND(PCdb[[#This Row],[ROUND_D]]>UIoptions!$S$15,PCdb[[#This Row],[ROUND_D]]<UIoptions!$T$15),1,0),1) -> 1 | BI125: =IF(UIoptions!$N$75<>1,1,IF(AND(PCdb[[#This Row],[FL]]>UIoptions!$S$16,PCdb[[#This Row],[FL]]<UIoptions!$T$16),1,0)) -> 0 | BJ125: =IF(OR(UIoptions!$Q$18=PCdb[[#This Row],[THRU_SCREW]],UIoptions!$Q$18="NA"),1,0) -> 0 | BK125: =IF(OR(UIoptions!$P$19=PCdb[[#This Row],[THREAD_SZ]],UIoptions!$P$19="NA"),1,0) -> 1 | BL125: =IF(UIoptions!$N$75=1,1,IF(AND(PCdb[[#This Row],[THREAD_L]]>UIoptions!$S$17,PCdb[[#This Row],[THREAD_L]]<UIoptions!$T$17),1,0)) -> 1 | BM125: =IF(SUM(PCdb[[#This Row],[BDhit]:[THREAD_Lhit]])=11,1,0) -> 0 | BN125: =CONCATENATE(PCdb[[#This Row],[BCD]],PCdb[[#This Row],[PD]],PCdb[[#This Row],[PL (MAX)]],PCdb[[#This Row],[SD]],PCdb[[#This Row],[SL]],PCdb[[#This Row],[SQ_SZ]],PCdb[[#This Row],[ROUND_D]],PCdb[[#This Row],[FL]],PCdb[[#This Row],[THRU_SCREW]],PCdb[[#This Row],[THREAD_SZ]],PCdb[[#This Row],[THREAD_L]],PCdb[[#This Row],[NBR_HOLES]]) -> 6252111636,5NA70NANAM5104 | BO125: =SUM(PCdb[[#This Row],[BDhit]:[THREAD_Lhit]]) -> 4
A126: 121 | B126: 66.7 | C126: 38.1 | D126: 4 | E126: 6.35 | F126: 20.6 | G126: 56.4 | H126: NA | I126: 5 | J126: M4 | K126: NA | L126: NA | M126: 4 | N126: M4 | O126: 38.7 | P126: 22 | Q126: 0 | R126: Y | S126: B | T126: 45 | U126: 90 | V126: 45.2 | W126: 26 | X126: 0 | Y126: Y | Z126: B | AA126: 45 | AB126: 90 | AJ126: 22 | AK126: NA | AL126: Y | AM126: D | AN126: 45 | AO126: 90 | AP126: 22 | AQ126: 0 | AR126: Y | AS126: C | AT126: 45 | AU126: 90 | BB126: =IF(AND(PCdb[[#This Row],[BCD]]>UIoptions!$S$10,PCdb[[#This Row],[BCD]]<UIoptions!$T$10),1,0) -> 0 | BC126: =IF(AND(PCdb[[#This Row],[PD]]>UIoptions!$S$11,PCdb[[#This Row],[PD]]<UIoptions!$T$11),1,0) -> 0 | BD126: =IF(AND(UIoptions!$P$14<=PCdb[[#This Row],[PL (MAX)]],UIoptions!$P$14>UIoptions!$S$14),1,0) -> 1 | BE126: =IF(AND(PCdb[[#This Row],[SD]]>UIoptions!$S$12,PCdb[[#This Row],[SD]]<UIoptions!$T$12),1,0) -> 0 | BF126: =IF(AND(PCdb[[#This Row],[SL]]>UIoptions!$S$13,PCdb[[#This Row],[SL]]<UIoptions!$T$13),1,0) -> 0 | BG126: =IF(UIoptions!$N$35=1,IF(AND(PCdb[[#This Row],[SQ_SZ]]>UIoptions!$S$15,PCdb[[#This Row],[SQ_SZ]]<UIoptions!$T$15),1,0),1) -> 0 | BH126: =IF(UIoptions!$N$35=2,IF(AND(PCdb[[#This Row],[ROUND_D]]>UIoptions!$S$15,PCdb[[#This Row],[ROUND_D]]<UIoptions!$T$15),1,0),1) -> 1 | BI126: =IF(UIoptions!$N$75<>1,1,IF(AND(PCdb[[#This Row],[FL]]>UIoptions!$S$16,PCdb[[#This Row],[FL]]<UIoptions!$T$16),1,0)) -> 0 | BJ126: =IF(OR(UIoptions!$Q$18=PCdb[[#This Row],[THRU_SCREW]],UIoptions!$Q$18="NA"),1,0) -> 1 | BK126: =IF(OR(UIoptions!$P$19=PCdb[[#This Row],[THREAD_SZ]],UIoptions!$P$19="NA"),1,0) -> 1 | BL126: =IF(UIoptions!$N$75=1,1,IF(AND(PCdb[[#This Row],[THREAD_L]]>UIoptions!$S$17,PCdb[[#This Row],[THREAD_L]]<UIoptions!$T$17),1,0)) -> 1 | BM126: =IF(SUM(PCdb[[#This Row],[BDhit]:[THREAD_Lhit]])=11,1,0) -> 0 | BN126: =CONCATENATE(PCdb[[#This Row],[BCD]],PCdb[[#This Row],[PD]],PCdb[[#This Row],[PL (MAX)]],PCdb[[#This Row],[SD]],PCdb[[#This Row],[SL]],PCdb[[#This Row],[SQ_SZ]],PCdb[[#This Row],[ROUND_D]],PCdb[[#This Row],[FL]],PCdb[[#This Row],[THRU_SCREW]],PCdb[[#This Row],[THREAD_SZ]],PCdb[[#This Row],[THREAD_L]],PCdb[[#This Row],[NBR_HOLES]]) -> 66,738,146,3520,656,4NA5M4NANA4 | BO126: =SUM(PCdb[[#This Row],[BDhit]:[THREAD_Lhit]]) -> 5
A127: 122 | B127: 66.7 | C127: 38.1 | D127: 4 | E127: 12.7 | F127: 25.4 | G127: 57.2 | H127: NA | I127: 6.4 | J127: M4 | K127: NA | L127: NA | M127: 4 | N127: M4 | AP127: 23 | AQ127: 0 | AR127: Y | AS127: C | AT127: 45 | AU127: 90 | BB127: =IF(AND(PCdb[[#This Row],[BCD]]>UIoptions!$S$10,PCdb[[#This Row],[BCD]]<UIoptions!$T$10),1,0) -> 0 | BC127: =IF(AND(PCdb[[#This Row],[PD]]>UIoptions!$S$11,PCdb[[#This Row],[PD]]<UIoptions!$T$11),1,0) -> 0 | BD127: =IF(AND(UIoptions!$P$14<=PCdb[[#This Row],[PL (MAX)]],UIoptions!$P$14>UIoptions!$S$14),1,0) -> 1 | BE127: =IF(AND(PCdb[[#This Row],[SD]]>UIoptions!$S$12,PCdb[[#This Row],[SD]]<UIoptions!$T$12),1,0) -> 0 | BF127: =IF(AND(PCdb[[#This Row],[SL]]>UIoptions!$S$13,PCdb[[#This Row],[SL]]<UIoptions!$T$13),1,0) -> 0 | BG127: =IF(UIoptions!$N$35=1,IF(AND(PCdb[[#This Row],[SQ_SZ]]>UIoptions!$S$15,PCdb[[#This Row],[SQ_SZ]]<UIoptions!$T$15),1,0),1) -> 0 | BH127: =IF(UIoptions!$N$35=2,IF(AND(PCdb[[#This Row],[ROUND_D]]>UIoptions!$S$15,PCdb[[#This Row],[ROUND_D]]<UIoptions!$T$15),1,0),1) -> 1 | BI127: =IF(UIoptions!$N$75<>1,1,IF(AND(PCdb[[#This Row],[FL]]>UIoptions!$S$16,PCdb[[#This Row],[FL]]<UIoptions!$T$16),1,0)) -> 0 | BJ127: =IF(OR(UIoptions!$Q$18=PCdb[[#This Row],[THRU_SCREW]],UIoptions!$Q$18="NA"),1,0) -> 1 | BK127: =IF(OR(UIoptions!$P$19=PCdb[[#This Row],[THREAD_SZ]],UIoptions!$P$19="NA"),1,0) -> 1 | BL127: =IF(UIoptions!$N$75=1,1,IF(AND(PCdb[[#This Row],[THREAD_L]]>UIoptions!$S$17,PCdb[[#This Row],[THREAD_L]]<UIoptions!$T$17),1,0)) -> 1 | BM127: =IF(SUM(PCdb[[#This Row],[BDhit]:[THREAD_Lhit]])=11,1,0) -> 0 | BN127: =CONCATENATE(PCdb[[#This Row],[BCD]],PCdb[[#This Row],[PD]],PCdb[[#This Row],[PL (MAX)]],PCdb[[#This Row],[SD]],PCdb[[#This Row],[SL]],PCdb[[#This Row],[SQ_SZ]],PCdb[[#This Row],[ROUND_D]],PCdb[[#This Row],[FL]],PCdb[[#This Row],[THRU_SCREW]],PCdb[[#This Row],[THREAD_SZ]],PCdb[[#This Row],[THREAD_L]],PCdb[[#This Row],[NBR_HOLES]]) -> 66,738,1412,725,457,2NA6,4M4NANA4 | BO127: =SUM(PCdb[[#This Row],[BDhit]:[THREAD_Lhit]]) -> 5
A128: 123 | B128: 98.4 | C128: 73 | D128: 4 | E128: 14 | F128: 37.1 | G128: NA | H128: 91.2 | I128: 10 | J128: M6 | K128: NA | L128: NA | M128: 4 | N128: M6 | O128: NA | P128: NA | Q128: NA | R128: NA | S128: NA | T128: NA | U128: NA | V128: 45.2 | W128: 38 | X128: 0 | Y128: Y | Z128: B | AA128: 45 | AB128: 90 | AJ128: NA | AK128: NA | AL128: NA | AM128: NA | AN128: NA | AO128: NA | AP128: NA | AQ128: NA | AR128: NA | AS128: NA | AT128: NA | AU128: NA | BB128: =IF(AND(PCdb[[#This Row],[BCD]]>UIoptions!$S$10,PCdb[[#This Row],[BCD]]<UIoptions!$T$10),1,0) -> 0 | BC128: =IF(AND(PCdb[[#This Row],[PD]]>UIoptions!$S$11,PCdb[[#This Row],[PD]]<UIoptions!$T$11),1,0) -> 0 | BD128: =IF(AND(UIoptions!$P$14<=PCdb[[#This Row],[PL (MAX)]],UIoptions!$P$14>UIoptions!$S$14),1,0) -> 1 | BE128: =IF(AND(PCdb[[#This Row],[SD]]>UIoptions!$S$12,PCdb[[#This Row],[SD]]<UIoptions!$T$12),1,0) -> 0 | BF128: =IF(AND(PCdb[[#This Row],[SL]]>UIoptions!$S$13,PCdb[[#This Row],[SL]]<UIoptions!$T$13),1,0) -> 0 | BG128: =IF(UIoptions!$N$35=1,IF(AND(PCdb[[#This Row],[SQ_SZ]]>UIoptions!$S$15,PCdb[[#This Row],[SQ_SZ]]<UIoptions!$T$15),1,0),1) -> 0 | BH128: =IF(UIoptions!$N$35=2,IF(AND(PCdb[[#This Row],[ROUND_D]]>UIoptions!$S$15,PCdb[[#This Row],[ROUND_D]]<UIoptions!$T$15),1,0),1) -> 1 | BI128: =IF(UIoptions!$N$75<>1,1,IF(AND(PCdb[[#This Row],[FL]]>UIoptions!$S$16,PCdb[[#This Row],[FL]]<UIoptions!$T$16),1,0)) -> 0 | BJ128: =IF(OR(UIoptions!$Q$18=PCdb[[#This Row],[THRU_SCREW]],UIoptions!$Q$18="NA"),1,0) -> 0 | BK128: =IF(OR(UIoptions!$P$19=PCdb[[#This Row],[THREAD_SZ]],UIoptions!$P$19="NA"),1,0) -> 1 | BL128: =IF(UIoptions!$N$75=1,1,IF(AND(PCdb[[#This Row],[THREAD_L]]>UIoptions!$S$17,PCdb[[#This Row],[THREAD_L]]<UIoptions!$T$17),1,0)) -> 1 | BM128: =IF(SUM(PCdb[[#This Row],[BDhit]:[THREAD_Lhit]])=11,1,0) -> 0 | BN128: =CONCATENATE(PCdb[[#This Row],[BCD]],PCdb[[#This Row],[PD]],PCdb[[#This Row],[PL (MAX)]],PCdb[[#This Row],[SD]],PCdb[[#This Row],[SL]],PCdb[[#This Row],[SQ_SZ]],PCdb[[#This Row],[ROUND_D]],PCdb[[#This Row],[FL]],PCdb[[#This Row],[THRU_SCREW]],PCdb[[#This Row],[THREAD_SZ]],PCdb[[#This Row],[THREAD_L]],PCdb[[#This Row],[NBR_HOLES]]) -> 98,47341437,1NA91,210M6NANA4 | BO128: =SUM(PCdb[[#This Row],[BDhit]:[THREAD_Lhit]]) -> 4
A129: 124 | B129: 70.7 | C129: 36 | D129: 1.5 | E129: 8 | F129: 20.6 | G129: 60 | H129: NA | I129: 6.3 | J129: M4 | K129: NA | L129: NA | M129: 4 | N129: M4 | AJ129: 23 | AK129: 0 | AL129: Y | AM129: D | AN129: 45 | AO129: 90 | AP129: 22 | AQ129: NA | AR129: Y | AS129: C | AT129: 45 | AU129: 90 | BB129: =IF(AND(PCdb[[#This Row],[BCD]]>UIoptions!$S$10,PCdb[[#This Row],[BCD]]<UIoptions!$T$10),1,0) -> 0 | BC129: =IF(AND(PCdb[[#This Row],[PD]]>UIoptions!$S$11,PCdb[[#This Row],[PD]]<UIoptions!$T$11),1,0) -> 0 | BD129: =IF(AND(UIoptions!$P$14<=PCdb[[#This Row],[PL (MAX)]],UIoptions!$P$14>UIoptions!$S$14),1,0) -> 0 | BE129: =IF(AND(PCdb[[#This Row],[SD]]>UIoptions!$S$12,PCdb[[#This Row],[SD]]<UIoptions!$T$12),1,0) -> 0 | BF129: =IF(AND(PCdb[[#This Row],[SL]]>UIoptions!$S$13,PCdb[[#This Row],[SL]]<UIoptions!$T$13),1,0) -> 0 | BG129: =IF(UIoptions!$N$35=1,IF(AND(PCdb[[#This Row],[SQ_SZ]]>UIoptions!$S$15,PCdb[[#This Row],[SQ_SZ]]<UIoptions!$T$15),1,0),1) -> 0 | BH129: =IF(UIoptions!$N$35=2,IF(AND(PCdb[[#This Row],[ROUND_D]]>UIoptions!$S$15,PCdb[[#This Row],[ROUND_D]]<UIoptions!$T$15),1,0),1) -> 1 | BI129: =IF(UIoptions!$N$75<>1,1,IF(AND(PCdb[[#This Row],[FL]]>UIoptions!$S$16,PCdb[[#This Row],[FL]]<UIoptions!$T$16),1,0)) -> 0 | BJ129: =IF(OR(UIoptions!$Q$18=PCdb[[#This Row],[THRU_SCREW]],UIoptions!$Q$18="NA"),1,0) -> 1 | BK129: =IF(OR(UIoptions!$P$19=PCdb[[#This Row],[THREAD_SZ]],UIoptions!$P$19="NA"),1,0) -> 1 | BL129: =IF(UIoptions!$N$75=1,1,IF(AND(PCdb[[#This Row],[THREAD_L]]>UIoptions!$S$17,PCdb[[#This Row],[THREAD_L]]<UIoptions!$T$17),1,0)) -> 1 | BM129: =IF(SUM(PCdb[[#This Row],[BDhit]:[THREAD_Lhit]])=11,1,0) -> 0 | BN129: =CONCATENATE(PCdb[[#This Row],[BCD]],PCdb[[#This Row],[PD]],PCdb[[#This Row],[PL (MAX)]],PCdb[[#This Row],[SD]],PCdb[[#This Row],[SL]],PCdb[[#This Row],[SQ_SZ]],PCdb[[#This Row],[ROUND_D]],PCdb[[#This Row],[FL]],PCdb[[#This Row],[THRU_SCREW]],PCdb[[#This Row],[THREAD_SZ]],PCdb[[#This Row],[THREAD_L]],PCdb[[#This Row],[NBR_HOLES]]) -> 70,7361,5820,660NA6,3M4NANA4 | BO129: =SUM(PCdb[[#This Row],[BDhit]:[THREAD_Lhit]]) -> 4
A130: 125 | B130: 70 | C130: 50 | D130: 7 | E130: 16 | F130: 37 | G130: 60 | H130: NA | I130: 6 | J130: M5 | K130: NA | L130: NA | M130: 4 | N130: M5 | V130: 41.7 | W130: NA | X130: NA | Y130: Y | Z130: SPLB-125 | AA130: 45 | AB130: 90 | AC130: 45.2 | AD130: NA | AE130: NA | AF130: Y | AG130: SPLA-125 | AH130: 45 | AI130: 90 | AV130: NA | AW130: NA | AX130: Y | AY130: SPLD2-125 | AZ130: 45 | BA130: 90 | BB130: =IF(AND(PCdb[[#This Row],[BCD]]>UIoptions!$S$10,PCdb[[#This Row],[BCD]]<UIoptions!$T$10),1,0) -> 0 | BC130: =IF(AND(PCdb[[#This Row],[PD]]>UIoptions!$S$11,PCdb[[#This Row],[PD]]<UIoptions!$T$11),1,0) -> 0 | BD130: =IF(AND(UIoptions!$P$14<=PCdb[[#This Row],[PL (MAX)]],UIoptions!$P$14>UIoptions!$S$14),1,0) -> 1 | BE130: =IF(AND(PCdb[[#This Row],[SD]]>UIoptions!$S$12,PCdb[[#This Row],[SD]]<UIoptions!$T$12),1,0) -> 0 | BF130: =IF(AND(PCdb[[#This Row],[SL]]>UIoptions!$S$13,PCdb[[#This Row],[SL]]<UIoptions!$T$13),1,0) -> 0 | BG130: =IF(UIoptions!$N$35=1,IF(AND(PCdb[[#This Row],[SQ_SZ]]>UIoptions!$S$15,PCdb[[#This Row],[SQ_SZ]]<UIoptions!$T$15),1,0),1) -> 0 | BH130: =IF(UIoptions!$N$35=2,IF(AND(PCdb[[#This Row],[ROUND_D]]>UIoptions!$S$15,PCdb[[#This Row],[ROUND_D]]<UIoptions!$T$15),1,0),1) -> 1 | BI130: =IF(UIoptions!$N$75<>1,1,IF(AND(PCdb[[#This Row],[FL]]>UIoptions!$S$16,PCdb[[#This Row],[FL]]<UIoptions!$T$16),1,0)) -> 0 | BJ130: =IF(OR(UIoptions!$Q$18=PCdb[[#This Row],[THRU_SCREW]],UIoptions!$Q$18="NA"),1,0) -> 0 | BK130: =IF(OR(UIoptions!$P$19=PCdb[[#This Row],[THREAD_SZ]],UIoptions!$P$19="NA"),1,0) -> 1 | BL130: =IF(UIoptions!$N$75=1,1,IF(AND(PCdb[[#This Row],[THREAD_L]]>UIoptions!$S$17,PCdb[[#This Row],[THREAD_L]]<UIoptions!$T$17),1,0)) -> 1 | BM130: =IF(SUM(PCdb[[#This Row],[BDhit]:[THREAD_Lhit]])=11,1,0) -> 0 | BN130: =CONCATENATE(PCdb[[#This Row],[BCD]],PCdb[[#This Row],[PD]],PCdb[[#This Row],[PL (MAX)]],PCdb[[#This Row],[SD]],PCdb[[#This Row],[SL]],PCdb[[#This Row],[SQ_SZ]],PCdb[[#This Row],[ROUND_D]],PCdb[[#This Row],[FL]],PCdb[[#This Row],[THRU_SCREW]],PCdb[[#This Row],[THREAD_SZ]],PCdb[[#This Row],[THREAD_L]],PCdb[[#This Row],[NBR_HOLES]]) -> 70507163760NA6M5NANA4 | BO130: =SUM(PCdb[[#This Row],[BDhit]:[THREAD_Lhit]]) -> 4
A131: 126 | B131: 98.4 | C131: 73.02 | D131: 4 | E131: 15.875 | F131: 31.8 | G131: 86 | H131: NA | I131: 8.5 | J131: M5 | K131: NA | L131: NA | M131: 4 | N131: M5 | O131: NA | P131: NA | Q131: NA | R131: NA | S131: NA | T131: NA | U131: NA | V131: 41.7 | W131: 38 | X131: 0 | Y131: Y | Z131: B | AA131: 45 | AB131: 90 | AJ131: NA | AK131: NA | AL131: NA | AM131: NA | AN131: NA | AO131: NA | AP131: NA | AQ131: NA | AR131: NA | AS131: NA | AT131: NA | AU131: NA | AV131: 40 | AW131: 0 | AX131: Y | AY131: D | AZ131: 45 | BA131: 90 | BB131: =IF(AND(PCdb[[#This Row],[BCD]]>UIoptions!$S$10,PCdb[[#This Row],[BCD]]<UIoptions!$T$10),1,0) -> 0 | BC131: =IF(AND(PCdb[[#This Row],[PD]]>UIoptions!$S$11,PCdb[[#This Row],[PD]]<UIoptions!$T$11),1,0) -> 0 | BD131: =IF(AND(UIoptions!$P$14<=PCdb[[#This Row],[PL (MAX)]],UIoptions!$P$14>UIoptions!$S$14),1,0) -> 1 | BE131: =IF(AND(PCdb[[#This Row],[SD]]>UIoptions!$S$12,PCdb[[#This Row],[SD]]<UIoptions!$T$12),1,0) -> 0 | BF131: =IF(AND(PCdb[[#This Row],[SL]]>UIoptions!$S$13,PCdb[[#This Row],[SL]]<UIoptions!$T$13),1,0) -> 0 | BG131: =IF(UIoptions!$N$35=1,IF(AND(PCdb[[#This Row],[SQ_SZ]]>UIoptions!$S$15,PCdb[[#This Row],[SQ_SZ]]<UIoptions!$T$15),1,0),1) -> 0 | BH131: =IF(UIoptions!$N$35=2,IF(AND(PCdb[[#This Row],[ROUND_D]]>UIoptions!$S$15,PCdb[[#This Row],[ROUND_D]]<UIoptions!$T$15),1,0),1) -> 1 | BI131: =IF(UIoptions!$N$75<>1,1,IF(AND(PCdb[[#This Row],[FL]]>UIoptions!$S$16,PCdb[[#This Row],[FL]]<UIoptions!$T$16),1,0)) -> 0 | BJ131: =IF(OR(UIoptions!$Q$18=PCdb[[#This Row],[THRU_SCREW]],UIoptions!$Q$18="NA"),1,0) -> 0 | BK131: =IF(OR(UIoptions!$P$19=PCdb[[#This Row],[THREAD_SZ]],UIoptions!$P$19="NA"),1,0) -> 1 | BL131: =IF(UIoptions!$N$75=1,1,IF(AND(PCdb[[#This Row],[THREAD_L]]>UIoptions!$S$17,PCdb[[#This Row],[THREAD_L]]<UIoptions!$T$17),1,0)) -> 1 | BM131: =IF(SUM(PCdb[[#This Row],[BDhit]:[THREAD_Lhit]])=11,1,0) -> 0 | BN131: =CONCATENATE(PCdb[[#This Row],[BCD]],PCdb[[#This Row],[PD]],PCdb[[#This Row],[PL (MAX)]],PCdb[[#This Row],[SD]],PCdb[[#This Row],[SL]],PCdb[[#This Row],[SQ_SZ]],PCdb[[#This Row],[ROUND_D]],PCdb[[#This Row],[FL]],PCdb[[#This Row],[THRU_SCREW]],PCdb[[#This Row],[THREAD_SZ]],PCdb[[#This Row],[THREAD_L]],PCdb[[#This Row],[NBR_HOLES]]) -> 98,473,02415,87531,886NA8,5M5NANA4 | BO131: =SUM(PCdb[[#This Row],[BDhit]:[THREAD_Lhit]]) -> 4
A132: 127 | B132: 66.7 | C132: 38.1 | D132: 4 | E132: 9.53 | F132: 25.4 | G132: 60 | H132: NA | I132: 6.4 | J132: M4 | K132: NA | L132: NA | M132: 4 | N132: M4 | V132: 41.7 | W132: 26 | X132: NA | Y132: Y | Z132: B | AA132: 45 | AB132: 90 | AC132: 45.2 | AD132: NA | AE132: 55 | AF132: Y | AG132: A | AH132: 45 | AI132: 90 | AJ132: 24 | AK132: 0 | AL132: Y | AM132: D | AN132: 45 | AO132: 90 | AP132: 24 | AQ132: 0 | AR132: Y | AS132: C | AT132: 45 | AU132: 90 | AV132: 27 | AW132: NA | AX132: Y | AY132: C | AZ132: 45 | BA132: 90 | BB132: =IF(AND(PCdb[[#This Row],[BCD]]>UIoptions!$S$10,PCdb[[#This Row],[BCD]]<UIoptions!$T$10),1,0) -> 0 | BC132: =IF(AND(PCdb[[#This Row],[PD]]>UIoptions!$S$11,PCdb[[#This Row],[PD]]<UIoptions!$T$11),1,0) -> 0 | BD132: =IF(AND(UIoptions!$P$14<=PCdb[[#This Row],[PL (MAX)]],UIoptions!$P$14>UIoptions!$S$14),1,0) -> 1 | BE132: =IF(AND(PCdb[[#This Row],[SD]]>UIoptions!$S$12,PCdb[[#This Row],[SD]]<UIoptions!$T$12),1,0) -> 0 | BF132: =IF(AND(PCdb[[#This Row],[SL]]>UIoptions!$S$13,PCdb[[#This Row],[SL]]<UIoptions!$T$13),1,0) -> 0 | BG132: =IF(UIoptions!$N$35=1,IF(AND(PCdb[[#This Row],[SQ_SZ]]>UIoptions!$S$15,PCdb[[#This Row],[SQ_SZ]]<UIoptions!$T$15),1,0),1) -> 0 | BH132: =IF(UIoptions!$N$35=2,IF(AND(PCdb[[#This Row],[ROUND_D]]>UIoptions!$S$15,PCdb[[#This Row],[ROUND_D]]<UIoptions!$T$15),1,0),1) -> 1 | BI132: =IF(UIoptions!$N$75<>1,1,IF(AND(PCdb[[#This Row],[FL]]>UIoptions!$S$16,PCdb[[#This Row],[FL]]<UIoptions!$T$16),1,0)) -> 0 | BJ132: =IF(OR(UIoptions!$Q$18=PCdb[[#This Row],[THRU_SCREW]],UIoptions!$Q$18="NA"),1,0) -> 1 | BK132: =IF(OR(UIoptions!$P$19=PCdb[[#This Row],[THREAD_SZ]],UIoptions!$P$19="NA"),1,0) -> 1 | BL132: =IF(UIoptions!$N$75=1,1,IF(AND(PCdb[[#This Row],[THREAD_L]]>UIoptions!$S$17,PCdb[[#This Row],[THREAD_L]]<UIoptions!$T$17),1,0)) -> 1 | BM132: =IF(SUM(PCdb[[#This Row],[BDhit]:[THREAD_Lhit]])=11,1,0) -> 0 | BN132: =CONCATENATE(PCdb[[#This Row],[BCD]],PCdb[[#This Row],[PD]],PCdb[[#This Row],[PL (MAX)]],PCdb[[#This Row],[SD]],PCdb[[#This Row],[SL]],PCdb[[#This Row],[SQ_SZ]],PCdb[[#This Row],[ROUND_D]],PCdb[[#This Row],[FL]],PCdb[[#This Row],[THRU_SCREW]],PCdb[[#This Row],[THREAD_SZ]],PCdb[[#This Row],[THREAD_L]],PCdb[[#This Row],[NBR_HOLES]]) -> 66,738,149,5325,460NA6,4M4NANA4 | BO132: =SUM(PCdb[[#This Row],[BDhit]:[THREAD_Lhit]]) -> 5
A133: 128 | B133: 75 | C133: 60 | D133: 4 | E133: 11 | F133: 23 | G133: 73 | H133: NA | I133: 8 | J133: M5 | K133: NA | L133: NA | M133: 4 | N133: M5 | V133: 45.2 | W133: 32 | X133: 0 | Y133: Y | Z133: B | AA133: 45 | AB133: 90 | AC133: 48.7 | AD133: 33 | AE133: NA | AF133: Y | AG133: B | AH133: 45 | AI133: 90 | AV133: 32 | AW133: NA | AX133: Y | AY133: C | AZ133: 45 | BA133: 90 | BB133: =IF(AND(PCdb[[#This Row],[BCD]]>UIoptions!$S$10,PCdb[[#This Row],[BCD]]<UIoptions!$T$10),1,0) -> 0 | BC133: =IF(AND(PCdb[[#This Row],[PD]]>UIoptions!$S$11,PCdb[[#This Row],[PD]]<UIoptions!$T$11),1,0) -> 0 | BD133: =IF(AND(UIoptions!$P$14<=PCdb[[#This Row],[PL (MAX)]],UIoptions!$P$14>UIoptions!$S$14),1,0) -> 1 | BE133: =IF(AND(PCdb[[#This Row],[SD]]>UIoptions!$S$12,PCdb[[#This Row],[SD]]<UIoptions!$T$12),1,0) -> 0 | BF133: =IF(AND(PCdb[[#This Row],[SL]]>UIoptions!$S$13,PCdb[[#This Row],[SL]]<UIoptions!$T$13),1,0) -> 0 | BG133: =IF(UIoptions!$N$35=1,IF(AND(PCdb[[#This Row],[SQ_SZ]]>UIoptions!$S$15,PCdb[[#This Row],[SQ_SZ]]<UIoptions!$T$15),1,0),1) -> 0 | BH133: =IF(UIoptions!$N$35=2,IF(AND(PCdb[[#This Row],[ROUND_D]]>UIoptions!$S$15,PCdb[[#This Row],[ROUND_D]]<UIoptions!$T$15),1,0),1) -> 1 | BI133: =IF(UIoptions!$N$75<>1,1,IF(AND(PCdb[[#This Row],[FL]]>UIoptions!$S$16,PCdb[[#This Row],[FL]]<UIoptions!$T$16),1,0)) -> 0 | BJ133: =IF(OR(UIoptions!$Q$18=PCdb[[#This Row],[THRU_SCREW]],UIoptions!$Q$18="NA"),1,0) -> 0 | BK133: =IF(OR(UIoptions!$P$19=PCdb[[#This Row],[THREAD_SZ]],UIoptions!$P$19="NA"),1,0) -> 1 | BL133: =IF(UIoptions!$N$75=1,1,IF(AND(PCdb[[#This Row],[THREAD_L]]>UIoptions!$S$17,PCdb[[#This Row],[THREAD_L]]<UIoptions!$T$17),1,0)) -> 1 | BM133: =IF(SUM(PCdb[[#This Row],[BDhit]:[THREAD_Lhit]])=11,1,0) -> 0 | BN133: =CONCATENATE(PCdb[[#This Row],[BCD]],PCdb[[#This Row],[PD]],PCdb[[#This Row],[PL (MAX)]],PCdb[[#This Row],[SD]],PCdb[[#This Row],[SL]],PCdb[[#This Row],[SQ_SZ]],PCdb[[#This Row],[ROUND_D]],PCdb[[#This Row],[FL]],PCdb[[#This Row],[THRU_SCREW]],PCdb[[#This Row],[THREAD_SZ]],PCdb[[#This Row],[THREAD_L]],PCdb[[#This Row],[NBR_HOLES]]) -> 75604112373NA8M5NANA4 | BO133: =SUM(PCdb[[#This Row],[BDhit]:[THREAD_Lhit]]) -> 4
A134: 129 | B134: 75 | C134: 60 | D134: 4 | E134: 11 | F134: 23 | G134: 70 | H134: NA | I134: 6 | J134: M5 | K134: NA | L134: NA | M134: 4 | N134: M5 | O134: NA | P134: NA | Q134: NA | R134: NA | S134: NA | T134: NA | U134: NA | V134: 45.2 | W134: 32 | X134: 0 | Y134: Y | Z134: B | AA134: 45 | AB134: 90 | AJ134: NA | AK134: NA | AL134: NA | AM134: NA | AN134: NA | AO134: NA | AP134: 32 | AQ134: 0 | AR134: Y | AS134: B | AT134: 45 | AU134: 90 | AV134: 32 | AW134: NA | AX134: Y | AY134: C | AZ134: 45 | BA134: 90 | BB134: =IF(AND(PCdb[[#This Row],[BCD]]>UIoptions!$S$10,PCdb[[#This Row],[BCD]]<UIoptions!$T$10),1,0) -> 0 | BC134: =IF(AND(PCdb[[#This Row],[PD]]>UIoptions!$S$11,PCdb[[#This Row],[PD]]<UIoptions!$T$11),1,0) -> 0 | BD134: =IF(AND(UIoptions!$P$14<=PCdb[[#This Row],[PL (MAX)]],UIoptions!$P$14>UIoptions!$S$14),1,0) -> 1 | BE134: =IF(AND(PCdb[[#This Row],[SD]]>UIoptions!$S$12,PCdb[[#This Row],[SD]]<UIoptions!$T$12),1,0) -> 0 | BF134: =IF(AND(PCdb[[#This Row],[SL]]>UIoptions!$S$13,PCdb[[#This Row],[SL]]<UIoptions!$T$13),1,0) -> 0 | BG134: =IF(UIoptions!$N$35=1,IF(AND(PCdb[[#This Row],[SQ_SZ]]>UIoptions!$S$15,PCdb[[#This Row],[SQ_SZ]]<UIoptions!$T$15),1,0),1) -> 0 | BH134: =IF(UIoptions!$N$35=2,IF(AND(PCdb[[#This Row],[ROUND_D]]>UIoptions!$S$15,PCdb[[#This Row],[ROUND_D]]<UIoptions!$T$15),1,0),1) -> 1 | BI134: =IF(UIoptions!$N$75<>1,1,IF(AND(PCdb[[#This Row],[FL]]>UIoptions!$S$16,PCdb[[#This Row],[FL]]<UIoptions!$T$16),1,0)) -> 0 | BJ134: =IF(OR(UIoptions!$Q$18=PCdb[[#This Row],[THRU_SCREW]],UIoptions!$Q$18="NA"),1,0) -> 0 | BK134: =IF(OR(UIoptions!$P$19=PCdb[[#This Row],[THREAD_SZ]],UIoptions!$P$19="NA"),1,0) -> 1 | BL134: =IF(UIoptions!$N$75=1,1,IF(AND(PCdb[[#This Row],[THREAD_L]]>UIoptions!$S$17,PCdb[[#This Row],[THREAD_L]]<UIoptions!$T$17),1,0)) -> 1 | BM134: =IF(SUM(PCdb[[#This Row],[BDhit]:[THREAD_Lhit]])=11,1,0) -> 0 | BN134: =CONCATENATE(PCdb[[#This Row],[BCD]],PCdb[[#This Row],[PD]],PCdb[[#This Row],[PL (MAX)]],PCdb[[#This Row],[SD]],PCdb[[#This Row],[SL]],PCdb[[#This Row],[SQ_SZ]],PCdb[[#This Row],[ROUND_D]],PCdb[[#This Row],[FL]],PCdb[[#This Row],[THRU_SCREW]],PCdb[[#This Row],[THREAD_SZ]],PCdb[[#This Row],[THREAD_L]],PCdb[[#This Row],[NBR_HOLES]]) -> 75604112370NA6M5NANA4 | BO134: =SUM(PCdb[[#This Row],[BDhit]:[THREAD_Lhit]]) -> 4
A135: 130 | B135: 70 | C135: 50 | D135: 4 | E135: 14 | F135: 31 | G135: 60 | H135: NA | I135: 8 | J135: M5 | K135: NA | L135: NA | M135: 4 | N135: M5 | V135: 41.7 | W135: 27 | X135: NA | Y135: Y | Z135: B | AA135: 45 | AB135: 90 | AP135: 27 | AQ135: NA | AR135: Y | AS135: C | AT135: 45 | AU135: 90 | BB135: =IF(AND(PCdb[[#This Row],[BCD]]>UIoptions!$S$10,PCdb[[#This Row],[BCD]]<UIoptions!$T$10),1,0) -> 0 | BC135: =IF(AND(PCdb[[#This Row],[PD]]>UIoptions!$S$11,PCdb[[#This Row],[PD]]<UIoptions!$T$11),1,0) -> 0 | BD135: =IF(AND(UIoptions!$P$14<=PCdb[[#This Row],[PL (MAX)]],UIoptions!$P$14>UIoptions!$S$14),1,0) -> 1 | BE135: =IF(AND(PCdb[[#This Row],[SD]]>UIoptions!$S$12,PCdb[[#This Row],[SD]]<UIoptions!$T$12),1,0) -> 0 | BF135: =IF(AND(PCdb[[#This Row],[SL]]>UIoptions!$S$13,PCdb[[#This Row],[SL]]<UIoptions!$T$13),1,0) -> 0 | BG135: =IF(UIoptions!$N$35=1,IF(AND(PCdb[[#This Row],[SQ_SZ]]>UIoptions!$S$15,PCdb[[#This Row],[SQ_SZ]]<UIoptions!$T$15),1,0),1) -> 0 | BH135: =IF(UIoptions!$N$35=2,IF(AND(PCdb[[#This Row],[ROUND_D]]>UIoptions!$S$15,PCdb[[#This Row],[ROUND_D]]<UIoptions!$T$15),1,0),1) -> 1 | BI135: =IF(UIoptions!$N$75<>1,1,IF(AND(PCdb[[#This Row],[FL]]>UIoptions!$S$16,PCdb[[#This Row],[FL]]<UIoptions!$T$16),1,0)) -> 0 | BJ135: =IF(OR(UIoptions!$Q$18=PCdb[[#This Row],[THRU_SCREW]],UIoptions!$Q$18="NA"),1,0) -> 0 | BK135: =IF(OR(UIoptions!$P$19=PCdb[[#This Row],[THREAD_SZ]],UIoptions!$P$19="NA"),1,0) -> 1 | BL135: =IF(UIoptions!$N$75=1,1,IF(AND(PCdb[[#This Row],[THREAD_L]]>UIoptions!$S$17,PCdb[[#This Row],[THREAD_L]]<UIoptions!$T$17),1,0)) -> 1 | BM135: =IF(SUM(PCdb[[#This Row],[BDhit]:[THREAD_Lhit]])=11,1,0) -> 0 | BN135: =CONCATENATE(PCdb[[#This Row],[BCD]],PCdb[[#This Row],[PD]],PCdb[[#This Row],[PL (MAX)]],PCdb[[#This Row],[SD]],PCdb[[#This Row],[SL]],PCdb[[#This Row],[SQ_SZ]],PCdb[[#This Row],[ROUND_D]],PCdb[[#This Row],[FL]],PCdb[[#This Row],[THRU_SCREW]],PCdb[[#This Row],[THREAD_SZ]],PCdb[[#This Row],[THREAD_L]],PCdb[[#This Row],[NBR_HOLES]]) -> 70504143160NA8M5NANA4 | BO135: =SUM(PCdb[[#This Row],[BDhit]:[THREAD_Lhit]]) -> 4
A136: 131 | B136: 66.7 | C136: 38.1 | D136: 1.9 | E136: 6.35 | F136: 20.6 | G136: 59.1 | H136: NA | I136: 4.8 | J136: M4 | K136: NA | L136: NA | M136: 4 | N136: M4 | BB136: =IF(AND(PCdb[[#This Row],[BCD]]>UIoptions!$S$10,PCdb[[#This Row],[BCD]]<UIoptions!$T$10),1,0) -> 0 | BC136: =IF(AND(PCdb[[#This Row],[PD]]>UIoptions!$S$11,PCdb[[#This Row],[PD]]<UIoptions!$T$11),1,0) -> 0 | BD136: =IF(AND(UIoptions!$P$14<=PCdb[[#This Row],[PL (MAX)]],UIoptions!$P$14>UIoptions!$S$14),1,0) -> 0 | BE136: =IF(AND(PCdb[[#This Row],[SD]]>UIoptions!$S$12,PCdb[[#This Row],[SD]]<UIoptions!$T$12),1,0) -> 0 | BF136: =IF(AND(PCdb[[#This Row],[SL]]>UIoptions!$S$13,PCdb[[#This Row],[SL]]<UIoptions!$T$13),1,0) -> 0 | BG136: =IF(UIoptions!$N$35=1,IF(AND(PCdb[[#This Row],[SQ_SZ]]>UIoptions!$S$15,PCdb[[#This Row],[SQ_SZ]]<UIoptions!$T$15),1,0),1) -> 0 | BH136: =IF(UIoptions!$N$35=2,IF(AND(PCdb[[#This Row],[ROUND_D]]>UIoptions!$S$15,PCdb[[#This Row],[ROUND_D]]<UIoptions!$T$15),1,0),1) -> 1 | BI136: =IF(UIoptions!$N$75<>1,1,IF(AND(PCdb[[#This Row],[FL]]>UIoptions!$S$16,PCdb[[#This Row],[FL]]<UIoptions!$T$16),1,0)) -> 0 | BJ136: =IF(OR(UIoptions!$Q$18=PCdb[[#This Row],[THRU_SCREW]],UIoptions!$Q$18="NA"),1,0) -> 1 | BK136: =IF(OR(UIoptions!$P$19=PCdb[[#This Row],[THREAD_SZ]],UIoptions!$P$19="NA"),1,0) -> 1 | BL136: =IF(UIoptions!$N$75=1,1,IF(AND(PCdb[[#This Row],[THREAD_L]]>UIoptions!$S$17,PCdb[[#This Row],[THREAD_L]]<UIoptions!$T$17),1,0)) -> 1 | BM136: =IF(SUM(PCdb[[#This Row],[BDhit]:[THREAD_Lhit]])=11,1,0) -> 0 | BN136: =CONCATENATE(PCdb[[#This Row],[BCD]],PCdb[[#This Row],[PD]],PCdb[[#This Row],[PL (MAX)]],PCdb[[#This Row],[SD]],PCdb[[#This Row],[SL]],PCdb[[#This Row],[SQ_SZ]],PCdb[[#This Row],[ROUND_D]],PCdb[[#This Row],[FL]],PCdb[[#This Row],[THRU_SCREW]],PCdb[[#This Row],[THREAD_SZ]],PCdb[[#This Row],[THREAD_L]],PCdb[[#This Row],[NBR_HOLES]]) -> 66,738,11,96,3520,659,1NA4,8M4NANA4 | BO136: =SUM(PCdb[[#This Row],[BDhit]:[THREAD_Lhit]]) -> 4
A137: 132 | B137: 98.4 | C137: 73.03 | D137: 2 | E137: 12.7 | F137: 32.5 | G137: 86.9 | H137: NA | I137: 4.8 | J137: M5 | K137: NA | L137: NA | M137: 4 | N137: M5 | O137: NA | P137: NA | Q137: NA | R137: NA | S137: NA | T137: NA | U137: NA | V137: 41.7 | W137: 37.5 | X137: 0 | Y137: Y | Z137: B | AA137: 45 | AB137: 90 | AC137: 45.2 | AD137: 39 | AE137: 0 | AF137: Y | AG137: B | AH137: 45 | AI137: 90 | AJ137: NA | AK137: NA | AL137: NA | AM137: NA | AN137: NA | AO137: NA | AP137: NA | AQ137: NA | AR137: NA | AS137: NA | AT137: NA | AU137: NA | AV137: 40 | AW137: 0 | AX137: Y | AY137: D | AZ137: 45 | BA137: 90 | BB137: =IF(AND(PCdb[[#This Row],[BCD]]>UIoptions!$S$10,PCdb[[#This Row],[BCD]]<UIoptions!$T$10),1,0) -> 0 | BC137: =IF(AND(PCdb[[#This Row],[PD]]>UIoptions!$S$11,PCdb[[#This Row],[PD]]<UIoptions!$T$11),1,0) -> 0 | BD137: =IF(AND(UIoptions!$P$14<=PCdb[[#This Row],[PL (MAX)]],UIoptions!$P$14>UIoptions!$S$14),1,0) -> 0 | BE137: =IF(AND(PCdb[[#This Row],[SD]]>UIoptions!$S$12,PCdb[[#This Row],[SD]]<UIoptions!$T$12),1,0) -> 0 | BF137: =IF(AND(PCdb[[#This Row],[SL]]>UIoptions!$S$13,PCdb[[#This Row],[SL]]<UIoptions!$T$13),1,0) -> 0 | BG137: =IF(UIoptions!$N$35=1,IF(AND(PCdb[[#This Row],[SQ_SZ]]>UIoptions!$S$15,PCdb[[#This Row],[SQ_SZ]]<UIoptions!$T$15),1,0),1) -> 0 | BH137: =IF(UIoptions!$N$35=2,IF(AND(PCdb[[#This Row],[ROUND_D]]>UIoptions!$S$15,PCdb[[#This Row],[ROUND_D]]<UIoptions!$T$15),1,0),1) -> 1 | BI137: =IF(UIoptions!$N$75<>1,1,IF(AND(PCdb[[#This Row],[FL]]>UIoptions!$S$16,PCdb[[#This Row],[FL]]<UIoptions!$T$16),1,0)) -> 0 | BJ137: =IF(OR(UIoptions!$Q$18=PCdb[[#This Row],[THRU_SCREW]],UIoptions!$Q$18="NA"),1,0) -> 0 | BK137: =IF(OR(UIoptions!$P$19=PCdb[[#This Row],[THREAD_SZ]],UIoptions!$P$19="NA"),1,0) -> 1 | BL137: =IF(UIoptions!$N$75=1,1,IF(AND(PCdb[[#This Row],[THREAD_L]]>UIoptions!$S$17,PCdb[[#This Row],[THREAD_L]]<UIoptions!$T$17),1,0)) -> 1 | BM137: =IF(SUM(PCdb[[#This Row],[BDhit]:[THREAD_Lhit]])=11,1,0) -> 0 | BN137: =CONCATENATE(PCdb[[#This Row],[BCD]],PCdb[[#This Row],[PD]],PCdb[[#This Row],[PL (MAX)]],PCdb[[#This Row],[SD]],PCdb[[#This Row],[SL]],PCdb[[#This Row],[SQ_SZ]],PCdb[[#This Row],[ROUND_D]],PCdb[[#This Row],[FL]],PCdb[[#This Row],[THRU_SCREW]],PCdb[[#This Row],[THREAD_SZ]],PCdb[[#This Row],[THREAD_L]],PCdb[[#This Row],[NBR_HOLES]]) -> 98,473,03212,732,586,9NA4,8M5NANA4 | BO137: =SUM(PCdb[[#This Row],[BDhit]:[THREAD_Lhit]]) -> 3
A138: 133 | B138: 52 | C138: 40 | D138: 4 | E138: 15 | F138: 32 | G138: NA | H138: 63 | I138: NA | J138: NA | K138: M5 | L138: 10 | M138: 4 | N138: 6 | O138: NA | P138: NA | Q138: NA | R138: NA | S138: NA | T138: NA | U138: NA | AJ138: NA | AK138: NA | AL138: NA | AM138: NA | AN138: NA | AO138: NA | AV138: NA | AW138: NA | AX138: Y | AY138: D2 | AZ138: 45 | BA138: 90 | BB138: =IF(AND(PCdb[[#This Row],[BCD]]>UIoptions!$S$10,PCdb[[#This Row],[BCD]]<UIoptions!$T$10),1,0) -> 0 | BC138: =IF(AND(PCdb[[#This Row],[PD]]>UIoptions!$S$11,PCdb[[#This Row],[PD]]<UIoptions!$T$11),1,0) -> 1 | BD138: =IF(AND(UIoptions!$P$14<=PCdb[[#This Row],[PL (MAX)]],UIoptions!$P$14>UIoptions!$S$14),1,0) -> 1 | BE138: =IF(AND(PCdb[[#This Row],[SD]]>UIoptions!$S$12,PCdb[[#This Row],[SD]]<UIoptions!$T$12),1,0) -> 1 | BF138: =IF(AND(PCdb[[#This Row],[SL]]>UIoptions!$S$13,PCdb[[#This Row],[SL]]<UIoptions!$T$13),1,0) -> 0 | BG138: =IF(UIoptions!$N$35=1,IF(AND(PCdb[[#This Row],[SQ_SZ]]>UIoptions!$S$15,PCdb[[#This Row],[SQ_SZ]]<UIoptions!$T$15),1,0),1) -> 0 | BH138: =IF(UIoptions!$N$35=2,IF(AND(PCdb[[#This Row],[ROUND_D]]>UIoptions!$S$15,PCdb[[#This Row],[ROUND_D]]<UIoptions!$T$15),1,0),1) -> 1 | BI138: =IF(UIoptions!$N$75<>1,1,IF(AND(PCdb[[#This Row],[FL]]>UIoptions!$S$16,PCdb[[#This Row],[FL]]<UIoptions!$T$16),1,0)) -> 0 | BJ138: =IF(OR(UIoptions!$Q$18=PCdb[[#This Row],[THRU_SCREW]],UIoptions!$Q$18="NA"),1,0) -> 0 | BK138: =IF(OR(UIoptions!$P$19=PCdb[[#This Row],[THREAD_SZ]],UIoptions!$P$19="NA"),1,0) -> 1 | BL138: =IF(UIoptions!$N$75=1,1,IF(AND(PCdb[[#This Row],[THREAD_L]]>UIoptions!$S$17,PCdb[[#This Row],[THREAD_L]]<UIoptions!$T$17),1,0)) -> 1 | BM138: =IF(SUM(PCdb[[#This Row],[BDhit]:[THREAD_Lhit]])=11,1,0) -> 0 | BN138: =CONCATENATE(PCdb[[#This Row],[BCD]],PCdb[[#This Row],[PD]],PCdb[[#This Row],[PL (MAX)]],PCdb[[#This Row],[SD]],PCdb[[#This Row],[SL]],PCdb[[#This Row],[SQ_SZ]],PCdb[[#This Row],[ROUND_D]],PCdb[[#This Row],[FL]],PCdb[[#This Row],[THRU_SCREW]],PCdb[[#This Row],[THREAD_SZ]],PCdb[[#This Row],[THREAD_L]],PCdb[[#This Row],[NBR_HOLES]]) -> 524041532NA63NANAM5104 | BO138: =SUM(PCdb[[#This Row],[BDhit]:[THREAD_Lhit]]) -> 6
A139: 134 | B139: 63 | C139: 40 | D139: 4 | E139: 9 | F139: 20 | G139: 55 | H139: NA | I139: 6.5 | J139: M4 | K139: NA | L139: NA | M139: 4 | N139: M4 | AJ139: 24 | AK139: 0 | AL139: Y | AM139: D | AN139: 45 | AO139: 90 | AV139: 36 | AW139: 0 | AX139: Y | AY139: C | AZ139: 45 | BA139: 90 | BB139: =IF(AND(PCdb[[#This Row],[BCD]]>UIoptions!$S$10,PCdb[[#This Row],[BCD]]<UIoptions!$T$10),1,0) -> 1 | BC139: =IF(AND(PCdb[[#This Row],[PD]]>UIoptions!$S$11,PCdb[[#This Row],[PD]]<UIoptions!$T$11),1,0) -> 1 | BD139: =IF(AND(UIoptions!$P$14<=PCdb[[#This Row],[PL (MAX)]],UIoptions!$P$14>UIoptions!$S$14),1,0) -> 1 | BE139: =IF(AND(PCdb[[#This Row],[SD]]>UIoptions!$S$12,PCdb[[#This Row],[SD]]<UIoptions!$T$12),1,0) -> 0 | BF139: =IF(AND(PCdb[[#This Row],[SL]]>UIoptions!$S$13,PCdb[[#This Row],[SL]]<UIoptions!$T$13),1,0) -> 1 | BG139: =IF(UIoptions!$N$35=1,IF(AND(PCdb[[#This Row],[SQ_SZ]]>UIoptions!$S$15,PCdb[[#This Row],[SQ_SZ]]<UIoptions!$T$15),1,0),1) -> 0 | BH139: =IF(UIoptions!$N$35=2,IF(AND(PCdb[[#This Row],[ROUND_D]]>UIoptions!$S$15,PCdb[[#This Row],[ROUND_D]]<UIoptions!$T$15),1,0),1) -> 1 | BI139: =IF(UIoptions!$N$75<>1,1,IF(AND(PCdb[[#This Row],[FL]]>UIoptions!$S$16,PCdb[[#This Row],[FL]]<UIoptions!$T$16),1,0)) -> 0 | BJ139: =IF(OR(UIoptions!$Q$18=PCdb[[#This Row],[THRU_SCREW]],UIoptions!$Q$18="NA"),1,0) -> 1 | BK139: =IF(OR(UIoptions!$P$19=PCdb[[#This Row],[THREAD_SZ]],UIoptions!$P$19="NA"),1,0) -> 1 | BL139: =IF(UIoptions!$N$75=1,1,IF(AND(PCdb[[#This Row],[THREAD_L]]>UIoptions!$S$17,PCdb[[#This Row],[THREAD_L]]<UIoptions!$T$17),1,0)) -> 1 | BM139: =IF(SUM(PCdb[[#This Row],[BDhit]:[THREAD_Lhit]])=11,1,0) -> 0 | BN139: =CONCATENATE(PCdb[[#This Row],[BCD]],PCdb[[#This Row],[PD]],PCdb[[#This Row],[PL (MAX)]],PCdb[[#This Row],[SD]],PCdb[[#This Row],[SL]],PCdb[[#This Row],[SQ_SZ]],PCdb[[#This Row],[ROUND_D]],PCdb[[#This Row],[FL]],PCdb[[#This Row],[THRU_SCREW]],PCdb[[#This Row],[THREAD_SZ]],PCdb[[#This Row],[THREAD_L]],PCdb[[#This Row],[NBR_HOLES]]) -> 6340492055NA6,5M4NANA4 | BO139: =SUM(PCdb[[#This Row],[BDhit]:[THREAD_Lhit]]) -> 8
A140: 135 | B140: 40 | C140: 32 | D140: 6 | E140: 12 | F140: 25 | G140: NA | H140: 52 | I140: NA | J140: NA | K140: M5 | L140: 7.5 | M140: 4 | N140: 6 | V140: 45.2 | W140: NA | X140: NA | Y140: Y | Z140: SPLB2-135 | AA140: 45 | AB140: 90 | AV140: NA | AW140: NA | AX140: Y | AY140: SPLA2-135 | AZ140: 45 | BA140: 90 | BB140: =IF(AND(PCdb[[#This Row],[BCD]]>UIoptions!$S$10,PCdb[[#This Row],[BCD]]<UIoptions!$T$10),1,0) -> 0 | BC140: =IF(AND(PCdb[[#This Row],[PD]]>UIoptions!$S$11,PCdb[[#This Row],[PD]]<UIoptions!$T$11),1,0) -> 0 | BD140: =IF(AND(UIoptions!$P$14<=PCdb[[#This Row],[PL (MAX)]],UIoptions!$P$14>UIoptions!$S$14),1,0) -> 1 | BE140: =IF(AND(PCdb[[#This Row],[SD]]>UIoptions!$S$12,PCdb[[#This Row],[SD]]<UIoptions!$T$12),1,0) -> 0 | BF140: =IF(AND(PCdb[[#This Row],[SL]]>UIoptions!$S$13,PCdb[[#This Row],[SL]]<UIoptions!$T$13),1,0) -> 0 | BG140: =IF(UIoptions!$N$35=1,IF(AND(PCdb[[#This Row],[SQ_SZ]]>UIoptions!$S$15,PCdb[[#This Row],[SQ_SZ]]<UIoptions!$T$15),1,0),1) -> 0 | BH140: =IF(UIoptions!$N$35=2,IF(AND(PCdb[[#This Row],[ROUND_D]]>UIoptions!$S$15,PCdb[[#This Row],[ROUND_D]]<UIoptions!$T$15),1,0),1) -> 1 | BI140: =IF(UIoptions!$N$75<>1,1,IF(AND(PCdb[[#This Row],[FL]]>UIoptions!$S$16,PCdb[[#This Row],[FL]]<UIoptions!$T$16),1,0)) -> 0 | BJ140: =IF(OR(UIoptions!$Q$18=PCdb[[#This Row],[THRU_SCREW]],UIoptions!$Q$18="NA"),1,0) -> 0 | BK140: =IF(OR(UIoptions!$P$19=PCdb[[#This Row],[THREAD_SZ]],UIoptions!$P$19="NA"),1,0) -> 1 | BL140: =IF(UIoptions!$N$75=1,1,IF(AND(PCdb[[#This Row],[THREAD_L]]>UIoptions!$S$17,PCdb[[#This Row],[THREAD_L]]<UIoptions!$T$17),1,0)) -> 1 | BM140: =IF(SUM(PCdb[[#This Row],[BDhit]:[THREAD_Lhit]])=11,1,0) -> 0 | BN140: =CONCATENATE(PCdb[[#This Row],[BCD]],PCdb[[#This Row],[PD]],PCdb[[#This Row],[PL (MAX)]],PCdb[[#This Row],[SD]],PCdb[[#This Row],[SL]],PCdb[[#This Row],[SQ_SZ]],PCdb[[#This Row],[ROUND_D]],PCdb[[#This Row],[FL]],PCdb[[#This Row],[THRU_SCREW]],PCdb[[#This Row],[THREAD_SZ]],PCdb[[#This Row],[THREAD_L]],PCdb[[#This Row],[NBR_HOLES]]) -> 403261225NA52NANAM57,54 | BO140: =SUM(PCdb[[#This Row],[BDhit]:[THREAD_Lhit]]) -> 4
A141: 136 | B141: 36 | C141: 25 | D141: 4 | E141: 10 | F141: 30 | G141: 50 | H141: NA | I141: NA | J141: NA | K141: M4 | L141: 8 | M141: 4 | N141: 5 | AC141: 48.7 | AD141: NA | AE141: NA | AF141: Y | AG141: B2 | AH141: 45 | AI141: 90 | BB141: =IF(AND(PCdb[[#This Row],[BCD]]>UIoptions!$S$10,PCdb[[#This Row],[BCD]]<UIoptions!$T$10),1,0) -> 0 | BC141: =IF(AND(PCdb[[#This Row],[PD]]>UIoptions!$S$11,PCdb[[#This Row],[PD]]<UIoptions!$T$11),1,0) -> 0 | BD141: =IF(AND(UIoptions!$P$14<=PCdb[[#This Row],[PL (MAX)]],UIoptions!$P$14>UIoptions!$S$14),1,0) -> 1 | BE141: =IF(AND(PCdb[[#This Row],[SD]]>UIoptions!$S$12,PCdb[[#This Row],[SD]]<UIoptions!$T$12),1,0) -> 0 | BF141: =IF(AND(PCdb[[#This Row],[SL]]>UIoptions!$S$13,PCdb[[#This Row],[SL]]<UIoptions!$T$13),1,0) -> 0 | BG141: =IF(UIoptions!$N$35=1,IF(AND(PCdb[[#This Row],[SQ_SZ]]>UIoptions!$S$15,PCdb[[#This Row],[SQ_SZ]]<UIoptions!$T$15),1,0),1) -> 0 | BH141: =IF(UIoptions!$N$35=2,IF(AND(PCdb[[#This Row],[ROUND_D]]>UIoptions!$S$15,PCdb[[#This Row],[ROUND_D]]<UIoptions!$T$15),1,0),1) -> 1 | BI141: =IF(UIoptions!$N$75<>1,1,IF(AND(PCdb[[#This Row],[FL]]>UIoptions!$S$16,PCdb[[#This Row],[FL]]<UIoptions!$T$16),1,0)) -> 0 | BJ141: =IF(OR(UIoptions!$Q$18=PCdb[[#This Row],[THRU_SCREW]],UIoptions!$Q$18="NA"),1,0) -> 0 | BK141: =IF(OR(UIoptions!$P$19=PCdb[[#This Row],[THREAD_SZ]],UIoptions!$P$19="NA"),1,0) -> 1 | BL141: =IF(UIoptions!$N$75=1,1,IF(AND(PCdb[[#This Row],[THREAD_L]]>UIoptions!$S$17,PCdb[[#This Row],[THREAD_L]]<UIoptions!$T$17),1,0)) -> 1 | BM141: =IF(SUM(PCdb[[#This Row],[BDhit]:[THREAD_Lhit]])=11,1,0) -> 0 | BN141: =CONCATENATE(PCdb[[#This Row],[BCD]],PCdb[[#This Row],[PD]],PCdb[[#This Row],[PL (MAX)]],PCdb[[#This Row],[SD]],PCdb[[#This Row],[SL]],PCdb[[#This Row],[SQ_SZ]],PCdb[[#This Row],[ROUND_D]],PCdb[[#This Row],[FL]],PCdb[[#This Row],[THRU_SCREW]],PCdb[[#This Row],[THREAD_SZ]],PCdb[[#This Row],[THREAD_L]],PCdb[[#This Row],[NBR_HOLES]]) -> 36254103050NANANAM484 | BO141: =SUM(PCdb[[#This Row],[BDhit]:[THREAD_Lhit]]) -> 4
